Workbook

Sheet Inhoudstafel
D1: Schil 4 | H1: Schil 3 | L1: Schil 2 | P1: Schil 1 | T1: Centraal | X1: Schil 1 | AB1: Schil 2
D8: Zwembad | H8: ZG personeel | L8: ZG personeelskost
D10: Hippo | H10: OG personeel | L10: ZG werking
P11: Totaal kosten cliënt | T11: Totaal cliënt | X11: Totaal inkomsten cliënt | AB11: Budgetcategorieën
D12: Sportzaal | H12: Ander personeel | L12: OG personeelskost
D14: Transport | H14: Vastgoed | L14: OG werking
D16: Voeding | H16: Personeelsbarema's | L16: Woon- en leefkosten
D18: Wasserij | L18: Samenvatting functiegroepen
D20: … | P20: Samenvatting W&L | T20: Totalen

Sheet Legende
A1: Afkorting | B1: Verklaring | C1: Tabblad
A2: APAC | B2: Afgesproken puntenaantal cash | C2: Totale inkomsten voor cliënt
A3: APAV | B3: Afgesproken puntenaantal voucher | C3: Totale inkomsten voor cliënt
A4: GWP | B4: Geïndexeerde waarde van een punt | C4: Parameters+overzicht info
A5: ICOG | B5: Inkomsten cliënt voor organisatiegebonden uitgaven | C5: Totale inkomsten voor cliënt
A6: ICZGP | B6: Inkomsten cliënt voor zorggebonden personeel | C6: Totale inkomsten voor cliënt
A7: KCOGP | B7: Kosten cliënt voor organisatiegebonden personeel | C7: Totale kosten voor cliënt
A8: KCOGW | B8: Kosten cliënt voor organisatiegebonden werking | C8: Totale kosten voor cliënt
A9: KCWL | B9: Kosten cliënt voor woon-en leefkosten | C9: Totale kosten voor cliënt
A10: KCZGP | B10: Kosten cliënt voor zorggebonden personeelskosten | C10: Totale kosten voor cliënt
A11: KCZGW | B11: Kosten cliënt voor zorggebonden werkingskosten | C11: Totale kosten voor cliënt
A12: KOOGP | B12: Kosten organisatie voor organisatiegebonden personeel | C12: OG personeelskost
A13: KOOGW | B13: Kosten organisatie voor organisatiegebonden werking | C13: OG werking
A14: KOZGP | B14: Kosten organisatie voor zorggebonden personeel | C14: ZG personeelskost
A15: KOZGW | B15: Kosten organisatie voor zorggebonden werking | C15: ZG werking
A16: OGPB | B16: Organisatiegebonden personeelsbestand | C16: OG personeelskost
A17: POGK | B17: Percentage organisatiegebonden kosten | C17: Parameters+overzicht info
A18: WPO | B18: Waarde van een punt binnen de organisatie | C18: Samenvatting functiegroepen
A19: ZGPB | B19: Zorggebonden personeelsbestand | C19: ZG personeel

Sheet Keuzelijsten
A1: ZG diensten | C1: OG diensten | E1: Verdeelsleutels | G1: Organisatiegebonden | I1: Transitie
G2: Woon- en leefkost | I2: Nieuw
A3: Leefgroepbegeleider | C3: Directie | E3: Aanwezigheidsdagen | G3: Zorggebonden
A4: Dagbestedingsbegeleider | C4: Administratie | E4: m²
A5: Kinesist | C5: Onderhoud Centraal Gebouw | E5: Halve dagen dagopvang
A6: Logopedist | C6: Technische Dienst | E6: Kilometer
A7: Diëtist | C7: Huiscoördinatoren | E7: Kilo was
A8: Verpleegkundigen | C8: Logistiek Coördinator | E8: Stuks
A9: Dokters | C9: Zinzorg en pastoraat | E9: Aantal maaltijden
A10: Orthoagoog | C10: Preventieadviseur | E10: Aantal ritten
A11: Nachtdienst | C11: Naaisters | E11: Aantal nachten
C12: Sociale dienst | E12: Aantal afspraken
E13: Uren
E14: Uitstappen
E15: dagdelen dagondersteuning
E16: aantal nachten woonondersteuning
E17: per m² wooneenheid bewoner

Sheet Parameters+overzicht info
A1: Parameters (overheid)
A3: Geïndexeerde waarde van een punt | B3: 817.3607
A4: Percentage organisatiegebonden kosten | B4: 0.2535
A6: Overzicht info
B7: Maximum bezetting | C7: Reële bezetting
A8: Waarde van een punt binnen de organisatie | B8: =SamenvattingFunctiegroepen[[#Totals],[Euro/punt (maximum bezetting)]] -> 868.0309301 | C8: =SamenvattingFunctiegroepen[[#Totals],[Euro/punt (reële bezetting)]] -> 964.3816589
A10: Percentage organisatiegebonden kosten binnen de organisatie | B10: =IFERROR((KOOGW[[#Totals],[Werkingskosten]]+KOOGW[[#Totals],[Vastgoedkosten]]+OGPB[[#Totals],[Totale loonkost]])/(KOZGW[[#Totals],[Werkingskost (zonder vastgoed)]]+KOZGW[[#Totals],[Vastgoedkosten]]+ZGPB[[#Totals],[Loonkost]]),0) -> 0.3519775989
A12: Totaal loonkosten | B12: =SUM(ZGPB[[#Totals],[Loonkost]],OGPB[[#Totals],[Totale loonkost]],NVAPH[[#Totals],[Loonkost]],) -> 8675484.13
A13: Totaal niet VAPH subsidies | B13: =NVAPH[[#Totals],[Inkomsten]] -> 27516.87

Sheet Budgetcategorieën
A1: Geïndexeerde waarde van een punt | B1: ='Parameters+overzicht info'!B3 -> 817.3607
A2: Percentage organisatiegebonden kosten | B2: ='Parameters+overzicht info'!B4 -> 0.2535
A5: Budgetcategorieën | F5: Budgetcategorieën transitie
A6: Budget-categorie | B6: Ondergrens gewichten | C6: Bovengrens gewichten | D6: Bovengrens zorggebonden punten | F6: Budget-categorie | G6: Ondergrens gewichten | H6: Bovengrens gewichten | I6: Bovengrens zorggebonden punten
A7: I | B7: ≥ 2,0 | C7: < 6,0 | D7: 12.2345 | F7: I a | G7: ≥ 2,0 | H7: < 3,0 | I7: 9.058625
A8: II | B8: ≥ 6,0 | C8: < 9,0 | D8: 17.1283 | F8: I b | G8: ≥ 3,0 | H8: < 4,0 | I8: 10.11725
A9: III | B9: ≥ 9,0 | C9: < 13,1 | D9: 24.269 | F9: I c | G9: ≥ 4,0 | H9: < 4,9 | I9: 11.175875
A10: IV | B10: ≥ 13,1 | C10: < 20,0 | D10: 33.6449 | F10: I d | G10: ≥ 4,9 | H10: < 6,0 | I10: 12.2345
A11: V | B11: ≥ 20,0 | C11: < 25,5 | D11: 42.8208 | F11: II | G11: ≥ 6,0 | H11: < 9,0 | I11: 17.1283
A12: VI | B12: ≥ 25,5 | C12: < 30,0 | D12: 50.1615 | F12: III a | G12: ≥ 9,0 | H12: < 11,0 | I12: 20.69865
A13: VII | B13: ≥ 30,0 | C13: < 34,4 | D13: 53.2201 | F13: III b | G13: ≥ 11,0 | H13: < 13,1 | I13: 24.269
A14: VIII | B14: ≥ 34,4 | C14: < 39,5 | D14: 55.0553 | F14: IV a | G14: ≥ 13,1 | H14: < 16,5 | I14: 28.95695
A15: IX | B15: ≥ 39,5 | C15: < 50,1 | D15: 59.0533 | F15: IV b | G15: ≥ 16,5 | H15: < 20,0 | I15: 33.6449
A16: X | B16: ≥ 50,1 | C16: < 60,1 | D16: 70.9602 | F16: V a | G16: ≥ 20,0 | H16: < 22,7 | I16: 38.23285
A17: XI | B17: ≥ 60,1 | C17: ≤ 65,0 | D17: 88.0885 | F17: V b | G17: ≥ 22,7 | H17: < 25,5 | I17: 42.8208
A18: XII | B18: > 65,0 | D18: 103.9933 | F18: VI a | G18: ≥ 25,5 | H18: < 27,7 | I18: 46.49115
F19: VI b | G19: ≥ 27,7 | H19: < 30,0 | I19: 50.1615
F20: VII | G20: ≥ 30,0 | H20: < 34,4 | I20: 53.2201
F21: VIII | G21: ≥ 34,4 | H21: < 39,5 | I21: 55.0553
F22: IX | G22: ≥ 39,5 | H22: < 50,1 | I22: 59.0533
F23: X a | G23: ≥ 50,1 | H23: < 55,0 | I23: 65.00675
F24: X b | G24: ≥ 55,0 | H24: < 60,1 | I24: 70.9602
F25: XI a | G25: ≥ 60,1 | H25: < 62,5 | I25: 79.52435
F26: XI b | G26: ≥ 62,5 | H26: ≤ 65,0 | I26: 88.0885
F27: XII | G27: > 65,0 | I27: 103.9933

Sheet Totaal cliënt
A1: Cliënt | O1: Naam | P1: ='Totale inkomsten voor cliënt'!B1 -> Pakket 15
O2: Budgetcategorie | P2: ='Totale inkomsten voor cliënt'!B3 -> X b
A3: Kosten | F3: Inkomsten | K3: Verschil
B5: Zorggebonden | G5: Zorggebonden | L5: Zorggebonden
C6: Punten | D6: Bedrag | H6: Punten | I6: Bedrag
G7: Voucher | H7: =IFERROR(I7/WPO,0) -> 70.96 | I7: ='Totale inkomsten voor cliënt'!B9 -> 61595.4748
G8: Cash | H8: =I8/GWP -> 0 | I8: ='Totale inkomsten voor cliënt'!B10 -> 0
B9: Personeelskosten | C9: =KCZGP[[#Totals],[Punten per jaar]]+KCZGP[[#Totals],[Cash punten per jaar]] -> 75.18602154 | D9: =KCZGP[[#Totals],[Totaal personeelskost per jaar]] -> 65263.79221 | G9: Extern | I9: ='Totale inkomsten voor cliënt'!B11 -> 0
B10: Werkingskosten | D10: =KCZGW[[#Totals],[Kost per jaar]] -> 960.8174791 | G10: Niet VAPH subsidies | I10: =ZGSubsidies[[#Totals],[Subsidies per jaar]] -> 0 | L10: Punten | M10: =H11-C11 -> -4.226021542
B11: Totaal | C11: =SUM(C9:C10) -> 75.18602154 | D11: =SUM(D9:D10) -> 66224.60969 | G11: Totaal | H11: =SUM(H7:H9) -> 70.96 | I11: =SUM(I7:I10) -> 61595.4748 | L11: Bedrag | M11: =I11-D11 -> -4629.134889
B13: Organisatiegebonden | G13: Organisatiegebonden | L13: Organisatiegebonden
C14: Punten | D14: Bedrag | H14: Punten | I14: Bedrag
G15: Voucher | H15: =IFERROR(I15/WPO,0) -> 17.98836 | I15: ='Totale inkomsten voor cliënt'!B15 -> 15614.45286
G16: Cash | H16: =I16/GWP -> 0 | I16: ='Totale inkomsten voor cliënt'!B16 -> 0
B17: Personeelskosten | D17: =KCOGP[[#Totals],[Kost per jaar]] -> 11180.50596 | G17: Extern | I17: ='Totale inkomsten voor cliënt'!B17 -> 0
B18: Werkingskosten | D18: =KCOGW[[#Totals],[Kost per jaar]] -> 6182.310981 | G18: Niet VAPH subsidies | I18: =OGSubsidies[[#Totals],[Subsidies per jaar]] -> 233.9542872 | L18: Punten | M18: =H19-C19 -> -1.071296461
B19: Totaal | C19: =C9*POGK -> 19.05965646 | D19: =SUM(D17:D18) -> 17362.81694 | G19: Totaal | H19: =SUM(H15:H17) -> 17.98836 | I19: =SUM(I15:I18) -> 15848.40715 | L19: Bedrag | M19: =I19-D19 -> -1514.409791
B21: Woon- & leefkosten | G21: Woon- & leefinkomsten | L21: Woon- & leefkosten
B22: Categorie | D22: Kost | G22: Categorie | H22: Subsidies | I22: Gefactureerd | L22: Categorie | M22: Verschil
B23: =IF('Totale kosten voor cliënt'!A146="","",'Totale kosten voor cliënt'!A146) -> Ontbijt | D23: =IF('Totale kosten voor cliënt'!B146="","",'Totale kosten voor cliënt'!E146) -> 474.5 | G23: =B23 -> Ontbijt | H23: =VLOOKUP(SamenvattingICWL[[#This Row],[Categorie]],VKprijsWenL[],3,)*VLOOKUP(SamenvattingICWL[[#This Row],[Categorie]],KCWL[],3,) -> 0 | I23: =IF(OR(G23="",D23=0),0,VLOOKUP(SamenvattingICWL[[#This Row],[Categorie]],KCWL[],3,)*VLOOKUP(SamenvattingICWL[[#This Row],[Categorie]],VKprijsWenL[],5,)) -> 730 | L23: =SamenvattingKCWL[[#This Row],[Categorie]] -> Ontbijt | M23: =(SamenvattingICWL[[#This Row],[Gefactureerd]]+SamenvattingICWL[[#This Row],[Subsidies]])-SamenvattingKCWL[[#This Row],[Kost]] -> 255.5
B24: =IF('Totale kosten voor cliënt'!A147="","",'Totale kosten voor cliënt'!A147) -> Middagmaal | D24: =IF('Totale kosten voor cliënt'!B147="","",'Totale kosten voor cliënt'!E147) -> 4412.85 | G24: =B24 -> Middagmaal | H24: =VLOOKUP(SamenvattingICWL[[#This Row],[Categorie]],VKprijsWenL[],3,)*VLOOKUP(SamenvattingICWL[[#This Row],[Categorie]],KCWL[],3,) -> 0 | I24: =IF(OR(G24="",D24=0),0,VLOOKUP(SamenvattingICWL[[#This Row],[Categorie]],KCWL[],3,)*VLOOKUP(SamenvattingICWL[[#This Row],[Categorie]],VKprijsWenL[],5,)) -> 5110 | L24: =SamenvattingKCWL[[#This Row],[Categorie]] -> Middagmaal | M24: =(SamenvattingICWL[[#This Row],[Gefactureerd]]+SamenvattingICWL[[#This Row],[Subsidies]])-SamenvattingKCWL[[#This Row],[Kost]] -> 697.15
A25: =IF('Totale kosten voor cliënt'!A167="","",'Totale kosten voor cliënt'!A167) ->  | B25: =IF('Totale kosten voor cliënt'!A148="","",'Totale kosten voor cliënt'!A148) -> Avondmaal | D25: =IF('Totale kosten voor cliënt'!B148="","",'Totale kosten voor cliënt'!E148) -> 711.75 | G25: =B25 -> Avondmaal | H25: =VLOOKUP(SamenvattingICWL[[#This Row],[Categorie]],VKprijsWenL[],3,)*VLOOKUP(SamenvattingICWL[[#This Row],[Categorie]],KCWL[],3,) -> 0 | I25: =IF(OR(G25="",D25=0),0,VLOOKUP(SamenvattingICWL[[#This Row],[Categorie]],KCWL[],3,)*VLOOKUP(SamenvattingICWL[[#This Row],[Categorie]],VKprijsWenL[],5,)) -> 1095 | L25: =SamenvattingKCWL[[#This Row],[Categorie]] -> Avondmaal | M25: =(SamenvattingICWL[[#This Row],[Gefactureerd]]+SamenvattingICWL[[#This Row],[Subsidies]])-SamenvattingKCWL[[#This Row],[Kost]] -> 383.25
A26: =IF('Totale kosten voor cliënt'!A168="","",'Totale kosten voor cliënt'!A168) ->  | B26: =IF('Totale kosten voor cliënt'!A149="","",'Totale kosten voor cliënt'!A149) -> Huur kamer | D26: =IF('Totale kosten voor cliënt'!B149="","",'Totale kosten voor cliënt'!E149) -> 2784.95 | G26: =B26 -> Huur kamer | H26: =VLOOKUP(SamenvattingICWL[[#This Row],[Categorie]],VKprijsWenL[],3,)*VLOOKUP(SamenvattingICWL[[#This Row],[Categorie]],KCWL[],3,) -> 0 | I26: =IF(OR(G26="",D26=0),0,VLOOKUP(SamenvattingICWL[[#This Row],[Categorie]],KCWL[],3,)*VLOOKUP(SamenvattingICWL[[#This Row],[Categorie]],VKprijsWenL[],5,)) -> 3102.5 | L26: =SamenvattingKCWL[[#This Row],[Categorie]] -> Huur kamer | M26: =(SamenvattingICWL[[#This Row],[Gefactureerd]]+SamenvattingICWL[[#This Row],[Subsidies]])-SamenvattingKCWL[[#This Row],[Kost]] -> 317.55
A27: =IF('Totale kosten voor cliënt'!A169="","",'Totale kosten voor cliënt'!A169) ->  | B27: =IF('Totale kosten voor cliënt'!A150="","",'Totale kosten voor cliënt'!A150) -> Onderhoud kamer | D27: =IF('Totale kosten voor cliënt'!B150="","",'Totale kosten voor cliënt'!E150) -> 2923.65 | G27: =B27 -> Onderhoud kamer | H27: =VLOOKUP(SamenvattingICWL[[#This Row],[Categorie]],VKprijsWenL[],3,)*VLOOKUP(SamenvattingICWL[[#This Row],[Categorie]],KCWL[],3,) -> 0 | I27: =IF(OR(G27="",D27=0),0,VLOOKUP(SamenvattingICWL[[#This Row],[Categorie]],KCWL[],3,)*VLOOKUP(SamenvattingICWL[[#This Row],[Categorie]],VKprijsWenL[],5,)) -> 3650 | L27: =SamenvattingKCWL[[#This Row],[Categorie]] -> Onderhoud kamer | M27: =(SamenvattingICWL[[#This Row],[Gefactureerd]]+SamenvattingICWL[[#This Row],[Subsidies]])-SamenvattingKCWL[[#This Row],[Kost]] -> 726.35
A28: =IF('Totale kosten voor cliënt'!A170="","",'Totale kosten voor cliënt'!A170) ->  | B28: =IF('Totale kosten voor cliënt'!A151="","",'Totale kosten voor cliënt'!A151) -> Naaisters | D28: =IF('Totale kosten voor cliënt'!B151="","",'Totale kosten voor cliënt'!E151) -> 0 | G28: Naaisters | H28: =VLOOKUP(SamenvattingICWL[[#This Row],[Categorie]],VKprijsWenL[],3,)*VLOOKUP(SamenvattingICWL[[#This Row],[Categorie]],KCWL[],3,) -> 0 | I28: =IF(OR(G28="",D28=0),0,VLOOKUP(SamenvattingICWL[[#This Row],[Categorie]],KCWL[],3,)*VLOOKUP(SamenvattingICWL[[#This Row],[Categorie]],VKprijsWenL[],5,)) -> 0 | L28: =SamenvattingKCWL[[#This Row],[Categorie]] -> Naaisters | M28: =(SamenvattingICWL[[#This Row],[Gefactureerd]]+SamenvattingICWL[[#This Row],[Subsidies]])-SamenvattingKCWL[[#This Row],[Kost]] -> 0
A29: =IF('Totale kosten voor cliënt'!A171="","",'Totale kosten voor cliënt'!A171) ->  | B29: =IF('Totale kosten voor cliënt'!A152="","",'Totale kosten voor cliënt'!A152) -> W&L 7 | D29: =IF('Totale kosten voor cliënt'!B152="","",'Totale kosten voor cliënt'!E152) -> 0 | G29: W&L 7 | H29: =VLOOKUP(SamenvattingICWL[[#This Row],[Categorie]],VKprijsWenL[],3,)*VLOOKUP(SamenvattingICWL[[#This Row],[Categorie]],KCWL[],3,) -> 0 | I29: =IF(OR(G29="",D29=0),0,VLOOKUP(SamenvattingICWL[[#This Row],[Categorie]],KCWL[],3,)*VLOOKUP(SamenvattingICWL[[#This Row],[Categorie]],VKprijsWenL[],5,)) -> 0 | L29: =SamenvattingKCWL[[#This Row],[Categorie]] -> W&L 7 | M29: =(SamenvattingICWL[[#This Row],[Gefactureerd]]+SamenvattingICWL[[#This Row],[Subsidies]])-SamenvattingKCWL[[#This Row],[Kost]] -> 0
A30: =IF('Totale kosten voor cliënt'!A172="","",'Totale kosten voor cliënt'!A172) ->  | B30: =IF('Totale kosten voor cliënt'!A153="","",'Totale kosten voor cliënt'!A153) -> W&L 8 | D30: =IF('Totale kosten voor cliënt'!B153="","",'Totale kosten voor cliënt'!E153) -> 0 | G30: W&L 8 | H30: =VLOOKUP(SamenvattingICWL[[#This Row],[Categorie]],VKprijsWenL[],3,)*VLOOKUP(SamenvattingICWL[[#This Row],[Categorie]],KCWL[],3,) -> 0 | I30: =IF(OR(G30="",D30=0),0,VLOOKUP(SamenvattingICWL[[#This Row],[Categorie]],KCWL[],3,)*VLOOKUP(SamenvattingICWL[[#This Row],[Categorie]],VKprijsWenL[],5,)) -> 0 | L30: =SamenvattingKCWL[[#This Row],[Categorie]] -> W&L 8 | M30: =(SamenvattingICWL[[#This Row],[Gefactureerd]]+SamenvattingICWL[[#This Row],[Subsidies]])-SamenvattingKCWL[[#This Row],[Kost]] -> 0
A31: =IF('Totale kosten voor cliënt'!A173="","",'Totale kosten voor cliënt'!A173) ->  | B31: =IF('Totale kosten voor cliënt'!A154="","",'Totale kosten voor cliënt'!A154) -> W&L 9 | D31: =IF('Totale kosten voor cliënt'!B154="","",'Totale kosten voor cliënt'!E154) -> 0 | G31: W&L 9 | H31: =VLOOKUP(SamenvattingICWL[[#This Row],[Categorie]],VKprijsWenL[],3,)*VLOOKUP(SamenvattingICWL[[#This Row],[Categorie]],KCWL[],3,) -> 0 | I31: =IF(OR(G31="",D31=0),0,VLOOKUP(SamenvattingICWL[[#This Row],[Categorie]],KCWL[],3,)*VLOOKUP(SamenvattingICWL[[#This Row],[Categorie]],VKprijsWenL[],5,)) -> 0 | L31: =SamenvattingKCWL[[#This Row],[Categorie]] -> W&L 9 | M31: =(SamenvattingICWL[[#This Row],[Gefactureerd]]+SamenvattingICWL[[#This Row],[Subsidies]])-SamenvattingKCWL[[#This Row],[Kost]] -> 0
A32: =IF('Totale kosten voor cliënt'!A174="","",'Totale kosten voor cliënt'!A174) ->  | B32: =IF('Totale kosten voor cliënt'!A155="","",'Totale kosten voor cliënt'!A155) -> W&L 10 | D32: =IF('Totale kosten voor cliënt'!B155="","",'Totale kosten voor cliënt'!E155) -> 0 | G32: W&L 10 | H32: =VLOOKUP(SamenvattingICWL[[#This Row],[Categorie]],VKprijsWenL[],3,)*VLOOKUP(SamenvattingICWL[[#This Row],[Categorie]],KCWL[],3,) -> 0 | I32: =IF(OR(G32="",D32=0),0,VLOOKUP(SamenvattingICWL[[#This Row],[Categorie]],KCWL[],3,)*VLOOKUP(SamenvattingICWL[[#This Row],[Categorie]],VKprijsWenL[],5,)) -> 0 | L32: =SamenvattingKCWL[[#This Row],[Categorie]] -> W&L 10 | M32: =(SamenvattingICWL[[#This Row],[Gefactureerd]]+SamenvattingICWL[[#This Row],[Subsidies]])-SamenvattingKCWL[[#This Row],[Kost]] -> 0
A33: =IF('Totale kosten voor cliënt'!A175="","",'Totale kosten voor cliënt'!A175) ->  | B33: =IF('Totale kosten voor cliënt'!A156="","",'Totale kosten voor cliënt'!A156) -> W&L 11 | D33: =IF('Totale kosten voor cliënt'!B156="","",'Totale kosten voor cliënt'!E156) -> 0 | G33: W&L 11 | H33: =VLOOKUP(SamenvattingICWL[[#This Row],[Categorie]],VKprijsWenL[],3,)*VLOOKUP(SamenvattingICWL[[#This Row],[Categorie]],KCWL[],3,) -> 0 | I33: =IF(OR(G33="",D33=0),0,VLOOKUP(SamenvattingICWL[[#This Row],[Categorie]],KCWL[],3,)*VLOOKUP(SamenvattingICWL[[#This Row],[Categorie]],VKprijsWenL[],5,)) -> 0 | L33: =SamenvattingKCWL[[#This Row],[Categorie]] -> W&L 11 | M33: =(SamenvattingICWL[[#This Row],[Gefactureerd]]+SamenvattingICWL[[#This Row],[Subsidies]])-SamenvattingKCWL[[#This Row],[Kost]] -> 0
A34: =IF('Totale kosten voor cliënt'!A176="","",'Totale kosten voor cliënt'!A176) ->  | B34: =IF('Totale kosten voor cliënt'!A157="","",'Totale kosten voor cliënt'!A157) -> W&L 12 | D34: =IF('Totale kosten voor cliënt'!B157="","",'Totale kosten voor cliënt'!E157) -> 0 | G34: W&L 12 | H34: =VLOOKUP(SamenvattingICWL[[#This Row],[Categorie]],VKprijsWenL[],3,)*VLOOKUP(SamenvattingICWL[[#This Row],[Categorie]],KCWL[],3,) -> 0 | I34: =IF(OR(G34="",D34=0),0,VLOOKUP(SamenvattingICWL[[#This Row],[Categorie]],KCWL[],3,)*VLOOKUP(SamenvattingICWL[[#This Row],[Categorie]],VKprijsWenL[],5,)) -> 0 | L34: =SamenvattingKCWL[[#This Row],[Categorie]] -> W&L 12 | M34: =(SamenvattingICWL[[#This Row],[Gefactureerd]]+SamenvattingICWL[[#This Row],[Subsidies]])-SamenvattingKCWL[[#This Row],[Kost]] -> 0
A35: =IF('Totale kosten voor cliënt'!A177="","",'Totale kosten voor cliënt'!A177) ->  | B35: =IF('Totale kosten voor cliënt'!A158="","",'Totale kosten voor cliënt'!A158) -> W&L 13 | D35: =IF('Totale kosten voor cliënt'!B158="","",'Totale kosten voor cliënt'!E158) -> 0 | G35: W&L 13 | H35: =VLOOKUP(SamenvattingICWL[[#This Row],[Categorie]],VKprijsWenL[],3,)*VLOOKUP(SamenvattingICWL[[#This Row],[Categorie]],KCWL[],3,) -> 0 | I35: =IF(OR(G35="",D35=0),0,VLOOKUP(SamenvattingICWL[[#This Row],[Categorie]],KCWL[],3,)*VLOOKUP(SamenvattingICWL[[#This Row],[Categorie]],VKprijsWenL[],5,)) -> 0 | L35: =SamenvattingKCWL[[#This Row],[Categorie]] -> W&L 13 | M35: =(SamenvattingICWL[[#This Row],[Gefactureerd]]+SamenvattingICWL[[#This Row],[Subsidies]])-SamenvattingKCWL[[#This Row],[Kost]] -> 0
A36: =IF('Totale kosten voor cliënt'!A178="","",'Totale kosten voor cliënt'!A178) ->  | B36: =IF('Totale kosten voor cliënt'!A159="","",'Totale kosten voor cliënt'!A159) -> W&L 14 | D36: =IF('Totale kosten voor cliënt'!B159="","",'Totale kosten voor cliënt'!E159) -> 0 | G36: W&L 14 | H36: =VLOOKUP(SamenvattingICWL[[#This Row],[Categorie]],VKprijsWenL[],3,)*VLOOKUP(SamenvattingICWL[[#This Row],[Categorie]],KCWL[],3,) -> 0 | I36: =IF(OR(G36="",D36=0),0,VLOOKUP(SamenvattingICWL[[#This Row],[Categorie]],KCWL[],3,)*VLOOKUP(SamenvattingICWL[[#This Row],[Categorie]],VKprijsWenL[],5,)) -> 0 | L36: =SamenvattingKCWL[[#This Row],[Categorie]] -> W&L 14 | M36: =(SamenvattingICWL[[#This Row],[Gefactureerd]]+SamenvattingICWL[[#This Row],[Subsidies]])-SamenvattingKCWL[[#This Row],[Kost]] -> 0
A37: =IF('Totale kosten voor cliënt'!A179="","",'Totale kosten voor cliënt'!A179) ->  | B37: =IF('Totale kosten voor cliënt'!A160="","",'Totale kosten voor cliënt'!A160) -> W&L 15 | D37: =IF('Totale kosten voor cliënt'!B160="","",'Totale kosten voor cliënt'!E160) -> 0 | G37: W&L 15 | H37: =VLOOKUP(SamenvattingICWL[[#This Row],[Categorie]],VKprijsWenL[],3,)*VLOOKUP(SamenvattingICWL[[#This Row],[Categorie]],KCWL[],3,) -> 0 | I37: =IF(OR(G37="",D37=0),0,VLOOKUP(SamenvattingICWL[[#This Row],[Categorie]],KCWL[],3,)*VLOOKUP(SamenvattingICWL[[#This Row],[Categorie]],VKprijsWenL[],5,)) -> 0 | L37: =SamenvattingKCWL[[#This Row],[Categorie]] -> W&L 15 | M37: =(SamenvattingICWL[[#This Row],[Gefactureerd]]+SamenvattingICWL[[#This Row],[Subsidies]])-SamenvattingKCWL[[#This Row],[Kost]] -> 0
A38: =IF('Totale kosten voor cliënt'!A180="","",'Totale kosten voor cliënt'!A180) ->  | B38: =IF('Totale kosten voor cliënt'!A161="","",'Totale kosten voor cliënt'!A161) -> W&L 16 | D38: =IF('Totale kosten voor cliënt'!B161="","",'Totale kosten voor cliënt'!E161) -> 0 | G38: W&L 16 | H38: =VLOOKUP(SamenvattingICWL[[#This Row],[Categorie]],VKprijsWenL[],3,)*VLOOKUP(SamenvattingICWL[[#This Row],[Categorie]],KCWL[],3,) -> 0 | I38: =IF(OR(G38="",D38=0),0,VLOOKUP(SamenvattingICWL[[#This Row],[Categorie]],KCWL[],3,)*VLOOKUP(SamenvattingICWL[[#This Row],[Categorie]],VKprijsWenL[],5,)) -> 0 | L38: =SamenvattingKCWL[[#This Row],[Categorie]] -> W&L 16 | M38: =(SamenvattingICWL[[#This Row],[Gefactureerd]]+SamenvattingICWL[[#This Row],[Subsidies]])-SamenvattingKCWL[[#This Row],[Kost]] -> 0
A39: =IF('Totale kosten voor cliënt'!A181="","",'Totale kosten voor cliënt'!A181) ->  | B39: =IF('Totale kosten voor cliënt'!A162="","",'Totale kosten voor cliënt'!A162) -> W&L 17 | D39: =IF('Totale kosten voor cliënt'!B162="","",'Totale kosten voor cliënt'!E162) -> 0 | G39: W&L 17 | H39: =VLOOKUP(SamenvattingICWL[[#This Row],[Categorie]],VKprijsWenL[],3,)*VLOOKUP(SamenvattingICWL[[#This Row],[Categorie]],KCWL[],3,) -> 0 | I39: =IF(OR(G39="",D39=0),0,VLOOKUP(SamenvattingICWL[[#This Row],[Categorie]],KCWL[],3,)*VLOOKUP(SamenvattingICWL[[#This Row],[Categorie]],VKprijsWenL[],5,)) -> 0 | L39: =SamenvattingKCWL[[#This Row],[Categorie]] -> W&L 17 | M39: =(SamenvattingICWL[[#This Row],[Gefactureerd]]+SamenvattingICWL[[#This Row],[Subsidies]])-SamenvattingKCWL[[#This Row],[Kost]] -> 0
A40: =IF('Totale kosten voor cliënt'!A182="","",'Totale kosten voor cliënt'!A182) ->  | B40: =IF('Totale kosten voor cliënt'!A163="","",'Totale kosten voor cliënt'!A163) -> W&L 18 | D40: =IF('Totale kosten voor cliënt'!B163="","",'Totale kosten voor cliënt'!E163) -> 0 | G40: W&L 18 | H40: =VLOOKUP(SamenvattingICWL[[#This Row],[Categorie]],VKprijsWenL[],3,)*VLOOKUP(SamenvattingICWL[[#This Row],[Categorie]],KCWL[],3,) -> 0 | I40: =IF(OR(G40="",D40=0),0,VLOOKUP(SamenvattingICWL[[#This Row],[Categorie]],KCWL[],3,)*VLOOKUP(SamenvattingICWL[[#This Row],[Categorie]],VKprijsWenL[],5,)) -> 0 | L40: =SamenvattingKCWL[[#This Row],[Categorie]] -> W&L 18 | M40: =(SamenvattingICWL[[#This Row],[Gefactureerd]]+SamenvattingICWL[[#This Row],[Subsidies]])-SamenvattingKCWL[[#This Row],[Kost]] -> 0
A41: =IF('Totale kosten voor cliënt'!A183="","",'Totale kosten voor cliënt'!A183) ->  | B41: =IF('Totale kosten voor cliënt'!A164="","",'Totale kosten voor cliënt'!A164) -> W&L 19 | D41: =IF('Totale kosten voor cliënt'!B164="","",'Totale kosten voor cliënt'!E164) -> 0 | G41: W&L 19 | H41: =VLOOKUP(SamenvattingICWL[[#This Row],[Categorie]],VKprijsWenL[],3,)*VLOOKUP(SamenvattingICWL[[#This Row],[Categorie]],KCWL[],3,) -> 0 | I41: =IF(OR(G41="",D41=0),0,VLOOKUP(SamenvattingICWL[[#This Row],[Categorie]],KCWL[],3,)*VLOOKUP(SamenvattingICWL[[#This Row],[Categorie]],VKprijsWenL[],5,)) -> 0 | L41: =SamenvattingKCWL[[#This Row],[Categorie]] -> W&L 19 | M41: =(SamenvattingICWL[[#This Row],[Gefactureerd]]+SamenvattingICWL[[#This Row],[Subsidies]])-SamenvattingKCWL[[#This Row],[Kost]] -> 0
A42: =IF('Totale kosten voor cliënt'!A184="","",'Totale kosten voor cliënt'!A184) ->  | B42: =IF('Totale kosten voor cliënt'!A165="","",'Totale kosten voor cliënt'!A165) -> W&L 20 | D42: =IF('Totale kosten voor cliënt'!B165="","",'Totale kosten voor cliënt'!E165) -> 0 | G42: W&L 20 | H42: =VLOOKUP(SamenvattingICWL[[#This Row],[Categorie]],VKprijsWenL[],3,)*VLOOKUP(SamenvattingICWL[[#This Row],[Categorie]],KCWL[],3,) -> 0 | I42: =IF(OR(G42="",D42=0),0,VLOOKUP(SamenvattingICWL[[#This Row],[Categorie]],KCWL[],3,)*VLOOKUP(SamenvattingICWL[[#This Row],[Categorie]],VKprijsWenL[],5,)) -> 0 | L42: =SamenvattingKCWL[[#This Row],[Categorie]] -> W&L 20 | M42: =(SamenvattingICWL[[#This Row],[Gefactureerd]]+SamenvattingICWL[[#This Row],[Subsidies]])-SamenvattingKCWL[[#This Row],[Kost]] -> 0
A43: =IF('Totale kosten voor cliënt'!A185="","",'Totale kosten voor cliënt'!A185) ->  | B43: Totaal | D43: =SUBTOTAL(109,SamenvattingKCWL[Kost]) -> 11307.7 | G43: Totaal | H43: =SUBTOTAL(109,SamenvattingICWL[Subsidies]) -> 0 | I43: =SUBTOTAL(109,SamenvattingICWL[Gefactureerd]) -> 13687.5 | L43: Verschil | M43: =(SamenvattingICWL[[#Totals],[Gefactureerd]]+SamenvattingICWL[[#Totals],[Subsidies]])-SamenvattingKCWL[[#Totals],[Kost]] -> 2379.8
A44: =IF('Totale kosten voor cliënt'!A186="","",'Totale kosten voor cliënt'!A186) ->  | B44: =IF('Totale kosten voor cliënt'!A168="","",'Totale kosten voor cliënt'!A168) -> 
A45: =IF('Totale kosten voor cliënt'!A187="","",'Totale kosten voor cliënt'!A187) ->  | B45: Totaal | D45: =D11+D19+SamenvattingKCWL[[#Totals],[Kost]] -> 94895.12663 | G45: Totaal | I45: =I11+I19+SamenvattingICWL[[#Totals],[Gefactureerd]]+SamenvattingICWL[[#Totals],[Subsidies]] -> 91131.38195 | L45: Totaal | M45: =M11+M19+M43 -> -3763.74468
A46: =IF('Totale kosten voor cliënt'!A188="","",'Totale kosten voor cliënt'!A188) ->  | B46: =IF('Totale kosten voor cliënt'!A170="","",'Totale kosten voor cliënt'!A170) ->  | C46: =IF('Totale kosten voor cliënt'!B169="","",'Totale kosten voor cliënt'!E169) -> 
A47: =IF('Totale kosten voor cliënt'!A189="","",'Totale kosten voor cliënt'!A189) ->  | B47: =IF('Totale kosten voor cliënt'!A171="","",'Totale kosten voor cliënt'!A171) ->  | C47: =IF('Totale kosten voor cliënt'!B170="","",'Totale kosten voor cliënt'!E170) -> 
A48: =IF('Totale kosten voor cliënt'!A190="","",'Totale kosten voor cliënt'!A190) ->  | B48: =IF('Totale kosten voor cliënt'!A172="","",'Totale kosten voor cliënt'!A172) ->  | C48: =IF('Totale kosten voor cliënt'!B171="","",'Totale kosten voor cliënt'!E171) -> 
A49: =IF('Totale kosten voor cliënt'!A191="","",'Totale kosten voor cliënt'!A191) ->  | B49: =IF('Totale kosten voor cliënt'!A173="","",'Totale kosten voor cliënt'!A173) ->  | C49: =IF('Totale kosten voor cliënt'!B172="","",'Totale kosten voor cliënt'!E172) -> 
A50: =IF('Totale kosten voor cliënt'!A192="","",'Totale kosten voor cliënt'!A192) ->  | B50: =IF('Totale kosten voor cliënt'!A174="","",'Totale kosten voor cliënt'!A174) ->  | C50: =IF('Totale kosten voor cliënt'!B173="","",'Totale kosten voor cliënt'!E173) -> 
A51: =IF('Totale kosten voor cliënt'!A193="","",'Totale kosten voor cliënt'!A193) ->  | B51: =IF('Totale kosten voor cliënt'!A175="","",'Totale kosten voor cliënt'!A175) ->  | C51: =IF('Totale kosten voor cliënt'!B174="","",'Totale kosten voor cliënt'!E174) -> 
B52: =IF('Totale kosten voor cliënt'!B177="","",'Totale kosten voor cliënt'!E177) -> 

Sheet Totalen
A2: Naam | B2: Budgetcategorie | C2: Zorggebonden kosten punten | D2: Zorggebonden kosten cash | E2: Zorggebonden inkomsten punten | F2: Zorggebonden inkomsten cash | G2: Organisatiegebonden kosten punten | H2: Organisatiegebonden kosten cash | I2: Organisatiegebonden inkomsten punten | J2: Organisatiegebonden inkomsten cash | K2: Woon- & leefkosten | L2: Woon- en leefinkomsten | M2: Woon- en leefsubsidies
A3: Pakket 15 | B3: X b | C3: 75.18602154 | D3: 66224.6097 | E3: 70.96 | F3: 61595.4748 | G3: 19.05965646 | H3: 17362.8169 | I3: 17.98836 | J3: 15848.4071 | K3: 11307.7 | L3: 13687.5 | M3: 0

Sheet Totale inkomsten voor cliënt
A1: Naam cliënt | B1: Pakket 15
A2: Type cliënt | B2: Transitie
A3: Budgetcategorie | B3: X b
A4: Afgesproken puntenaantal voucher | B4: 70.96
A5: Afgesproken puntenaantal cash | D5: Maximum aantal punten
A6: Totaal punten | B6: =APAV+APAC -> 70.96 | D6: =IF($B$2=Keuzelijsten!$I$2,VLOOKUP('Totale inkomsten voor cliënt'!$B$3,Budgetcategorieën!A7:D18,4,),VLOOKUP('Totale inkomsten voor cliënt'!$B$3,Budgetcategorieën!F7:I27,4,)) -> 70.9602
A8: Zorggebonden inkomsten | B8: Bedrag
A9: Voucher | B9: =APAV*WPO -> 61595.4748
A10: Cash | B10: =APAC*GWP -> 0
A11: Afgesproken bedrag (extern) | B11: 0
A12: Totaal | B12: =SUBTOTAL(109,ICZGP[Bedrag]) -> 61595.4748
A14: Organisatiegebonden inkomsten | B14: Bedrag
A15: Voucher | B15: =B9*POGK -> 15614.45286
A16: Cash | B16: =B10*POGK -> 0
A17: Afgesproken bedrag (extern) | B17: 0
A18: Totaal | B18: =SUBTOTAL(109,ICOG[Bedrag]) -> 15614.45286
A20: Woon- & Leefkosten | B20: Brutokost per eenheid | C20: Subsidies per eenheid | D20: Nettokost per eenheid | E20: Verkoopprijs | F20: Aantal eenheden | G20: Omzet
A21: ='Woon- en leefkosten'!B2 -> Ontbijt | B21: =VLOOKUP(VKprijsWenL[[#This Row],[Woon- & Leefkosten]],WoonEnLeefKosten[[Woon- & Leefkost]:[Subsidies per eenheid]],4,) -> 1.3 | C21: =VLOOKUP(VKprijsWenL[[#This Row],[Woon- & Leefkosten]],WoonEnLeefKosten[[Woon- & Leefkost]:[Subsidies per eenheid]],5,) -> 0 | D21: =VKprijsWenL[[#This Row],[Brutokost per eenheid]]-VKprijsWenL[[#This Row],[Subsidies per eenheid]] -> 1.3 | E21: 2 | F21: =IFERROR(VLOOKUP(VKprijsWenL[[#This Row],[Woon- & Leefkosten]],KCWL[[Woon- en leefkosten]:[Aantal eenheden/jaar]],3,),"") -> 365 | G21: =VKprijsWenL[[#This Row],[Verkoopprijs]]*VKprijsWenL[[#This Row],[Aantal eenheden]] -> 730
A22: ='Woon- en leefkosten'!B3 -> Middagmaal | B22: =VLOOKUP(VKprijsWenL[[#This Row],[Woon- & Leefkosten]],WoonEnLeefKosten[[Woon- & Leefkost]:[Subsidies per eenheid]],4,) -> 12.09 | C22: =VLOOKUP(VKprijsWenL[[#This Row],[Woon- & Leefkosten]],WoonEnLeefKosten[[Woon- & Leefkost]:[Subsidies per eenheid]],5,) -> 0 | D22: =VKprijsWenL[[#This Row],[Brutokost per eenheid]]-VKprijsWenL[[#This Row],[Subsidies per eenheid]] -> 12.09 | E22: 14 | F22: =IFERROR(VLOOKUP(VKprijsWenL[[#This Row],[Woon- & Leefkosten]],KCWL[[Woon- en leefkosten]:[Aantal eenheden/jaar]],3,),"") -> 365 | G22: =VKprijsWenL[[#This Row],[Verkoopprijs]]*VKprijsWenL[[#This Row],[Aantal eenheden]] -> 5110
A23: ='Woon- en leefkosten'!B4 -> Avondmaal | B23: =VLOOKUP(VKprijsWenL[[#This Row],[Woon- & Leefkosten]],WoonEnLeefKosten[[Woon- & Leefkost]:[Subsidies per eenheid]],4,) -> 1.95 | C23: =VLOOKUP(VKprijsWenL[[#This Row],[Woon- & Leefkosten]],WoonEnLeefKosten[[Woon- & Leefkost]:[Subsidies per eenheid]],5,) -> 0 | D23: =VKprijsWenL[[#This Row],[Brutokost per eenheid]]-VKprijsWenL[[#This Row],[Subsidies per eenheid]] -> 1.95 | E23: 3 | F23: =IFERROR(VLOOKUP(VKprijsWenL[[#This Row],[Woon- & Leefkosten]],KCWL[[Woon- en leefkosten]:[Aantal eenheden/jaar]],3,),"") -> 365 | G23: =VKprijsWenL[[#This Row],[Verkoopprijs]]*VKprijsWenL[[#This Row],[Aantal eenheden]] -> 1095
A24: ='Woon- en leefkosten'!B5 -> Huur kamer | B24: =VLOOKUP(VKprijsWenL[[#This Row],[Woon- & Leefkosten]],WoonEnLeefKosten[[Woon- & Leefkost]:[Subsidies per eenheid]],4,) -> 7.63 | C24: =VLOOKUP(VKprijsWenL[[#This Row],[Woon- & Leefkosten]],WoonEnLeefKosten[[Woon- & Leefkost]:[Subsidies per eenheid]],5,) -> 0 | D24: =VKprijsWenL[[#This Row],[Brutokost per eenheid]]-VKprijsWenL[[#This Row],[Subsidies per eenheid]] -> 7.63 | E24: 8.5 | F24: =IFERROR(VLOOKUP(VKprijsWenL[[#This Row],[Woon- & Leefkosten]],KCWL[[Woon- en leefkosten]:[Aantal eenheden/jaar]],3,),"") -> 365 | G24: =VKprijsWenL[[#This Row],[Verkoopprijs]]*VKprijsWenL[[#This Row],[Aantal eenheden]] -> 3102.5
A25: ='Woon- en leefkosten'!B6 -> Onderhoud kamer | B25: =VLOOKUP(VKprijsWenL[[#This Row],[Woon- & Leefkosten]],WoonEnLeefKosten[[Woon- & Leefkost]:[Subsidies per eenheid]],4,) -> 8.01 | C25: =VLOOKUP(VKprijsWenL[[#This Row],[Woon- & Leefkosten]],WoonEnLeefKosten[[Woon- & Leefkost]:[Subsidies per eenheid]],5,) -> 0 | D25: =VKprijsWenL[[#This Row],[Brutokost per eenheid]]-VKprijsWenL[[#This Row],[Subsidies per eenheid]] -> 8.01 | E25: 10 | F25: =IFERROR(VLOOKUP(VKprijsWenL[[#This Row],[Woon- & Leefkosten]],KCWL[[Woon- en leefkosten]:[Aantal eenheden/jaar]],3,),"") -> 365 | G25: =VKprijsWenL[[#This Row],[Verkoopprijs]]*VKprijsWenL[[#This Row],[Aantal eenheden]] -> 3650
A26: ='Woon- en leefkosten'!B7 -> Naaisters | B26: =VLOOKUP(VKprijsWenL[[#This Row],[Woon- & Leefkosten]],WoonEnLeefKosten[[Woon- & Leefkost]:[Subsidies per eenheid]],4,) -> 0 | C26: =VLOOKUP(VKprijsWenL[[#This Row],[Woon- & Leefkosten]],WoonEnLeefKosten[[Woon- & Leefkost]:[Subsidies per eenheid]],5,) -> 0 | D26: =VKprijsWenL[[#This Row],[Brutokost per eenheid]]-VKprijsWenL[[#This Row],[Subsidies per eenheid]] -> 0 | F26: =IFERROR(VLOOKUP(VKprijsWenL[[#This Row],[Woon- & Leefkosten]],KCWL[[Woon- en leefkosten]:[Aantal eenheden/jaar]],3,),"") -> 0 | G26: =VKprijsWenL[[#This Row],[Verkoopprijs]]*VKprijsWenL[[#This Row],[Aantal eenheden]] -> 0
A27: ='Woon- en leefkosten'!B8 -> W&L 7 | B27: =VLOOKUP(VKprijsWenL[[#This Row],[Woon- & Leefkosten]],WoonEnLeefKosten[[Woon- & Leefkost]:[Subsidies per eenheid]],4,) -> 0 | C27: =VLOOKUP(VKprijsWenL[[#This Row],[Woon- & Leefkosten]],WoonEnLeefKosten[[Woon- & Leefkost]:[Subsidies per eenheid]],5,) -> 0 | D27: =VKprijsWenL[[#This Row],[Brutokost per eenheid]]-VKprijsWenL[[#This Row],[Subsidies per eenheid]] -> 0 | F27: =IFERROR(VLOOKUP(VKprijsWenL[[#This Row],[Woon- & Leefkosten]],KCWL[[Woon- en leefkosten]:[Aantal eenheden/jaar]],3,),"") -> 0 | G27: =VKprijsWenL[[#This Row],[Verkoopprijs]]*VKprijsWenL[[#This Row],[Aantal eenheden]] -> 0
A28: ='Woon- en leefkosten'!B9 -> W&L 8 | B28: =VLOOKUP(VKprijsWenL[[#This Row],[Woon- & Leefkosten]],WoonEnLeefKosten[[Woon- & Leefkost]:[Subsidies per eenheid]],4,) -> 0 | C28: =VLOOKUP(VKprijsWenL[[#This Row],[Woon- & Leefkosten]],WoonEnLeefKosten[[Woon- & Leefkost]:[Subsidies per eenheid]],5,) -> 0 | D28: =VKprijsWenL[[#This Row],[Brutokost per eenheid]]-VKprijsWenL[[#This Row],[Subsidies per eenheid]] -> 0 | F28: =IFERROR(VLOOKUP(VKprijsWenL[[#This Row],[Woon- & Leefkosten]],KCWL[[Woon- en leefkosten]:[Aantal eenheden/jaar]],3,),"") -> 0 | G28: =VKprijsWenL[[#This Row],[Verkoopprijs]]*VKprijsWenL[[#This Row],[Aantal eenheden]] -> 0
A29: ='Woon- en leefkosten'!B10 -> W&L 9 | B29: =VLOOKUP(VKprijsWenL[[#This Row],[Woon- & Leefkosten]],WoonEnLeefKosten[[Woon- & Leefkost]:[Subsidies per eenheid]],4,) -> 0 | C29: =VLOOKUP(VKprijsWenL[[#This Row],[Woon- & Leefkosten]],WoonEnLeefKosten[[Woon- & Leefkost]:[Subsidies per eenheid]],5,) -> 0 | D29: =VKprijsWenL[[#This Row],[Brutokost per eenheid]]-VKprijsWenL[[#This Row],[Subsidies per eenheid]] -> 0 | F29: =IFERROR(VLOOKUP(VKprijsWenL[[#This Row],[Woon- & Leefkosten]],KCWL[[Woon- en leefkosten]:[Aantal eenheden/jaar]],3,),"") -> 0 | G29: =VKprijsWenL[[#This Row],[Verkoopprijs]]*VKprijsWenL[[#This Row],[Aantal eenheden]] -> 0
A30: ='Woon- en leefkosten'!B11 -> W&L 10 | B30: =VLOOKUP(VKprijsWenL[[#This Row],[Woon- & Leefkosten]],WoonEnLeefKosten[[Woon- & Leefkost]:[Subsidies per eenheid]],4,) -> 0 | C30: =VLOOKUP(VKprijsWenL[[#This Row],[Woon- & Leefkosten]],WoonEnLeefKosten[[Woon- & Leefkost]:[Subsidies per eenheid]],5,) -> 0 | D30: =VKprijsWenL[[#This Row],[Brutokost per eenheid]]-VKprijsWenL[[#This Row],[Subsidies per eenheid]] -> 0 | F30: =IFERROR(VLOOKUP(VKprijsWenL[[#This Row],[Woon- & Leefkosten]],KCWL[[Woon- en leefkosten]:[Aantal eenheden/jaar]],3,),"") -> 0 | G30: =VKprijsWenL[[#This Row],[Verkoopprijs]]*VKprijsWenL[[#This Row],[Aantal eenheden]] -> 0
A31: ='Woon- en leefkosten'!B12 -> W&L 11 | B31: =VLOOKUP(VKprijsWenL[[#This Row],[Woon- & Leefkosten]],WoonEnLeefKosten[[Woon- & Leefkost]:[Subsidies per eenheid]],4,) -> 0 | C31: =VLOOKUP(VKprijsWenL[[#This Row],[Woon- & Leefkosten]],WoonEnLeefKosten[[Woon- & Leefkost]:[Subsidies per eenheid]],5,) -> 0 | D31: =VKprijsWenL[[#This Row],[Brutokost per eenheid]]-VKprijsWenL[[#This Row],[Subsidies per eenheid]] -> 0 | F31: =IFERROR(VLOOKUP(VKprijsWenL[[#This Row],[Woon- & Leefkosten]],KCWL[[Woon- en leefkosten]:[Aantal eenheden/jaar]],3,),"") -> 0 | G31: =VKprijsWenL[[#This Row],[Verkoopprijs]]*VKprijsWenL[[#This Row],[Aantal eenheden]] -> 0
A32: ='Woon- en leefkosten'!B13 -> W&L 12 | B32: =VLOOKUP(VKprijsWenL[[#This Row],[Woon- & Leefkosten]],WoonEnLeefKosten[[Woon- & Leefkost]:[Subsidies per eenheid]],4,) -> 0 | C32: =VLOOKUP(VKprijsWenL[[#This Row],[Woon- & Leefkosten]],WoonEnLeefKosten[[Woon- & Leefkost]:[Subsidies per eenheid]],5,) -> 0 | D32: =VKprijsWenL[[#This Row],[Brutokost per eenheid]]-VKprijsWenL[[#This Row],[Subsidies per eenheid]] -> 0 | F32: =IFERROR(VLOOKUP(VKprijsWenL[[#This Row],[Woon- & Leefkosten]],KCWL[[Woon- en leefkosten]:[Aantal eenheden/jaar]],3,),"") -> 0 | G32: =VKprijsWenL[[#This Row],[Verkoopprijs]]*VKprijsWenL[[#This Row],[Aantal eenheden]] -> 0
A33: ='Woon- en leefkosten'!B14 -> W&L 13 | B33: =VLOOKUP(VKprijsWenL[[#This Row],[Woon- & Leefkosten]],WoonEnLeefKosten[[Woon- & Leefkost]:[Subsidies per eenheid]],4,) -> 0 | C33: =VLOOKUP(VKprijsWenL[[#This Row],[Woon- & Leefkosten]],WoonEnLeefKosten[[Woon- & Leefkost]:[Subsidies per eenheid]],5,) -> 0 | D33: =VKprijsWenL[[#This Row],[Brutokost per eenheid]]-VKprijsWenL[[#This Row],[Subsidies per eenheid]] -> 0 | F33: =IFERROR(VLOOKUP(VKprijsWenL[[#This Row],[Woon- & Leefkosten]],KCWL[[Woon- en leefkosten]:[Aantal eenheden/jaar]],3,),"") -> 0 | G33: =VKprijsWenL[[#This Row],[Verkoopprijs]]*VKprijsWenL[[#This Row],[Aantal eenheden]] -> 0
A34: ='Woon- en leefkosten'!B15 -> W&L 14 | B34: =VLOOKUP(VKprijsWenL[[#This Row],[Woon- & Leefkosten]],WoonEnLeefKosten[[Woon- & Leefkost]:[Subsidies per eenheid]],4,) -> 0 | C34: =VLOOKUP(VKprijsWenL[[#This Row],[Woon- & Leefkosten]],WoonEnLeefKosten[[Woon- & Leefkost]:[Subsidies per eenheid]],5,) -> 0 | D34: =VKprijsWenL[[#This Row],[Brutokost per eenheid]]-VKprijsWenL[[#This Row],[Subsidies per eenheid]] -> 0 | F34: =IFERROR(VLOOKUP(VKprijsWenL[[#This Row],[Woon- & Leefkosten]],KCWL[[Woon- en leefkosten]:[Aantal eenheden/jaar]],3,),"") -> 0 | G34: =VKprijsWenL[[#This Row],[Verkoopprijs]]*VKprijsWenL[[#This Row],[Aantal eenheden]] -> 0
A35: ='Woon- en leefkosten'!B16 -> W&L 15 | B35: =VLOOKUP(VKprijsWenL[[#This Row],[Woon- & Leefkosten]],WoonEnLeefKosten[[Woon- & Leefkost]:[Subsidies per eenheid]],4,) -> 0 | C35: =VLOOKUP(VKprijsWenL[[#This Row],[Woon- & Leefkosten]],WoonEnLeefKosten[[Woon- & Leefkost]:[Subsidies per eenheid]],5,) -> 0 | D35: =VKprijsWenL[[#This Row],[Brutokost per eenheid]]-VKprijsWenL[[#This Row],[Subsidies per eenheid]] -> 0 | F35: =IFERROR(VLOOKUP(VKprijsWenL[[#This Row],[Woon- & Leefkosten]],KCWL[[Woon- en leefkosten]:[Aantal eenheden/jaar]],3,),"") -> 0 | G35: =VKprijsWenL[[#This Row],[Verkoopprijs]]*VKprijsWenL[[#This Row],[Aantal eenheden]] -> 0
A36: ='Woon- en leefkosten'!B17 -> W&L 16 | B36: =VLOOKUP(VKprijsWenL[[#This Row],[Woon- & Leefkosten]],WoonEnLeefKosten[[Woon- & Leefkost]:[Subsidies per eenheid]],4,) -> 0 | C36: =VLOOKUP(VKprijsWenL[[#This Row],[Woon- & Leefkosten]],WoonEnLeefKosten[[Woon- & Leefkost]:[Subsidies per eenheid]],5,) -> 0 | D36: =VKprijsWenL[[#This Row],[Brutokost per eenheid]]-VKprijsWenL[[#This Row],[Subsidies per eenheid]] -> 0 | F36: =IFERROR(VLOOKUP(VKprijsWenL[[#This Row],[Woon- & Leefkosten]],KCWL[[Woon- en leefkosten]:[Aantal eenheden/jaar]],3,),"") -> 0 | G36: =VKprijsWenL[[#This Row],[Verkoopprijs]]*VKprijsWenL[[#This Row],[Aantal eenheden]] -> 0
A37: ='Woon- en leefkosten'!B18 -> W&L 17 | B37: =VLOOKUP(VKprijsWenL[[#This Row],[Woon- & Leefkosten]],WoonEnLeefKosten[[Woon- & Leefkost]:[Subsidies per eenheid]],4,) -> 0 | C37: =VLOOKUP(VKprijsWenL[[#This Row],[Woon- & Leefkosten]],WoonEnLeefKosten[[Woon- & Leefkost]:[Subsidies per eenheid]],5,) -> 0 | D37: =VKprijsWenL[[#This Row],[Brutokost per eenheid]]-VKprijsWenL[[#This Row],[Subsidies per eenheid]] -> 0 | F37: =IFERROR(VLOOKUP(VKprijsWenL[[#This Row],[Woon- & Leefkosten]],KCWL[[Woon- en leefkosten]:[Aantal eenheden/jaar]],3,),"") -> 0 | G37: =VKprijsWenL[[#This Row],[Verkoopprijs]]*VKprijsWenL[[#This Row],[Aantal eenheden]] -> 0
A38: ='Woon- en leefkosten'!B19 -> W&L 18 | B38: =VLOOKUP(VKprijsWenL[[#This Row],[Woon- & Leefkosten]],WoonEnLeefKosten[[Woon- & Leefkost]:[Subsidies per eenheid]],4,) -> 0 | C38: =VLOOKUP(VKprijsWenL[[#This Row],[Woon- & Leefkosten]],WoonEnLeefKosten[[Woon- & Leefkost]:[Subsidies per eenheid]],5,) -> 0 | D38: =VKprijsWenL[[#This Row],[Brutokost per eenheid]]-VKprijsWenL[[#This Row],[Subsidies per eenheid]] -> 0 | F38: =IFERROR(VLOOKUP(VKprijsWenL[[#This Row],[Woon- & Leefkosten]],KCWL[[Woon- en leefkosten]:[Aantal eenheden/jaar]],3,),"") -> 0 | G38: =VKprijsWenL[[#This Row],[Verkoopprijs]]*VKprijsWenL[[#This Row],[Aantal eenheden]] -> 0
A39: ='Woon- en leefkosten'!B20 -> W&L 19 | B39: =VLOOKUP(VKprijsWenL[[#This Row],[Woon- & Leefkosten]],WoonEnLeefKosten[[Woon- & Leefkost]:[Subsidies per eenheid]],4,) -> 0 | C39: =VLOOKUP(VKprijsWenL[[#This Row],[Woon- & Leefkosten]],WoonEnLeefKosten[[Woon- & Leefkost]:[Subsidies per eenheid]],5,) -> 0 | D39: =VKprijsWenL[[#This Row],[Brutokost per eenheid]]-VKprijsWenL[[#This Row],[Subsidies per eenheid]] -> 0 | F39: =IFERROR(VLOOKUP(VKprijsWenL[[#This Row],[Woon- & Leefkosten]],KCWL[[Woon- en leefkosten]:[Aantal eenheden/jaar]],3,),"") -> 0 | G39: =VKprijsWenL[[#This Row],[Verkoopprijs]]*VKprijsWenL[[#This Row],[Aantal eenheden]] -> 0
A40: ='Woon- en leefkosten'!B21 -> W&L 20 | B40: =VLOOKUP(VKprijsWenL[[#This Row],[Woon- & Leefkosten]],WoonEnLeefKosten[[Woon- & Leefkost]:[Subsidies per eenheid]],4,) -> 0 | C40: =VLOOKUP(VKprijsWenL[[#This Row],[Woon- & Leefkosten]],WoonEnLeefKosten[[Woon- & Leefkost]:[Subsidies per eenheid]],5,) -> 0 | D40: =VKprijsWenL[[#This Row],[Brutokost per eenheid]]-VKprijsWenL[[#This Row],[Subsidies per eenheid]] -> 0 | F40: =IFERROR(VLOOKUP(VKprijsWenL[[#This Row],[Woon- & Leefkosten]],KCWL[[Woon- en leefkosten]:[Aantal eenheden/jaar]],3,),"") -> 0 | G40: =VKprijsWenL[[#This Row],[Verkoopprijs]]*VKprijsWenL[[#This Row],[Aantal eenheden]] -> 0
A41: Totaal | G41: =SUBTOTAL(109,VKprijsWenL[Omzet]) -> 13687.5
A43: Organisatiegebonden niet VAPH subsidies | B43: Verdeelsleutel | C43: Aantal eenheden cliënt | D43: Niet VAPH subsidies per eenheid | E43: Subsidies per jaar
A44: =Keuzelijsten!C3 -> Directie | B44: =VLOOKUP(OGSubsidies[[#This Row],[Organisatiegebonden niet VAPH subsidies]],KOOGP[[Dienst]:[Verdeelsleutel]],3,) -> Aanwezigheidsdagen | C44: =VLOOKUP(OGSubsidies[[#This Row],[Organisatiegebonden niet VAPH subsidies]],KCOGP[[Organisatiegebonden personeelskosten]:[Aantal eenheden/jaar]],3,) -> 365 | D44: =VLOOKUP(OGSubsidies[[#This Row],[Organisatiegebonden niet VAPH subsidies]],KOOGP[[Dienst]:[Niet VAPH subsidies per eenheid]],6,) -> 0 | E44: =OGSubsidies[[#This Row],[Aantal eenheden cliënt]]*OGSubsidies[[#This Row],[Niet VAPH subsidies per eenheid]] -> 0
A45: =Keuzelijsten!C4 -> Administratie | B45: =VLOOKUP(OGSubsidies[[#This Row],[Organisatiegebonden niet VAPH subsidies]],KOOGP[[Dienst]:[Verdeelsleutel]],3,) -> Aanwezigheidsdagen | C45: =VLOOKUP(OGSubsidies[[#This Row],[Organisatiegebonden niet VAPH subsidies]],KCOGP[[Organisatiegebonden personeelskosten]:[Aantal eenheden/jaar]],3,) -> 365 | D45: =VLOOKUP(OGSubsidies[[#This Row],[Organisatiegebonden niet VAPH subsidies]],KOOGP[[Dienst]:[Niet VAPH subsidies per eenheid]],6,) -> 0 | E45: =OGSubsidies[[#This Row],[Aantal eenheden cliënt]]*OGSubsidies[[#This Row],[Niet VAPH subsidies per eenheid]] -> 0
A46: =Keuzelijsten!C5 -> Onderhoud Centraal Gebouw | B46: =VLOOKUP(OGSubsidies[[#This Row],[Organisatiegebonden niet VAPH subsidies]],KOOGP[[Dienst]:[Verdeelsleutel]],3,) -> Aanwezigheidsdagen | C46: =VLOOKUP(OGSubsidies[[#This Row],[Organisatiegebonden niet VAPH subsidies]],KCOGP[[Organisatiegebonden personeelskosten]:[Aantal eenheden/jaar]],3,) -> 365 | D46: =VLOOKUP(OGSubsidies[[#This Row],[Organisatiegebonden niet VAPH subsidies]],KOOGP[[Dienst]:[Niet VAPH subsidies per eenheid]],6,) -> 0.6409706499 | E46: =OGSubsidies[[#This Row],[Aantal eenheden cliënt]]*OGSubsidies[[#This Row],[Niet VAPH subsidies per eenheid]] -> 233.9542872
A47: =Keuzelijsten!C6 -> Technische Dienst | B47: =VLOOKUP(OGSubsidies[[#This Row],[Organisatiegebonden niet VAPH subsidies]],KOOGP[[Dienst]:[Verdeelsleutel]],3,) -> Aanwezigheidsdagen | C47: =VLOOKUP(OGSubsidies[[#This Row],[Organisatiegebonden niet VAPH subsidies]],KCOGP[[Organisatiegebonden personeelskosten]:[Aantal eenheden/jaar]],3,) -> 365 | D47: =VLOOKUP(OGSubsidies[[#This Row],[Organisatiegebonden niet VAPH subsidies]],KOOGP[[Dienst]:[Niet VAPH subsidies per eenheid]],6,) -> 0 | E47: =OGSubsidies[[#This Row],[Aantal eenheden cliënt]]*OGSubsidies[[#This Row],[Niet VAPH subsidies per eenheid]] -> 0
A48: =Keuzelijsten!C7 -> Huiscoördinatoren | B48: =VLOOKUP(OGSubsidies[[#This Row],[Organisatiegebonden niet VAPH subsidies]],KOOGP[[Dienst]:[Verdeelsleutel]],3,) -> Aanwezigheidsdagen | C48: =VLOOKUP(OGSubsidies[[#This Row],[Organisatiegebonden niet VAPH subsidies]],KCOGP[[Organisatiegebonden personeelskosten]:[Aantal eenheden/jaar]],3,) -> 365 | D48: =VLOOKUP(OGSubsidies[[#This Row],[Organisatiegebonden niet VAPH subsidies]],KOOGP[[Dienst]:[Niet VAPH subsidies per eenheid]],6,) -> 0 | E48: =OGSubsidies[[#This Row],[Aantal eenheden cliënt]]*OGSubsidies[[#This Row],[Niet VAPH subsidies per eenheid]] -> 0
A49: =Keuzelijsten!C8 -> Logistiek Coördinator | B49: =VLOOKUP(OGSubsidies[[#This Row],[Organisatiegebonden niet VAPH subsidies]],KOOGP[[Dienst]:[Verdeelsleutel]],3,) -> Aanwezigheidsdagen | C49: =VLOOKUP(OGSubsidies[[#This Row],[Organisatiegebonden niet VAPH subsidies]],KCOGP[[Organisatiegebonden personeelskosten]:[Aantal eenheden/jaar]],3,) -> 365 | D49: =VLOOKUP(OGSubsidies[[#This Row],[Organisatiegebonden niet VAPH subsidies]],KOOGP[[Dienst]:[Niet VAPH subsidies per eenheid]],6,) -> 0 | E49: =OGSubsidies[[#This Row],[Aantal eenheden cliënt]]*OGSubsidies[[#This Row],[Niet VAPH subsidies per eenheid]] -> 0
A50: =Keuzelijsten!C9 -> Zinzorg en pastoraat | B50: =VLOOKUP(OGSubsidies[[#This Row],[Organisatiegebonden niet VAPH subsidies]],KOOGP[[Dienst]:[Verdeelsleutel]],3,) -> Aanwezigheidsdagen | C50: =VLOOKUP(OGSubsidies[[#This Row],[Organisatiegebonden niet VAPH subsidies]],KCOGP[[Organisatiegebonden personeelskosten]:[Aantal eenheden/jaar]],3,) -> 365 | D50: =VLOOKUP(OGSubsidies[[#This Row],[Organisatiegebonden niet VAPH subsidies]],KOOGP[[Dienst]:[Niet VAPH subsidies per eenheid]],6,) -> 0 | E50: =OGSubsidies[[#This Row],[Aantal eenheden cliënt]]*OGSubsidies[[#This Row],[Niet VAPH subsidies per eenheid]] -> 0
A51: =Keuzelijsten!C10 -> Preventieadviseur | B51: =VLOOKUP(OGSubsidies[[#This Row],[Organisatiegebonden niet VAPH subsidies]],KOOGP[[Dienst]:[Verdeelsleutel]],3,) -> Aanwezigheidsdagen | C51: =VLOOKUP(OGSubsidies[[#This Row],[Organisatiegebonden niet VAPH subsidies]],KCOGP[[Organisatiegebonden personeelskosten]:[Aantal eenheden/jaar]],3,) -> 365 | D51: =VLOOKUP(OGSubsidies[[#This Row],[Organisatiegebonden niet VAPH subsidies]],KOOGP[[Dienst]:[Niet VAPH subsidies per eenheid]],6,) -> 0 | E51: =OGSubsidies[[#This Row],[Aantal eenheden cliënt]]*OGSubsidies[[#This Row],[Niet VAPH subsidies per eenheid]] -> 0
A52: =Keuzelijsten!C11 -> Naaisters | B52: =VLOOKUP(OGSubsidies[[#This Row],[Organisatiegebonden niet VAPH subsidies]],KOOGP[[Dienst]:[Verdeelsleutel]],3,) -> Aanwezigheidsdagen | C52: =VLOOKUP(OGSubsidies[[#This Row],[Organisatiegebonden niet VAPH subsidies]],KCOGP[[Organisatiegebonden personeelskosten]:[Aantal eenheden/jaar]],3,) -> 365 | D52: =VLOOKUP(OGSubsidies[[#This Row],[Organisatiegebonden niet VAPH subsidies]],KOOGP[[Dienst]:[Niet VAPH subsidies per eenheid]],6,) -> 0 | E52: =OGSubsidies[[#This Row],[Aantal eenheden cliënt]]*OGSubsidies[[#This Row],[Niet VAPH subsidies per eenheid]] -> 0
A53: =Keuzelijsten!C12 -> Sociale dienst | B53: =VLOOKUP(OGSubsidies[[#This Row],[Organisatiegebonden niet VAPH subsidies]],KOOGP[[Dienst]:[Verdeelsleutel]],3,) -> Aanwezigheidsdagen | C53: =VLOOKUP(OGSubsidies[[#This Row],[Organisatiegebonden niet VAPH subsidies]],KCOGP[[Organisatiegebonden personeelskosten]:[Aantal eenheden/jaar]],3,) -> 365 | D53: =VLOOKUP(OGSubsidies[[#This Row],[Organisatiegebonden niet VAPH subsidies]],KOOGP[[Dienst]:[Niet VAPH subsidies per eenheid]],6,) -> 0 | E53: =OGSubsidies[[#This Row],[Aantal eenheden cliënt]]*OGSubsidies[[#This Row],[Niet VAPH subsidies per eenheid]] -> 0
A54: Totaal | E54: =SUBTOTAL(109,OGSubsidies[Subsidies per jaar]) -> 233.9542872
A56: Zorggebonden niet VAPH subsidies | B56: Aantal cash uren cliënt | C56: Niet VAPH subsidies per uur | D56: Subsidies per jaar
A57: =Keuzelijsten!A3 -> Leefgroepbegeleider | B57: =VLOOKUP(ZGSubsidies[[#This Row],[Zorggebonden niet VAPH subsidies]],KCZGP[],3,) -> 0 | C57: =IFERROR(VLOOKUP(ZGSubsidies[[#This Row],[Zorggebonden niet VAPH subsidies]],NVAPH[[Dienst]:[Inkomsten/uur]],3,),0) -> 16.26903333 | D57: =ZGSubsidies[[#This Row],[Aantal cash uren cliënt]]*ZGSubsidies[[#This Row],[Niet VAPH subsidies per uur]] -> 0
A58: =Keuzelijsten!A4 -> Dagbestedingsbegeleider | B58: =VLOOKUP(ZGSubsidies[[#This Row],[Zorggebonden niet VAPH subsidies]],KCZGP[],3,) -> 0 | C58: =IFERROR(VLOOKUP(ZGSubsidies[[#This Row],[Zorggebonden niet VAPH subsidies]],NVAPH[[Dienst]:[Inkomsten/uur]],3,),0) -> 0 | D58: =ZGSubsidies[[#This Row],[Aantal cash uren cliënt]]*ZGSubsidies[[#This Row],[Niet VAPH subsidies per uur]] -> 0
A59: =Keuzelijsten!A5 -> Kinesist | B59: =VLOOKUP(ZGSubsidies[[#This Row],[Zorggebonden niet VAPH subsidies]],KCZGP[],3,) -> 0 | C59: =IFERROR(VLOOKUP(ZGSubsidies[[#This Row],[Zorggebonden niet VAPH subsidies]],NVAPH[[Dienst]:[Inkomsten/uur]],3,),0) -> 0 | D59: =ZGSubsidies[[#This Row],[Aantal cash uren cliënt]]*ZGSubsidies[[#This Row],[Niet VAPH subsidies per uur]] -> 0
A60: =Keuzelijsten!A6 -> Logopedist | B60: =VLOOKUP(ZGSubsidies[[#This Row],[Zorggebonden niet VAPH subsidies]],KCZGP[],3,) -> 0 | C60: =IFERROR(VLOOKUP(ZGSubsidies[[#This Row],[Zorggebonden niet VAPH subsidies]],NVAPH[[Dienst]:[Inkomsten/uur]],3,),0) -> 0 | D60: =ZGSubsidies[[#This Row],[Aantal cash uren cliënt]]*ZGSubsidies[[#This Row],[Niet VAPH subsidies per uur]] -> 0
A61: =Keuzelijsten!A7 -> Diëtist | B61: =VLOOKUP(ZGSubsidies[[#This Row],[Zorggebonden niet VAPH subsidies]],KCZGP[],3,) -> 0 | C61: =IFERROR(VLOOKUP(ZGSubsidies[[#This Row],[Zorggebonden niet VAPH subsidies]],NVAPH[[Dienst]:[Inkomsten/uur]],3,),0) -> 0 | D61: =ZGSubsidies[[#This Row],[Aantal cash uren cliënt]]*ZGSubsidies[[#This Row],[Niet VAPH subsidies per uur]] -> 0
A62: =Keuzelijsten!A8 -> Verpleegkundigen | B62: =VLOOKUP(ZGSubsidies[[#This Row],[Zorggebonden niet VAPH subsidies]],KCZGP[],3,) -> 0 | C62: =IFERROR(VLOOKUP(ZGSubsidies[[#This Row],[Zorggebonden niet VAPH subsidies]],NVAPH[[Dienst]:[Inkomsten/uur]],3,),0) -> 0 | D62: =ZGSubsidies[[#This Row],[Aantal cash uren cliënt]]*ZGSubsidies[[#This Row],[Niet VAPH subsidies per uur]] -> 0
A63: =Keuzelijsten!A9 -> Dokters | B63: =VLOOKUP(ZGSubsidies[[#This Row],[Zorggebonden niet VAPH subsidies]],KCZGP[],3,) -> 0 | C63: =IFERROR(VLOOKUP(ZGSubsidies[[#This Row],[Zorggebonden niet VAPH subsidies]],NVAPH[[Dienst]:[Inkomsten/uur]],3,),0) -> 0 | D63: =ZGSubsidies[[#This Row],[Aantal cash uren cliënt]]*ZGSubsidies[[#This Row],[Niet VAPH subsidies per uur]] -> 0
A64: =Keuzelijsten!A10 -> Orthoagoog | B64: =VLOOKUP(ZGSubsidies[[#This Row],[Zorggebonden niet VAPH subsidies]],KCZGP[],3,) -> 0 | C64: =IFERROR(VLOOKUP(ZGSubsidies[[#This Row],[Zorggebonden niet VAPH subsidies]],NVAPH[[Dienst]:[Inkomsten/uur]],3,),0) -> 0 | D64: =ZGSubsidies[[#This Row],[Aantal cash uren cliënt]]*ZGSubsidies[[#This Row],[Niet VAPH subsidies per uur]] -> 0
A65: =Keuzelijsten!A11 -> Nachtdienst | B65: =VLOOKUP(ZGSubsidies[[#This Row],[Zorggebonden niet VAPH subsidies]],KCZGP[],3,) -> 0 | C65: =IFERROR(VLOOKUP(ZGSubsidies[[#This Row],[Zorggebonden niet VAPH subsidies]],NVAPH[[Dienst]:[Inkomsten/uur]],3,),0) -> 0 | D65: =ZGSubsidies[[#This Row],[Aantal cash uren cliënt]]*ZGSubsidies[[#This Row],[Niet VAPH subsidies per uur]] -> 0
A66: Totaal | D66: =SUBTOTAL(109,ZGSubsidies[Subsidies per jaar]) -> 0

Sheet Totale kosten voor cliënt
A1: Naam cliënt | B1: ='Totale inkomsten voor cliënt'!B1 -> Pakket 15
A3: Zorggebonden personeelskosten | B3: Voucher uren per jaar | C3: Cash uren per jaar | D3: Punten per uur | E3: Punten per jaar | F3: Voucher kost per jaar | G3: Cash kost per jaar | H3: Cash punten per jaar | I3: Totaal personeelskost per jaar
A4: =Keuzelijsten!A3 -> Leefgroepbegeleider | B4: 1116.16 | D4: =VLOOKUP(KCZGP[Zorggebonden personeelskosten],KOZGP[],5,) -> 0.03857152764 | E4: =IF(ISERROR(KCZGP[Voucher uren per jaar]*KCZGP[Punten per uur])=TRUE,0,KCZGP[Voucher uren per jaar]*KCZGP[Punten per uur]) -> 43.05199629 | F4: =KCZGP[[#This Row],[Punten per jaar]]*WPO -> 37370.46439 | G4: =IFERROR(VLOOKUP(KCZGP[Zorggebonden personeelskosten],KOZGP[],7,),0)*KCZGP[[#This Row],[Cash uren per jaar]] -> 0 | H4: =KCZGP[[#This Row],[Cash kost per jaar]]/GWP -> 0 | I4: =KCZGP[[#This Row],[Voucher kost per jaar]]+KCZGP[[#This Row],[Cash kost per jaar]] -> 37370.46439
A5: =Keuzelijsten!A4 -> Dagbestedingsbegeleider | B5: 106.09 | D5: =VLOOKUP(KCZGP[Zorggebonden personeelskosten],KOZGP[],5,) -> 0.03872000854 | E5: =IF(ISERROR(KCZGP[Voucher uren per jaar]*KCZGP[Punten per uur])=TRUE,0,KCZGP[Voucher uren per jaar]*KCZGP[Punten per uur]) -> 4.107805706 | F5: =KCZGP[[#This Row],[Punten per jaar]]*WPO -> 3565.702408 | G5: =IFERROR(VLOOKUP(KCZGP[Zorggebonden personeelskosten],KOZGP[],7,),0)*KCZGP[[#This Row],[Cash uren per jaar]] -> 0 | H5: =KCZGP[[#This Row],[Cash kost per jaar]]/GWP -> 0 | I5: =KCZGP[[#This Row],[Voucher kost per jaar]]+KCZGP[[#This Row],[Cash kost per jaar]] -> 3565.702408
A6: =Keuzelijsten!A5 -> Kinesist | B6: 85.73 | D6: =VLOOKUP(KCZGP[Zorggebonden personeelskosten],KOZGP[],5,) -> 0.04407606705 | E6: =IF(ISERROR(KCZGP[Voucher uren per jaar]*KCZGP[Punten per uur])=TRUE,0,KCZGP[Voucher uren per jaar]*KCZGP[Punten per uur]) -> 3.778641229 | F6: =KCZGP[[#This Row],[Punten per jaar]]*WPO -> 3279.97746 | G6: =IFERROR(VLOOKUP(KCZGP[Zorggebonden personeelskosten],KOZGP[],7,),0)*KCZGP[[#This Row],[Cash uren per jaar]] -> 0 | H6: =KCZGP[[#This Row],[Cash kost per jaar]]/GWP -> 0 | I6: =KCZGP[[#This Row],[Voucher kost per jaar]]+KCZGP[[#This Row],[Cash kost per jaar]] -> 3279.97746
A7: =Keuzelijsten!A6 -> Logopedist | B7: 2.49 | D7: =VLOOKUP(KCZGP[Zorggebonden personeelskosten],KOZGP[],5,) -> 0.03977056306 | E7: =IF(ISERROR(KCZGP[Voucher uren per jaar]*KCZGP[Punten per uur])=TRUE,0,KCZGP[Voucher uren per jaar]*KCZGP[Punten per uur]) -> 0.09902870202 | F7: =KCZGP[[#This Row],[Punten per jaar]]*WPO -> 85.95997633 | G7: =IFERROR(VLOOKUP(KCZGP[Zorggebonden personeelskosten],KOZGP[],7,),0)*KCZGP[[#This Row],[Cash uren per jaar]] -> 0 | H7: =KCZGP[[#This Row],[Cash kost per jaar]]/GWP -> 0 | I7: =KCZGP[[#This Row],[Voucher kost per jaar]]+KCZGP[[#This Row],[Cash kost per jaar]] -> 85.95997633
A8: =Keuzelijsten!A7 -> Diëtist | B8: 41.22 | D8: =VLOOKUP(KCZGP[Zorggebonden personeelskosten],KOZGP[],5,) -> 0.03767737553 | E8: =IF(ISERROR(KCZGP[Voucher uren per jaar]*KCZGP[Punten per uur])=TRUE,0,KCZGP[Voucher uren per jaar]*KCZGP[Punten per uur]) -> 1.553061419 | F8: =KCZGP[[#This Row],[Punten per jaar]]*WPO -> 1348.105348 | G8: =IFERROR(VLOOKUP(KCZGP[Zorggebonden personeelskosten],KOZGP[],7,),0)*KCZGP[[#This Row],[Cash uren per jaar]] -> 0 | H8: =KCZGP[[#This Row],[Cash kost per jaar]]/GWP -> 0 | I8: =KCZGP[[#This Row],[Voucher kost per jaar]]+KCZGP[[#This Row],[Cash kost per jaar]] -> 1348.105348
A9: =Keuzelijsten!A8 -> Verpleegkundigen | B9: 358.26 | D9: =VLOOKUP(KCZGP[Zorggebonden personeelskosten],KOZGP[],5,) -> 0.03973761313 | E9: =IF(ISERROR(KCZGP[Voucher uren per jaar]*KCZGP[Punten per uur])=TRUE,0,KCZGP[Voucher uren per jaar]*KCZGP[Punten per uur]) -> 14.23639728 | F9: =KCZGP[[#This Row],[Punten per jaar]]*WPO -> 12357.63317 | G9: =IFERROR(VLOOKUP(KCZGP[Zorggebonden personeelskosten],KOZGP[],7,),0)*KCZGP[[#This Row],[Cash uren per jaar]] -> 0 | H9: =KCZGP[[#This Row],[Cash kost per jaar]]/GWP -> 0 | I9: =KCZGP[[#This Row],[Voucher kost per jaar]]+KCZGP[[#This Row],[Cash kost per jaar]] -> 12357.63317
A10: =Keuzelijsten!A9 -> Dokters | B10: 3.22 | D10: =VLOOKUP(KCZGP[Zorggebonden personeelskosten],KOZGP[],5,) -> 0.1277599715 | E10: =IF(ISERROR(KCZGP[Voucher uren per jaar]*KCZGP[Punten per uur])=TRUE,0,KCZGP[Voucher uren per jaar]*KCZGP[Punten per uur]) -> 0.4113871083 | F10: =KCZGP[[#This Row],[Punten per jaar]]*WPO -> 357.0967342 | G10: =IFERROR(VLOOKUP(KCZGP[Zorggebonden personeelskosten],KOZGP[],7,),0)*KCZGP[[#This Row],[Cash uren per jaar]] -> 0 | H10: =KCZGP[[#This Row],[Cash kost per jaar]]/GWP -> 0 | I10: =KCZGP[[#This Row],[Voucher kost per jaar]]+KCZGP[[#This Row],[Cash kost per jaar]] -> 357.0967342
A11: =Keuzelijsten!A10 -> Orthoagoog | B11: 42.81 | D11: =VLOOKUP(KCZGP[Zorggebonden personeelskosten],KOZGP[],5,) -> 0.05337888331 | E11: =IF(ISERROR(KCZGP[Voucher uren per jaar]*KCZGP[Punten per uur])=TRUE,0,KCZGP[Voucher uren per jaar]*KCZGP[Punten per uur]) -> 2.285149995 | F11: =KCZGP[[#This Row],[Punten per jaar]]*WPO -> 1983.580875 | G11: =IFERROR(VLOOKUP(KCZGP[Zorggebonden personeelskosten],KOZGP[],7,),0)*KCZGP[[#This Row],[Cash uren per jaar]] -> 0 | H11: =KCZGP[[#This Row],[Cash kost per jaar]]/GWP -> 0 | I11: =KCZGP[[#This Row],[Voucher kost per jaar]]+KCZGP[[#This Row],[Cash kost per jaar]] -> 1983.580875
A12: =Keuzelijsten!A11 -> Nachtdienst | B12: 152.82 | D12: =VLOOKUP(KCZGP[Zorggebonden personeelskosten],KOZGP[],5,) -> 0.03705374825 | E12: =IF(ISERROR(KCZGP[Voucher uren per jaar]*KCZGP[Punten per uur])=TRUE,0,KCZGP[Voucher uren per jaar]*KCZGP[Punten per uur]) -> 5.662553807 | F12: =KCZGP[[#This Row],[Punten per jaar]]*WPO -> 4915.271848 | G12: =IFERROR(VLOOKUP(KCZGP[Zorggebonden personeelskosten],KOZGP[],7,),0)*KCZGP[[#This Row],[Cash uren per jaar]] -> 0 | H12: =KCZGP[[#This Row],[Cash kost per jaar]]/GWP -> 0 | I12: =KCZGP[[#This Row],[Voucher kost per jaar]]+KCZGP[[#This Row],[Cash kost per jaar]] -> 4915.271848
A13: Totaal | E13: =SUBTOTAL(109,KCZGP[Punten per jaar]) -> 75.18602154 | F13: =SUBTOTAL(109,KCZGP[Voucher kost per jaar]) -> 65263.79221 | G13: =SUBTOTAL(109,KCZGP[Cash kost per jaar]) -> 0 | H13: =SUBTOTAL(109,KCZGP[Cash punten per jaar]) -> 0 | I13: =SUBTOTAL(109,KCZGP[Totaal personeelskost per jaar]) -> 65263.79221
A15: Zorggebonden werkingskosten | B15: Eenheid | C15: Aantal eenheden/jaar | D15: Kost per eenheid | E15: Kost per jaar
A16: ='ZG werking'!A2 -> Beddengoed | B16: =VLOOKUP(KCZGW[[#This Row],[Zorggebonden werkingskosten]],KOZGW[],4,) -> Aanwezigheidsdagen | C16: 365 | D16: =VLOOKUP(KCZGW[[#This Row],[Zorggebonden werkingskosten]],KOZGW[],6,) -> 0.08165012812 | E16: =KCZGW[[#This Row],[Aantal eenheden/jaar]]*KCZGW[[#This Row],[Kost per eenheid]] -> 29.80229676
A17: ='ZG werking'!A3 -> Linnen | B17: =VLOOKUP(KCZGW[[#This Row],[Zorggebonden werkingskosten]],KOZGW[],4,) -> Aanwezigheidsdagen | C17: 365 | D17: =VLOOKUP(KCZGW[[#This Row],[Zorggebonden werkingskosten]],KOZGW[],6,) -> 0.04399324482 | E17: =KCZGW[[#This Row],[Aantal eenheden/jaar]]*KCZGW[[#This Row],[Kost per eenheid]] -> 16.05753436
A18: ='ZG werking'!A4 -> Kleding | B18: =VLOOKUP(KCZGW[[#This Row],[Zorggebonden werkingskosten]],KOZGW[],4,) -> Aanwezigheidsdagen | C18: 365 | D18: =VLOOKUP(KCZGW[[#This Row],[Zorggebonden werkingskosten]],KOZGW[],6,) -> 0.1030773352 | E18: =KCZGW[[#This Row],[Aantal eenheden/jaar]]*KCZGW[[#This Row],[Kost per eenheid]] -> 37.62322735
A19: ='ZG werking'!A5 -> Diverse kosten textiel | B19: =VLOOKUP(KCZGW[[#This Row],[Zorggebonden werkingskosten]],KOZGW[],4,) -> Aanwezigheidsdagen | C19: 365 | D19: =VLOOKUP(KCZGW[[#This Row],[Zorggebonden werkingskosten]],KOZGW[],6,) -> 0.05459375728 | E19: =KCZGW[[#This Row],[Aantal eenheden/jaar]]*KCZGW[[#This Row],[Kost per eenheid]] -> 19.92672141
A20: ='ZG werking'!A6 -> Recup textiel | B20: =VLOOKUP(KCZGW[[#This Row],[Zorggebonden werkingskosten]],KOZGW[],4,) -> Aanwezigheidsdagen | C20: 365 | D20: =VLOOKUP(KCZGW[[#This Row],[Zorggebonden werkingskosten]],KOZGW[],6,) -> -0.05554414163 | E20: =KCZGW[[#This Row],[Aantal eenheden/jaar]]*KCZGW[[#This Row],[Kost per eenheid]] -> -20.27361169
A21: ='ZG werking'!A7 -> Toiletartikels | B21: =VLOOKUP(KCZGW[[#This Row],[Zorggebonden werkingskosten]],KOZGW[],4,) -> Aanwezigheidsdagen | C21: 365 | D21: =VLOOKUP(KCZGW[[#This Row],[Zorggebonden werkingskosten]],KOZGW[],6,) -> 0.2883358956 | E21: =KCZGW[[#This Row],[Aantal eenheden/jaar]]*KCZGW[[#This Row],[Kost per eenheid]] -> 105.2426019
A22: ='ZG werking'!A8 -> Farmaceutische producten | B22: =VLOOKUP(KCZGW[[#This Row],[Zorggebonden werkingskosten]],KOZGW[],4,) -> Aanwezigheidsdagen | C22: 365 | D22: =VLOOKUP(KCZGW[[#This Row],[Zorggebonden werkingskosten]],KOZGW[],6,) -> 1.852863732 | E22: =KCZGW[[#This Row],[Aantal eenheden/jaar]]*KCZGW[[#This Row],[Kost per eenheid]] -> 676.2952621
A23: ='ZG werking'!A9 -> Rec farm.prod. | B23: =VLOOKUP(KCZGW[[#This Row],[Zorggebonden werkingskosten]],KOZGW[],4,) -> Aanwezigheidsdagen | C23: 365 | D23: =VLOOKUP(KCZGW[[#This Row],[Zorggebonden werkingskosten]],KOZGW[],6,) -> -2.099364081 | E23: =KCZGW[[#This Row],[Aantal eenheden/jaar]]*KCZGW[[#This Row],[Kost per eenheid]] -> -766.2678896
A24: ='ZG werking'!A10 -> Medische gassen | B24: =VLOOKUP(KCZGW[[#This Row],[Zorggebonden werkingskosten]],KOZGW[],4,) -> Aanwezigheidsdagen | C24: 365 | D24: =VLOOKUP(KCZGW[[#This Row],[Zorggebonden werkingskosten]],KOZGW[],6,) -> 0.04063358956 | E24: =KCZGW[[#This Row],[Aantal eenheden/jaar]]*KCZGW[[#This Row],[Kost per eenheid]] -> 14.83126019
A25: ='ZG werking'!A11 -> Farmaceutisch materiaal | B25: =VLOOKUP(KCZGW[[#This Row],[Zorggebonden werkingskosten]],KOZGW[],4,) -> Aanwezigheidsdagen | C25: 365 | D25: =VLOOKUP(KCZGW[[#This Row],[Zorggebonden werkingskosten]],KOZGW[],6,) -> 0.2125462381 | E25: =KCZGW[[#This Row],[Aantal eenheden/jaar]]*KCZGW[[#This Row],[Kost per eenheid]] -> 77.57937689
A26: ='ZG werking'!A12 -> Fixatiemateriaal | B26: =VLOOKUP(KCZGW[[#This Row],[Zorggebonden werkingskosten]],KOZGW[],4,) -> Aanwezigheidsdagen | C26: 365 | D26: =VLOOKUP(KCZGW[[#This Row],[Zorggebonden werkingskosten]],KOZGW[],6,) -> 0.002666433729 | E26: =KCZGW[[#This Row],[Aantal eenheden/jaar]]*KCZGW[[#This Row],[Kost per eenheid]] -> 0.9732483112
A27: ='ZG werking'!A13 -> Paramedische kosten | B27: =VLOOKUP(KCZGW[[#This Row],[Zorggebonden werkingskosten]],KOZGW[],4,) -> Aanwezigheidsdagen | C27: 365 | D27: =VLOOKUP(KCZGW[[#This Row],[Zorggebonden werkingskosten]],KOZGW[],6,) -> 0.03988353133 | E27: =KCZGW[[#This Row],[Aantal eenheden/jaar]]*KCZGW[[#This Row],[Kost per eenheid]] -> 14.55748894
A28: ='ZG werking'!A14 -> Recup paramedische kosten | B28: =VLOOKUP(KCZGW[[#This Row],[Zorggebonden werkingskosten]],KOZGW[],4,) -> Aanwezigheidsdagen | C28: 365 | D28: =VLOOKUP(KCZGW[[#This Row],[Zorggebonden werkingskosten]],KOZGW[],6,) -> -0.002144654088 | E28: =KCZGW[[#This Row],[Aantal eenheden/jaar]]*KCZGW[[#This Row],[Kost per eenheid]] -> -0.7827987421
A29: ='ZG werking'!A15 -> Educatieve activiteiten+verplaatsingen | B29: =VLOOKUP(KCZGW[[#This Row],[Zorggebonden werkingskosten]],KOZGW[],4,) -> Aanwezigheidsdagen | C29: 365 | D29: =VLOOKUP(KCZGW[[#This Row],[Zorggebonden werkingskosten]],KOZGW[],6,) -> 0.08880573026 | E29: =KCZGW[[#This Row],[Aantal eenheden/jaar]]*KCZGW[[#This Row],[Kost per eenheid]] -> 32.41409154
A30: ='ZG werking'!A16 -> Recup educatieve act | B30: =VLOOKUP(KCZGW[[#This Row],[Zorggebonden werkingskosten]],KOZGW[],4,) -> Aanwezigheidsdagen | C30: 365 | D30: =VLOOKUP(KCZGW[[#This Row],[Zorggebonden werkingskosten]],KOZGW[],6,) -> -0.03687165153 | E30: =KCZGW[[#This Row],[Aantal eenheden/jaar]]*KCZGW[[#This Row],[Kost per eenheid]] -> -13.45815281
A31: ='ZG werking'!A17 -> Recup energie (uitstappen) | B31: =VLOOKUP(KCZGW[[#This Row],[Zorggebonden werkingskosten]],KOZGW[],4,) -> Aanwezigheidsdagen | C31: 365 | D31: =VLOOKUP(KCZGW[[#This Row],[Zorggebonden werkingskosten]],KOZGW[],6,) -> -0.1999392034 | E31: =KCZGW[[#This Row],[Aantal eenheden/jaar]]*KCZGW[[#This Row],[Kost per eenheid]] -> -72.97780922
A32: ='ZG werking'!A18 -> Incontinentiemateriaal | B32: =VLOOKUP(KCZGW[[#This Row],[Zorggebonden werkingskosten]],KOZGW[],4,) -> Aanwezigheidsdagen | C32: 365 | D32: =VLOOKUP(KCZGW[[#This Row],[Zorggebonden werkingskosten]],KOZGW[],6,) -> 2.127860703 | E32: =KCZGW[[#This Row],[Aantal eenheden/jaar]]*KCZGW[[#This Row],[Kost per eenheid]] -> 776.6691568
A33: ='ZG werking'!A19 -> Recup incontinentiemateriaal | B33: =VLOOKUP(KCZGW[[#This Row],[Zorggebonden werkingskosten]],KOZGW[],4,) -> Aanwezigheidsdagen | C33: 365 | D33: =VLOOKUP(KCZGW[[#This Row],[Zorggebonden werkingskosten]],KOZGW[],6,) -> -1.5843529 | E33: =KCZGW[[#This Row],[Aantal eenheden/jaar]]*KCZGW[[#This Row],[Kost per eenheid]] -> -578.2888085
A34: ='ZG werking'!A20 -> Wegwerpmateriaal | B34: =VLOOKUP(KCZGW[[#This Row],[Zorggebonden werkingskosten]],KOZGW[],4,) -> Aanwezigheidsdagen | C34: 365 | D34: =VLOOKUP(KCZGW[[#This Row],[Zorggebonden werkingskosten]],KOZGW[],6,) -> 0.2175005823 | E34: =KCZGW[[#This Row],[Aantal eenheden/jaar]]*KCZGW[[#This Row],[Kost per eenheid]] -> 79.38771256
A35: ='ZG werking'!A21 -> TV-kabel | B35: =VLOOKUP(KCZGW[[#This Row],[Zorggebonden werkingskosten]],KOZGW[],4,) -> Aanwezigheidsdagen | C35: 365 | D35: =VLOOKUP(KCZGW[[#This Row],[Zorggebonden werkingskosten]],KOZGW[],6,) -> 0.09434381551 | E35: =KCZGW[[#This Row],[Aantal eenheden/jaar]]*KCZGW[[#This Row],[Kost per eenheid]] -> 34.43549266
A36: ='ZG werking'!A22 -> Kampen | B36: =VLOOKUP(KCZGW[[#This Row],[Zorggebonden werkingskosten]],KOZGW[],4,) -> Aanwezigheidsdagen | C36: 365 | D36: =VLOOKUP(KCZGW[[#This Row],[Zorggebonden werkingskosten]],KOZGW[],6,) -> 0.1029058933 | E36: =KCZGW[[#This Row],[Aantal eenheden/jaar]]*KCZGW[[#This Row],[Kost per eenheid]] -> 37.56065106
A37: ='ZG werking'!A23 -> Recup kampen | B37: =VLOOKUP(KCZGW[[#This Row],[Zorggebonden werkingskosten]],KOZGW[],4,) -> Aanwezigheidsdagen | C37: 365 | D37: =VLOOKUP(KCZGW[[#This Row],[Zorggebonden werkingskosten]],KOZGW[],6,) -> -0.1140228279 | E37: =KCZGW[[#This Row],[Aantal eenheden/jaar]]*KCZGW[[#This Row],[Kost per eenheid]] -> -41.61833217
A38: ='ZG werking'!A24 -> Dokter+tandarts | B38: =VLOOKUP(KCZGW[[#This Row],[Zorggebonden werkingskosten]],KOZGW[],4,) -> Aanwezigheidsdagen | C38: 365 | D38: =VLOOKUP(KCZGW[[#This Row],[Zorggebonden werkingskosten]],KOZGW[],6,) -> 0.3512212905 | E38: =KCZGW[[#This Row],[Aantal eenheden/jaar]]*KCZGW[[#This Row],[Kost per eenheid]] -> 128.195771
A39: ='ZG werking'!A25 -> Recup dokters+tandarts | B39: =VLOOKUP(KCZGW[[#This Row],[Zorggebonden werkingskosten]],KOZGW[],4,) -> Aanwezigheidsdagen | C39: 365 | D39: =VLOOKUP(KCZGW[[#This Row],[Zorggebonden werkingskosten]],KOZGW[],6,) -> -0.3564558584 | E39: =KCZGW[[#This Row],[Aantal eenheden/jaar]]*KCZGW[[#This Row],[Kost per eenheid]] -> -130.1063883
A40: ='ZG werking'!A26 -> Hospitalisatie | B40: =VLOOKUP(KCZGW[[#This Row],[Zorggebonden werkingskosten]],KOZGW[],4,) -> Aanwezigheidsdagen | C40: 365 | D40: =VLOOKUP(KCZGW[[#This Row],[Zorggebonden werkingskosten]],KOZGW[],6,) -> 0.01954670394 | E40: =KCZGW[[#This Row],[Aantal eenheden/jaar]]*KCZGW[[#This Row],[Kost per eenheid]] -> 7.134546937
A41: ='ZG werking'!A27 -> Recup hospitalisatie | B41: =VLOOKUP(KCZGW[[#This Row],[Zorggebonden werkingskosten]],KOZGW[],4,) -> Aanwezigheidsdagen | C41: 365 | D41: =VLOOKUP(KCZGW[[#This Row],[Zorggebonden werkingskosten]],KOZGW[],6,) -> -0.01954670394 | E41: =KCZGW[[#This Row],[Aantal eenheden/jaar]]*KCZGW[[#This Row],[Kost per eenheid]] -> -7.134546937
A42: ='ZG werking'!A28 -> Medisch vervoer | B42: =VLOOKUP(KCZGW[[#This Row],[Zorggebonden werkingskosten]],KOZGW[],4,) -> Aanwezigheidsdagen | C42: 365 | D42: =VLOOKUP(KCZGW[[#This Row],[Zorggebonden werkingskosten]],KOZGW[],6,) -> 0.03651502446 | E42: =KCZGW[[#This Row],[Aantal eenheden/jaar]]*KCZGW[[#This Row],[Kost per eenheid]] -> 13.32798393
A43: ='ZG werking'!A29 -> Recup medisch vervoer | B43: =VLOOKUP(KCZGW[[#This Row],[Zorggebonden werkingskosten]],KOZGW[],4,) -> Aanwezigheidsdagen | C43: 365 | D43: =VLOOKUP(KCZGW[[#This Row],[Zorggebonden werkingskosten]],KOZGW[],6,) -> -0.03651502446 | E43: =KCZGW[[#This Row],[Aantal eenheden/jaar]]*KCZGW[[#This Row],[Kost per eenheid]] -> -13.32798393
A44: ='ZG werking'!A30 -> Diverse medische kosten | B44: =VLOOKUP(KCZGW[[#This Row],[Zorggebonden werkingskosten]],KOZGW[],4,) -> Aanwezigheidsdagen | C44: 365 | D44: =VLOOKUP(KCZGW[[#This Row],[Zorggebonden werkingskosten]],KOZGW[],6,) -> 0.001121826229 | E44: =KCZGW[[#This Row],[Aantal eenheden/jaar]]*KCZGW[[#This Row],[Kost per eenheid]] -> 0.4094665735
A45: ='ZG werking'!A31 -> Recup diverse medische kosten | B45: =VLOOKUP(KCZGW[[#This Row],[Zorggebonden werkingskosten]],KOZGW[],4,) -> Aanwezigheidsdagen | C45: 365 | D45: =VLOOKUP(KCZGW[[#This Row],[Zorggebonden werkingskosten]],KOZGW[],6,) -> -0.001121826229 | E45: =KCZGW[[#This Row],[Aantal eenheden/jaar]]*KCZGW[[#This Row],[Kost per eenheid]] -> -0.4094665735
A46: ='ZG werking'!A32 -> Kinesist | B46: =VLOOKUP(KCZGW[[#This Row],[Zorggebonden werkingskosten]],KOZGW[],4,) -> Aanwezigheidsdagen | C46: 365 | D46: =VLOOKUP(KCZGW[[#This Row],[Zorggebonden werkingskosten]],KOZGW[],6,) -> 0.05332261822 | E46: =KCZGW[[#This Row],[Aantal eenheden/jaar]]*KCZGW[[#This Row],[Kost per eenheid]] -> 19.46275565
A47: ='ZG werking'!A33 -> Recup verzekering (kinesist) | B47: =VLOOKUP(KCZGW[[#This Row],[Zorggebonden werkingskosten]],KOZGW[],4,) -> Aanwezigheidsdagen | C47: 365 | D47: =VLOOKUP(KCZGW[[#This Row],[Zorggebonden werkingskosten]],KOZGW[],6,) -> -0.00446843699 | E47: =KCZGW[[#This Row],[Aantal eenheden/jaar]]*KCZGW[[#This Row],[Kost per eenheid]] -> -1.630979502
A48: ='ZG werking'!A34 -> Recup ziekenfonds (kinesist) | B48: =VLOOKUP(KCZGW[[#This Row],[Zorggebonden werkingskosten]],KOZGW[],4,) -> Aanwezigheidsdagen | C48: 365 | D48: =VLOOKUP(KCZGW[[#This Row],[Zorggebonden werkingskosten]],KOZGW[],6,) -> -0.0492327044 | E48: =KCZGW[[#This Row],[Aantal eenheden/jaar]]*KCZGW[[#This Row],[Kost per eenheid]] -> -17.96993711
A49: ='ZG werking'!A35 -> Elektriciteit | B49: =VLOOKUP(KCZGW[[#This Row],[Zorggebonden werkingskosten]],KOZGW[],4,) -> Aanwezigheidsdagen | C49: 365 | D49: =VLOOKUP(KCZGW[[#This Row],[Zorggebonden werkingskosten]],KOZGW[],6,) -> 0 | E49: =KCZGW[[#This Row],[Aantal eenheden/jaar]]*KCZGW[[#This Row],[Kost per eenheid]] -> 0
A50: ='ZG werking'!A36 -> Water | B50: =VLOOKUP(KCZGW[[#This Row],[Zorggebonden werkingskosten]],KOZGW[],4,) -> Aanwezigheidsdagen | C50: 365 | D50: =VLOOKUP(KCZGW[[#This Row],[Zorggebonden werkingskosten]],KOZGW[],6,) -> 0.542812327 | E50: =KCZGW[[#This Row],[Aantal eenheden/jaar]]*KCZGW[[#This Row],[Kost per eenheid]] -> 198.1264994
A51: ='ZG werking'!A37 -> Gas | B51: =VLOOKUP(KCZGW[[#This Row],[Zorggebonden werkingskosten]],KOZGW[],4,) -> Aanwezigheidsdagen | C51: 365 | D51: =VLOOKUP(KCZGW[[#This Row],[Zorggebonden werkingskosten]],KOZGW[],6,) -> 0.8357562683 | E51: =KCZGW[[#This Row],[Aantal eenheden/jaar]]*KCZGW[[#This Row],[Kost per eenheid]] -> 305.0510379
A52: Totaal | E52: =SUBTOTAL(109,KCZGW[Kost per jaar]) -> 960.8174791
A54: Organisatiegebonden personeelskosten | B54: Eenheid | C54: Aantal eenheden/jaar | D54: Kost per eenheid | E54: Kost per jaar
A55: =Keuzelijsten!C3 -> Directie | B55: =VLOOKUP(KCOGP[[#This Row],[Organisatiegebonden personeelskosten]],KOOGP[[Dienst]:[Kost per eenheid]],3,) -> Aanwezigheidsdagen | C55: 365 | D55: =VLOOKUP(KCOGP[[#This Row],[Organisatiegebonden personeelskosten]],KOOGP[[Dienst]:[Kost per eenheid]],5,) -> 6.77784696 | E55: =KCOGP[[#This Row],[Aantal eenheden/jaar]]*KCOGP[[#This Row],[Kost per eenheid]] -> 2473.91414
A56: =Keuzelijsten!C4 -> Administratie | B56: =VLOOKUP(KCOGP[[#This Row],[Organisatiegebonden personeelskosten]],KOOGP[[Dienst]:[Kost per eenheid]],3,) -> Aanwezigheidsdagen | C56: 365 | D56: =VLOOKUP(KCOGP[[#This Row],[Organisatiegebonden personeelskosten]],KOOGP[[Dienst]:[Kost per eenheid]],5,) -> 6.203059166 | E56: =KCOGP[[#This Row],[Aantal eenheden/jaar]]*KCOGP[[#This Row],[Kost per eenheid]] -> 2264.116596
A57: =Keuzelijsten!C5 -> Onderhoud Centraal Gebouw | B57: =VLOOKUP(KCOGP[[#This Row],[Organisatiegebonden personeelskosten]],KOOGP[[Dienst]:[Kost per eenheid]],3,) -> Aanwezigheidsdagen | C57: 365 | D57: =VLOOKUP(KCOGP[[#This Row],[Organisatiegebonden personeelskosten]],KOOGP[[Dienst]:[Kost per eenheid]],5,) -> 1.928238062 | E57: =KCOGP[[#This Row],[Aantal eenheden/jaar]]*KCOGP[[#This Row],[Kost per eenheid]] -> 703.8068926
A58: =Keuzelijsten!C6 -> Technische Dienst | B58: =VLOOKUP(KCOGP[[#This Row],[Organisatiegebonden personeelskosten]],KOOGP[[Dienst]:[Kost per eenheid]],3,) -> Aanwezigheidsdagen | C58: 365 | D58: =VLOOKUP(KCOGP[[#This Row],[Organisatiegebonden personeelskosten]],KOOGP[[Dienst]:[Kost per eenheid]],5,) -> 5.341604938 | E58: =KCOGP[[#This Row],[Aantal eenheden/jaar]]*KCOGP[[#This Row],[Kost per eenheid]] -> 1949.685802
A59: =Keuzelijsten!C7 -> Huiscoördinatoren | B59: =VLOOKUP(KCOGP[[#This Row],[Organisatiegebonden personeelskosten]],KOOGP[[Dienst]:[Kost per eenheid]],3,) -> Aanwezigheidsdagen | C59: 365 | D59: =VLOOKUP(KCOGP[[#This Row],[Organisatiegebonden personeelskosten]],KOOGP[[Dienst]:[Kost per eenheid]],5,) -> 4.927381085 | E59: =KCOGP[[#This Row],[Aantal eenheden/jaar]]*KCOGP[[#This Row],[Kost per eenheid]] -> 1798.494096
A60: =Keuzelijsten!C8 -> Logistiek Coördinator | B60: =VLOOKUP(KCOGP[[#This Row],[Organisatiegebonden personeelskosten]],KOOGP[[Dienst]:[Kost per eenheid]],3,) -> Aanwezigheidsdagen | C60: 365 | D60: =VLOOKUP(KCOGP[[#This Row],[Organisatiegebonden personeelskosten]],KOOGP[[Dienst]:[Kost per eenheid]],5,) -> 0.8093393897 | E60: =KCOGP[[#This Row],[Aantal eenheden/jaar]]*KCOGP[[#This Row],[Kost per eenheid]] -> 295.4088772
A61: =Keuzelijsten!C9 -> Zinzorg en pastoraat | B61: =VLOOKUP(KCOGP[[#This Row],[Organisatiegebonden personeelskosten]],KOOGP[[Dienst]:[Kost per eenheid]],3,) -> Aanwezigheidsdagen | C61: 365 | D61: =VLOOKUP(KCOGP[[#This Row],[Organisatiegebonden personeelskosten]],KOOGP[[Dienst]:[Kost per eenheid]],5,) -> 0.8945916608 | E61: =KCOGP[[#This Row],[Aantal eenheden/jaar]]*KCOGP[[#This Row],[Kost per eenheid]] -> 326.5259562
A62: =Keuzelijsten!C10 -> Preventieadviseur | B62: =VLOOKUP(KCOGP[[#This Row],[Organisatiegebonden personeelskosten]],KOOGP[[Dienst]:[Kost per eenheid]],3,) -> Aanwezigheidsdagen | C62: 365 | D62: =VLOOKUP(KCOGP[[#This Row],[Organisatiegebonden personeelskosten]],KOOGP[[Dienst]:[Kost per eenheid]],5,) -> 1.600357326 | E62: =KCOGP[[#This Row],[Aantal eenheden/jaar]]*KCOGP[[#This Row],[Kost per eenheid]] -> 584.1304239
A63: =Keuzelijsten!C11 -> Naaisters | B63: =VLOOKUP(KCOGP[[#This Row],[Organisatiegebonden personeelskosten]],KOOGP[[Dienst]:[Kost per eenheid]],3,) -> Aanwezigheidsdagen | C63: 365 | D63: =VLOOKUP(KCOGP[[#This Row],[Organisatiegebonden personeelskosten]],KOOGP[[Dienst]:[Kost per eenheid]],5,) -> 0 | E63: =KCOGP[[#This Row],[Aantal eenheden/jaar]]*KCOGP[[#This Row],[Kost per eenheid]] -> 0
A64: =Keuzelijsten!C12 -> Sociale dienst | B64: =VLOOKUP(KCOGP[[#This Row],[Organisatiegebonden personeelskosten]],KOOGP[[Dienst]:[Kost per eenheid]],3,) -> Aanwezigheidsdagen | C64: 365 | D64: =VLOOKUP(KCOGP[[#This Row],[Organisatiegebonden personeelskosten]],KOOGP[[Dienst]:[Kost per eenheid]],5,) -> 2.149104589 | E64: =KCOGP[[#This Row],[Aantal eenheden/jaar]]*KCOGP[[#This Row],[Kost per eenheid]] -> 784.4231749
A65: Totaal | E65: =SUBTOTAL(109,KCOGP[Kost per jaar]) -> 11180.50596
A67: Organisatiegebonden werkingskosten | B67: Eenheid | C67: Aantal eenheden/jaar | D67: Kost per eenheid | E67: Kost per jaar
A68: ='OG werking'!B2 -> Verzekeringen | B68: =VLOOKUP(KCOGW[[#This Row],[Organisatiegebonden werkingskosten]],KOOGW[[Rubriek]:[Kost per eenheid]],4,) -> Aanwezigheidsdagen | C68: 365 | D68: =VLOOKUP(KCOGW[[#This Row],[Organisatiegebonden werkingskosten]],KOOGW[[Rubriek]:[Kost per eenheid]],6,) -> 7.452047237 | E68: =KCOGW[[#This Row],[Aantal eenheden/jaar]]*KCOGW[[#This Row],[Kost per eenheid]] -> 2719.997241
A69: ='OG werking'!B3 -> Opleidingen | B69: =VLOOKUP(KCOGW[[#This Row],[Organisatiegebonden werkingskosten]],KOOGW[[Rubriek]:[Kost per eenheid]],4,) -> Aanwezigheidsdagen | C69: 365 | D69: =VLOOKUP(KCOGW[[#This Row],[Organisatiegebonden werkingskosten]],KOOGW[[Rubriek]:[Kost per eenheid]],6,) -> 0.1793491731 | E69: =KCOGW[[#This Row],[Aantal eenheden/jaar]]*KCOGW[[#This Row],[Kost per eenheid]] -> 65.46244817
A70: ='OG werking'!B4 -> Recup opleidingen | B70: =VLOOKUP(KCOGW[[#This Row],[Organisatiegebonden werkingskosten]],KOOGW[[Rubriek]:[Kost per eenheid]],4,) -> Aanwezigheidsdagen | C70: 365 | D70: =VLOOKUP(KCOGW[[#This Row],[Organisatiegebonden werkingskosten]],KOOGW[[Rubriek]:[Kost per eenheid]],6,) -> -0.1528877242 | E70: =KCOGW[[#This Row],[Aantal eenheden/jaar]]*KCOGW[[#This Row],[Kost per eenheid]] -> -55.80401933
A71: ='OG werking'!B5 -> Recup opleidingen | B71: =VLOOKUP(KCOGW[[#This Row],[Organisatiegebonden werkingskosten]],KOOGW[[Rubriek]:[Kost per eenheid]],4,) -> Aanwezigheidsdagen | C71: 365 | D71: =VLOOKUP(KCOGW[[#This Row],[Organisatiegebonden werkingskosten]],KOOGW[[Rubriek]:[Kost per eenheid]],6,) -> -0.1528877242 | E71: =KCOGW[[#This Row],[Aantal eenheden/jaar]]*KCOGW[[#This Row],[Kost per eenheid]] -> -55.80401933
A72: ='OG werking'!B6 -> Dienstverplaatsingen | B72: =VLOOKUP(KCOGW[[#This Row],[Organisatiegebonden werkingskosten]],KOOGW[[Rubriek]:[Kost per eenheid]],4,) -> Aanwezigheidsdagen | C72: 365 | D72: =VLOOKUP(KCOGW[[#This Row],[Organisatiegebonden werkingskosten]],KOOGW[[Rubriek]:[Kost per eenheid]],6,) -> 0.1472585604 | E72: =KCOGW[[#This Row],[Aantal eenheden/jaar]]*KCOGW[[#This Row],[Kost per eenheid]] -> 53.74937456
A73: ='OG werking'!B7 -> Recup verplaatsingen | B73: =VLOOKUP(KCOGW[[#This Row],[Organisatiegebonden werkingskosten]],KOOGW[[Rubriek]:[Kost per eenheid]],4,) -> Aanwezigheidsdagen | C73: 365 | D73: =VLOOKUP(KCOGW[[#This Row],[Organisatiegebonden werkingskosten]],KOOGW[[Rubriek]:[Kost per eenheid]],6,) -> -9.666899604e-05 | E73: =KCOGW[[#This Row],[Aantal eenheden/jaar]]*KCOGW[[#This Row],[Kost per eenheid]] -> -0.03528418355
A74: ='OG werking'!B8 -> Pastorale werking | B74: =VLOOKUP(KCOGW[[#This Row],[Organisatiegebonden werkingskosten]],KOOGW[[Rubriek]:[Kost per eenheid]],4,) -> Aanwezigheidsdagen | C74: 365 | D74: =VLOOKUP(KCOGW[[#This Row],[Organisatiegebonden werkingskosten]],KOOGW[[Rubriek]:[Kost per eenheid]],6,) -> 0.01359771721 | E74: =KCOGW[[#This Row],[Aantal eenheden/jaar]]*KCOGW[[#This Row],[Kost per eenheid]] -> 4.963166783
A75: ='OG werking'!B9 -> Klein materieel en meubilair | B75: =VLOOKUP(KCOGW[[#This Row],[Organisatiegebonden werkingskosten]],KOOGW[[Rubriek]:[Kost per eenheid]],4,) -> Aanwezigheidsdagen | C75: 365 | D75: =VLOOKUP(KCOGW[[#This Row],[Organisatiegebonden werkingskosten]],KOOGW[[Rubriek]:[Kost per eenheid]],6,) -> 0.03310831586 | E75: =KCOGW[[#This Row],[Aantal eenheden/jaar]]*KCOGW[[#This Row],[Kost per eenheid]] -> 12.08453529
A76: ='OG werking'!B10 -> Huur | B76: =VLOOKUP(KCOGW[[#This Row],[Organisatiegebonden werkingskosten]],KOOGW[[Rubriek]:[Kost per eenheid]],4,) -> Aanwezigheidsdagen | C76: 365 | D76: =VLOOKUP(KCOGW[[#This Row],[Organisatiegebonden werkingskosten]],KOOGW[[Rubriek]:[Kost per eenheid]],6,) -> 0.4219585372 | E76: =KCOGW[[#This Row],[Aantal eenheden/jaar]]*KCOGW[[#This Row],[Kost per eenheid]] -> 154.0148661
A77: ='OG werking'!B11 -> Onderhoudsproducten | B77: =VLOOKUP(KCOGW[[#This Row],[Organisatiegebonden werkingskosten]],KOOGW[[Rubriek]:[Kost per eenheid]],4,) -> Aanwezigheidsdagen | C77: 365 | D77: =VLOOKUP(KCOGW[[#This Row],[Organisatiegebonden werkingskosten]],KOOGW[[Rubriek]:[Kost per eenheid]],6,) -> 0.3166328908 | E77: =KCOGW[[#This Row],[Aantal eenheden/jaar]]*KCOGW[[#This Row],[Kost per eenheid]] -> 115.5710051
A78: ='OG werking'!B12 -> Benodigdheden technische dienst | B78: =VLOOKUP(KCOGW[[#This Row],[Organisatiegebonden werkingskosten]],KOOGW[[Rubriek]:[Kost per eenheid]],4,) -> Aanwezigheidsdagen | C78: 365 | D78: =VLOOKUP(KCOGW[[#This Row],[Organisatiegebonden werkingskosten]],KOOGW[[Rubriek]:[Kost per eenheid]],6,) -> 0.03340973678 | E78: =KCOGW[[#This Row],[Aantal eenheden/jaar]]*KCOGW[[#This Row],[Kost per eenheid]] -> 12.19455392
A79: ='OG werking'!B13 -> Kleine schilderwerken | B79: =VLOOKUP(KCOGW[[#This Row],[Organisatiegebonden werkingskosten]],KOOGW[[Rubriek]:[Kost per eenheid]],4,) -> Aanwezigheidsdagen | C79: 365 | D79: =VLOOKUP(KCOGW[[#This Row],[Organisatiegebonden werkingskosten]],KOOGW[[Rubriek]:[Kost per eenheid]],6,) -> 0.2099473562 | E79: =KCOGW[[#This Row],[Aantal eenheden/jaar]]*KCOGW[[#This Row],[Kost per eenheid]] -> 76.630785
A80: ='OG werking'!B14 -> Herstel gebouwen | B80: =VLOOKUP(KCOGW[[#This Row],[Organisatiegebonden werkingskosten]],KOOGW[[Rubriek]:[Kost per eenheid]],4,) -> Aanwezigheidsdagen | C80: 365 | D80: =VLOOKUP(KCOGW[[#This Row],[Organisatiegebonden werkingskosten]],KOOGW[[Rubriek]:[Kost per eenheid]],6,) -> 0.02872327044 | E80: =KCOGW[[#This Row],[Aantal eenheden/jaar]]*KCOGW[[#This Row],[Kost per eenheid]] -> 10.48399371
A81: ='OG werking'!B15 -> Recup schade (brand,storm) | B81: =VLOOKUP(KCOGW[[#This Row],[Organisatiegebonden werkingskosten]],KOOGW[[Rubriek]:[Kost per eenheid]],4,) -> Aanwezigheidsdagen | C81: 365 | D81: =VLOOKUP(KCOGW[[#This Row],[Organisatiegebonden werkingskosten]],KOOGW[[Rubriek]:[Kost per eenheid]],6,) -> -0.007056603774 | E81: =KCOGW[[#This Row],[Aantal eenheden/jaar]]*KCOGW[[#This Row],[Kost per eenheid]] -> -2.575660377
A82: ='OG werking'!B16 -> Recup verhuur | B82: =VLOOKUP(KCOGW[[#This Row],[Organisatiegebonden werkingskosten]],KOOGW[[Rubriek]:[Kost per eenheid]],4,) -> Aanwezigheidsdagen | C82: 365 | D82: =VLOOKUP(KCOGW[[#This Row],[Organisatiegebonden werkingskosten]],KOOGW[[Rubriek]:[Kost per eenheid]],6,) -> -0.1848602376 | E82: =KCOGW[[#This Row],[Aantal eenheden/jaar]]*KCOGW[[#This Row],[Kost per eenheid]] -> -67.47398672
A83: ='OG werking'!B17 -> Herstel binnenschrijnwerk | B83: =VLOOKUP(KCOGW[[#This Row],[Organisatiegebonden werkingskosten]],KOOGW[[Rubriek]:[Kost per eenheid]],4,) -> Aanwezigheidsdagen | C83: 365 | D83: =VLOOKUP(KCOGW[[#This Row],[Organisatiegebonden werkingskosten]],KOOGW[[Rubriek]:[Kost per eenheid]],6,) -> 0.06988166783 | E83: =KCOGW[[#This Row],[Aantal eenheden/jaar]]*KCOGW[[#This Row],[Kost per eenheid]] -> 25.50680876
A84: ='OG werking'!B18 -> Herstel technische installaties | B84: =VLOOKUP(KCOGW[[#This Row],[Organisatiegebonden werkingskosten]],KOOGW[[Rubriek]:[Kost per eenheid]],4,) -> Aanwezigheidsdagen | C84: 365 | D84: =VLOOKUP(KCOGW[[#This Row],[Organisatiegebonden werkingskosten]],KOOGW[[Rubriek]:[Kost per eenheid]],6,) -> 0.01089727463 | E84: =KCOGW[[#This Row],[Aantal eenheden/jaar]]*KCOGW[[#This Row],[Kost per eenheid]] -> 3.977505241
A85: ='OG werking'!B19 -> Herstel medische installaties | B85: =VLOOKUP(KCOGW[[#This Row],[Organisatiegebonden werkingskosten]],KOOGW[[Rubriek]:[Kost per eenheid]],4,) -> Aanwezigheidsdagen | C85: 365 | D85: =VLOOKUP(KCOGW[[#This Row],[Organisatiegebonden werkingskosten]],KOOGW[[Rubriek]:[Kost per eenheid]],6,) -> 0.2583745632 | E85: =KCOGW[[#This Row],[Aantal eenheden/jaar]]*KCOGW[[#This Row],[Kost per eenheid]] -> 94.30671558
A86: ='OG werking'!B20 -> Herstel computerinstallaties | B86: =VLOOKUP(KCOGW[[#This Row],[Organisatiegebonden werkingskosten]],KOOGW[[Rubriek]:[Kost per eenheid]],4,) -> Aanwezigheidsdagen | C86: 365 | D86: =VLOOKUP(KCOGW[[#This Row],[Organisatiegebonden werkingskosten]],KOOGW[[Rubriek]:[Kost per eenheid]],6,) -> 0.001314232471 | E86: =KCOGW[[#This Row],[Aantal eenheden/jaar]]*KCOGW[[#This Row],[Kost per eenheid]] -> 0.4796948521
A87: ='OG werking'!B21 -> Herstel verwarming/sanitair | B87: =VLOOKUP(KCOGW[[#This Row],[Organisatiegebonden werkingskosten]],KOOGW[[Rubriek]:[Kost per eenheid]],4,) -> Aanwezigheidsdagen | C87: 365 | D87: =VLOOKUP(KCOGW[[#This Row],[Organisatiegebonden werkingskosten]],KOOGW[[Rubriek]:[Kost per eenheid]],6,) -> 0.2623633823 | E87: =KCOGW[[#This Row],[Aantal eenheden/jaar]]*KCOGW[[#This Row],[Kost per eenheid]] -> 95.76263452
A88: ='OG werking'!B22 -> Herstel diverse installaties | B88: =VLOOKUP(KCOGW[[#This Row],[Organisatiegebonden werkingskosten]],KOOGW[[Rubriek]:[Kost per eenheid]],4,) -> Aanwezigheidsdagen | C88: 365 | D88: =VLOOKUP(KCOGW[[#This Row],[Organisatiegebonden werkingskosten]],KOOGW[[Rubriek]:[Kost per eenheid]],6,) -> 0.05961658514 | E88: =KCOGW[[#This Row],[Aantal eenheden/jaar]]*KCOGW[[#This Row],[Kost per eenheid]] -> 21.76005358
A89: ='OG werking'!B23 -> Herstel elektrische installaties | B89: =VLOOKUP(KCOGW[[#This Row],[Organisatiegebonden werkingskosten]],KOOGW[[Rubriek]:[Kost per eenheid]],4,) -> Aanwezigheidsdagen | C89: 365 | D89: =VLOOKUP(KCOGW[[#This Row],[Organisatiegebonden werkingskosten]],KOOGW[[Rubriek]:[Kost per eenheid]],6,) -> 0.07821104123 | E89: =KCOGW[[#This Row],[Aantal eenheden/jaar]]*KCOGW[[#This Row],[Kost per eenheid]] -> 28.54703005
A90: ='OG werking'!B24 -> Herstel telefooninstallatie | B90: =VLOOKUP(KCOGW[[#This Row],[Organisatiegebonden werkingskosten]],KOOGW[[Rubriek]:[Kost per eenheid]],4,) -> Aanwezigheidsdagen | C90: 365 | D90: =VLOOKUP(KCOGW[[#This Row],[Organisatiegebonden werkingskosten]],KOOGW[[Rubriek]:[Kost per eenheid]],6,) -> 0.05797530864 | E90: =KCOGW[[#This Row],[Aantal eenheden/jaar]]*KCOGW[[#This Row],[Kost per eenheid]] -> 21.16098765
A91: ='OG werking'!B25 -> Herstel meubilair | B91: =VLOOKUP(KCOGW[[#This Row],[Organisatiegebonden werkingskosten]],KOOGW[[Rubriek]:[Kost per eenheid]],4,) -> Aanwezigheidsdagen | C91: 365 | D91: =VLOOKUP(KCOGW[[#This Row],[Organisatiegebonden werkingskosten]],KOOGW[[Rubriek]:[Kost per eenheid]],6,) -> 0.01288096902 | E91: =KCOGW[[#This Row],[Aantal eenheden/jaar]]*KCOGW[[#This Row],[Kost per eenheid]] -> 4.701553692
A92: ='OG werking'!B26 -> Herstel rollend materieel | B92: =VLOOKUP(KCOGW[[#This Row],[Organisatiegebonden werkingskosten]],KOOGW[[Rubriek]:[Kost per eenheid]],4,) -> Aanwezigheidsdagen | C92: 365 | D92: =VLOOKUP(KCOGW[[#This Row],[Organisatiegebonden werkingskosten]],KOOGW[[Rubriek]:[Kost per eenheid]],6,) -> 0.06977498253 | E92: =KCOGW[[#This Row],[Aantal eenheden/jaar]]*KCOGW[[#This Row],[Kost per eenheid]] -> 25.46786862
A93: ='OG werking'!B27 -> Onderhoud tuinen,terreinen | B93: =VLOOKUP(KCOGW[[#This Row],[Organisatiegebonden werkingskosten]],KOOGW[[Rubriek]:[Kost per eenheid]],4,) -> Aanwezigheidsdagen | C93: 365 | D93: =VLOOKUP(KCOGW[[#This Row],[Organisatiegebonden werkingskosten]],KOOGW[[Rubriek]:[Kost per eenheid]],6,) -> 0.0877111577 | E93: =KCOGW[[#This Row],[Aantal eenheden/jaar]]*KCOGW[[#This Row],[Kost per eenheid]] -> 32.01457256
A94: ='OG werking'!B28 -> Huisvuil | B94: =VLOOKUP(KCOGW[[#This Row],[Organisatiegebonden werkingskosten]],KOOGW[[Rubriek]:[Kost per eenheid]],4,) -> Aanwezigheidsdagen | C94: 365 | D94: =VLOOKUP(KCOGW[[#This Row],[Organisatiegebonden werkingskosten]],KOOGW[[Rubriek]:[Kost per eenheid]],6,) -> 0.316423946 | E94: =KCOGW[[#This Row],[Aantal eenheden/jaar]]*KCOGW[[#This Row],[Kost per eenheid]] -> 115.4947403
A95: ='OG werking'!B29 -> Ongediertebestrijding | B95: =VLOOKUP(KCOGW[[#This Row],[Organisatiegebonden werkingskosten]],KOOGW[[Rubriek]:[Kost per eenheid]],4,) -> Aanwezigheidsdagen | C95: 365 | D95: =VLOOKUP(KCOGW[[#This Row],[Organisatiegebonden werkingskosten]],KOOGW[[Rubriek]:[Kost per eenheid]],6,) -> 0.0003384579548 | E95: =KCOGW[[#This Row],[Aantal eenheden/jaar]]*KCOGW[[#This Row],[Kost per eenheid]] -> 0.1235371535
A96: ='OG werking'!B30 -> Brandbeveiliging | B96: =VLOOKUP(KCOGW[[#This Row],[Organisatiegebonden werkingskosten]],KOOGW[[Rubriek]:[Kost per eenheid]],4,) -> Aanwezigheidsdagen | C96: 365 | D96: =VLOOKUP(KCOGW[[#This Row],[Organisatiegebonden werkingskosten]],KOOGW[[Rubriek]:[Kost per eenheid]],6,) -> 0.02887607734 | E96: =KCOGW[[#This Row],[Aantal eenheden/jaar]]*KCOGW[[#This Row],[Kost per eenheid]] -> 10.53976823
A97: ='OG werking'!B31 -> Onderhoudscontracten | B97: =VLOOKUP(KCOGW[[#This Row],[Organisatiegebonden werkingskosten]],KOOGW[[Rubriek]:[Kost per eenheid]],4,) -> Aanwezigheidsdagen | C97: 365 | D97: =VLOOKUP(KCOGW[[#This Row],[Organisatiegebonden werkingskosten]],KOOGW[[Rubriek]:[Kost per eenheid]],6,) -> 0.1554593524 | E97: =KCOGW[[#This Row],[Aantal eenheden/jaar]]*KCOGW[[#This Row],[Kost per eenheid]] -> 56.74266364
A98: ='OG werking'!B32 -> Brandstof rollend materieel | B98: =VLOOKUP(KCOGW[[#This Row],[Organisatiegebonden werkingskosten]],KOOGW[[Rubriek]:[Kost per eenheid]],4,) -> Aanwezigheidsdagen | C98: 365 | D98: =VLOOKUP(KCOGW[[#This Row],[Organisatiegebonden werkingskosten]],KOOGW[[Rubriek]:[Kost per eenheid]],6,) -> 0.1419883531 | E98: =KCOGW[[#This Row],[Aantal eenheden/jaar]]*KCOGW[[#This Row],[Kost per eenheid]] -> 51.82574889
A99: ='OG werking'!B33 -> Kantoorkosten | B99: =VLOOKUP(KCOGW[[#This Row],[Organisatiegebonden werkingskosten]],KOOGW[[Rubriek]:[Kost per eenheid]],4,) -> Aanwezigheidsdagen | C99: 365 | D99: =VLOOKUP(KCOGW[[#This Row],[Organisatiegebonden werkingskosten]],KOOGW[[Rubriek]:[Kost per eenheid]],6,) -> 0.0661048218 | E99: =KCOGW[[#This Row],[Aantal eenheden/jaar]]*KCOGW[[#This Row],[Kost per eenheid]] -> 24.12825996
A100: ='OG werking'!B34 -> Recup kantoor gebruikers | B100: =VLOOKUP(KCOGW[[#This Row],[Organisatiegebonden werkingskosten]],KOOGW[[Rubriek]:[Kost per eenheid]],4,) -> Aanwezigheidsdagen | C100: 365 | D100: =VLOOKUP(KCOGW[[#This Row],[Organisatiegebonden werkingskosten]],KOOGW[[Rubriek]:[Kost per eenheid]],6,) -> -0.002566969485 | E100: =KCOGW[[#This Row],[Aantal eenheden/jaar]]*KCOGW[[#This Row],[Kost per eenheid]] -> -0.9369438621
A101: ='OG werking'!B35 -> Recup kantoor personeel | B101: =VLOOKUP(KCOGW[[#This Row],[Organisatiegebonden werkingskosten]],KOOGW[[Rubriek]:[Kost per eenheid]],4,) -> Aanwezigheidsdagen | C101: 365 | D101: =VLOOKUP(KCOGW[[#This Row],[Organisatiegebonden werkingskosten]],KOOGW[[Rubriek]:[Kost per eenheid]],6,) -> -9.317493594e-05 | E101: =KCOGW[[#This Row],[Aantal eenheden/jaar]]*KCOGW[[#This Row],[Kost per eenheid]] -> -0.03400885162
A102: ='OG werking'!B36 -> Recup kantoor derden | B102: =VLOOKUP(KCOGW[[#This Row],[Organisatiegebonden werkingskosten]],KOOGW[[Rubriek]:[Kost per eenheid]],4,) -> Aanwezigheidsdagen | C102: 365 | D102: =VLOOKUP(KCOGW[[#This Row],[Organisatiegebonden werkingskosten]],KOOGW[[Rubriek]:[Kost per eenheid]],6,) -> -0.0003109713487 | E102: =KCOGW[[#This Row],[Aantal eenheden/jaar]]*KCOGW[[#This Row],[Kost per eenheid]] -> -0.1135045423
A103: ='OG werking'!B37 -> Verzendingkosten | B103: =VLOOKUP(KCOGW[[#This Row],[Organisatiegebonden werkingskosten]],KOOGW[[Rubriek]:[Kost per eenheid]],4,) -> Aanwezigheidsdagen | C103: 365 | D103: =VLOOKUP(KCOGW[[#This Row],[Organisatiegebonden werkingskosten]],KOOGW[[Rubriek]:[Kost per eenheid]],6,) -> 0.07245073375 | E103: =KCOGW[[#This Row],[Aantal eenheden/jaar]]*KCOGW[[#This Row],[Kost per eenheid]] -> 26.44451782
A104: ='OG werking'!B38 -> Telefoon/internet | B104: =VLOOKUP(KCOGW[[#This Row],[Organisatiegebonden werkingskosten]],KOOGW[[Rubriek]:[Kost per eenheid]],4,) -> Aanwezigheidsdagen | C104: 365 | D104: =VLOOKUP(KCOGW[[#This Row],[Organisatiegebonden werkingskosten]],KOOGW[[Rubriek]:[Kost per eenheid]],6,) -> 0.1323696716 | E104: =KCOGW[[#This Row],[Aantal eenheden/jaar]]*KCOGW[[#This Row],[Kost per eenheid]] -> 48.31493012
A105: ='OG werking'!B39 -> Drukwerk | B105: =VLOOKUP(KCOGW[[#This Row],[Organisatiegebonden werkingskosten]],KOOGW[[Rubriek]:[Kost per eenheid]],4,) -> Aanwezigheidsdagen | C105: 365 | D105: =VLOOKUP(KCOGW[[#This Row],[Organisatiegebonden werkingskosten]],KOOGW[[Rubriek]:[Kost per eenheid]],6,) -> 0.009075704635 | E105: =KCOGW[[#This Row],[Aantal eenheden/jaar]]*KCOGW[[#This Row],[Kost per eenheid]] -> 3.312632192
A106: ='OG werking'!B40 -> Fotokopiekosten | B106: =VLOOKUP(KCOGW[[#This Row],[Organisatiegebonden werkingskosten]],KOOGW[[Rubriek]:[Kost per eenheid]],4,) -> Aanwezigheidsdagen | C106: 365 | D106: =VLOOKUP(KCOGW[[#This Row],[Organisatiegebonden werkingskosten]],KOOGW[[Rubriek]:[Kost per eenheid]],6,) -> 0.04077638015 | E106: =KCOGW[[#This Row],[Aantal eenheden/jaar]]*KCOGW[[#This Row],[Kost per eenheid]] -> 14.88337876
A107: ='OG werking'!B41 -> Papier | B107: =VLOOKUP(KCOGW[[#This Row],[Organisatiegebonden werkingskosten]],KOOGW[[Rubriek]:[Kost per eenheid]],4,) -> Aanwezigheidsdagen | C107: 365 | D107: =VLOOKUP(KCOGW[[#This Row],[Organisatiegebonden werkingskosten]],KOOGW[[Rubriek]:[Kost per eenheid]],6,) -> 0.02036128581 | E107: =KCOGW[[#This Row],[Aantal eenheden/jaar]]*KCOGW[[#This Row],[Kost per eenheid]] -> 7.431869322
A108: ='OG werking'!B42 -> Wettelijke formaliteiten | B108: =VLOOKUP(KCOGW[[#This Row],[Organisatiegebonden werkingskosten]],KOOGW[[Rubriek]:[Kost per eenheid]],4,) -> Aanwezigheidsdagen | C108: 365 | D108: =VLOOKUP(KCOGW[[#This Row],[Organisatiegebonden werkingskosten]],KOOGW[[Rubriek]:[Kost per eenheid]],6,) -> 0.001841835546 | E108: =KCOGW[[#This Row],[Aantal eenheden/jaar]]*KCOGW[[#This Row],[Kost per eenheid]] -> 0.6722699744
A109: ='OG werking'!B43 -> Computerkosten | B109: =VLOOKUP(KCOGW[[#This Row],[Organisatiegebonden werkingskosten]],KOOGW[[Rubriek]:[Kost per eenheid]],4,) -> Aanwezigheidsdagen | C109: 365 | D109: =VLOOKUP(KCOGW[[#This Row],[Organisatiegebonden werkingskosten]],KOOGW[[Rubriek]:[Kost per eenheid]],6,) -> 0.1119247612 | E109: =KCOGW[[#This Row],[Aantal eenheden/jaar]]*KCOGW[[#This Row],[Kost per eenheid]] -> 40.85253785
A110: ='OG werking'!B44 -> Sociaal secretariaat | B110: =VLOOKUP(KCOGW[[#This Row],[Organisatiegebonden werkingskosten]],KOOGW[[Rubriek]:[Kost per eenheid]],4,) -> Aanwezigheidsdagen | C110: 365 | D110: =VLOOKUP(KCOGW[[#This Row],[Organisatiegebonden werkingskosten]],KOOGW[[Rubriek]:[Kost per eenheid]],6,) -> 0.710405311 | E110: =KCOGW[[#This Row],[Aantal eenheden/jaar]]*KCOGW[[#This Row],[Kost per eenheid]] -> 259.2979385
A111: ='OG werking'!B45 -> Centrale administratie | B111: =VLOOKUP(KCOGW[[#This Row],[Organisatiegebonden werkingskosten]],KOOGW[[Rubriek]:[Kost per eenheid]],4,) -> Aanwezigheidsdagen | C111: 365 | D111: =VLOOKUP(KCOGW[[#This Row],[Organisatiegebonden werkingskosten]],KOOGW[[Rubriek]:[Kost per eenheid]],6,) -> 0.8254789192 | E111: =KCOGW[[#This Row],[Aantal eenheden/jaar]]*KCOGW[[#This Row],[Kost per eenheid]] -> 301.2998055
A112: ='OG werking'!B46 -> Controle en keuring | B112: =VLOOKUP(KCOGW[[#This Row],[Organisatiegebonden werkingskosten]],KOOGW[[Rubriek]:[Kost per eenheid]],4,) -> Aanwezigheidsdagen | C112: 365 | D112: =VLOOKUP(KCOGW[[#This Row],[Organisatiegebonden werkingskosten]],KOOGW[[Rubriek]:[Kost per eenheid]],6,) -> 0.06391544375 | E112: =KCOGW[[#This Row],[Aantal eenheden/jaar]]*KCOGW[[#This Row],[Kost per eenheid]] -> 23.32913697
A113: ='OG werking'!B47 -> Informatica-computerprestaties | B113: =VLOOKUP(KCOGW[[#This Row],[Organisatiegebonden werkingskosten]],KOOGW[[Rubriek]:[Kost per eenheid]],4,) -> Aanwezigheidsdagen | C113: 365 | D113: =VLOOKUP(KCOGW[[#This Row],[Organisatiegebonden werkingskosten]],KOOGW[[Rubriek]:[Kost per eenheid]],6,) -> 0.02405846727 | E113: =KCOGW[[#This Row],[Aantal eenheden/jaar]]*KCOGW[[#This Row],[Kost per eenheid]] -> 8.781340554
A114: ='OG werking'!B48 -> Boekhouding | B114: =VLOOKUP(KCOGW[[#This Row],[Organisatiegebonden werkingskosten]],KOOGW[[Rubriek]:[Kost per eenheid]],4,) -> Aanwezigheidsdagen | C114: 365 | D114: =VLOOKUP(KCOGW[[#This Row],[Organisatiegebonden werkingskosten]],KOOGW[[Rubriek]:[Kost per eenheid]],6,) -> 0.03211320755 | E114: =KCOGW[[#This Row],[Aantal eenheden/jaar]]*KCOGW[[#This Row],[Kost per eenheid]] -> 11.72132075
A115: ='OG werking'!B49 -> Orbis | B115: =VLOOKUP(KCOGW[[#This Row],[Organisatiegebonden werkingskosten]],KOOGW[[Rubriek]:[Kost per eenheid]],4,) -> Aanwezigheidsdagen | C115: 365 | D115: =VLOOKUP(KCOGW[[#This Row],[Organisatiegebonden werkingskosten]],KOOGW[[Rubriek]:[Kost per eenheid]],6,) -> 0.1362671791 | E115: =KCOGW[[#This Row],[Aantal eenheden/jaar]]*KCOGW[[#This Row],[Kost per eenheid]] -> 49.73752038
A116: ='OG werking'!B50 -> Ereloon bedrijfsrevisor | B116: =VLOOKUP(KCOGW[[#This Row],[Organisatiegebonden werkingskosten]],KOOGW[[Rubriek]:[Kost per eenheid]],4,) -> Aanwezigheidsdagen | C116: 365 | D116: =VLOOKUP(KCOGW[[#This Row],[Organisatiegebonden werkingskosten]],KOOGW[[Rubriek]:[Kost per eenheid]],6,) -> 0.1082320056 | E116: =KCOGW[[#This Row],[Aantal eenheden/jaar]]*KCOGW[[#This Row],[Kost per eenheid]] -> 39.50468204
A117: ='OG werking'!B51 -> Lidgeld Vlaams Welzijn | B117: =VLOOKUP(KCOGW[[#This Row],[Organisatiegebonden werkingskosten]],KOOGW[[Rubriek]:[Kost per eenheid]],4,) -> Aanwezigheidsdagen | C117: 365 | D117: =VLOOKUP(KCOGW[[#This Row],[Organisatiegebonden werkingskosten]],KOOGW[[Rubriek]:[Kost per eenheid]],6,) -> 0.1789461915 | E117: =KCOGW[[#This Row],[Aantal eenheden/jaar]]*KCOGW[[#This Row],[Kost per eenheid]] -> 65.31535989
A118: ='OG werking'!B52 -> Giften en geschenken | B118: =VLOOKUP(KCOGW[[#This Row],[Organisatiegebonden werkingskosten]],KOOGW[[Rubriek]:[Kost per eenheid]],4,) -> Aanwezigheidsdagen | C118: 365 | D118: =VLOOKUP(KCOGW[[#This Row],[Organisatiegebonden werkingskosten]],KOOGW[[Rubriek]:[Kost per eenheid]],6,) -> 0.004794549266 | E118: =KCOGW[[#This Row],[Aantal eenheden/jaar]]*KCOGW[[#This Row],[Kost per eenheid]] -> 1.750010482
A119: ='OG werking'!B53 -> Lidgelden | B119: =VLOOKUP(KCOGW[[#This Row],[Organisatiegebonden werkingskosten]],KOOGW[[Rubriek]:[Kost per eenheid]],4,) -> Aanwezigheidsdagen | C119: 365 | D119: =VLOOKUP(KCOGW[[#This Row],[Organisatiegebonden werkingskosten]],KOOGW[[Rubriek]:[Kost per eenheid]],6,) -> 0.01227579781 | E119: =KCOGW[[#This Row],[Aantal eenheden/jaar]]*KCOGW[[#This Row],[Kost per eenheid]] -> 4.480666201
A120: ='OG werking'!B54 -> Public relations | B120: =VLOOKUP(KCOGW[[#This Row],[Organisatiegebonden werkingskosten]],KOOGW[[Rubriek]:[Kost per eenheid]],4,) -> Aanwezigheidsdagen | C120: 365 | D120: =VLOOKUP(KCOGW[[#This Row],[Organisatiegebonden werkingskosten]],KOOGW[[Rubriek]:[Kost per eenheid]],6,) -> 0.0670505474 | E120: =KCOGW[[#This Row],[Aantal eenheden/jaar]]*KCOGW[[#This Row],[Kost per eenheid]] -> 24.4734498
A121: ='OG werking'!B55 -> Andere erelonen | B121: =VLOOKUP(KCOGW[[#This Row],[Organisatiegebonden werkingskosten]],KOOGW[[Rubriek]:[Kost per eenheid]],4,) -> Aanwezigheidsdagen | C121: 365 | D121: =VLOOKUP(KCOGW[[#This Row],[Organisatiegebonden werkingskosten]],KOOGW[[Rubriek]:[Kost per eenheid]],6,) -> 0.01648707198 | E121: =KCOGW[[#This Row],[Aantal eenheden/jaar]]*KCOGW[[#This Row],[Kost per eenheid]] -> 6.017781272
A122: ='OG werking'!B56 -> Diverse notoriteitsuitgaven | B122: =VLOOKUP(KCOGW[[#This Row],[Organisatiegebonden werkingskosten]],KOOGW[[Rubriek]:[Kost per eenheid]],4,) -> Aanwezigheidsdagen | C122: 365 | D122: =VLOOKUP(KCOGW[[#This Row],[Organisatiegebonden werkingskosten]],KOOGW[[Rubriek]:[Kost per eenheid]],6,) -> 0.01890496157 | E122: =KCOGW[[#This Row],[Aantal eenheden/jaar]]*KCOGW[[#This Row],[Kost per eenheid]] -> 6.900310971
A123: ='OG werking'!B57 -> Buitenwettelijke verzekeringen | B123: =VLOOKUP(KCOGW[[#This Row],[Organisatiegebonden werkingskosten]],KOOGW[[Rubriek]:[Kost per eenheid]],4,) -> Aanwezigheidsdagen | C123: 365 | D123: =VLOOKUP(KCOGW[[#This Row],[Organisatiegebonden werkingskosten]],KOOGW[[Rubriek]:[Kost per eenheid]],6,) -> 0.08735080363 | E123: =KCOGW[[#This Row],[Aantal eenheden/jaar]]*KCOGW[[#This Row],[Kost per eenheid]] -> 31.88304333
A124: ='OG werking'!B58 -> Verzekering arbeidsongevallen | B124: =VLOOKUP(KCOGW[[#This Row],[Organisatiegebonden werkingskosten]],KOOGW[[Rubriek]:[Kost per eenheid]],4,) -> Aanwezigheidsdagen | C124: 365 | D124: =VLOOKUP(KCOGW[[#This Row],[Organisatiegebonden werkingskosten]],KOOGW[[Rubriek]:[Kost per eenheid]],6,) -> 0.5217071978 | E124: =KCOGW[[#This Row],[Aantal eenheden/jaar]]*KCOGW[[#This Row],[Kost per eenheid]] -> 190.4231272
A125: ='OG werking'!B59 -> BA personeel | B125: =VLOOKUP(KCOGW[[#This Row],[Organisatiegebonden werkingskosten]],KOOGW[[Rubriek]:[Kost per eenheid]],4,) -> Aanwezigheidsdagen | C125: 365 | D125: =VLOOKUP(KCOGW[[#This Row],[Organisatiegebonden werkingskosten]],KOOGW[[Rubriek]:[Kost per eenheid]],6,) -> 0.02396342884 | E125: =KCOGW[[#This Row],[Aantal eenheden/jaar]]*KCOGW[[#This Row],[Kost per eenheid]] -> 8.746651526
A126: ='OG werking'!B60 -> Bedrijfsgeneeskunde | B126: =VLOOKUP(KCOGW[[#This Row],[Organisatiegebonden werkingskosten]],KOOGW[[Rubriek]:[Kost per eenheid]],4,) -> Aanwezigheidsdagen | C126: 365 | D126: =VLOOKUP(KCOGW[[#This Row],[Organisatiegebonden werkingskosten]],KOOGW[[Rubriek]:[Kost per eenheid]],6,) -> 0.5319424645 | E126: =KCOGW[[#This Row],[Aantal eenheden/jaar]]*KCOGW[[#This Row],[Kost per eenheid]] -> 194.1589995
A127: ='OG werking'!B61 -> Woon-werkverkeer | B127: =VLOOKUP(KCOGW[[#This Row],[Organisatiegebonden werkingskosten]],KOOGW[[Rubriek]:[Kost per eenheid]],4,) -> Aanwezigheidsdagen | C127: 365 | D127: =VLOOKUP(KCOGW[[#This Row],[Organisatiegebonden werkingskosten]],KOOGW[[Rubriek]:[Kost per eenheid]],6,) -> 1.328538551 | E127: =KCOGW[[#This Row],[Aantal eenheden/jaar]]*KCOGW[[#This Row],[Kost per eenheid]] -> 484.9165712
A128: ='OG werking'!B62 -> Syndicale premie | B128: =VLOOKUP(KCOGW[[#This Row],[Organisatiegebonden werkingskosten]],KOOGW[[Rubriek]:[Kost per eenheid]],4,) -> Aanwezigheidsdagen | C128: 365 | D128: =VLOOKUP(KCOGW[[#This Row],[Organisatiegebonden werkingskosten]],KOOGW[[Rubriek]:[Kost per eenheid]],6,) -> 0.04277474959 | E128: =KCOGW[[#This Row],[Aantal eenheden/jaar]]*KCOGW[[#This Row],[Kost per eenheid]] -> 15.6127836
A129: ='OG werking'!B63 -> Kamppremie | B129: =VLOOKUP(KCOGW[[#This Row],[Organisatiegebonden werkingskosten]],KOOGW[[Rubriek]:[Kost per eenheid]],4,) -> Aanwezigheidsdagen | C129: 365 | D129: =VLOOKUP(KCOGW[[#This Row],[Organisatiegebonden werkingskosten]],KOOGW[[Rubriek]:[Kost per eenheid]],6,) -> 0.04988329839 | E129: =KCOGW[[#This Row],[Aantal eenheden/jaar]]*KCOGW[[#This Row],[Kost per eenheid]] -> 18.20740391
A130: ='OG werking'!B64 -> Werkkledij | B130: =VLOOKUP(KCOGW[[#This Row],[Organisatiegebonden werkingskosten]],KOOGW[[Rubriek]:[Kost per eenheid]],4,) -> Aanwezigheidsdagen | C130: 365 | D130: =VLOOKUP(KCOGW[[#This Row],[Organisatiegebonden werkingskosten]],KOOGW[[Rubriek]:[Kost per eenheid]],6,) -> 0.04876589797 | E130: =KCOGW[[#This Row],[Aantal eenheden/jaar]]*KCOGW[[#This Row],[Kost per eenheid]] -> 17.79955276
A131: ='OG werking'!B65 -> Diverse andere personeelskosten | B131: =VLOOKUP(KCOGW[[#This Row],[Organisatiegebonden werkingskosten]],KOOGW[[Rubriek]:[Kost per eenheid]],4,) -> Aanwezigheidsdagen | C131: 365 | D131: =VLOOKUP(KCOGW[[#This Row],[Organisatiegebonden werkingskosten]],KOOGW[[Rubriek]:[Kost per eenheid]],6,) -> 0.1400472863 | E131: =KCOGW[[#This Row],[Aantal eenheden/jaar]]*KCOGW[[#This Row],[Kost per eenheid]] -> 51.11725949
A132: ='OG werking'!B66 -> Bedrijfsbelastingen | B132: =VLOOKUP(KCOGW[[#This Row],[Organisatiegebonden werkingskosten]],KOOGW[[Rubriek]:[Kost per eenheid]],4,) -> Aanwezigheidsdagen | C132: 365 | D132: =VLOOKUP(KCOGW[[#This Row],[Organisatiegebonden werkingskosten]],KOOGW[[Rubriek]:[Kost per eenheid]],6,) -> 0.5006047053 | E132: =KCOGW[[#This Row],[Aantal eenheden/jaar]]*KCOGW[[#This Row],[Kost per eenheid]] -> 182.7207174
A133: ='OG werking'!B67 -> Bibliotheek | B133: =VLOOKUP(KCOGW[[#This Row],[Organisatiegebonden werkingskosten]],KOOGW[[Rubriek]:[Kost per eenheid]],4,) -> Aanwezigheidsdagen | C133: 365 | D133: =VLOOKUP(KCOGW[[#This Row],[Organisatiegebonden werkingskosten]],KOOGW[[Rubriek]:[Kost per eenheid]],6,) -> 0.010364314 | E133: =KCOGW[[#This Row],[Aantal eenheden/jaar]]*KCOGW[[#This Row],[Kost per eenheid]] -> 3.78297461
A134: ='OG werking'!B68 -> Georganiseerde activiteiten | B134: =VLOOKUP(KCOGW[[#This Row],[Organisatiegebonden werkingskosten]],KOOGW[[Rubriek]:[Kost per eenheid]],4,) -> Aanwezigheidsdagen | C134: 365 | D134: =VLOOKUP(KCOGW[[#This Row],[Organisatiegebonden werkingskosten]],KOOGW[[Rubriek]:[Kost per eenheid]],6,) -> 0.08613533659 | E134: =KCOGW[[#This Row],[Aantal eenheden/jaar]]*KCOGW[[#This Row],[Kost per eenheid]] -> 31.43939786
A135: ='OG werking'!B69 -> Recup georganiseerde act | B135: =VLOOKUP(KCOGW[[#This Row],[Organisatiegebonden werkingskosten]],KOOGW[[Rubriek]:[Kost per eenheid]],4,) -> Aanwezigheidsdagen | C135: 365 | D135: =VLOOKUP(KCOGW[[#This Row],[Organisatiegebonden werkingskosten]],KOOGW[[Rubriek]:[Kost per eenheid]],6,) -> -0.1972166317 | E135: =KCOGW[[#This Row],[Aantal eenheden/jaar]]*KCOGW[[#This Row],[Kost per eenheid]] -> -71.98407058
A136: ='OG werking'!B70 -> Arbeidsgerichte activiteiten | B136: =VLOOKUP(KCOGW[[#This Row],[Organisatiegebonden werkingskosten]],KOOGW[[Rubriek]:[Kost per eenheid]],4,) -> Aanwezigheidsdagen | C136: 365 | D136: =VLOOKUP(KCOGW[[#This Row],[Organisatiegebonden werkingskosten]],KOOGW[[Rubriek]:[Kost per eenheid]],6,) -> 0.03400582343 | E136: =KCOGW[[#This Row],[Aantal eenheden/jaar]]*KCOGW[[#This Row],[Kost per eenheid]] -> 12.41212555
A137: ='OG werking'!B71 -> Recup arbeidsgerichte act | B137: =VLOOKUP(KCOGW[[#This Row],[Organisatiegebonden werkingskosten]],KOOGW[[Rubriek]:[Kost per eenheid]],4,) -> Aanwezigheidsdagen | C137: 365 | D137: =VLOOKUP(KCOGW[[#This Row],[Organisatiegebonden werkingskosten]],KOOGW[[Rubriek]:[Kost per eenheid]],6,) -> -0.02689075239 | E137: =KCOGW[[#This Row],[Aantal eenheden/jaar]]*KCOGW[[#This Row],[Kost per eenheid]] -> -9.815124621
A138: ='OG werking'!B72 -> Financiële kosten | B138: =VLOOKUP(KCOGW[[#This Row],[Organisatiegebonden werkingskosten]],KOOGW[[Rubriek]:[Kost per eenheid]],4,) -> Aanwezigheidsdagen | C138: 365 | D138: =VLOOKUP(KCOGW[[#This Row],[Organisatiegebonden werkingskosten]],KOOGW[[Rubriek]:[Kost per eenheid]],6,) -> 1.267354065 | E138: =KCOGW[[#This Row],[Aantal eenheden/jaar]]*KCOGW[[#This Row],[Kost per eenheid]] -> 462.5842336
A139: ='OG werking'!B73 -> Financiële opbrengsten | B139: =VLOOKUP(KCOGW[[#This Row],[Organisatiegebonden werkingskosten]],KOOGW[[Rubriek]:[Kost per eenheid]],4,) -> Aanwezigheidsdagen | C139: 365 | D139: =VLOOKUP(KCOGW[[#This Row],[Organisatiegebonden werkingskosten]],KOOGW[[Rubriek]:[Kost per eenheid]],6,) -> -1.805083857 | E139: =KCOGW[[#This Row],[Aantal eenheden/jaar]]*KCOGW[[#This Row],[Kost per eenheid]] -> -658.855608
A140: ='OG werking'!B74 -> Elektriciteit | B140: =VLOOKUP(KCOGW[[#This Row],[Organisatiegebonden werkingskosten]],KOOGW[[Rubriek]:[Kost per eenheid]],4,) -> Aanwezigheidsdagen | C140: 365 | D140: =VLOOKUP(KCOGW[[#This Row],[Organisatiegebonden werkingskosten]],KOOGW[[Rubriek]:[Kost per eenheid]],6,) -> 0.8453571465 | E140: =KCOGW[[#This Row],[Aantal eenheden/jaar]]*KCOGW[[#This Row],[Kost per eenheid]] -> 308.5553585
A141: ='OG werking'!B75 -> Water | B141: =VLOOKUP(KCOGW[[#This Row],[Organisatiegebonden werkingskosten]],KOOGW[[Rubriek]:[Kost per eenheid]],4,) -> Aanwezigheidsdagen | C141: 365 | D141: =VLOOKUP(KCOGW[[#This Row],[Organisatiegebonden werkingskosten]],KOOGW[[Rubriek]:[Kost per eenheid]],6,) -> 0.1306770417 | E141: =KCOGW[[#This Row],[Aantal eenheden/jaar]]*KCOGW[[#This Row],[Kost per eenheid]] -> 47.69712022
A142: ='OG werking'!B76 -> Gas | B142: =VLOOKUP(KCOGW[[#This Row],[Organisatiegebonden werkingskosten]],KOOGW[[Rubriek]:[Kost per eenheid]],4,) -> Aanwezigheidsdagen | C142: 365 | D142: =VLOOKUP(KCOGW[[#This Row],[Organisatiegebonden werkingskosten]],KOOGW[[Rubriek]:[Kost per eenheid]],6,) -> 0.7163625157 | E142: =KCOGW[[#This Row],[Aantal eenheden/jaar]]*KCOGW[[#This Row],[Kost per eenheid]] -> 261.4723182
A143: Totaal | E143: =SUBTOTAL(109,KCOGW[Kost per jaar]) -> 6182.310981
A145: Woon- en leefkosten | B145: Eenheid | C145: Aantal eenheden/jaar | D145: Brutokost per eenheid | E145: Kost per jaar
A146: ='Woon- en leefkosten'!B2 -> Ontbijt | B146: =VLOOKUP(KCWL[Woon- en leefkosten],WoonEnLeefKosten[[Woon- & Leefkost]:[Subsidies per eenheid]],2,) -> aantal nachten woonondersteuning | C146: 365 | D146: =VLOOKUP(KCWL[[#This Row],[Woon- en leefkosten]],WoonEnLeefKosten[[Woon- & Leefkost]:[Brutokost per eenheid]],4,) -> 1.3 | E146: =KCWL[Aantal eenheden/jaar]*KCWL[Brutokost per eenheid] -> 474.5
A147: ='Woon- en leefkosten'!B3 -> Middagmaal | B147: =VLOOKUP(KCWL[Woon- en leefkosten],WoonEnLeefKosten[[Woon- & Leefkost]:[Subsidies per eenheid]],2,) -> Aanwezigheidsdagen | C147: 365 | D147: =VLOOKUP(KCWL[[#This Row],[Woon- en leefkosten]],WoonEnLeefKosten[[Woon- & Leefkost]:[Brutokost per eenheid]],4,) -> 12.09 | E147: =KCWL[Aantal eenheden/jaar]*KCWL[Brutokost per eenheid] -> 4412.85
A148: ='Woon- en leefkosten'!B4 -> Avondmaal | B148: =VLOOKUP(KCWL[Woon- en leefkosten],WoonEnLeefKosten[[Woon- & Leefkost]:[Subsidies per eenheid]],2,) -> Aanwezigheidsdagen | C148: 365 | D148: =VLOOKUP(KCWL[[#This Row],[Woon- en leefkosten]],WoonEnLeefKosten[[Woon- & Leefkost]:[Brutokost per eenheid]],4,) -> 1.95 | E148: =KCWL[Aantal eenheden/jaar]*KCWL[Brutokost per eenheid] -> 711.75
A149: ='Woon- en leefkosten'!B5 -> Huur kamer | B149: =VLOOKUP(KCWL[Woon- en leefkosten],WoonEnLeefKosten[[Woon- & Leefkost]:[Subsidies per eenheid]],2,) -> Aanwezigheidsdagen | C149: 365 | D149: =VLOOKUP(KCWL[[#This Row],[Woon- en leefkosten]],WoonEnLeefKosten[[Woon- & Leefkost]:[Brutokost per eenheid]],4,) -> 7.63 | E149: =KCWL[Aantal eenheden/jaar]*KCWL[Brutokost per eenheid] -> 2784.95
A150: ='Woon- en leefkosten'!B6 -> Onderhoud kamer | B150: =VLOOKUP(KCWL[Woon- en leefkosten],WoonEnLeefKosten[[Woon- & Leefkost]:[Subsidies per eenheid]],2,) -> Aanwezigheidsdagen | C150: 365 | D150: =VLOOKUP(KCWL[[#This Row],[Woon- en leefkosten]],WoonEnLeefKosten[[Woon- & Leefkost]:[Brutokost per eenheid]],4,) -> 8.01 | E150: =KCWL[Aantal eenheden/jaar]*KCWL[Brutokost per eenheid] -> 2923.65
A151: ='Woon- en leefkosten'!B7 -> Naaisters | B151: =VLOOKUP(KCWL[Woon- en leefkosten],WoonEnLeefKosten[[Woon- & Leefkost]:[Subsidies per eenheid]],2,) -> Uren | D151: =VLOOKUP(KCWL[[#This Row],[Woon- en leefkosten]],WoonEnLeefKosten[[Woon- & Leefkost]:[Brutokost per eenheid]],4,) -> 0 | E151: =KCWL[Aantal eenheden/jaar]*KCWL[Brutokost per eenheid] -> 0
A152: ='Woon- en leefkosten'!B8 -> W&L 7 | B152: =VLOOKUP(KCWL[Woon- en leefkosten],WoonEnLeefKosten[[Woon- & Leefkost]:[Subsidies per eenheid]],2,) -> Aanwezigheidsdagen | D152: =VLOOKUP(KCWL[[#This Row],[Woon- en leefkosten]],WoonEnLeefKosten[[Woon- & Leefkost]:[Brutokost per eenheid]],4,) -> 0 | E152: =KCWL[Aantal eenheden/jaar]*KCWL[Brutokost per eenheid] -> 0
A153: ='Woon- en leefkosten'!B9 -> W&L 8 | B153: =VLOOKUP(KCWL[Woon- en leefkosten],WoonEnLeefKosten[[Woon- & Leefkost]:[Subsidies per eenheid]],2,) -> Aanwezigheidsdagen | D153: =VLOOKUP(KCWL[[#This Row],[Woon- en leefkosten]],WoonEnLeefKosten[[Woon- & Leefkost]:[Brutokost per eenheid]],4,) -> 0 | E153: =KCWL[Aantal eenheden/jaar]*KCWL[Brutokost per eenheid] -> 0
A154: ='Woon- en leefkosten'!B10 -> W&L 9 | B154: =VLOOKUP(KCWL[Woon- en leefkosten],WoonEnLeefKosten[[Woon- & Leefkost]:[Subsidies per eenheid]],2,) -> Aanwezigheidsdagen | D154: =VLOOKUP(KCWL[[#This Row],[Woon- en leefkosten]],WoonEnLeefKosten[[Woon- & Leefkost]:[Brutokost per eenheid]],4,) -> 0 | E154: =KCWL[Aantal eenheden/jaar]*KCWL[Brutokost per eenheid] -> 0
A155: ='Woon- en leefkosten'!B11 -> W&L 10 | B155: =VLOOKUP(KCWL[Woon- en leefkosten],WoonEnLeefKosten[[Woon- & Leefkost]:[Subsidies per eenheid]],2,) -> Aanwezigheidsdagen | D155: =VLOOKUP(KCWL[[#This Row],[Woon- en leefkosten]],WoonEnLeefKosten[[Woon- & Leefkost]:[Brutokost per eenheid]],4,) -> 0 | E155: =KCWL[Aantal eenheden/jaar]*KCWL[Brutokost per eenheid] -> 0
A156: ='Woon- en leefkosten'!B12 -> W&L 11 | B156: =VLOOKUP(KCWL[Woon- en leefkosten],WoonEnLeefKosten[[Woon- & Leefkost]:[Subsidies per eenheid]],2,) -> Aanwezigheidsdagen | D156: =VLOOKUP(KCWL[[#This Row],[Woon- en leefkosten]],WoonEnLeefKosten[[Woon- & Leefkost]:[Brutokost per eenheid]],4,) -> 0 | E156: =KCWL[Aantal eenheden/jaar]*KCWL[Brutokost per eenheid] -> 0
A157: ='Woon- en leefkosten'!B13 -> W&L 12 | B157: =VLOOKUP(KCWL[Woon- en leefkosten],WoonEnLeefKosten[[Woon- & Leefkost]:[Subsidies per eenheid]],2,) -> Aanwezigheidsdagen | D157: =VLOOKUP(KCWL[[#This Row],[Woon- en leefkosten]],WoonEnLeefKosten[[Woon- & Leefkost]:[Brutokost per eenheid]],4,) -> 0 | E157: =KCWL[Aantal eenheden/jaar]*KCWL[Brutokost per eenheid] -> 0
A158: ='Woon- en leefkosten'!B14 -> W&L 13 | B158: =VLOOKUP(KCWL[Woon- en leefkosten],WoonEnLeefKosten[[Woon- & Leefkost]:[Subsidies per eenheid]],2,) -> Aanwezigheidsdagen | D158: =VLOOKUP(KCWL[[#This Row],[Woon- en leefkosten]],WoonEnLeefKosten[[Woon- & Leefkost]:[Brutokost per eenheid]],4,) -> 0 | E158: =KCWL[Aantal eenheden/jaar]*KCWL[Brutokost per eenheid] -> 0
A159: ='Woon- en leefkosten'!B15 -> W&L 14 | B159: =VLOOKUP(KCWL[Woon- en leefkosten],WoonEnLeefKosten[[Woon- & Leefkost]:[Subsidies per eenheid]],2,) -> Aanwezigheidsdagen | D159: =VLOOKUP(KCWL[[#This Row],[Woon- en leefkosten]],WoonEnLeefKosten[[Woon- & Leefkost]:[Brutokost per eenheid]],4,) -> 0 | E159: =KCWL[Aantal eenheden/jaar]*KCWL[Brutokost per eenheid] -> 0
A160: ='Woon- en leefkosten'!B16 -> W&L 15 | B160: =VLOOKUP(KCWL[Woon- en leefkosten],WoonEnLeefKosten[[Woon- & Leefkost]:[Subsidies per eenheid]],2,) -> Aanwezigheidsdagen | D160: =VLOOKUP(KCWL[[#This Row],[Woon- en leefkosten]],WoonEnLeefKosten[[Woon- & Leefkost]:[Brutokost per eenheid]],4,) -> 0 | E160: =KCWL[Aantal eenheden/jaar]*KCWL[Brutokost per eenheid] -> 0
A161: ='Woon- en leefkosten'!B17 -> W&L 16 | B161: =VLOOKUP(KCWL[Woon- en leefkosten],WoonEnLeefKosten[[Woon- & Leefkost]:[Subsidies per eenheid]],2,) -> Aanwezigheidsdagen | D161: =VLOOKUP(KCWL[[#This Row],[Woon- en leefkosten]],WoonEnLeefKosten[[Woon- & Leefkost]:[Brutokost per eenheid]],4,) -> 0 | E161: =KCWL[Aantal eenheden/jaar]*KCWL[Brutokost per eenheid] -> 0
A162: ='Woon- en leefkosten'!B18 -> W&L 17 | B162: =VLOOKUP(KCWL[Woon- en leefkosten],WoonEnLeefKosten[[Woon- & Leefkost]:[Subsidies per eenheid]],2,) -> Aanwezigheidsdagen | D162: =VLOOKUP(KCWL[[#This Row],[Woon- en leefkosten]],WoonEnLeefKosten[[Woon- & Leefkost]:[Brutokost per eenheid]],4,) -> 0 | E162: =KCWL[Aantal eenheden/jaar]*KCWL[Brutokost per eenheid] -> 0
A163: ='Woon- en leefkosten'!B19 -> W&L 18 | B163: =VLOOKUP(KCWL[Woon- en leefkosten],WoonEnLeefKosten[[Woon- & Leefkost]:[Subsidies per eenheid]],2,) -> Aanwezigheidsdagen | D163: =VLOOKUP(KCWL[[#This Row],[Woon- en leefkosten]],WoonEnLeefKosten[[Woon- & Leefkost]:[Brutokost per eenheid]],4,) -> 0 | E163: =KCWL[Aantal eenheden/jaar]*KCWL[Brutokost per eenheid] -> 0
A164: ='Woon- en leefkosten'!B20 -> W&L 19 | B164: =VLOOKUP(KCWL[Woon- en leefkosten],WoonEnLeefKosten[[Woon- & Leefkost]:[Subsidies per eenheid]],2,) -> Aanwezigheidsdagen | D164: =VLOOKUP(KCWL[[#This Row],[Woon- en leefkosten]],WoonEnLeefKosten[[Woon- & Leefkost]:[Brutokost per eenheid]],4,) -> 0 | E164: =KCWL[Aantal eenheden/jaar]*KCWL[Brutokost per eenheid] -> 0
A165: ='Woon- en leefkosten'!B21 -> W&L 20 | B165: =VLOOKUP(KCWL[Woon- en leefkosten],WoonEnLeefKosten[[Woon- & Leefkost]:[Subsidies per eenheid]],2,) -> Aanwezigheidsdagen | D165: =VLOOKUP(KCWL[[#This Row],[Woon- en leefkosten]],WoonEnLeefKosten[[Woon- & Leefkost]:[Brutokost per eenheid]],4,) -> 0 | E165: =KCWL[Aantal eenheden/jaar]*KCWL[Brutokost per eenheid] -> 0
A166: Totaal | E166: =SUBTOTAL(109,KCWL[Kost per jaar]) -> 11307.7

Sheet Samenvatting W&L
B2: Naam | C2: Budgetcategorie | D2: ='Totale kosten voor cliënt'!A146 -> Ontbijt | E2: ='Totale kosten voor cliënt'!A147 -> Middagmaal | F2: ='Totale kosten voor cliënt'!A148 -> Avondmaal | G2: ='Totale kosten voor cliënt'!A149 -> Huur kamer | H2: ='Totale kosten voor cliënt'!A150 -> Onderhoud kamer | I2: ='Totale kosten voor cliënt'!A151 -> Naaisters | J2: ='Totale kosten voor cliënt'!A152 -> W&L 7 | K2: ='Totale kosten voor cliënt'!A153 -> W&L 8 | L2: ='Totale kosten voor cliënt'!A154 -> W&L 9 | M2: ='Totale kosten voor cliënt'!A155 -> W&L 10 | N2: ='Totale kosten voor cliënt'!A156 -> W&L 11 | O2: ='Totale kosten voor cliënt'!A157 -> W&L 12 | P2: ='Totale kosten voor cliënt'!A158 -> W&L 13 | Q2: ='Totale kosten voor cliënt'!A159 -> W&L 14 | R2: ='Totale kosten voor cliënt'!A160 -> W&L 15 | S2: ='Totale kosten voor cliënt'!A161 -> W&L 16 | T2: ='Totale kosten voor cliënt'!A162 -> W&L 17 | U2: ='Totale kosten voor cliënt'!A163 -> W&L 18 | V2: ='Totale kosten voor cliënt'!A164 -> W&L 19 | W2: ='Totale kosten voor cliënt'!A165 -> W&L 20
A3: Totaal aantal eenheden | D3: ='Woon- en leefkosten'!D2 -> 42930 | E3: ='Woon- en leefkosten'!D3 -> 42930 | F3: ='Woon- en leefkosten'!D4 -> 42930 | G3: ='Woon- en leefkosten'!D5 -> 42930 | H3: ='Woon- en leefkosten'!D6 -> 42930 | I3: ='Woon- en leefkosten'!D7 -> 0 | J3: ='Woon- en leefkosten'!D8 -> 0 | K3: ='Woon- en leefkosten'!D9 -> 0 | L3: ='Woon- en leefkosten'!D10 -> 0 | M3: ='Woon- en leefkosten'!D11 -> 0 | N3: ='Woon- en leefkosten'!D12 -> 0 | O3: ='Woon- en leefkosten'!D13 -> 0 | P3: ='Woon- en leefkosten'!D14 -> 0 | Q3: ='Woon- en leefkosten'!D15 -> 0 | R3: ='Woon- en leefkosten'!D16 -> 0 | S3: ='Woon- en leefkosten'!D17 -> 0 | T3: ='Woon- en leefkosten'!D18 -> 0 | U3: ='Woon- en leefkosten'!D19 -> 0 | V3: ='Woon- en leefkosten'!D20 -> 0 | W3: ='Woon- en leefkosten'!D21 -> 0
A4: Som ingevulde eenheden | D4: =SUM(D6:D1048576) -> 365 | E4: 365 | F4: 365 | G4: 365 | H4: 365 | I4: 0 | J4: 0 | K4: 0 | L4: 0 | M4: 0 | N4: 0 | O4: 0 | P4: 0 | Q4: 0 | R4: 0 | S4: 0 | T4: 0 | U4: 0 | V4: 0 | W4: 0
A5: Bezettingsgraad | D5: =IFERROR(D4/D3,0) -> 0.008502212905 | E5: =IFERROR(E4/E3,0) -> 0.008502212905 | F5: 0.008502212905 | G5: 0.008502212905 | H5: 0.008502212905 | I5: 0 | J5: 0 | K5: 0 | L5: 0 | M5: 0 | N5: 0 | O5: 0 | P5: 0 | Q5: 0 | R5: 0 | S5: 0 | T5: 0 | U5: 0 | V5: 0 | W5: 0
B6: Pakket 15 | C6: X b | D6: 365 | E6: 365 | F6: 365 | G6: 365 | H6: 365 | I6: 0 | J6: 0 | K6: 0 | L6: 0 | M6: 0 | N6: 0 | O6: 0 | P6: 0 | Q6: 0 | R6: 0 | S6: 0 | T6: 0 | U6: 0 | V6: 0 | W6: 0

Sheet Samenvatting functiegroepen
A1: Functiegroep | B1: Barema | C1: Loonkost | D1: Maximale punten | E1: Reële bezette punten | F1: Euro/punt (maximum bezetting) | G1: Euro/punt (reële bezetting)
A2: Logistiek personeel klasse 4 | B2: =VLOOKUP(A2,Personeelsbaremas!$A$2:$B$29,2,) -> barema 1 | C2: =SUMIF('ZG personeel'!$F:$F,SamenvattingFunctiegroepen[[#This Row],[Barema]],'ZG personeel'!B:B)+SUMIF('OG personeel'!$I:$I,SamenvattingFunctiegroepen[[#This Row],[Barema]],'OG personeel'!B:B) -> 0 | D2: =SUMIF('ZG personeel'!$F:$F,'Samenvatting functiegroepen'!$B:$B,'ZG personeel'!O:O)+SUMIF('OG personeel'!$I:$I,SamenvattingFunctiegroepen[[#This Row],[Barema]],'OG personeel'!N:N) -> 0 | E2: =SUMIF('ZG personeel'!$F:$F,'Samenvatting functiegroepen'!$B:$B,'ZG personeel'!P:P)+SUMIF('OG personeel'!$I:$I,SamenvattingFunctiegroepen[[#This Row],[Barema]],'OG personeel'!N:N) -> 0 | F2: =IF(ISERROR(C2/D2)=TRUE,0,C2/D2) -> 0 | G2: =IF(ISERROR(C2/E2)=TRUE,0,C2/E2) -> 0
A3: Logistiek personeel onderhoud cat II | B3: =VLOOKUP(A3,Personeelsbaremas!$A$2:$B$29,2,) -> barema 2 | C3: =SUMIF('ZG personeel'!$F:$F,SamenvattingFunctiegroepen[[#This Row],[Barema]],'ZG personeel'!B:B)+SUMIF('OG personeel'!$I:$I,SamenvattingFunctiegroepen[[#This Row],[Barema]],'OG personeel'!B:B) -> 0 | D3: =SUMIF('ZG personeel'!$F:$F,'Samenvatting functiegroepen'!$B:$B,'ZG personeel'!O:O)+SUMIF('OG personeel'!$I:$I,SamenvattingFunctiegroepen[[#This Row],[Barema]],'OG personeel'!N:N) -> 0 | E3: =SUMIF('ZG personeel'!$F:$F,'Samenvatting functiegroepen'!$B:$B,'ZG personeel'!P:P)+SUMIF('OG personeel'!$I:$I,SamenvattingFunctiegroepen[[#This Row],[Barema]],'OG personeel'!N:N) -> 0 | F3: 0 | G3: 0
A4: Logistiek personeel onderhoud cat III | B4: =VLOOKUP(A4,Personeelsbaremas!$A$2:$B$29,2,) -> barema 3 | C4: =SUMIF('ZG personeel'!$F:$F,SamenvattingFunctiegroepen[[#This Row],[Barema]],'ZG personeel'!B:B)+SUMIF('OG personeel'!$I:$I,SamenvattingFunctiegroepen[[#This Row],[Barema]],'OG personeel'!B:B) -> 0 | D4: =SUMIF('ZG personeel'!$F:$F,'Samenvatting functiegroepen'!$B:$B,'ZG personeel'!O:O)+SUMIF('OG personeel'!$I:$I,SamenvattingFunctiegroepen[[#This Row],[Barema]],'OG personeel'!N:N) -> 0 | E4: =SUMIF('ZG personeel'!$F:$F,'Samenvatting functiegroepen'!$B:$B,'ZG personeel'!P:P)+SUMIF('OG personeel'!$I:$I,SamenvattingFunctiegroepen[[#This Row],[Barema]],'OG personeel'!N:N) -> 0 | F4: 0 | G4: 0
A5: Logistiek personeel onderhoud cat IV | B5: =VLOOKUP(A5,Personeelsbaremas!$A$2:$B$29,2,) -> barema 4 | C5: =SUMIF('ZG personeel'!$F:$F,SamenvattingFunctiegroepen[[#This Row],[Barema]],'ZG personeel'!B:B)+SUMIF('OG personeel'!$I:$I,SamenvattingFunctiegroepen[[#This Row],[Barema]],'OG personeel'!B:B) -> 0 | D5: =SUMIF('ZG personeel'!$F:$F,'Samenvatting functiegroepen'!$B:$B,'ZG personeel'!O:O)+SUMIF('OG personeel'!$I:$I,SamenvattingFunctiegroepen[[#This Row],[Barema]],'OG personeel'!N:N) -> 0 | E5: =SUMIF('ZG personeel'!$F:$F,'Samenvatting functiegroepen'!$B:$B,'ZG personeel'!P:P)+SUMIF('OG personeel'!$I:$I,SamenvattingFunctiegroepen[[#This Row],[Barema]],'OG personeel'!N:N) -> 0 | F5: 0 | G5: 0
A6: Logistiek personeel onderhoud cat V | B6: =VLOOKUP(A6,Personeelsbaremas!$A$2:$B$29,2,) -> barema 5 | C6: =SUMIF('ZG personeel'!$F:$F,SamenvattingFunctiegroepen[[#This Row],[Barema]],'ZG personeel'!B:B)+SUMIF('OG personeel'!$I:$I,SamenvattingFunctiegroepen[[#This Row],[Barema]],'OG personeel'!B:B) -> 0 | D6: =SUMIF('ZG personeel'!$F:$F,'Samenvatting functiegroepen'!$B:$B,'ZG personeel'!O:O)+SUMIF('OG personeel'!$I:$I,SamenvattingFunctiegroepen[[#This Row],[Barema]],'OG personeel'!N:N) -> 0 | E6: =SUMIF('ZG personeel'!$F:$F,'Samenvatting functiegroepen'!$B:$B,'ZG personeel'!P:P)+SUMIF('OG personeel'!$I:$I,SamenvattingFunctiegroepen[[#This Row],[Barema]],'OG personeel'!N:N) -> 0 | F6: 0 | G6: =IF(ISERROR(C6/E6)=TRUE,0,C6/E6) -> 0
A7: Logistiek personeel klasse 3 (In dienst voor 1/11/93) | B7: =VLOOKUP(A7,Personeelsbaremas!$A$2:$B$29,2,) -> barema 6 | C7: =SUMIF('ZG personeel'!$F:$F,SamenvattingFunctiegroepen[[#This Row],[Barema]],'ZG personeel'!B:B)+SUMIF('OG personeel'!$I:$I,SamenvattingFunctiegroepen[[#This Row],[Barema]],'OG personeel'!B:B) -> 0 | D7: =SUMIF('ZG personeel'!$F:$F,'Samenvatting functiegroepen'!$B:$B,'ZG personeel'!O:O)+SUMIF('OG personeel'!$I:$I,SamenvattingFunctiegroepen[[#This Row],[Barema]],'OG personeel'!N:N) -> 0 | E7: =SUMIF('ZG personeel'!$F:$F,'Samenvatting functiegroepen'!$B:$B,'ZG personeel'!P:P)+SUMIF('OG personeel'!$I:$I,SamenvattingFunctiegroepen[[#This Row],[Barema]],'OG personeel'!N:N) -> 0 | F7: 0 | G7: 0
A8: Logistiek personeel klasse 3 (In dienst na 1/11/93) | B8: =VLOOKUP(A8,Personeelsbaremas!$A$2:$B$29,2,) -> barema 7 | C8: =SUMIF('ZG personeel'!$F:$F,SamenvattingFunctiegroepen[[#This Row],[Barema]],'ZG personeel'!B:B)+SUMIF('OG personeel'!$I:$I,SamenvattingFunctiegroepen[[#This Row],[Barema]],'OG personeel'!B:B) -> 29657.15 | D8: =SUMIF('ZG personeel'!$F:$F,'Samenvatting functiegroepen'!$B:$B,'ZG personeel'!O:O)+SUMIF('OG personeel'!$I:$I,SamenvattingFunctiegroepen[[#This Row],[Barema]],'OG personeel'!N:N) -> 34.72 | E8: =SUMIF('ZG personeel'!$F:$F,'Samenvatting functiegroepen'!$B:$B,'ZG personeel'!P:P)+SUMIF('OG personeel'!$I:$I,SamenvattingFunctiegroepen[[#This Row],[Barema]],'OG personeel'!N:N) -> 34.72 | F8: 854.1805876 | G8: 854.1805876
A9: Logistiek personeel klasse 2 | B9: =VLOOKUP(A9,Personeelsbaremas!$A$2:$B$29,2,) -> barema 8 | C9: =SUMIF('ZG personeel'!$F:$F,SamenvattingFunctiegroepen[[#This Row],[Barema]],'ZG personeel'!B:B)+SUMIF('OG personeel'!$I:$I,SamenvattingFunctiegroepen[[#This Row],[Barema]],'OG personeel'!B:B) -> 589006.15 | D9: =SUMIF('ZG personeel'!$F:$F,'Samenvatting functiegroepen'!$B:$B,'ZG personeel'!O:O)+SUMIF('OG personeel'!$I:$I,SamenvattingFunctiegroepen[[#This Row],[Barema]],'OG personeel'!N:N) -> 710.04 | E9: =SUMIF('ZG personeel'!$F:$F,'Samenvatting functiegroepen'!$B:$B,'ZG personeel'!P:P)+SUMIF('OG personeel'!$I:$I,SamenvattingFunctiegroepen[[#This Row],[Barema]],'OG personeel'!N:N) -> 710.04 | F9: 829.5393921 | G9: 829.5393921
A10: Administratief + logistiek personeel klasse 1 | B10: =VLOOKUP(A10,Personeelsbaremas!$A$2:$B$29,2,) -> barema 9 | C10: =SUMIF('ZG personeel'!$F:$F,SamenvattingFunctiegroepen[[#This Row],[Barema]],'ZG personeel'!B:B)+SUMIF('OG personeel'!$I:$I,SamenvattingFunctiegroepen[[#This Row],[Barema]],'OG personeel'!B:B) -> 301884.75 | D10: =SUMIF('ZG personeel'!$F:$F,'Samenvatting functiegroepen'!$B:$B,'ZG personeel'!O:O)+SUMIF('OG personeel'!$I:$I,SamenvattingFunctiegroepen[[#This Row],[Barema]],'OG personeel'!N:N) -> 360.68 | E10: =SUMIF('ZG personeel'!$F:$F,'Samenvatting functiegroepen'!$B:$B,'ZG personeel'!P:P)+SUMIF('OG personeel'!$I:$I,SamenvattingFunctiegroepen[[#This Row],[Barema]],'OG personeel'!N:N) -> 360.68 | F10: 836.9877731 | G10: 836.9877731
A11: Administratief + logistiek personeel klasse 2 | B11: =VLOOKUP(A11,Personeelsbaremas!$A$2:$B$29,2,) -> barema 10 | C11: =SUMIF('ZG personeel'!$F:$F,SamenvattingFunctiegroepen[[#This Row],[Barema]],'ZG personeel'!B:B)+SUMIF('OG personeel'!$I:$I,SamenvattingFunctiegroepen[[#This Row],[Barema]],'OG personeel'!B:B) -> 94812.49 | D11: =SUMIF('ZG personeel'!$F:$F,'Samenvatting functiegroepen'!$B:$B,'ZG personeel'!O:O)+SUMIF('OG personeel'!$I:$I,SamenvattingFunctiegroepen[[#This Row],[Barema]],'OG personeel'!N:N) -> 109.8 | E11: =SUMIF('ZG personeel'!$F:$F,'Samenvatting functiegroepen'!$B:$B,'ZG personeel'!P:P)+SUMIF('OG personeel'!$I:$I,SamenvattingFunctiegroepen[[#This Row],[Barema]],'OG personeel'!N:N) -> 109.8 | F11: 863.5017304 | G11: 863.5017304
A12: Administratief personeel boekhouder klasse II | B12: =VLOOKUP(A12,Personeelsbaremas!$A$2:$B$29,2,) -> barema 11 | C12: =SUMIF('ZG personeel'!$F:$F,SamenvattingFunctiegroepen[[#This Row],[Barema]],'ZG personeel'!B:B)+SUMIF('OG personeel'!$I:$I,SamenvattingFunctiegroepen[[#This Row],[Barema]],'OG personeel'!B:B) -> 0 | D12: =SUMIF('ZG personeel'!$F:$F,'Samenvatting functiegroepen'!$B:$B,'ZG personeel'!O:O)+SUMIF('OG personeel'!$I:$I,SamenvattingFunctiegroepen[[#This Row],[Barema]],'OG personeel'!N:N) -> 0 | E12: =SUMIF('ZG personeel'!$F:$F,'Samenvatting functiegroepen'!$B:$B,'ZG personeel'!P:P)+SUMIF('OG personeel'!$I:$I,SamenvattingFunctiegroepen[[#This Row],[Barema]],'OG personeel'!N:N) -> 0 | F12: 0 | G12: 0
A13: Administratief personeel klasse 3 | B13: =VLOOKUP(A13,Personeelsbaremas!$A$2:$B$29,2,) -> barema 12 | C13: =SUMIF('ZG personeel'!$F:$F,SamenvattingFunctiegroepen[[#This Row],[Barema]],'ZG personeel'!B:B)+SUMIF('OG personeel'!$I:$I,SamenvattingFunctiegroepen[[#This Row],[Barema]],'OG personeel'!B:B) -> 0 | D13: =SUMIF('ZG personeel'!$F:$F,'Samenvatting functiegroepen'!$B:$B,'ZG personeel'!O:O)+SUMIF('OG personeel'!$I:$I,SamenvattingFunctiegroepen[[#This Row],[Barema]],'OG personeel'!N:N) -> 0 | E13: =SUMIF('ZG personeel'!$F:$F,'Samenvatting functiegroepen'!$B:$B,'ZG personeel'!P:P)+SUMIF('OG personeel'!$I:$I,SamenvattingFunctiegroepen[[#This Row],[Barema]],'OG personeel'!N:N) -> 0 | F13: 0 | G13: 0
A14: Verzorgend personeel | B14: =VLOOKUP(A14,Personeelsbaremas!$A$2:$B$29,2,) -> barema 13 | C14: =SUMIF('ZG personeel'!$F:$F,SamenvattingFunctiegroepen[[#This Row],[Barema]],'ZG personeel'!B:B)+SUMIF('OG personeel'!$I:$I,SamenvattingFunctiegroepen[[#This Row],[Barema]],'OG personeel'!B:B) -> 394556.02 | D14: =SUMIF('ZG personeel'!$F:$F,'Samenvatting functiegroepen'!$B:$B,'ZG personeel'!O:O)+SUMIF('OG personeel'!$I:$I,SamenvattingFunctiegroepen[[#This Row],[Barema]],'OG personeel'!N:N) -> 592.95 | E14: =SUMIF('ZG personeel'!$F:$F,'Samenvatting functiegroepen'!$B:$B,'ZG personeel'!P:P)+SUMIF('OG personeel'!$I:$I,SamenvattingFunctiegroepen[[#This Row],[Barema]],'OG personeel'!N:N) -> 504.0075 | F14: 665.4119572 | G14: 782.8375967
A15: Begeleidend en verzorgend personeel klasse 3 | B15: =VLOOKUP(A15,Personeelsbaremas!$A$2:$B$29,2,) -> barema 14 | C15: =SUMIF('ZG personeel'!$F:$F,SamenvattingFunctiegroepen[[#This Row],[Barema]],'ZG personeel'!B:B)+SUMIF('OG personeel'!$I:$I,SamenvattingFunctiegroepen[[#This Row],[Barema]],'OG personeel'!B:B) -> 7119.38 | D15: =SUMIF('ZG personeel'!$F:$F,'Samenvatting functiegroepen'!$B:$B,'ZG personeel'!O:O)+SUMIF('OG personeel'!$I:$I,SamenvattingFunctiegroepen[[#This Row],[Barema]],'OG personeel'!N:N) -> 10.925 | E15: =SUMIF('ZG personeel'!$F:$F,'Samenvatting functiegroepen'!$B:$B,'ZG personeel'!P:P)+SUMIF('OG personeel'!$I:$I,SamenvattingFunctiegroepen[[#This Row],[Barema]],'OG personeel'!N:N) -> 9.8325 | F15: 651.6594966 | G15: 724.0661073
A16: Begeleidend en verzorgend personeel klasse 2B | B16: =VLOOKUP(A16,Personeelsbaremas!$A$2:$B$29,2,) -> barema 15 | C16: =SUMIF('ZG personeel'!$F:$F,SamenvattingFunctiegroepen[[#This Row],[Barema]],'ZG personeel'!B:B)+SUMIF('OG personeel'!$I:$I,SamenvattingFunctiegroepen[[#This Row],[Barema]],'OG personeel'!B:B) -> 75766.39 | D16: =SUMIF('ZG personeel'!$F:$F,'Samenvatting functiegroepen'!$B:$B,'ZG personeel'!O:O)+SUMIF('OG personeel'!$I:$I,SamenvattingFunctiegroepen[[#This Row],[Barema]],'OG personeel'!N:N) -> 130.54 | E16: =SUMIF('ZG personeel'!$F:$F,'Samenvatting functiegroepen'!$B:$B,'ZG personeel'!P:P)+SUMIF('OG personeel'!$I:$I,SamenvattingFunctiegroepen[[#This Row],[Barema]],'OG personeel'!N:N) -> 110.959 | F16: 580.4074613 | G16: 682.8323074
A17: Begeleidend en verzorgend personeel klasse 2A | B17: =VLOOKUP(A17,Personeelsbaremas!$A$2:$B$29,2,) -> barema 16 | C17: =SUMIF('ZG personeel'!$F:$F,SamenvattingFunctiegroepen[[#This Row],[Barema]],'ZG personeel'!B:B)+SUMIF('OG personeel'!$I:$I,SamenvattingFunctiegroepen[[#This Row],[Barema]],'OG personeel'!B:B) -> 4086958.29 | D17: =SUMIF('ZG personeel'!$F:$F,'Samenvatting functiegroepen'!$B:$B,'ZG personeel'!O:O)+SUMIF('OG personeel'!$I:$I,SamenvattingFunctiegroepen[[#This Row],[Barema]],'OG personeel'!N:N) -> 4155.44 | E17: =SUMIF('ZG personeel'!$F:$F,'Samenvatting functiegroepen'!$B:$B,'ZG personeel'!P:P)+SUMIF('OG personeel'!$I:$I,SamenvattingFunctiegroepen[[#This Row],[Barema]],'OG personeel'!N:N) -> 3561.30225 | F17: 983.5199858 | G17: 1147.602198
A18: Opvoedend personeel klasse 1 | B18: =VLOOKUP(A18,Personeelsbaremas!$A$2:$B$29,2,) -> barema 17 | C18: =SUMIF('ZG personeel'!$F:$F,SamenvattingFunctiegroepen[[#This Row],[Barema]],'ZG personeel'!B:B)+SUMIF('OG personeel'!$I:$I,SamenvattingFunctiegroepen[[#This Row],[Barema]],'OG personeel'!B:B) -> 703085.49 | D18: =SUMIF('ZG personeel'!$F:$F,'Samenvatting functiegroepen'!$B:$B,'ZG personeel'!O:O)+SUMIF('OG personeel'!$I:$I,SamenvattingFunctiegroepen[[#This Row],[Barema]],'OG personeel'!N:N) -> 849.16 | E18: =SUMIF('ZG personeel'!$F:$F,'Samenvatting functiegroepen'!$B:$B,'ZG personeel'!P:P)+SUMIF('OG personeel'!$I:$I,SamenvattingFunctiegroepen[[#This Row],[Barema]],'OG personeel'!N:N) -> 752.7065 | F18: 827.9776367 | G18: 934.0765491
A19: Hoofdopvoeder | B19: =VLOOKUP(A19,Personeelsbaremas!$A$2:$B$29,2,) -> barema 18 | C19: =SUMIF('ZG personeel'!$F:$F,SamenvattingFunctiegroepen[[#This Row],[Barema]],'ZG personeel'!B:B)+SUMIF('OG personeel'!$I:$I,SamenvattingFunctiegroepen[[#This Row],[Barema]],'OG personeel'!B:B) -> 742109.81 | D19: =SUMIF('ZG personeel'!$F:$F,'Samenvatting functiegroepen'!$B:$B,'ZG personeel'!O:O)+SUMIF('OG personeel'!$I:$I,SamenvattingFunctiegroepen[[#This Row],[Barema]],'OG personeel'!N:N) -> 1094.15 | E19: =SUMIF('ZG personeel'!$F:$F,'Samenvatting functiegroepen'!$B:$B,'ZG personeel'!P:P)+SUMIF('OG personeel'!$I:$I,SamenvattingFunctiegroepen[[#This Row],[Barema]],'OG personeel'!N:N) -> 1032.53 | F19: 678.2523511 | G19: 718.7295381
A20: Opvoeder-groepchef | B20: =VLOOKUP(A20,Personeelsbaremas!$A$2:$B$29,2,) -> barema 19 | C20: =SUMIF('ZG personeel'!$F:$F,SamenvattingFunctiegroepen[[#This Row],[Barema]],'ZG personeel'!B:B)+SUMIF('OG personeel'!$I:$I,SamenvattingFunctiegroepen[[#This Row],[Barema]],'OG personeel'!B:B) -> 284682.23 | D20: =SUMIF('ZG personeel'!$F:$F,'Samenvatting functiegroepen'!$B:$B,'ZG personeel'!O:O)+SUMIF('OG personeel'!$I:$I,SamenvattingFunctiegroepen[[#This Row],[Barema]],'OG personeel'!N:N) -> 391.3 | E20: =SUMIF('ZG personeel'!$F:$F,'Samenvatting functiegroepen'!$B:$B,'ZG personeel'!P:P)+SUMIF('OG personeel'!$I:$I,SamenvattingFunctiegroepen[[#This Row],[Barema]],'OG personeel'!N:N) -> 391.3 | F20: 727.5293381 | G20: 727.5293381
A21: Sociaal paramedisch en therapeutisch personeel | B21: =VLOOKUP(A21,Personeelsbaremas!$A$2:$B$29,2,) -> barema 20 | C21: =SUMIF('ZG personeel'!$F:$F,SamenvattingFunctiegroepen[[#This Row],[Barema]],'ZG personeel'!B:B)+SUMIF('OG personeel'!$I:$I,SamenvattingFunctiegroepen[[#This Row],[Barema]],'OG personeel'!B:B) -> 582322.71 | D21: =SUMIF('ZG personeel'!$F:$F,'Samenvatting functiegroepen'!$B:$B,'ZG personeel'!O:O)+SUMIF('OG personeel'!$I:$I,SamenvattingFunctiegroepen[[#This Row],[Barema]],'OG personeel'!N:N) -> 656.75 | E21: =SUMIF('ZG personeel'!$F:$F,'Samenvatting functiegroepen'!$B:$B,'ZG personeel'!P:P)+SUMIF('OG personeel'!$I:$I,SamenvattingFunctiegroepen[[#This Row],[Barema]],'OG personeel'!N:N) -> 597.607 | F21: 886.6733308 | G21: 974.4241784
A22: Licentiaten en tandarts | B22: =VLOOKUP(A22,Personeelsbaremas!$A$2:$B$29,2,) -> barema 21 | C22: =SUMIF('ZG personeel'!$F:$F,SamenvattingFunctiegroepen[[#This Row],[Barema]],'ZG personeel'!B:B)+SUMIF('OG personeel'!$I:$I,SamenvattingFunctiegroepen[[#This Row],[Barema]],'OG personeel'!B:B) -> 225203.84 | D22: =SUMIF('ZG personeel'!$F:$F,'Samenvatting functiegroepen'!$B:$B,'ZG personeel'!O:O)+SUMIF('OG personeel'!$I:$I,SamenvattingFunctiegroepen[[#This Row],[Barema]],'OG personeel'!N:N) -> 310.5 | E22: =SUMIF('ZG personeel'!$F:$F,'Samenvatting functiegroepen'!$B:$B,'ZG personeel'!P:P)+SUMIF('OG personeel'!$I:$I,SamenvattingFunctiegroepen[[#This Row],[Barema]],'OG personeel'!N:N) -> 263.925 | F22: 725.2941707 | G22: 853.2872596
A23: Onderdirecteur | B23: =VLOOKUP(A23,Personeelsbaremas!$A$2:$B$29,2,) -> barema 22 | C23: =SUMIF('ZG personeel'!$F:$F,SamenvattingFunctiegroepen[[#This Row],[Barema]],'ZG personeel'!B:B)+SUMIF('OG personeel'!$I:$I,SamenvattingFunctiegroepen[[#This Row],[Barema]],'OG personeel'!B:B) -> 171801.47 | D23: =SUMIF('ZG personeel'!$F:$F,'Samenvatting functiegroepen'!$B:$B,'ZG personeel'!O:O)+SUMIF('OG personeel'!$I:$I,SamenvattingFunctiegroepen[[#This Row],[Barema]],'OG personeel'!N:N) -> 177.3 | E23: =SUMIF('ZG personeel'!$F:$F,'Samenvatting functiegroepen'!$B:$B,'ZG personeel'!P:P)+SUMIF('OG personeel'!$I:$I,SamenvattingFunctiegroepen[[#This Row],[Barema]],'OG personeel'!N:N) -> 177.3 | F23: 968.9874224 | G23: 968.9874224
A24: Directeur 30-59 bedden | B24: =VLOOKUP(A24,Personeelsbaremas!$A$2:$B$29,2,) -> barema 23 | C24: =SUMIF('ZG personeel'!$F:$F,SamenvattingFunctiegroepen[[#This Row],[Barema]],'ZG personeel'!B:B)+SUMIF('OG personeel'!$I:$I,SamenvattingFunctiegroepen[[#This Row],[Barema]],'OG personeel'!B:B) -> 0 | D24: =SUMIF('ZG personeel'!$F:$F,'Samenvatting functiegroepen'!$B:$B,'ZG personeel'!O:O)+SUMIF('OG personeel'!$I:$I,SamenvattingFunctiegroepen[[#This Row],[Barema]],'OG personeel'!N:N) -> 0 | E24: =SUMIF('ZG personeel'!$F:$F,'Samenvatting functiegroepen'!$B:$B,'ZG personeel'!P:P)+SUMIF('OG personeel'!$I:$I,SamenvattingFunctiegroepen[[#This Row],[Barema]],'OG personeel'!N:N) -> 0 | F24: 0 | G24: 0
A25: Directeur 60-89 bedden | B25: =VLOOKUP(A25,Personeelsbaremas!$A$2:$B$29,2,) -> barema 24 | C25: =SUMIF('ZG personeel'!$F:$F,SamenvattingFunctiegroepen[[#This Row],[Barema]],'ZG personeel'!B:B)+SUMIF('OG personeel'!$I:$I,SamenvattingFunctiegroepen[[#This Row],[Barema]],'OG personeel'!B:B) -> 0 | D25: =SUMIF('ZG personeel'!$F:$F,'Samenvatting functiegroepen'!$B:$B,'ZG personeel'!O:O)+SUMIF('OG personeel'!$I:$I,SamenvattingFunctiegroepen[[#This Row],[Barema]],'OG personeel'!N:N) -> 0 | E25: =SUMIF('ZG personeel'!$F:$F,'Samenvatting functiegroepen'!$B:$B,'ZG personeel'!P:P)+SUMIF('OG personeel'!$I:$I,SamenvattingFunctiegroepen[[#This Row],[Barema]],'OG personeel'!N:N) -> 0 | F25: 0 | G25: 0
A26: Directeur + 90 bedden | B26: =VLOOKUP(A26,Personeelsbaremas!$A$2:$B$29,2,) -> barema 25 | C26: =SUMIF('ZG personeel'!$F:$F,SamenvattingFunctiegroepen[[#This Row],[Barema]],'ZG personeel'!B:B)+SUMIF('OG personeel'!$I:$I,SamenvattingFunctiegroepen[[#This Row],[Barema]],'OG personeel'!B:B) -> 119171.5 | D26: =SUMIF('ZG personeel'!$F:$F,'Samenvatting functiegroepen'!$B:$B,'ZG personeel'!O:O)+SUMIF('OG personeel'!$I:$I,SamenvattingFunctiegroepen[[#This Row],[Barema]],'OG personeel'!N:N) -> 100 | E26: =SUMIF('ZG personeel'!$F:$F,'Samenvatting functiegroepen'!$B:$B,'ZG personeel'!P:P)+SUMIF('OG personeel'!$I:$I,SamenvattingFunctiegroepen[[#This Row],[Barema]],'OG personeel'!N:N) -> 100 | F26: 1191.715 | G26: 1191.715
A27: Geneesheer omnipracticus | B27: =VLOOKUP(A27,Personeelsbaremas!$A$2:$B$29,2,) -> barema 26 | C27: =SUMIF('ZG personeel'!$F:$F,SamenvattingFunctiegroepen[[#This Row],[Barema]],'ZG personeel'!B:B)+SUMIF('OG personeel'!$I:$I,SamenvattingFunctiegroepen[[#This Row],[Barema]],'OG personeel'!B:B) -> 0 | D27: =SUMIF('ZG personeel'!$F:$F,'Samenvatting functiegroepen'!$B:$B,'ZG personeel'!O:O)+SUMIF('OG personeel'!$I:$I,SamenvattingFunctiegroepen[[#This Row],[Barema]],'OG personeel'!N:N) -> 0 | E27: =SUMIF('ZG personeel'!$F:$F,'Samenvatting functiegroepen'!$B:$B,'ZG personeel'!P:P)+SUMIF('OG personeel'!$I:$I,SamenvattingFunctiegroepen[[#This Row],[Barema]],'OG personeel'!N:N) -> 0 | F27: 0 | G27: 0
A28: Geneesheer specialist | B28: =VLOOKUP(A28,Personeelsbaremas!$A$2:$B$29,2,) -> barema 27 | C28: =SUMIF('ZG personeel'!$F:$F,SamenvattingFunctiegroepen[[#This Row],[Barema]],'ZG personeel'!B:B)+SUMIF('OG personeel'!$I:$I,SamenvattingFunctiegroepen[[#This Row],[Barema]],'OG personeel'!B:B) -> 19270.82 | D28: =SUMIF('ZG personeel'!$F:$F,'Samenvatting functiegroepen'!$B:$B,'ZG personeel'!O:O)+SUMIF('OG personeel'!$I:$I,SamenvattingFunctiegroepen[[#This Row],[Barema]],'OG personeel'!N:N) -> 24.395 | E28: =SUMIF('ZG personeel'!$F:$F,'Samenvatting functiegroepen'!$B:$B,'ZG personeel'!P:P)+SUMIF('OG personeel'!$I:$I,SamenvattingFunctiegroepen[[#This Row],[Barema]],'OG personeel'!N:N) -> 21.9555 | F28: 789.9495798 | G28: 877.7217554
A29: ADL-assistent | B29: =VLOOKUP(A29,Personeelsbaremas!$A$2:$B$29,2,) -> barema 28 | C29: =SUMIF('ZG personeel'!$F:$F,SamenvattingFunctiegroepen[[#This Row],[Barema]],'ZG personeel'!B:B)+SUMIF('OG personeel'!$I:$I,SamenvattingFunctiegroepen[[#This Row],[Barema]],'OG personeel'!B:B) -> 0 | D29: =SUMIF('ZG personeel'!$F:$F,'Samenvatting functiegroepen'!$B:$B,'ZG personeel'!O:O)+SUMIF('OG personeel'!$I:$I,SamenvattingFunctiegroepen[[#This Row],[Barema]],'OG personeel'!N:N) -> 0 | E29: =SUMIF('ZG personeel'!$F:$F,'Samenvatting functiegroepen'!$B:$B,'ZG personeel'!P:P)+SUMIF('OG personeel'!$I:$I,SamenvattingFunctiegroepen[[#This Row],[Barema]],'OG personeel'!N:N) -> 0 | F29: 0 | G29: 0
A30: Totaal | C30: =SUBTOTAL(109,SamenvattingFunctiegroepen[Loonkost]) -> 8427408.49 | D30: =SUBTOTAL(109,SamenvattingFunctiegroepen[Maximale punten]) -> 9708.65 | E30: =SUBTOTAL(109,SamenvattingFunctiegroepen[Reële bezette punten]) -> 8738.66525 | F30: =IFERROR(SamenvattingFunctiegroepen[[#Totals],[Loonkost]]/SamenvattingFunctiegroepen[[#Totals],[Maximale punten]],0) -> 868.0309301 | G30: =IFERROR(SamenvattingFunctiegroepen[[#Totals],[Loonkost]]/SamenvattingFunctiegroepen[[#Totals],[Reële bezette punten]],0) -> 964.3816589

Sheet ZG personeelskost
A1: Dienst | B1: Punten | C1: Besteedbare uren | D1: Reële bezette uren | E1: Punten/uur | F1: Voucherkost per uur | G1: Cashkost per uur
A2: =Keuzelijsten!A3 -> Leefgroepbegeleider | B2: =SUMIF('ZG personeel'!D:D,KOZGP[[#This Row],[Dienst]],'ZG personeel'!O:O) -> 5257.15 | C2: =SUMIF('ZG personeel'!D:D,KOZGP[[#This Row],[Dienst]],'ZG personeel'!L:L) -> 156486.204 | D2: =SUMIF('ZG personeel'!$D:$D,KOZGP[[#This Row],[Dienst]],'ZG personeel'!N:N) -> 136296.1314 | E2: =IF(ISERROR(KOZGP[[#This Row],[Punten]]/KOZGP[[#This Row],[Reële bezette uren]]),0,KOZGP[[#This Row],[Punten]]/KOZGP[[#This Row],[Reële bezette uren]]) -> 0.03857152764 | F2: =IF(KOZGP[[#This Row],[Punten/uur]]="",0,(KOZGP[[#This Row],[Punten/uur]]*WPO)) -> 33.48127902 | G2: =IFERROR((SUMIF('ZG personeel'!D:D,KOZGP[[#This Row],[Dienst]],'ZG personeel'!B:B)+SUMIF(NVAPH[Dienst],KOZGP[[#This Row],[Dienst]],NVAPH[Loonkost]))/(KOZGP[[#This Row],[Reële bezette uren]]+SUMIF(NVAPH[Dienst],KOZGP[[#This Row],[Dienst]],NVAPH[Reële bezette uren (enkel voor zorggebonden)])),0) -> 32.32198081
A3: =Keuzelijsten!A4 -> Dagbestedingsbegeleider | B3: =SUMIF('ZG personeel'!D:D,KOZGP[[#This Row],[Dienst]],'ZG personeel'!O:O) -> 644.01 | C3: =SUMIF('ZG personeel'!D:D,KOZGP[[#This Row],[Dienst]],'ZG personeel'!L:L) -> 18566.496 | D3: =SUMIF('ZG personeel'!$D:$D,KOZGP[[#This Row],[Dienst]],'ZG personeel'!N:N) -> 16632.486 | E3: =IF(ISERROR(KOZGP[[#This Row],[Punten]]/KOZGP[[#This Row],[Reële bezette uren]]),0,KOZGP[[#This Row],[Punten]]/KOZGP[[#This Row],[Reële bezette uren]]) -> 0.03872000854 | F3: =IF(KOZGP[[#This Row],[Punten/uur]]="",0,(KOZGP[[#This Row],[Punten/uur]]*WPO)) -> 33.61016503 | G3: =IFERROR((SUMIF('ZG personeel'!D:D,KOZGP[[#This Row],[Dienst]],'ZG personeel'!B:B)+SUMIF(NVAPH[Dienst],KOZGP[[#This Row],[Dienst]],NVAPH[Loonkost]))/(KOZGP[[#This Row],[Reële bezette uren]]+SUMIF(NVAPH[Dienst],KOZGP[[#This Row],[Dienst]],NVAPH[Reële bezette uren (enkel voor zorggebonden)])),0) -> 33.90874461
A4: =Keuzelijsten!A5 -> Kinesist | B4: =SUMIF('ZG personeel'!D:D,KOZGP[[#This Row],[Dienst]],'ZG personeel'!O:O) -> 349.28 | C4: =SUMIF('ZG personeel'!D:D,KOZGP[[#This Row],[Dienst]],'ZG personeel'!L:L) -> 9322.92 | D4: =SUMIF('ZG personeel'!$D:$D,KOZGP[[#This Row],[Dienst]],'ZG personeel'!N:N) -> 7924.482 | E4: =IF(ISERROR(KOZGP[[#This Row],[Punten]]/KOZGP[[#This Row],[Reële bezette uren]]),0,KOZGP[[#This Row],[Punten]]/KOZGP[[#This Row],[Reële bezette uren]]) -> 0.04407606705 | F4: =IF(KOZGP[[#This Row],[Punten/uur]]="",0,(KOZGP[[#This Row],[Punten/uur]]*WPO)) -> 38.25938948 | G4: =IFERROR((SUMIF('ZG personeel'!D:D,KOZGP[[#This Row],[Dienst]],'ZG personeel'!B:B)+SUMIF(NVAPH[Dienst],KOZGP[[#This Row],[Dienst]],NVAPH[Loonkost]))/(KOZGP[[#This Row],[Reële bezette uren]]+SUMIF(NVAPH[Dienst],KOZGP[[#This Row],[Dienst]],NVAPH[Reële bezette uren (enkel voor zorggebonden)])),0) -> 41.51456083
A5: =Keuzelijsten!A6 -> Logopedist | B5: =SUMIF('ZG personeel'!D:D,KOZGP[[#This Row],[Dienst]],'ZG personeel'!O:O) -> 71 | C5: =SUMIF('ZG personeel'!D:D,KOZGP[[#This Row],[Dienst]],'ZG personeel'!L:L) -> 1983.6 | D5: =SUMIF('ZG personeel'!$D:$D,KOZGP[[#This Row],[Dienst]],'ZG personeel'!N:N) -> 1785.24 | E5: =IF(ISERROR(KOZGP[[#This Row],[Punten]]/KOZGP[[#This Row],[Reële bezette uren]]),0,KOZGP[[#This Row],[Punten]]/KOZGP[[#This Row],[Reële bezette uren]]) -> 0.03977056306 | F5: =IF(KOZGP[[#This Row],[Punten/uur]]="",0,(KOZGP[[#This Row],[Punten/uur]]*WPO)) -> 34.52207885 | G5: =IFERROR((SUMIF('ZG personeel'!D:D,KOZGP[[#This Row],[Dienst]],'ZG personeel'!B:B)+SUMIF(NVAPH[Dienst],KOZGP[[#This Row],[Dienst]],NVAPH[Loonkost]))/(KOZGP[[#This Row],[Reële bezette uren]]+SUMIF(NVAPH[Dienst],KOZGP[[#This Row],[Dienst]],NVAPH[Reële bezette uren (enkel voor zorggebonden)])),0) -> 26.81044565
A6: =Keuzelijsten!A7 -> Diëtist | B6: =SUMIF('ZG personeel'!D:D,KOZGP[[#This Row],[Dienst]],'ZG personeel'!O:O) -> 56.8 | C6: =SUMIF('ZG personeel'!D:D,KOZGP[[#This Row],[Dienst]],'ZG personeel'!L:L) -> 1586.88 | D6: =SUMIF('ZG personeel'!$D:$D,KOZGP[[#This Row],[Dienst]],'ZG personeel'!N:N) -> 1507.536 | E6: =IF(ISERROR(KOZGP[[#This Row],[Punten]]/KOZGP[[#This Row],[Reële bezette uren]]),0,KOZGP[[#This Row],[Punten]]/KOZGP[[#This Row],[Reële bezette uren]]) -> 0.03767737553 | F6: =IF(KOZGP[[#This Row],[Punten/uur]]="",0,(KOZGP[[#This Row],[Punten/uur]]*WPO)) -> 32.70512733 | G6: =IFERROR((SUMIF('ZG personeel'!D:D,KOZGP[[#This Row],[Dienst]],'ZG personeel'!B:B)+SUMIF(NVAPH[Dienst],KOZGP[[#This Row],[Dienst]],NVAPH[Loonkost]))/(KOZGP[[#This Row],[Reële bezette uren]]+SUMIF(NVAPH[Dienst],KOZGP[[#This Row],[Dienst]],NVAPH[Reële bezette uren (enkel voor zorggebonden)])),0) -> 28.61217245
A7: =Keuzelijsten!A8 -> Verpleegkundigen | B7: =SUMIF('ZG personeel'!D:D,KOZGP[[#This Row],[Dienst]],'ZG personeel'!O:O) -> 592.95 | C7: =SUMIF('ZG personeel'!D:D,KOZGP[[#This Row],[Dienst]],'ZG personeel'!L:L) -> 17554.86 | D7: =SUMIF('ZG personeel'!$D:$D,KOZGP[[#This Row],[Dienst]],'ZG personeel'!N:N) -> 14921.631 | E7: =IF(ISERROR(KOZGP[[#This Row],[Punten]]/KOZGP[[#This Row],[Reële bezette uren]]),0,KOZGP[[#This Row],[Punten]]/KOZGP[[#This Row],[Reële bezette uren]]) -> 0.03973761313 | F7: =IF(KOZGP[[#This Row],[Punten/uur]]="",0,(KOZGP[[#This Row],[Punten/uur]]*WPO)) -> 34.49347729 | G7: =IFERROR((SUMIF('ZG personeel'!D:D,KOZGP[[#This Row],[Dienst]],'ZG personeel'!B:B)+SUMIF(NVAPH[Dienst],KOZGP[[#This Row],[Dienst]],NVAPH[Loonkost]))/(KOZGP[[#This Row],[Reële bezette uren]]+SUMIF(NVAPH[Dienst],KOZGP[[#This Row],[Dienst]],NVAPH[Reële bezette uren (enkel voor zorggebonden)])),0) -> 26.44188293
A8: =Keuzelijsten!A9 -> Dokters | B8: =SUMIF('ZG personeel'!D:D,KOZGP[[#This Row],[Dienst]],'ZG personeel'!O:O) -> 24.395 | C8: =SUMIF('ZG personeel'!D:D,KOZGP[[#This Row],[Dienst]],'ZG personeel'!L:L) -> 212.16 | D8: =SUMIF('ZG personeel'!$D:$D,KOZGP[[#This Row],[Dienst]],'ZG personeel'!N:N) -> 190.944 | E8: =IF(ISERROR(KOZGP[[#This Row],[Punten]]/KOZGP[[#This Row],[Reële bezette uren]]),0,KOZGP[[#This Row],[Punten]]/KOZGP[[#This Row],[Reële bezette uren]]) -> 0.1277599715 | F8: =IF(KOZGP[[#This Row],[Punten/uur]]="",0,(KOZGP[[#This Row],[Punten/uur]]*WPO)) -> 110.8996069 | G8: =IFERROR((SUMIF('ZG personeel'!D:D,KOZGP[[#This Row],[Dienst]],'ZG personeel'!B:B)+SUMIF(NVAPH[Dienst],KOZGP[[#This Row],[Dienst]],NVAPH[Loonkost]))/(KOZGP[[#This Row],[Reële bezette uren]]+SUMIF(NVAPH[Dienst],KOZGP[[#This Row],[Dienst]],NVAPH[Reële bezette uren (enkel voor zorggebonden)])),0) -> 100.9239358
A9: =Keuzelijsten!A10 -> Orthoagoog | B9: =SUMIF('ZG personeel'!D:D,KOZGP[[#This Row],[Dienst]],'ZG personeel'!O:O) -> 236.7 | C9: =SUMIF('ZG personeel'!D:D,KOZGP[[#This Row],[Dienst]],'ZG personeel'!L:L) -> 5216.868 | D9: =SUMIF('ZG personeel'!$D:$D,KOZGP[[#This Row],[Dienst]],'ZG personeel'!N:N) -> 4434.3378 | E9: =IF(ISERROR(KOZGP[[#This Row],[Punten]]/KOZGP[[#This Row],[Reële bezette uren]]),0,KOZGP[[#This Row],[Punten]]/KOZGP[[#This Row],[Reële bezette uren]]) -> 0.05337888331 | F9: =IF(KOZGP[[#This Row],[Punten/uur]]="",0,(KOZGP[[#This Row],[Punten/uur]]*WPO)) -> 46.33452173 | G9: =IFERROR((SUMIF('ZG personeel'!D:D,KOZGP[[#This Row],[Dienst]],'ZG personeel'!B:B)+SUMIF(NVAPH[Dienst],KOZGP[[#This Row],[Dienst]],NVAPH[Loonkost]))/(KOZGP[[#This Row],[Reële bezette uren]]+SUMIF(NVAPH[Dienst],KOZGP[[#This Row],[Dienst]],NVAPH[Reële bezette uren (enkel voor zorggebonden)])),0) -> 37.12400756
A10: =Keuzelijsten!A11 -> Nachtdienst | B10: =SUMIF('ZG personeel'!D:D,KOZGP[[#This Row],[Dienst]],'ZG personeel'!O:O) -> 496.675 | C10: =SUMIF('ZG personeel'!D:D,KOZGP[[#This Row],[Dienst]],'ZG personeel'!L:L) -> 14976.18 | D10: =SUMIF('ZG personeel'!$D:$D,KOZGP[[#This Row],[Dienst]],'ZG personeel'!N:N) -> 13404.177 | E10: =IF(ISERROR(KOZGP[[#This Row],[Punten]]/KOZGP[[#This Row],[Reële bezette uren]]),0,KOZGP[[#This Row],[Punten]]/KOZGP[[#This Row],[Reële bezette uren]]) -> 0.03705374825 | F10: =IF(KOZGP[[#This Row],[Punten/uur]]="",0,(KOZGP[[#This Row],[Punten/uur]]*WPO)) -> 32.16379956 | G10: =IFERROR((SUMIF('ZG personeel'!D:D,KOZGP[[#This Row],[Dienst]],'ZG personeel'!B:B)+SUMIF(NVAPH[Dienst],KOZGP[[#This Row],[Dienst]],NVAPH[Loonkost]))/(KOZGP[[#This Row],[Reële bezette uren]]+SUMIF(NVAPH[Dienst],KOZGP[[#This Row],[Dienst]],NVAPH[Reële bezette uren (enkel voor zorggebonden)])),0) -> 35.33649697

Sheet ZG werking
A1: Rubriek | B1: Werkingskost (zonder vastgoed) | C1: Vastgoedkosten | D1: Verdeelsleutel | E1: Totaal aantal per jaar | F1: Kost per eenheid
A2: Beddengoed | B2: 3505.24 | C2: =IF(ISERROR(VLOOKUP(KOZGW[[#This Row],[Rubriek]],VastgoedVerdelingZG[],3,))=TRUE,0,VLOOKUP(KOZGW[[#This Row],[Rubriek]],VastgoedVerdelingZG[],3,)) -> 0 | D2: Aanwezigheidsdagen | E2: 42930 | F2: =IF(ISERROR((KOZGW[[#This Row],[Werkingskost (zonder vastgoed)]]+KOZGW[[#This Row],[Vastgoedkosten]])/KOZGW[[#This Row],[Totaal aantal per jaar]])=TRUE,0,(KOZGW[[#This Row],[Werkingskost (zonder vastgoed)]]+KOZGW[[#This Row],[Vastgoedkosten]])/KOZGW[[#This Row],[Totaal aantal per jaar]]) -> 0.08165012812
A3: Linnen | B3: 1888.63 | C3: =IF(ISERROR(VLOOKUP(KOZGW[[#This Row],[Rubriek]],VastgoedVerdelingZG[],3,))=TRUE,0,VLOOKUP(KOZGW[[#This Row],[Rubriek]],VastgoedVerdelingZG[],3,)) -> 0 | D3: Aanwezigheidsdagen | E3: 42930 | F3: =IF(ISERROR((KOZGW[[#This Row],[Werkingskost (zonder vastgoed)]]+KOZGW[[#This Row],[Vastgoedkosten]])/KOZGW[[#This Row],[Totaal aantal per jaar]])=TRUE,0,(KOZGW[[#This Row],[Werkingskost (zonder vastgoed)]]+KOZGW[[#This Row],[Vastgoedkosten]])/KOZGW[[#This Row],[Totaal aantal per jaar]]) -> 0.04399324482
A4: Kleding | B4: 4425.11 | C4: =IF(ISERROR(VLOOKUP(KOZGW[[#This Row],[Rubriek]],VastgoedVerdelingZG[],3,))=TRUE,0,VLOOKUP(KOZGW[[#This Row],[Rubriek]],VastgoedVerdelingZG[],3,)) -> 0 | D4: Aanwezigheidsdagen | E4: 42930 | F4: =IF(ISERROR((KOZGW[[#This Row],[Werkingskost (zonder vastgoed)]]+KOZGW[[#This Row],[Vastgoedkosten]])/KOZGW[[#This Row],[Totaal aantal per jaar]])=TRUE,0,(KOZGW[[#This Row],[Werkingskost (zonder vastgoed)]]+KOZGW[[#This Row],[Vastgoedkosten]])/KOZGW[[#This Row],[Totaal aantal per jaar]]) -> 0.1030773352
A5: Diverse kosten textiel | B5: 2343.71 | C5: =IF(ISERROR(VLOOKUP(KOZGW[[#This Row],[Rubriek]],VastgoedVerdelingZG[],3,))=TRUE,0,VLOOKUP(KOZGW[[#This Row],[Rubriek]],VastgoedVerdelingZG[],3,)) -> 0 | D5: Aanwezigheidsdagen | E5: 42930 | F5: =IF(ISERROR((KOZGW[[#This Row],[Werkingskost (zonder vastgoed)]]+KOZGW[[#This Row],[Vastgoedkosten]])/KOZGW[[#This Row],[Totaal aantal per jaar]])=TRUE,0,(KOZGW[[#This Row],[Werkingskost (zonder vastgoed)]]+KOZGW[[#This Row],[Vastgoedkosten]])/KOZGW[[#This Row],[Totaal aantal per jaar]]) -> 0.05459375728
A6: Recup textiel | B6: -2384.51 | C6: =IF(ISERROR(VLOOKUP(KOZGW[[#This Row],[Rubriek]],VastgoedVerdelingZG[],3,))=TRUE,0,VLOOKUP(KOZGW[[#This Row],[Rubriek]],VastgoedVerdelingZG[],3,)) -> 0 | D6: Aanwezigheidsdagen | E6: 42930 | F6: =IF(ISERROR((KOZGW[[#This Row],[Werkingskost (zonder vastgoed)]]+KOZGW[[#This Row],[Vastgoedkosten]])/KOZGW[[#This Row],[Totaal aantal per jaar]])=TRUE,0,(KOZGW[[#This Row],[Werkingskost (zonder vastgoed)]]+KOZGW[[#This Row],[Vastgoedkosten]])/KOZGW[[#This Row],[Totaal aantal per jaar]]) -> -0.05554414163
A7: Toiletartikels | B7: 12378.26 | C7: =IF(ISERROR(VLOOKUP(KOZGW[[#This Row],[Rubriek]],VastgoedVerdelingZG[],3,))=TRUE,0,VLOOKUP(KOZGW[[#This Row],[Rubriek]],VastgoedVerdelingZG[],3,)) -> 0 | D7: Aanwezigheidsdagen | E7: 42930 | F7: =IF(ISERROR((KOZGW[[#This Row],[Werkingskost (zonder vastgoed)]]+KOZGW[[#This Row],[Vastgoedkosten]])/KOZGW[[#This Row],[Totaal aantal per jaar]])=TRUE,0,(KOZGW[[#This Row],[Werkingskost (zonder vastgoed)]]+KOZGW[[#This Row],[Vastgoedkosten]])/KOZGW[[#This Row],[Totaal aantal per jaar]]) -> 0.2883358956
A8: Farmaceutische producten | B8: 79543.44 | C8: =IF(ISERROR(VLOOKUP(KOZGW[[#This Row],[Rubriek]],VastgoedVerdelingZG[],3,))=TRUE,0,VLOOKUP(KOZGW[[#This Row],[Rubriek]],VastgoedVerdelingZG[],3,)) -> 0 | D8: Aanwezigheidsdagen | E8: 42930 | F8: =IF(ISERROR((KOZGW[[#This Row],[Werkingskost (zonder vastgoed)]]+KOZGW[[#This Row],[Vastgoedkosten]])/KOZGW[[#This Row],[Totaal aantal per jaar]])=TRUE,0,(KOZGW[[#This Row],[Werkingskost (zonder vastgoed)]]+KOZGW[[#This Row],[Vastgoedkosten]])/KOZGW[[#This Row],[Totaal aantal per jaar]]) -> 1.852863732
A9: Rec farm.prod. | B9: -90125.7 | C9: =IF(ISERROR(VLOOKUP(KOZGW[[#This Row],[Rubriek]],VastgoedVerdelingZG[],3,))=TRUE,0,VLOOKUP(KOZGW[[#This Row],[Rubriek]],VastgoedVerdelingZG[],3,)) -> 0 | D9: Aanwezigheidsdagen | E9: 42930 | F9: =IF(ISERROR((KOZGW[[#This Row],[Werkingskost (zonder vastgoed)]]+KOZGW[[#This Row],[Vastgoedkosten]])/KOZGW[[#This Row],[Totaal aantal per jaar]])=TRUE,0,(KOZGW[[#This Row],[Werkingskost (zonder vastgoed)]]+KOZGW[[#This Row],[Vastgoedkosten]])/KOZGW[[#This Row],[Totaal aantal per jaar]]) -> -2.099364081
A10: Medische gassen | B10: 1744.4 | C10: =IF(ISERROR(VLOOKUP(KOZGW[[#This Row],[Rubriek]],VastgoedVerdelingZG[],3,))=TRUE,0,VLOOKUP(KOZGW[[#This Row],[Rubriek]],VastgoedVerdelingZG[],3,)) -> 0 | D10: Aanwezigheidsdagen | E10: 42930 | F10: =IF(ISERROR((KOZGW[[#This Row],[Werkingskost (zonder vastgoed)]]+KOZGW[[#This Row],[Vastgoedkosten]])/KOZGW[[#This Row],[Totaal aantal per jaar]])=TRUE,0,(KOZGW[[#This Row],[Werkingskost (zonder vastgoed)]]+KOZGW[[#This Row],[Vastgoedkosten]])/KOZGW[[#This Row],[Totaal aantal per jaar]]) -> 0.04063358956
A11: Farmaceutisch materiaal | B11: 9124.61 | C11: =IF(ISERROR(VLOOKUP(KOZGW[[#This Row],[Rubriek]],VastgoedVerdelingZG[],3,))=TRUE,0,VLOOKUP(KOZGW[[#This Row],[Rubriek]],VastgoedVerdelingZG[],3,)) -> 0 | D11: Aanwezigheidsdagen | E11: 42930 | F11: =IF(ISERROR((KOZGW[[#This Row],[Werkingskost (zonder vastgoed)]]+KOZGW[[#This Row],[Vastgoedkosten]])/KOZGW[[#This Row],[Totaal aantal per jaar]])=TRUE,0,(KOZGW[[#This Row],[Werkingskost (zonder vastgoed)]]+KOZGW[[#This Row],[Vastgoedkosten]])/KOZGW[[#This Row],[Totaal aantal per jaar]]) -> 0.2125462381
A12: Fixatiemateriaal | B12: 114.47 | C12: =IF(ISERROR(VLOOKUP(KOZGW[[#This Row],[Rubriek]],VastgoedVerdelingZG[],3,))=TRUE,0,VLOOKUP(KOZGW[[#This Row],[Rubriek]],VastgoedVerdelingZG[],3,)) -> 0 | D12: Aanwezigheidsdagen | E12: 42930 | F12: =IF(ISERROR((KOZGW[[#This Row],[Werkingskost (zonder vastgoed)]]+KOZGW[[#This Row],[Vastgoedkosten]])/KOZGW[[#This Row],[Totaal aantal per jaar]])=TRUE,0,(KOZGW[[#This Row],[Werkingskost (zonder vastgoed)]]+KOZGW[[#This Row],[Vastgoedkosten]])/KOZGW[[#This Row],[Totaal aantal per jaar]]) -> 0.002666433729
A13: Paramedische kosten | B13: =847.37+312.72+461.94+90.17 -> 1712.2 | C13: =IF(ISERROR(VLOOKUP(KOZGW[[#This Row],[Rubriek]],VastgoedVerdelingZG[],3,))=TRUE,0,VLOOKUP(KOZGW[[#This Row],[Rubriek]],VastgoedVerdelingZG[],3,)) -> 0 | D13: Aanwezigheidsdagen | E13: 42930 | F13: =IF(ISERROR((KOZGW[[#This Row],[Werkingskost (zonder vastgoed)]]+KOZGW[[#This Row],[Vastgoedkosten]])/KOZGW[[#This Row],[Totaal aantal per jaar]])=TRUE,0,(KOZGW[[#This Row],[Werkingskost (zonder vastgoed)]]+KOZGW[[#This Row],[Vastgoedkosten]])/KOZGW[[#This Row],[Totaal aantal per jaar]]) -> 0.03988353133
A14: Recup paramedische kosten | B14: -92.07 | C14: =IF(ISERROR(VLOOKUP(KOZGW[[#This Row],[Rubriek]],VastgoedVerdelingZG[],3,))=TRUE,0,VLOOKUP(KOZGW[[#This Row],[Rubriek]],VastgoedVerdelingZG[],3,)) -> 0 | D14: Aanwezigheidsdagen | E14: 42930 | F14: =IF(ISERROR((KOZGW[[#This Row],[Werkingskost (zonder vastgoed)]]+KOZGW[[#This Row],[Vastgoedkosten]])/KOZGW[[#This Row],[Totaal aantal per jaar]])=TRUE,0,(KOZGW[[#This Row],[Werkingskost (zonder vastgoed)]]+KOZGW[[#This Row],[Vastgoedkosten]])/KOZGW[[#This Row],[Totaal aantal per jaar]]) -> -0.002144654088
A15: Educatieve activiteiten+verplaatsingen | B15: =2939.68+50.19+822.56 -> 3812.43 | C15: =IF(ISERROR(VLOOKUP(KOZGW[[#This Row],[Rubriek]],VastgoedVerdelingZG[],3,))=TRUE,0,VLOOKUP(KOZGW[[#This Row],[Rubriek]],VastgoedVerdelingZG[],3,)) -> 0 | D15: Aanwezigheidsdagen | E15: 42930 | F15: =IF(ISERROR((KOZGW[[#This Row],[Werkingskost (zonder vastgoed)]]+KOZGW[[#This Row],[Vastgoedkosten]])/KOZGW[[#This Row],[Totaal aantal per jaar]])=TRUE,0,(KOZGW[[#This Row],[Werkingskost (zonder vastgoed)]]+KOZGW[[#This Row],[Vastgoedkosten]])/KOZGW[[#This Row],[Totaal aantal per jaar]]) -> 0.08880573026
A16: Recup educatieve act | B16: -1582.9 | C16: =IF(ISERROR(VLOOKUP(KOZGW[[#This Row],[Rubriek]],VastgoedVerdelingZG[],3,))=TRUE,0,VLOOKUP(KOZGW[[#This Row],[Rubriek]],VastgoedVerdelingZG[],3,)) -> 0 | D16: Aanwezigheidsdagen | E16: 42930 | F16: =IF(ISERROR((KOZGW[[#This Row],[Werkingskost (zonder vastgoed)]]+KOZGW[[#This Row],[Vastgoedkosten]])/KOZGW[[#This Row],[Totaal aantal per jaar]])=TRUE,0,(KOZGW[[#This Row],[Werkingskost (zonder vastgoed)]]+KOZGW[[#This Row],[Vastgoedkosten]])/KOZGW[[#This Row],[Totaal aantal per jaar]]) -> -0.03687165153
A17: Recup energie (uitstappen) | B17: -8583.39 | C17: =IF(ISERROR(VLOOKUP(KOZGW[[#This Row],[Rubriek]],VastgoedVerdelingZG[],3,))=TRUE,0,VLOOKUP(KOZGW[[#This Row],[Rubriek]],VastgoedVerdelingZG[],3,)) -> 0 | D17: Aanwezigheidsdagen | E17: 42930 | F17: =IF(ISERROR((KOZGW[[#This Row],[Werkingskost (zonder vastgoed)]]+KOZGW[[#This Row],[Vastgoedkosten]])/KOZGW[[#This Row],[Totaal aantal per jaar]])=TRUE,0,(KOZGW[[#This Row],[Werkingskost (zonder vastgoed)]]+KOZGW[[#This Row],[Vastgoedkosten]])/KOZGW[[#This Row],[Totaal aantal per jaar]]) -> -0.1999392034
A18: Incontinentiemateriaal | B18: 91349.06 | C18: =IF(ISERROR(VLOOKUP(KOZGW[[#This Row],[Rubriek]],VastgoedVerdelingZG[],3,))=TRUE,0,VLOOKUP(KOZGW[[#This Row],[Rubriek]],VastgoedVerdelingZG[],3,)) -> 0 | D18: Aanwezigheidsdagen | E18: 42930 | F18: =IF(ISERROR((KOZGW[[#This Row],[Werkingskost (zonder vastgoed)]]+KOZGW[[#This Row],[Vastgoedkosten]])/KOZGW[[#This Row],[Totaal aantal per jaar]])=TRUE,0,(KOZGW[[#This Row],[Werkingskost (zonder vastgoed)]]+KOZGW[[#This Row],[Vastgoedkosten]])/KOZGW[[#This Row],[Totaal aantal per jaar]]) -> 2.127860703
A19: Recup incontinentiemateriaal | B19: -68016.27 | C19: =IF(ISERROR(VLOOKUP(KOZGW[[#This Row],[Rubriek]],VastgoedVerdelingZG[],3,))=TRUE,0,VLOOKUP(KOZGW[[#This Row],[Rubriek]],VastgoedVerdelingZG[],3,)) -> 0 | D19: Aanwezigheidsdagen | E19: 42930 | F19: =IF(ISERROR((KOZGW[[#This Row],[Werkingskost (zonder vastgoed)]]+KOZGW[[#This Row],[Vastgoedkosten]])/KOZGW[[#This Row],[Totaal aantal per jaar]])=TRUE,0,(KOZGW[[#This Row],[Werkingskost (zonder vastgoed)]]+KOZGW[[#This Row],[Vastgoedkosten]])/KOZGW[[#This Row],[Totaal aantal per jaar]]) -> -1.5843529
A20: Wegwerpmateriaal | B20: 9337.3 | C20: =IF(ISERROR(VLOOKUP(KOZGW[[#This Row],[Rubriek]],VastgoedVerdelingZG[],3,))=TRUE,0,VLOOKUP(KOZGW[[#This Row],[Rubriek]],VastgoedVerdelingZG[],3,)) -> 0 | D20: Aanwezigheidsdagen | E20: 42930 | F20: =IF(ISERROR((KOZGW[[#This Row],[Werkingskost (zonder vastgoed)]]+KOZGW[[#This Row],[Vastgoedkosten]])/KOZGW[[#This Row],[Totaal aantal per jaar]])=TRUE,0,(KOZGW[[#This Row],[Werkingskost (zonder vastgoed)]]+KOZGW[[#This Row],[Vastgoedkosten]])/KOZGW[[#This Row],[Totaal aantal per jaar]]) -> 0.2175005823
A21: TV-kabel | B21: 4050.18 | C21: =IF(ISERROR(VLOOKUP(KOZGW[[#This Row],[Rubriek]],VastgoedVerdelingZG[],3,))=TRUE,0,VLOOKUP(KOZGW[[#This Row],[Rubriek]],VastgoedVerdelingZG[],3,)) -> 0 | D21: Aanwezigheidsdagen | E21: 42930 | F21: =IF(ISERROR((KOZGW[[#This Row],[Werkingskost (zonder vastgoed)]]+KOZGW[[#This Row],[Vastgoedkosten]])/KOZGW[[#This Row],[Totaal aantal per jaar]])=TRUE,0,(KOZGW[[#This Row],[Werkingskost (zonder vastgoed)]]+KOZGW[[#This Row],[Vastgoedkosten]])/KOZGW[[#This Row],[Totaal aantal per jaar]]) -> 0.09434381551
A22: Kampen | B22: 4417.75 | C22: =IF(ISERROR(VLOOKUP(KOZGW[[#This Row],[Rubriek]],VastgoedVerdelingZG[],3,))=TRUE,0,VLOOKUP(KOZGW[[#This Row],[Rubriek]],VastgoedVerdelingZG[],3,)) -> 0 | D22: Aanwezigheidsdagen | E22: 42930 | F22: =IF(ISERROR((KOZGW[[#This Row],[Werkingskost (zonder vastgoed)]]+KOZGW[[#This Row],[Vastgoedkosten]])/KOZGW[[#This Row],[Totaal aantal per jaar]])=TRUE,0,(KOZGW[[#This Row],[Werkingskost (zonder vastgoed)]]+KOZGW[[#This Row],[Vastgoedkosten]])/KOZGW[[#This Row],[Totaal aantal per jaar]]) -> 0.1029058933
A23: Recup kampen | B23: -4895 | C23: =IF(ISERROR(VLOOKUP(KOZGW[[#This Row],[Rubriek]],VastgoedVerdelingZG[],3,))=TRUE,0,VLOOKUP(KOZGW[[#This Row],[Rubriek]],VastgoedVerdelingZG[],3,)) -> 0 | D23: Aanwezigheidsdagen | E23: 42930 | F23: =IF(ISERROR((KOZGW[[#This Row],[Werkingskost (zonder vastgoed)]]+KOZGW[[#This Row],[Vastgoedkosten]])/KOZGW[[#This Row],[Totaal aantal per jaar]])=TRUE,0,(KOZGW[[#This Row],[Werkingskost (zonder vastgoed)]]+KOZGW[[#This Row],[Vastgoedkosten]])/KOZGW[[#This Row],[Totaal aantal per jaar]]) -> -0.1140228279
A24: Dokter+tandarts | B24: 15077.93 | C24: =IF(ISERROR(VLOOKUP(KOZGW[[#This Row],[Rubriek]],VastgoedVerdelingZG[],3,))=TRUE,0,VLOOKUP(KOZGW[[#This Row],[Rubriek]],VastgoedVerdelingZG[],3,)) -> 0 | D24: Aanwezigheidsdagen | E24: 42930 | F24: =IF(ISERROR((KOZGW[[#This Row],[Werkingskost (zonder vastgoed)]]+KOZGW[[#This Row],[Vastgoedkosten]])/KOZGW[[#This Row],[Totaal aantal per jaar]])=TRUE,0,(KOZGW[[#This Row],[Werkingskost (zonder vastgoed)]]+KOZGW[[#This Row],[Vastgoedkosten]])/KOZGW[[#This Row],[Totaal aantal per jaar]]) -> 0.3512212905
A25: Recup dokters+tandarts | B25: -15302.65 | C25: =IF(ISERROR(VLOOKUP(KOZGW[[#This Row],[Rubriek]],VastgoedVerdelingZG[],3,))=TRUE,0,VLOOKUP(KOZGW[[#This Row],[Rubriek]],VastgoedVerdelingZG[],3,)) -> 0 | D25: Aanwezigheidsdagen | E25: 42930 | F25: =IF(ISERROR((KOZGW[[#This Row],[Werkingskost (zonder vastgoed)]]+KOZGW[[#This Row],[Vastgoedkosten]])/KOZGW[[#This Row],[Totaal aantal per jaar]])=TRUE,0,(KOZGW[[#This Row],[Werkingskost (zonder vastgoed)]]+KOZGW[[#This Row],[Vastgoedkosten]])/KOZGW[[#This Row],[Totaal aantal per jaar]]) -> -0.3564558584
A26: Hospitalisatie | B26: 839.14 | C26: =IF(ISERROR(VLOOKUP(KOZGW[[#This Row],[Rubriek]],VastgoedVerdelingZG[],3,))=TRUE,0,VLOOKUP(KOZGW[[#This Row],[Rubriek]],VastgoedVerdelingZG[],3,)) -> 0 | D26: Aanwezigheidsdagen | E26: 42930 | F26: =IF(ISERROR((KOZGW[[#This Row],[Werkingskost (zonder vastgoed)]]+KOZGW[[#This Row],[Vastgoedkosten]])/KOZGW[[#This Row],[Totaal aantal per jaar]])=TRUE,0,(KOZGW[[#This Row],[Werkingskost (zonder vastgoed)]]+KOZGW[[#This Row],[Vastgoedkosten]])/KOZGW[[#This Row],[Totaal aantal per jaar]]) -> 0.01954670394
A27: Recup hospitalisatie | B27: -839.14 | C27: =IF(ISERROR(VLOOKUP(KOZGW[[#This Row],[Rubriek]],VastgoedVerdelingZG[],3,))=TRUE,0,VLOOKUP(KOZGW[[#This Row],[Rubriek]],VastgoedVerdelingZG[],3,)) -> 0 | D27: Aanwezigheidsdagen | E27: 42930 | F27: =IF(ISERROR((KOZGW[[#This Row],[Werkingskost (zonder vastgoed)]]+KOZGW[[#This Row],[Vastgoedkosten]])/KOZGW[[#This Row],[Totaal aantal per jaar]])=TRUE,0,(KOZGW[[#This Row],[Werkingskost (zonder vastgoed)]]+KOZGW[[#This Row],[Vastgoedkosten]])/KOZGW[[#This Row],[Totaal aantal per jaar]]) -> -0.01954670394
A28: Medisch vervoer | B28: 1567.59 | C28: =IF(ISERROR(VLOOKUP(KOZGW[[#This Row],[Rubriek]],VastgoedVerdelingZG[],3,))=TRUE,0,VLOOKUP(KOZGW[[#This Row],[Rubriek]],VastgoedVerdelingZG[],3,)) -> 0 | D28: Aanwezigheidsdagen | E28: 42930 | F28: =IF(ISERROR((KOZGW[[#This Row],[Werkingskost (zonder vastgoed)]]+KOZGW[[#This Row],[Vastgoedkosten]])/KOZGW[[#This Row],[Totaal aantal per jaar]])=TRUE,0,(KOZGW[[#This Row],[Werkingskost (zonder vastgoed)]]+KOZGW[[#This Row],[Vastgoedkosten]])/KOZGW[[#This Row],[Totaal aantal per jaar]]) -> 0.03651502446
A29: Recup medisch vervoer | B29: -1567.59 | C29: =IF(ISERROR(VLOOKUP(KOZGW[[#This Row],[Rubriek]],VastgoedVerdelingZG[],3,))=TRUE,0,VLOOKUP(KOZGW[[#This Row],[Rubriek]],VastgoedVerdelingZG[],3,)) -> 0 | D29: Aanwezigheidsdagen | E29: 42930 | F29: =IF(ISERROR((KOZGW[[#This Row],[Werkingskost (zonder vastgoed)]]+KOZGW[[#This Row],[Vastgoedkosten]])/KOZGW[[#This Row],[Totaal aantal per jaar]])=TRUE,0,(KOZGW[[#This Row],[Werkingskost (zonder vastgoed)]]+KOZGW[[#This Row],[Vastgoedkosten]])/KOZGW[[#This Row],[Totaal aantal per jaar]]) -> -0.03651502446
A30: Diverse medische kosten | B30: 48.16 | C30: =IF(ISERROR(VLOOKUP(KOZGW[[#This Row],[Rubriek]],VastgoedVerdelingZG[],3,))=TRUE,0,VLOOKUP(KOZGW[[#This Row],[Rubriek]],VastgoedVerdelingZG[],3,)) -> 0 | D30: Aanwezigheidsdagen | E30: 42930 | F30: =IF(ISERROR((KOZGW[[#This Row],[Werkingskost (zonder vastgoed)]]+KOZGW[[#This Row],[Vastgoedkosten]])/KOZGW[[#This Row],[Totaal aantal per jaar]])=TRUE,0,(KOZGW[[#This Row],[Werkingskost (zonder vastgoed)]]+KOZGW[[#This Row],[Vastgoedkosten]])/KOZGW[[#This Row],[Totaal aantal per jaar]]) -> 0.001121826229
A31: Recup diverse medische kosten | B31: -48.16 | C31: =IF(ISERROR(VLOOKUP(KOZGW[[#This Row],[Rubriek]],VastgoedVerdelingZG[],3,))=TRUE,0,VLOOKUP(KOZGW[[#This Row],[Rubriek]],VastgoedVerdelingZG[],3,)) -> 0 | D31: Aanwezigheidsdagen | E31: 42930 | F31: =IF(ISERROR((KOZGW[[#This Row],[Werkingskost (zonder vastgoed)]]+KOZGW[[#This Row],[Vastgoedkosten]])/KOZGW[[#This Row],[Totaal aantal per jaar]])=TRUE,0,(KOZGW[[#This Row],[Werkingskost (zonder vastgoed)]]+KOZGW[[#This Row],[Vastgoedkosten]])/KOZGW[[#This Row],[Totaal aantal per jaar]]) -> -0.001121826229
A32: Kinesist | B32: 2289.14 | C32: =IF(ISERROR(VLOOKUP(KOZGW[[#This Row],[Rubriek]],VastgoedVerdelingZG[],3,))=TRUE,0,VLOOKUP(KOZGW[[#This Row],[Rubriek]],VastgoedVerdelingZG[],3,)) -> 0 | D32: Aanwezigheidsdagen | E32: 42930 | F32: =IF(ISERROR((KOZGW[[#This Row],[Werkingskost (zonder vastgoed)]]+KOZGW[[#This Row],[Vastgoedkosten]])/KOZGW[[#This Row],[Totaal aantal per jaar]])=TRUE,0,(KOZGW[[#This Row],[Werkingskost (zonder vastgoed)]]+KOZGW[[#This Row],[Vastgoedkosten]])/KOZGW[[#This Row],[Totaal aantal per jaar]]) -> 0.05332261822
A33: Recup verzekering (kinesist) | B33: -191.83 | C33: =IF(ISERROR(VLOOKUP(KOZGW[[#This Row],[Rubriek]],VastgoedVerdelingZG[],3,))=TRUE,0,VLOOKUP(KOZGW[[#This Row],[Rubriek]],VastgoedVerdelingZG[],3,)) -> 0 | D33: Aanwezigheidsdagen | E33: 42930 | F33: =IF(ISERROR((KOZGW[[#This Row],[Werkingskost (zonder vastgoed)]]+KOZGW[[#This Row],[Vastgoedkosten]])/KOZGW[[#This Row],[Totaal aantal per jaar]])=TRUE,0,(KOZGW[[#This Row],[Werkingskost (zonder vastgoed)]]+KOZGW[[#This Row],[Vastgoedkosten]])/KOZGW[[#This Row],[Totaal aantal per jaar]]) -> -0.00446843699
A34: Recup ziekenfonds (kinesist) | B34: -2113.56 | C34: =IF(ISERROR(VLOOKUP(KOZGW[[#This Row],[Rubriek]],VastgoedVerdelingZG[],3,))=TRUE,0,VLOOKUP(KOZGW[[#This Row],[Rubriek]],VastgoedVerdelingZG[],3,)) -> 0 | D34: Aanwezigheidsdagen | E34: 42930 | F34: =IF(ISERROR((KOZGW[[#This Row],[Werkingskost (zonder vastgoed)]]+KOZGW[[#This Row],[Vastgoedkosten]])/KOZGW[[#This Row],[Totaal aantal per jaar]])=TRUE,0,(KOZGW[[#This Row],[Werkingskost (zonder vastgoed)]]+KOZGW[[#This Row],[Vastgoedkosten]])/KOZGW[[#This Row],[Totaal aantal per jaar]]) -> -0.0492327044
A35: Elektriciteit | B35: =Energie!E9 -> 0 | C35: =IF(ISERROR(VLOOKUP(KOZGW[[#This Row],[Rubriek]],VastgoedVerdelingZG[],3,))=TRUE,0,VLOOKUP(KOZGW[[#This Row],[Rubriek]],VastgoedVerdelingZG[],3,)) -> 0 | D35: Aanwezigheidsdagen | E35: 42930 | F35: =IF(ISERROR((KOZGW[[#This Row],[Werkingskost (zonder vastgoed)]]+KOZGW[[#This Row],[Vastgoedkosten]])/KOZGW[[#This Row],[Totaal aantal per jaar]])=TRUE,0,(KOZGW[[#This Row],[Werkingskost (zonder vastgoed)]]+KOZGW[[#This Row],[Vastgoedkosten]])/KOZGW[[#This Row],[Totaal aantal per jaar]]) -> 0
A36: Water | B36: =Energie!E39 -> 23302.9332 | C36: =IF(ISERROR(VLOOKUP(KOZGW[[#This Row],[Rubriek]],VastgoedVerdelingZG[],3,))=TRUE,0,VLOOKUP(KOZGW[[#This Row],[Rubriek]],VastgoedVerdelingZG[],3,)) -> 0 | D36: Aanwezigheidsdagen | E36: 42930 | F36: =IF(ISERROR((KOZGW[[#This Row],[Werkingskost (zonder vastgoed)]]+KOZGW[[#This Row],[Vastgoedkosten]])/KOZGW[[#This Row],[Totaal aantal per jaar]])=TRUE,0,(KOZGW[[#This Row],[Werkingskost (zonder vastgoed)]]+KOZGW[[#This Row],[Vastgoedkosten]])/KOZGW[[#This Row],[Totaal aantal per jaar]]) -> 0.542812327
A37: Gas | B37: =Energie!E19 -> 35879.0166 | C37: =IF(ISERROR(VLOOKUP(KOZGW[[#This Row],[Rubriek]],VastgoedVerdelingZG[],3,))=TRUE,0,VLOOKUP(KOZGW[[#This Row],[Rubriek]],VastgoedVerdelingZG[],3,)) -> 0 | D37: Aanwezigheidsdagen | E37: 42930 | F37: =IF(ISERROR((KOZGW[[#This Row],[Werkingskost (zonder vastgoed)]]+KOZGW[[#This Row],[Vastgoedkosten]])/KOZGW[[#This Row],[Totaal aantal per jaar]])=TRUE,0,(KOZGW[[#This Row],[Werkingskost (zonder vastgoed)]]+KOZGW[[#This Row],[Vastgoedkosten]])/KOZGW[[#This Row],[Totaal aantal per jaar]]) -> 0.8357562683
A38: Totaal | B38: =SUBTOTAL(109,KOZGW[Werkingskost (zonder vastgoed)]) -> 113007.9298 | C38: =SUBTOTAL(109,KOZGW[Vastgoedkosten]) -> 0

Sheet OG personeelskost
A1: Grootboekrekening igv eigen personeel | B1: Dienst | C1: Kosten | D1: Verdeelsleutel | E1: Totaal aantal per jaar | F1: Kost per eenheid | G1: Niet VAPH subsidies per eenheid
A2: 620 -621 - 622 -623 - 624 -628 | B2: =Keuzelijsten!C3 -> Directie | C2: =SUMIF('OG personeel'!G:G,KOOGP[[#This Row],[Dienst]],'OG personeel'!B:B)+SUMIF('Ander personeel'!$F:$F,KOOGP[[#This Row],[Dienst]],'Ander personeel'!B:B)-SUMIF(OGPB[Dienst],KOOGP[[#This Row],[Dienst]],OGPB[Loon toewijsbaar aan woon- & leefkosten]) -> 290972.97 | D2: Aanwezigheidsdagen | E2: 42930 | F2: =IFERROR(KOOGP[[#This Row],[Kosten]]/KOOGP[[#This Row],[Totaal aantal per jaar]],0) -> 6.77784696 | G2: =IFERROR(SUMIF(NVAPH[Dienst],KOOGP[[#This Row],[Dienst]],NVAPH[Inkomsten])/KOOGP[[#This Row],[Totaal aantal per jaar]],0) -> 0
B3: =Keuzelijsten!C4 -> Administratie | C3: =SUMIF('OG personeel'!G:G,KOOGP[[#This Row],[Dienst]],'OG personeel'!B:B)+SUMIF('Ander personeel'!$F:$F,KOOGP[[#This Row],[Dienst]],'Ander personeel'!B:B)-SUMIF(OGPB[Dienst],KOOGP[[#This Row],[Dienst]],OGPB[Loon toewijsbaar aan woon- & leefkosten]) -> 266297.33 | D3: Aanwezigheidsdagen | E3: 42930 | F3: =IFERROR(KOOGP[[#This Row],[Kosten]]/KOOGP[[#This Row],[Totaal aantal per jaar]],0) -> 6.203059166 | G3: =IFERROR(SUMIF(NVAPH[Dienst],KOOGP[[#This Row],[Dienst]],NVAPH[Inkomsten])/KOOGP[[#This Row],[Totaal aantal per jaar]],0) -> 0
B4: =Keuzelijsten!C5 -> Onderhoud Centraal Gebouw | C4: =SUMIF('OG personeel'!G:G,KOOGP[[#This Row],[Dienst]],'OG personeel'!B:B)+SUMIF('Ander personeel'!$F:$F,KOOGP[[#This Row],[Dienst]],'Ander personeel'!B:B)-SUMIF(OGPB[Dienst],KOOGP[[#This Row],[Dienst]],OGPB[Loon toewijsbaar aan woon- & leefkosten]) -> 82779.26 | D4: Aanwezigheidsdagen | E4: 42930 | F4: =IFERROR(KOOGP[[#This Row],[Kosten]]/KOOGP[[#This Row],[Totaal aantal per jaar]],0) -> 1.928238062 | G4: =IFERROR(SUMIF(NVAPH[Dienst],KOOGP[[#This Row],[Dienst]],NVAPH[Inkomsten])/KOOGP[[#This Row],[Totaal aantal per jaar]],0) -> 0.6409706499
B5: =Keuzelijsten!C6 -> Technische Dienst | C5: =SUMIF('OG personeel'!G:G,KOOGP[[#This Row],[Dienst]],'OG personeel'!B:B)+SUMIF('Ander personeel'!$F:$F,KOOGP[[#This Row],[Dienst]],'Ander personeel'!B:B)-SUMIF(OGPB[Dienst],KOOGP[[#This Row],[Dienst]],OGPB[Loon toewijsbaar aan woon- & leefkosten]) -> 229315.1 | D5: Aanwezigheidsdagen | E5: 42930 | F5: =IFERROR(KOOGP[[#This Row],[Kosten]]/KOOGP[[#This Row],[Totaal aantal per jaar]],0) -> 5.341604938 | G5: =IFERROR(SUMIF(NVAPH[Dienst],KOOGP[[#This Row],[Dienst]],NVAPH[Inkomsten])/KOOGP[[#This Row],[Totaal aantal per jaar]],0) -> 0
B6: =Keuzelijsten!C7 -> Huiscoördinatoren | C6: =SUMIF('OG personeel'!G:G,KOOGP[[#This Row],[Dienst]],'OG personeel'!B:B)+SUMIF('Ander personeel'!$F:$F,KOOGP[[#This Row],[Dienst]],'Ander personeel'!B:B)-SUMIF(OGPB[Dienst],KOOGP[[#This Row],[Dienst]],OGPB[Loon toewijsbaar aan woon- & leefkosten]) -> 211532.47 | D6: Aanwezigheidsdagen | E6: 42930 | F6: =IFERROR(KOOGP[[#This Row],[Kosten]]/KOOGP[[#This Row],[Totaal aantal per jaar]],0) -> 4.927381085 | G6: =IFERROR(SUMIF(NVAPH[Dienst],KOOGP[[#This Row],[Dienst]],NVAPH[Inkomsten])/KOOGP[[#This Row],[Totaal aantal per jaar]],0) -> 0
B7: =Keuzelijsten!C8 -> Logistiek Coördinator | C7: =SUMIF('OG personeel'!G:G,KOOGP[[#This Row],[Dienst]],'OG personeel'!B:B)+SUMIF('Ander personeel'!$F:$F,KOOGP[[#This Row],[Dienst]],'Ander personeel'!B:B)-SUMIF(OGPB[Dienst],KOOGP[[#This Row],[Dienst]],OGPB[Loon toewijsbaar aan woon- & leefkosten]) -> 34744.94 | D7: Aanwezigheidsdagen | E7: 42930 | F7: =IFERROR(KOOGP[[#This Row],[Kosten]]/KOOGP[[#This Row],[Totaal aantal per jaar]],0) -> 0.8093393897 | G7: =IFERROR(SUMIF(NVAPH[Dienst],KOOGP[[#This Row],[Dienst]],NVAPH[Inkomsten])/KOOGP[[#This Row],[Totaal aantal per jaar]],0) -> 0
B8: =Keuzelijsten!C9 -> Zinzorg en pastoraat | C8: =SUMIF('OG personeel'!G:G,KOOGP[[#This Row],[Dienst]],'OG personeel'!B:B)+SUMIF('Ander personeel'!$F:$F,KOOGP[[#This Row],[Dienst]],'Ander personeel'!B:B)-SUMIF(OGPB[Dienst],KOOGP[[#This Row],[Dienst]],OGPB[Loon toewijsbaar aan woon- & leefkosten]) -> 38404.82 | D8: Aanwezigheidsdagen | E8: 42930 | F8: =IFERROR(KOOGP[[#This Row],[Kosten]]/KOOGP[[#This Row],[Totaal aantal per jaar]],0) -> 0.8945916608 | G8: =IFERROR(SUMIF(NVAPH[Dienst],KOOGP[[#This Row],[Dienst]],NVAPH[Inkomsten])/KOOGP[[#This Row],[Totaal aantal per jaar]],0) -> 0
B9: =Keuzelijsten!C10 -> Preventieadviseur | C9: =SUMIF('OG personeel'!G:G,KOOGP[[#This Row],[Dienst]],'OG personeel'!B:B)+SUMIF('Ander personeel'!$F:$F,KOOGP[[#This Row],[Dienst]],'Ander personeel'!B:B)-SUMIF(OGPB[Dienst],KOOGP[[#This Row],[Dienst]],OGPB[Loon toewijsbaar aan woon- & leefkosten]) -> 68703.34 | D9: Aanwezigheidsdagen | E9: 42930 | F9: =IFERROR(KOOGP[[#This Row],[Kosten]]/KOOGP[[#This Row],[Totaal aantal per jaar]],0) -> 1.600357326 | G9: =IFERROR(SUMIF(NVAPH[Dienst],KOOGP[[#This Row],[Dienst]],NVAPH[Inkomsten])/KOOGP[[#This Row],[Totaal aantal per jaar]],0) -> 0
B10: =Keuzelijsten!C11 -> Naaisters | C10: =SUMIF('OG personeel'!G:G,KOOGP[[#This Row],[Dienst]],'OG personeel'!B:B)+SUMIF('Ander personeel'!$F:$F,KOOGP[[#This Row],[Dienst]],'Ander personeel'!B:B)-SUMIF(OGPB[Dienst],KOOGP[[#This Row],[Dienst]],OGPB[Loon toewijsbaar aan woon- & leefkosten]) -> 0 | D10: Aanwezigheidsdagen | E10: 42930 | F10: =IFERROR(KOOGP[[#This Row],[Kosten]]/KOOGP[[#This Row],[Totaal aantal per jaar]],0) -> 0 | G10: =IFERROR(SUMIF(NVAPH[Dienst],KOOGP[[#This Row],[Dienst]],NVAPH[Inkomsten])/KOOGP[[#This Row],[Totaal aantal per jaar]],0) -> 0
B11: =Keuzelijsten!C12 -> Sociale dienst | C11: =SUMIF('OG personeel'!G:G,KOOGP[[#This Row],[Dienst]],'OG personeel'!B:B)+SUMIF('Ander personeel'!$F:$F,KOOGP[[#This Row],[Dienst]],'Ander personeel'!B:B)-SUMIF(OGPB[Dienst],KOOGP[[#This Row],[Dienst]],OGPB[Loon toewijsbaar aan woon- & leefkosten]) -> 92261.06 | D11: Aanwezigheidsdagen | E11: 42930 | F11: =IFERROR(KOOGP[[#This Row],[Kosten]]/KOOGP[[#This Row],[Totaal aantal per jaar]],0) -> 2.149104589 | G11: =IFERROR(SUMIF(NVAPH[Dienst],KOOGP[[#This Row],[Dienst]],NVAPH[Inkomsten])/KOOGP[[#This Row],[Totaal aantal per jaar]],0) -> 0
B12: Totaal | C12: =SUBTOTAL(109,KOOGP[Kosten]) -> 1315011.29

Sheet OG werking
A1: Grootboekrekening | B1: Rubriek | C1: Werkingskosten | D1: Vastgoedkosten | E1: Verdeelsleutel | F1: Totaal aantal per jaar | G1: Kost per eenheid
A2: 614 | B2: Verzekeringen | C2: 14855.07 | D2: =IFERROR(VLOOKUP(KOOGW[[#This Row],[Rubriek]],VastgoedVerdelingOG[],3,),0) -> 305061.3179 | E2: Aanwezigheidsdagen | F2: 42930 | G2: =IFERROR((KOOGW[[#This Row],[Werkingskosten]]+KOOGW[[#This Row],[Vastgoedkosten]])/KOOGW[[#This Row],[Totaal aantal per jaar]],0) -> 7.452047237
A3: 644 | B3: Opleidingen | C3: 7699.46 | D3: =IFERROR(VLOOKUP(KOOGW[[#This Row],[Rubriek]],VastgoedVerdelingOG[],3,),0) -> 0 | E3: Aanwezigheidsdagen | F3: 42930 | G3: =IFERROR((KOOGW[[#This Row],[Werkingskosten]]+KOOGW[[#This Row],[Vastgoedkosten]])/KOOGW[[#This Row],[Totaal aantal per jaar]],0) -> 0.1793491731
A4: 74036000 | B4: Recup opleidingen | C4: -6563.47 | D4: =IFERROR(VLOOKUP(KOOGW[[#This Row],[Rubriek]],VastgoedVerdelingOG[],3,),0) -> 0 | E4: Aanwezigheidsdagen | F4: 42930 | G4: =IFERROR((KOOGW[[#This Row],[Werkingskosten]]+KOOGW[[#This Row],[Vastgoedkosten]])/KOOGW[[#This Row],[Totaal aantal per jaar]],0) -> -0.1528877242
A5: 74036100 | B5: Recup opleidingen | C5: -3422.13 | D5: =IFERROR(VLOOKUP(KOOGW[[#This Row],[Rubriek]],VastgoedVerdelingOG[],3,),0) -> 0 | E5: Aanwezigheidsdagen | F5: 42930 | G5: =IFERROR((KOOGW[[#This Row],[Werkingskosten]]+KOOGW[[#This Row],[Vastgoedkosten]])/KOOGW[[#This Row],[Totaal aantal per jaar]],0) -> -0.07971418588
A6: 615 | B6: Dienstverplaatsingen | C6: 6321.81 | D6: =IFERROR(VLOOKUP(KOOGW[[#This Row],[Rubriek]],VastgoedVerdelingOG[],3,),0) -> 0 | E6: Aanwezigheidsdagen | F6: 42930 | G6: =IFERROR((KOOGW[[#This Row],[Werkingskosten]]+KOOGW[[#This Row],[Vastgoedkosten]])/KOOGW[[#This Row],[Totaal aantal per jaar]],0) -> 0.1472585604
A7: 74015000 | B7: Recup verplaatsingen | C7: -4.15 | D7: =IFERROR(VLOOKUP(KOOGW[[#This Row],[Rubriek]],VastgoedVerdelingOG[],3,),0) -> 0 | E7: Aanwezigheidsdagen | F7: 42930 | G7: =IFERROR((KOOGW[[#This Row],[Werkingskosten]]+KOOGW[[#This Row],[Vastgoedkosten]])/KOOGW[[#This Row],[Totaal aantal per jaar]],0) -> -9.666899604e-05
A8: 60052000 | B8: Pastorale werking | C8: 583.75 | D8: =IFERROR(VLOOKUP(KOOGW[[#This Row],[Rubriek]],VastgoedVerdelingOG[],3,),0) -> 0 | E8: Aanwezigheidsdagen | F8: 42930 | G8: =IFERROR((KOOGW[[#This Row],[Werkingskosten]]+KOOGW[[#This Row],[Vastgoedkosten]])/KOOGW[[#This Row],[Totaal aantal per jaar]],0) -> 0.01359771721
A9: 60091000 | B9: Klein materieel en meubilair | C9: 1421.34 | D9: =IFERROR(VLOOKUP(KOOGW[[#This Row],[Rubriek]],VastgoedVerdelingOG[],3,),0) -> 0 | E9: Aanwezigheidsdagen | F9: 42930 | G9: =IFERROR((KOOGW[[#This Row],[Werkingskosten]]+KOOGW[[#This Row],[Vastgoedkosten]])/KOOGW[[#This Row],[Totaal aantal per jaar]],0) -> 0.03310831586
A10: 610 | B10: Huur | C10: 18114.68 | D10: =IFERROR(VLOOKUP(KOOGW[[#This Row],[Rubriek]],VastgoedVerdelingOG[],3,),0) -> 0 | E10: Aanwezigheidsdagen | F10: 42930 | G10: =IFERROR((KOOGW[[#This Row],[Werkingskosten]]+KOOGW[[#This Row],[Vastgoedkosten]])/KOOGW[[#This Row],[Totaal aantal per jaar]],0) -> 0.4219585372
A11: 61100000 | B11: Onderhoudsproducten | C11: 13593.05 | D11: =IFERROR(VLOOKUP(KOOGW[[#This Row],[Rubriek]],VastgoedVerdelingOG[],3,),0) -> 0 | E11: Aanwezigheidsdagen | F11: 42930 | G11: =IFERROR((KOOGW[[#This Row],[Werkingskosten]]+KOOGW[[#This Row],[Vastgoedkosten]])/KOOGW[[#This Row],[Totaal aantal per jaar]],0) -> 0.3166328908
A12: 61110000 | B12: Benodigdheden technische dienst | C12: 1434.28 | D12: =IFERROR(VLOOKUP(KOOGW[[#This Row],[Rubriek]],VastgoedVerdelingOG[],3,),0) -> 0 | E12: Aanwezigheidsdagen | F12: 42930 | G12: =IFERROR((KOOGW[[#This Row],[Werkingskosten]]+KOOGW[[#This Row],[Vastgoedkosten]])/KOOGW[[#This Row],[Totaal aantal per jaar]],0) -> 0.03340973678
A13: 61111000 | B13: Kleine schilderwerken | C13: 9013.04 | D13: =IFERROR(VLOOKUP(KOOGW[[#This Row],[Rubriek]],VastgoedVerdelingOG[],3,),0) -> 0 | E13: Aanwezigheidsdagen | F13: 42930 | G13: =IFERROR((KOOGW[[#This Row],[Werkingskosten]]+KOOGW[[#This Row],[Vastgoedkosten]])/KOOGW[[#This Row],[Totaal aantal per jaar]],0) -> 0.2099473562
A14: 61120000 | B14: Herstel gebouwen | C14: 1233.09 | D14: =IFERROR(VLOOKUP(KOOGW[[#This Row],[Rubriek]],VastgoedVerdelingOG[],3,),0) -> 0 | E14: Aanwezigheidsdagen | F14: 42930 | G14: =IFERROR((KOOGW[[#This Row],[Werkingskosten]]+KOOGW[[#This Row],[Vastgoedkosten]])/KOOGW[[#This Row],[Totaal aantal per jaar]],0) -> 0.02872327044
A15: 74040000 | B15: Recup schade (brand,storm) | C15: -302.94 | D15: =IFERROR(VLOOKUP(KOOGW[[#This Row],[Rubriek]],VastgoedVerdelingOG[],3,),0) -> 0 | E15: Aanwezigheidsdagen | F15: 42930 | G15: =IFERROR((KOOGW[[#This Row],[Werkingskosten]]+KOOGW[[#This Row],[Vastgoedkosten]])/KOOGW[[#This Row],[Totaal aantal per jaar]],0) -> -0.007056603774
A16: 74051000 | B16: Recup verhuur | C16: -7936.05 | D16: =IFERROR(VLOOKUP(KOOGW[[#This Row],[Rubriek]],VastgoedVerdelingOG[],3,),0) -> 0 | E16: Aanwezigheidsdagen | F16: 42930 | G16: =IFERROR((KOOGW[[#This Row],[Werkingskosten]]+KOOGW[[#This Row],[Vastgoedkosten]])/KOOGW[[#This Row],[Totaal aantal per jaar]],0) -> -0.1848602376
A17: 61121000 | B17: Herstel binnenschrijnwerk | C17: 3000.02 | D17: =IFERROR(VLOOKUP(KOOGW[[#This Row],[Rubriek]],VastgoedVerdelingOG[],3,),0) -> 0 | E17: Aanwezigheidsdagen | F17: 42930 | G17: =IFERROR((KOOGW[[#This Row],[Werkingskosten]]+KOOGW[[#This Row],[Vastgoedkosten]])/KOOGW[[#This Row],[Totaal aantal per jaar]],0) -> 0.06988166783
A18: 61130000 | B18: Herstel technische installaties | C18: 467.82 | D18: =IFERROR(VLOOKUP(KOOGW[[#This Row],[Rubriek]],VastgoedVerdelingOG[],3,),0) -> 0 | E18: Aanwezigheidsdagen | F18: 42930 | G18: =IFERROR((KOOGW[[#This Row],[Werkingskosten]]+KOOGW[[#This Row],[Vastgoedkosten]])/KOOGW[[#This Row],[Totaal aantal per jaar]],0) -> 0.01089727463
A19: 61133000 | B19: Herstel medische installaties | C19: 11092.02 | D19: =IFERROR(VLOOKUP(KOOGW[[#This Row],[Rubriek]],VastgoedVerdelingOG[],3,),0) -> 0 | E19: Aanwezigheidsdagen | F19: 42930 | G19: =IFERROR((KOOGW[[#This Row],[Werkingskosten]]+KOOGW[[#This Row],[Vastgoedkosten]])/KOOGW[[#This Row],[Totaal aantal per jaar]],0) -> 0.2583745632
A20: 61135000 | B20: Herstel computerinstallaties | C20: 56.42 | D20: =IFERROR(VLOOKUP(KOOGW[[#This Row],[Rubriek]],VastgoedVerdelingOG[],3,),0) -> 0 | E20: Aanwezigheidsdagen | F20: 42930 | G20: =IFERROR((KOOGW[[#This Row],[Werkingskosten]]+KOOGW[[#This Row],[Vastgoedkosten]])/KOOGW[[#This Row],[Totaal aantal per jaar]],0) -> 0.001314232471
A21: 61136000 | B21: Herstel verwarming/sanitair | C21: 11263.26 | D21: =IFERROR(VLOOKUP(KOOGW[[#This Row],[Rubriek]],VastgoedVerdelingOG[],3,),0) -> 0 | E21: Aanwezigheidsdagen | F21: 42930 | G21: =IFERROR((KOOGW[[#This Row],[Werkingskosten]]+KOOGW[[#This Row],[Vastgoedkosten]])/KOOGW[[#This Row],[Totaal aantal per jaar]],0) -> 0.2623633823
A22: 61137000 | B22: Herstel diverse installaties | C22: 2559.34 | D22: =IFERROR(VLOOKUP(KOOGW[[#This Row],[Rubriek]],VastgoedVerdelingOG[],3,),0) -> 0 | E22: Aanwezigheidsdagen | F22: 42930 | G22: =IFERROR((KOOGW[[#This Row],[Werkingskosten]]+KOOGW[[#This Row],[Vastgoedkosten]])/KOOGW[[#This Row],[Totaal aantal per jaar]],0) -> 0.05961658514
A23: 61138000 | B23: Herstel elektrische installaties | C23: 3357.6 | D23: =IFERROR(VLOOKUP(KOOGW[[#This Row],[Rubriek]],VastgoedVerdelingOG[],3,),0) -> 0 | E23: Aanwezigheidsdagen | F23: 42930 | G23: =IFERROR((KOOGW[[#This Row],[Werkingskosten]]+KOOGW[[#This Row],[Vastgoedkosten]])/KOOGW[[#This Row],[Totaal aantal per jaar]],0) -> 0.07821104123
A24: 61139000 | B24: Herstel telefooninstallatie | C24: 2488.88 | D24: =IFERROR(VLOOKUP(KOOGW[[#This Row],[Rubriek]],VastgoedVerdelingOG[],3,),0) -> 0 | E24: Aanwezigheidsdagen | F24: 42930 | G24: =IFERROR((KOOGW[[#This Row],[Werkingskosten]]+KOOGW[[#This Row],[Vastgoedkosten]])/KOOGW[[#This Row],[Totaal aantal per jaar]],0) -> 0.05797530864
A25: 61140000 | B25: Herstel meubilair | C25: 552.98 | D25: =IFERROR(VLOOKUP(KOOGW[[#This Row],[Rubriek]],VastgoedVerdelingOG[],3,),0) -> 0 | E25: Aanwezigheidsdagen | F25: 42930 | G25: =IFERROR((KOOGW[[#This Row],[Werkingskosten]]+KOOGW[[#This Row],[Vastgoedkosten]])/KOOGW[[#This Row],[Totaal aantal per jaar]],0) -> 0.01288096902
A26: 61141000 | B26: Herstel rollend materieel | C26: 2995.44 | D26: =IFERROR(VLOOKUP(KOOGW[[#This Row],[Rubriek]],VastgoedVerdelingOG[],3,),0) -> 0 | E26: Aanwezigheidsdagen | F26: 42930 | G26: =IFERROR((KOOGW[[#This Row],[Werkingskosten]]+KOOGW[[#This Row],[Vastgoedkosten]])/KOOGW[[#This Row],[Totaal aantal per jaar]],0) -> 0.06977498253
A27: 61150000 | B27: Onderhoud tuinen,terreinen | C27: 3765.44 | D27: =IFERROR(VLOOKUP(KOOGW[[#This Row],[Rubriek]],VastgoedVerdelingOG[],3,),0) -> 0 | E27: Aanwezigheidsdagen | F27: 42930 | G27: =IFERROR((KOOGW[[#This Row],[Werkingskosten]]+KOOGW[[#This Row],[Vastgoedkosten]])/KOOGW[[#This Row],[Totaal aantal per jaar]],0) -> 0.0877111577
A28: 61160000 | B28: Huisvuil | C28: 13584.08 | D28: =IFERROR(VLOOKUP(KOOGW[[#This Row],[Rubriek]],VastgoedVerdelingOG[],3,),0) -> 0 | E28: Aanwezigheidsdagen | F28: 42930 | G28: =IFERROR((KOOGW[[#This Row],[Werkingskosten]]+KOOGW[[#This Row],[Vastgoedkosten]])/KOOGW[[#This Row],[Totaal aantal per jaar]],0) -> 0.316423946
A29: 61161000 | B29: Ongediertebestrijding | C29: 14.53 | D29: =IFERROR(VLOOKUP(KOOGW[[#This Row],[Rubriek]],VastgoedVerdelingOG[],3,),0) -> 0 | E29: Aanwezigheidsdagen | F29: 42930 | G29: =IFERROR((KOOGW[[#This Row],[Werkingskosten]]+KOOGW[[#This Row],[Vastgoedkosten]])/KOOGW[[#This Row],[Totaal aantal per jaar]],0) -> 0.0003384579548
A30: 61162000 | B30: Brandbeveiliging | C30: 1239.65 | D30: =IFERROR(VLOOKUP(KOOGW[[#This Row],[Rubriek]],VastgoedVerdelingOG[],3,),0) -> 0 | E30: Aanwezigheidsdagen | F30: 42930 | G30: =IFERROR((KOOGW[[#This Row],[Werkingskosten]]+KOOGW[[#This Row],[Vastgoedkosten]])/KOOGW[[#This Row],[Totaal aantal per jaar]],0) -> 0.02887607734
A31: 61170000 | B31: Onderhoudscontracten | C31: 6673.87 | D31: =IFERROR(VLOOKUP(KOOGW[[#This Row],[Rubriek]],VastgoedVerdelingOG[],3,),0) -> 0 | E31: Aanwezigheidsdagen | F31: 42930 | G31: =IFERROR((KOOGW[[#This Row],[Werkingskosten]]+KOOGW[[#This Row],[Vastgoedkosten]])/KOOGW[[#This Row],[Totaal aantal per jaar]],0) -> 0.1554593524
A32: 61250000 | B32: Brandstof rollend materieel | C32: 6095.56 | D32: =IFERROR(VLOOKUP(KOOGW[[#This Row],[Rubriek]],VastgoedVerdelingOG[],3,),0) -> 0 | E32: Aanwezigheidsdagen | F32: 42930 | G32: =IFERROR((KOOGW[[#This Row],[Werkingskosten]]+KOOGW[[#This Row],[Vastgoedkosten]])/KOOGW[[#This Row],[Totaal aantal per jaar]],0) -> 0.1419883531
A33: 61300000 | B33: Kantoorkosten | C33: 2837.88 | D33: =IFERROR(VLOOKUP(KOOGW[[#This Row],[Rubriek]],VastgoedVerdelingOG[],3,),0) -> 0 | E33: Aanwezigheidsdagen | F33: 42930 | G33: =IFERROR((KOOGW[[#This Row],[Werkingskosten]]+KOOGW[[#This Row],[Vastgoedkosten]])/KOOGW[[#This Row],[Totaal aantal per jaar]],0) -> 0.0661048218
A34: 74013000 | B34: Recup kantoor gebruikers | C34: -110.2 | D34: =IFERROR(VLOOKUP(KOOGW[[#This Row],[Rubriek]],VastgoedVerdelingOG[],3,),0) -> 0 | E34: Aanwezigheidsdagen | F34: 42930 | G34: =IFERROR((KOOGW[[#This Row],[Werkingskosten]]+KOOGW[[#This Row],[Vastgoedkosten]])/KOOGW[[#This Row],[Totaal aantal per jaar]],0) -> -0.002566969485
A35: 74021300 | B35: Recup kantoor personeel | C35: -4 | D35: =IFERROR(VLOOKUP(KOOGW[[#This Row],[Rubriek]],VastgoedVerdelingOG[],3,),0) -> 0 | E35: Aanwezigheidsdagen | F35: 42930 | G35: =IFERROR((KOOGW[[#This Row],[Werkingskosten]]+KOOGW[[#This Row],[Vastgoedkosten]])/KOOGW[[#This Row],[Totaal aantal per jaar]],0) -> -9.317493594e-05
A36: 74051300 | B36: Recup kantoor derden | C36: -13.35 | D36: =IFERROR(VLOOKUP(KOOGW[[#This Row],[Rubriek]],VastgoedVerdelingOG[],3,),0) -> 0 | E36: Aanwezigheidsdagen | F36: 42930 | G36: =IFERROR((KOOGW[[#This Row],[Werkingskosten]]+KOOGW[[#This Row],[Vastgoedkosten]])/KOOGW[[#This Row],[Totaal aantal per jaar]],0) -> -0.0003109713487
A37: 61310000 | B37: Verzendingkosten | C37: 3110.31 | D37: =IFERROR(VLOOKUP(KOOGW[[#This Row],[Rubriek]],VastgoedVerdelingOG[],3,),0) -> 0 | E37: Aanwezigheidsdagen | F37: 42930 | G37: =IFERROR((KOOGW[[#This Row],[Werkingskosten]]+KOOGW[[#This Row],[Vastgoedkosten]])/KOOGW[[#This Row],[Totaal aantal per jaar]],0) -> 0.07245073375
A38: 61320000 | B38: Telefoon/internet | C38: 5682.63 | D38: =IFERROR(VLOOKUP(KOOGW[[#This Row],[Rubriek]],VastgoedVerdelingOG[],3,),0) -> 0 | E38: Aanwezigheidsdagen | F38: 42930 | G38: =IFERROR((KOOGW[[#This Row],[Werkingskosten]]+KOOGW[[#This Row],[Vastgoedkosten]])/KOOGW[[#This Row],[Totaal aantal per jaar]],0) -> 0.1323696716
A39: 61330000 | B39: Drukwerk | C39: 389.62 | D39: =IFERROR(VLOOKUP(KOOGW[[#This Row],[Rubriek]],VastgoedVerdelingOG[],3,),0) -> 0 | E39: Aanwezigheidsdagen | F39: 42930 | G39: =IFERROR((KOOGW[[#This Row],[Werkingskosten]]+KOOGW[[#This Row],[Vastgoedkosten]])/KOOGW[[#This Row],[Totaal aantal per jaar]],0) -> 0.009075704635
A40: 61340000 | B40: Fotokopiekosten | C40: 1750.53 | D40: =IFERROR(VLOOKUP(KOOGW[[#This Row],[Rubriek]],VastgoedVerdelingOG[],3,),0) -> 0 | E40: Aanwezigheidsdagen | F40: 42930 | G40: =IFERROR((KOOGW[[#This Row],[Werkingskosten]]+KOOGW[[#This Row],[Vastgoedkosten]])/KOOGW[[#This Row],[Totaal aantal per jaar]],0) -> 0.04077638015
A41: 61350000 | B41: Papier | C41: 874.11 | D41: =IFERROR(VLOOKUP(KOOGW[[#This Row],[Rubriek]],VastgoedVerdelingOG[],3,),0) -> 0 | E41: Aanwezigheidsdagen | F41: 42930 | G41: =IFERROR((KOOGW[[#This Row],[Werkingskosten]]+KOOGW[[#This Row],[Vastgoedkosten]])/KOOGW[[#This Row],[Totaal aantal per jaar]],0) -> 0.02036128581
A42: 61360000 | B42: Wettelijke formaliteiten | C42: 79.07 | D42: =IFERROR(VLOOKUP(KOOGW[[#This Row],[Rubriek]],VastgoedVerdelingOG[],3,),0) -> 0 | E42: Aanwezigheidsdagen | F42: 42930 | G42: =IFERROR((KOOGW[[#This Row],[Werkingskosten]]+KOOGW[[#This Row],[Vastgoedkosten]])/KOOGW[[#This Row],[Totaal aantal per jaar]],0) -> 0.001841835546
A43: 61380000 | B43: Computerkosten | C43: 4804.93 | D43: =IFERROR(VLOOKUP(KOOGW[[#This Row],[Rubriek]],VastgoedVerdelingOG[],3,),0) -> 0 | E43: Aanwezigheidsdagen | F43: 42930 | G43: =IFERROR((KOOGW[[#This Row],[Werkingskosten]]+KOOGW[[#This Row],[Vastgoedkosten]])/KOOGW[[#This Row],[Totaal aantal per jaar]],0) -> 0.1119247612
A44: 61610000 | B44: Sociaal secretariaat | C44: 30497.7 | D44: =IFERROR(VLOOKUP(KOOGW[[#This Row],[Rubriek]],VastgoedVerdelingOG[],3,),0) -> 0 | E44: Aanwezigheidsdagen | F44: 42930 | G44: =IFERROR((KOOGW[[#This Row],[Werkingskosten]]+KOOGW[[#This Row],[Vastgoedkosten]])/KOOGW[[#This Row],[Totaal aantal per jaar]],0) -> 0.710405311
A45: 61611000 | B45: Centrale administratie | C45: 35437.81 | D45: =IFERROR(VLOOKUP(KOOGW[[#This Row],[Rubriek]],VastgoedVerdelingOG[],3,),0) -> 0 | E45: Aanwezigheidsdagen | F45: 42930 | G45: =IFERROR((KOOGW[[#This Row],[Werkingskosten]]+KOOGW[[#This Row],[Vastgoedkosten]])/KOOGW[[#This Row],[Totaal aantal per jaar]],0) -> 0.8254789192
A46: 61612000 | B46: Controle en keuring | C46: 2743.89 | D46: =IFERROR(VLOOKUP(KOOGW[[#This Row],[Rubriek]],VastgoedVerdelingOG[],3,),0) -> 0 | E46: Aanwezigheidsdagen | F46: 42930 | G46: =IFERROR((KOOGW[[#This Row],[Werkingskosten]]+KOOGW[[#This Row],[Vastgoedkosten]])/KOOGW[[#This Row],[Totaal aantal per jaar]],0) -> 0.06391544375
A47: 61614000 | B47: Informatica-computerprestaties | C47: 1032.83 | D47: =IFERROR(VLOOKUP(KOOGW[[#This Row],[Rubriek]],VastgoedVerdelingOG[],3,),0) -> 0 | E47: Aanwezigheidsdagen | F47: 42930 | G47: =IFERROR((KOOGW[[#This Row],[Werkingskosten]]+KOOGW[[#This Row],[Vastgoedkosten]])/KOOGW[[#This Row],[Totaal aantal per jaar]],0) -> 0.02405846727
A48: 61617000 | B48: Boekhouding | C48: 1378.62 | D48: =IFERROR(VLOOKUP(KOOGW[[#This Row],[Rubriek]],VastgoedVerdelingOG[],3,),0) -> 0 | E48: Aanwezigheidsdagen | F48: 42930 | G48: =IFERROR((KOOGW[[#This Row],[Werkingskosten]]+KOOGW[[#This Row],[Vastgoedkosten]])/KOOGW[[#This Row],[Totaal aantal per jaar]],0) -> 0.03211320755
A49: 61618000 | B49: Orbis | C49: 5849.95 | D49: =IFERROR(VLOOKUP(KOOGW[[#This Row],[Rubriek]],VastgoedVerdelingOG[],3,),0) -> 0 | E49: Aanwezigheidsdagen | F49: 42930 | G49: =IFERROR((KOOGW[[#This Row],[Werkingskosten]]+KOOGW[[#This Row],[Vastgoedkosten]])/KOOGW[[#This Row],[Totaal aantal per jaar]],0) -> 0.1362671791
A50: 61620000 | B50: Ereloon bedrijfsrevisor | C50: 4646.4 | D50: =IFERROR(VLOOKUP(KOOGW[[#This Row],[Rubriek]],VastgoedVerdelingOG[],3,),0) -> 0 | E50: Aanwezigheidsdagen | F50: 42930 | G50: =IFERROR((KOOGW[[#This Row],[Werkingskosten]]+KOOGW[[#This Row],[Vastgoedkosten]])/KOOGW[[#This Row],[Totaal aantal per jaar]],0) -> 0.1082320056
A51: 61621000 | B51: Lidgeld Vlaams Welzijn | C51: 7682.16 | D51: =IFERROR(VLOOKUP(KOOGW[[#This Row],[Rubriek]],VastgoedVerdelingOG[],3,),0) -> 0 | E51: Aanwezigheidsdagen | F51: 42930 | G51: =IFERROR((KOOGW[[#This Row],[Werkingskosten]]+KOOGW[[#This Row],[Vastgoedkosten]])/KOOGW[[#This Row],[Totaal aantal per jaar]],0) -> 0.1789461915
A52: 61622000 | B52: Giften en geschenken | C52: 205.83 | D52: =IFERROR(VLOOKUP(KOOGW[[#This Row],[Rubriek]],VastgoedVerdelingOG[],3,),0) -> 0 | E52: Aanwezigheidsdagen | F52: 42930 | G52: =IFERROR((KOOGW[[#This Row],[Werkingskosten]]+KOOGW[[#This Row],[Vastgoedkosten]])/KOOGW[[#This Row],[Totaal aantal per jaar]],0) -> 0.004794549266
A53: 61623000 | B53: Lidgelden | C53: 527 | D53: =IFERROR(VLOOKUP(KOOGW[[#This Row],[Rubriek]],VastgoedVerdelingOG[],3,),0) -> 0 | E53: Aanwezigheidsdagen | F53: 42930 | G53: =IFERROR((KOOGW[[#This Row],[Werkingskosten]]+KOOGW[[#This Row],[Vastgoedkosten]])/KOOGW[[#This Row],[Totaal aantal per jaar]],0) -> 0.01227579781
A54: 61624000 | B54: Public relations | C54: 2878.48 | D54: =IFERROR(VLOOKUP(KOOGW[[#This Row],[Rubriek]],VastgoedVerdelingOG[],3,),0) -> 0 | E54: Aanwezigheidsdagen | F54: 42930 | G54: =IFERROR((KOOGW[[#This Row],[Werkingskosten]]+KOOGW[[#This Row],[Vastgoedkosten]])/KOOGW[[#This Row],[Totaal aantal per jaar]],0) -> 0.0670505474
A55: 61626000 | B55: Andere erelonen | C55: 707.79 | D55: =IFERROR(VLOOKUP(KOOGW[[#This Row],[Rubriek]],VastgoedVerdelingOG[],3,),0) -> 0 | E55: Aanwezigheidsdagen | F55: 42930 | G55: =IFERROR((KOOGW[[#This Row],[Werkingskosten]]+KOOGW[[#This Row],[Vastgoedkosten]])/KOOGW[[#This Row],[Totaal aantal per jaar]],0) -> 0.01648707198
A56: 61629000 | B56: Diverse notoriteitsuitgaven | C56: 811.59 | D56: =IFERROR(VLOOKUP(KOOGW[[#This Row],[Rubriek]],VastgoedVerdelingOG[],3,),0) -> 0 | E56: Aanwezigheidsdagen | F56: 42930 | G56: =IFERROR((KOOGW[[#This Row],[Werkingskosten]]+KOOGW[[#This Row],[Vastgoedkosten]])/KOOGW[[#This Row],[Totaal aantal per jaar]],0) -> 0.01890496157
A57: 62200000 | B57: Buitenwettelijke verzekeringen | C57: 3749.97 | D57: =IFERROR(VLOOKUP(KOOGW[[#This Row],[Rubriek]],VastgoedVerdelingOG[],3,),0) -> 0 | E57: Aanwezigheidsdagen | F57: 42930 | G57: =IFERROR((KOOGW[[#This Row],[Werkingskosten]]+KOOGW[[#This Row],[Vastgoedkosten]])/KOOGW[[#This Row],[Totaal aantal per jaar]],0) -> 0.08735080363
A58: 62300000 | B58: Verzekering arbeidsongevallen | C58: 22396.89 | D58: =IFERROR(VLOOKUP(KOOGW[[#This Row],[Rubriek]],VastgoedVerdelingOG[],3,),0) -> 0 | E58: Aanwezigheidsdagen | F58: 42930 | G58: =IFERROR((KOOGW[[#This Row],[Werkingskosten]]+KOOGW[[#This Row],[Vastgoedkosten]])/KOOGW[[#This Row],[Totaal aantal per jaar]],0) -> 0.5217071978
A59: 62301000 | B59: BA personeel | C59: 1028.75 | D59: =IFERROR(VLOOKUP(KOOGW[[#This Row],[Rubriek]],VastgoedVerdelingOG[],3,),0) -> 0 | E59: Aanwezigheidsdagen | F59: 42930 | G59: =IFERROR((KOOGW[[#This Row],[Werkingskosten]]+KOOGW[[#This Row],[Vastgoedkosten]])/KOOGW[[#This Row],[Totaal aantal per jaar]],0) -> 0.02396342884
A60: 62310000 | B60: Bedrijfsgeneeskunde | C60: 22836.29 | D60: =IFERROR(VLOOKUP(KOOGW[[#This Row],[Rubriek]],VastgoedVerdelingOG[],3,),0) -> 0 | E60: Aanwezigheidsdagen | F60: 42930 | G60: =IFERROR((KOOGW[[#This Row],[Werkingskosten]]+KOOGW[[#This Row],[Vastgoedkosten]])/KOOGW[[#This Row],[Totaal aantal per jaar]],0) -> 0.5319424645
A61: 6232 | B61: Woon-werkverkeer | C61: =46745.2+10288.96 -> 57034.16 | D61: =IFERROR(VLOOKUP(KOOGW[[#This Row],[Rubriek]],VastgoedVerdelingOG[],3,),0) -> 0 | E61: Aanwezigheidsdagen | F61: 42930 | G61: =IFERROR((KOOGW[[#This Row],[Werkingskosten]]+KOOGW[[#This Row],[Vastgoedkosten]])/KOOGW[[#This Row],[Totaal aantal per jaar]],0) -> 1.328538551
A62: 6234000 | B62: Syndicale premie | C62: 1836.32 | D62: =IFERROR(VLOOKUP(KOOGW[[#This Row],[Rubriek]],VastgoedVerdelingOG[],3,),0) -> 0 | E62: Aanwezigheidsdagen | F62: 42930 | G62: =IFERROR((KOOGW[[#This Row],[Werkingskosten]]+KOOGW[[#This Row],[Vastgoedkosten]])/KOOGW[[#This Row],[Totaal aantal per jaar]],0) -> 0.04277474959
A63: 62350000 | B63: Kamppremie | C63: 2141.49 | D63: =IFERROR(VLOOKUP(KOOGW[[#This Row],[Rubriek]],VastgoedVerdelingOG[],3,),0) -> 0 | E63: Aanwezigheidsdagen | F63: 42930 | G63: =IFERROR((KOOGW[[#This Row],[Werkingskosten]]+KOOGW[[#This Row],[Vastgoedkosten]])/KOOGW[[#This Row],[Totaal aantal per jaar]],0) -> 0.04988329839
A64: 62360000 | B64: Werkkledij | C64: 2093.52 | D64: =IFERROR(VLOOKUP(KOOGW[[#This Row],[Rubriek]],VastgoedVerdelingOG[],3,),0) -> 0 | E64: Aanwezigheidsdagen | F64: 42930 | G64: =IFERROR((KOOGW[[#This Row],[Werkingskosten]]+KOOGW[[#This Row],[Vastgoedkosten]])/KOOGW[[#This Row],[Totaal aantal per jaar]],0) -> 0.04876589797
A65: 6239000 | B65: Diverse andere personeelskosten | C65: 6012.23 | D65: =IFERROR(VLOOKUP(KOOGW[[#This Row],[Rubriek]],VastgoedVerdelingOG[],3,),0) -> 0 | E65: Aanwezigheidsdagen | F65: 42930 | G65: =IFERROR((KOOGW[[#This Row],[Werkingskosten]]+KOOGW[[#This Row],[Vastgoedkosten]])/KOOGW[[#This Row],[Totaal aantal per jaar]],0) -> 0.1400472863
A66: 64000000 | B66: Bedrijfsbelastingen | C66: 21490.96 | D66: =IFERROR(VLOOKUP(KOOGW[[#This Row],[Rubriek]],VastgoedVerdelingOG[],3,),0) -> 0 | E66: Aanwezigheidsdagen | F66: 42930 | G66: =IFERROR((KOOGW[[#This Row],[Werkingskosten]]+KOOGW[[#This Row],[Vastgoedkosten]])/KOOGW[[#This Row],[Totaal aantal per jaar]],0) -> 0.5006047053
A67: 64500000 | B67: Bibliotheek | C67: 444.94 | D67: =IFERROR(VLOOKUP(KOOGW[[#This Row],[Rubriek]],VastgoedVerdelingOG[],3,),0) -> 0 | E67: Aanwezigheidsdagen | F67: 42930 | G67: =IFERROR((KOOGW[[#This Row],[Werkingskosten]]+KOOGW[[#This Row],[Vastgoedkosten]])/KOOGW[[#This Row],[Totaal aantal per jaar]],0) -> 0.010364314
A68: 647 | B68: Georganiseerde activiteiten | C68: 3697.79 | D68: =IFERROR(VLOOKUP(KOOGW[[#This Row],[Rubriek]],VastgoedVerdelingOG[],3,),0) -> 0 | E68: Aanwezigheidsdagen | F68: 42930 | G68: =IFERROR((KOOGW[[#This Row],[Werkingskosten]]+KOOGW[[#This Row],[Vastgoedkosten]])/KOOGW[[#This Row],[Totaal aantal per jaar]],0) -> 0.08613533659
A69: 747 | B69: Recup georganiseerde act | C69: -8466.51 | D69: =IFERROR(VLOOKUP(KOOGW[[#This Row],[Rubriek]],VastgoedVerdelingOG[],3,),0) -> 0 | E69: Aanwezigheidsdagen | F69: 42930 | G69: =IFERROR((KOOGW[[#This Row],[Werkingskosten]]+KOOGW[[#This Row],[Vastgoedkosten]])/KOOGW[[#This Row],[Totaal aantal per jaar]],0) -> -0.1972166317
A70: 648 | B70: Arbeidsgerichte activiteiten | C70: 1459.87 | D70: =IFERROR(VLOOKUP(KOOGW[[#This Row],[Rubriek]],VastgoedVerdelingOG[],3,),0) -> 0 | E70: Aanwezigheidsdagen | F70: 42930 | G70: =IFERROR((KOOGW[[#This Row],[Werkingskosten]]+KOOGW[[#This Row],[Vastgoedkosten]])/KOOGW[[#This Row],[Totaal aantal per jaar]],0) -> 0.03400582343
A71: 748 | B71: Recup arbeidsgerichte act | C71: -1154.42 | D71: =IFERROR(VLOOKUP(KOOGW[[#This Row],[Rubriek]],VastgoedVerdelingOG[],3,),0) -> 0 | E71: Aanwezigheidsdagen | F71: 42930 | G71: =IFERROR((KOOGW[[#This Row],[Werkingskosten]]+KOOGW[[#This Row],[Vastgoedkosten]])/KOOGW[[#This Row],[Totaal aantal per jaar]],0) -> -0.02689075239
A72: 65 | B72: Financiële kosten | C72: 54407.51 | D72: =IFERROR(VLOOKUP(KOOGW[[#This Row],[Rubriek]],VastgoedVerdelingOG[],3,),0) -> 0 | E72: Aanwezigheidsdagen | F72: 42930 | G72: =IFERROR((KOOGW[[#This Row],[Werkingskosten]]+KOOGW[[#This Row],[Vastgoedkosten]])/KOOGW[[#This Row],[Totaal aantal per jaar]],0) -> 1.267354065
A73: 75 | B73: Financiële opbrengsten | C73: -77492.25 | D73: =IFERROR(VLOOKUP(KOOGW[[#This Row],[Rubriek]],VastgoedVerdelingOG[],3,),0) -> 0 | E73: Aanwezigheidsdagen | F73: 42930 | G73: =IFERROR((KOOGW[[#This Row],[Werkingskosten]]+KOOGW[[#This Row],[Vastgoedkosten]])/KOOGW[[#This Row],[Totaal aantal per jaar]],0) -> -1.805083857
B74: Elektriciteit | C74: =Energie!E10 -> 36291.1823 | D74: =IFERROR(VLOOKUP(KOOGW[[#This Row],[Rubriek]],VastgoedVerdelingOG[],3,),0) -> 0 | E74: Aanwezigheidsdagen | F74: 42930 | G74: =IFERROR((KOOGW[[#This Row],[Werkingskosten]]+KOOGW[[#This Row],[Vastgoedkosten]])/KOOGW[[#This Row],[Totaal aantal per jaar]],0) -> 0.8453571465
B75: Water | C75: =Energie!E40 -> 5609.9654 | D75: =IFERROR(VLOOKUP(KOOGW[[#This Row],[Rubriek]],VastgoedVerdelingOG[],3,),0) -> 0 | E75: Aanwezigheidsdagen | F75: 42930 | G75: =IFERROR((KOOGW[[#This Row],[Werkingskosten]]+KOOGW[[#This Row],[Vastgoedkosten]])/KOOGW[[#This Row],[Totaal aantal per jaar]],0) -> 0.1306770417
B76: Gas | C76: =Energie!E20 -> 30753.4428 | D76: =IFERROR(VLOOKUP(KOOGW[[#This Row],[Rubriek]],VastgoedVerdelingOG[],3,),0) -> 0 | E76: Aanwezigheidsdagen | F76: 42930 | G76: =IFERROR((KOOGW[[#This Row],[Werkingskosten]]+KOOGW[[#This Row],[Vastgoedkosten]])/KOOGW[[#This Row],[Totaal aantal per jaar]],0) -> 0.7163625157
B77: Totaal | C77: =SUBTOTAL(109,KOOGW[Werkingskosten]) -> 425221.4205 | D77: =SUBTOTAL(109,KOOGW[Vastgoedkosten]) -> 305061.3179

Sheet Woon- en leefkosten
A1: Grootboekrekening | B1: Woon- & Leefkost | C1: Gebruikte verdeelsleutel | D1: Totaal aantal eenheden | E1: Brutokost per eenheid | F1: Subsidies per eenheid | G1: Nettokost per eenheid
B2: Ontbijt | C2: aantal nachten woonondersteuning | D2: 42930 | E2: 1.3 | F2: 0 | G2: =WoonEnLeefKosten[[#This Row],[Brutokost per eenheid]]-WoonEnLeefKosten[[#This Row],[Subsidies per eenheid]] -> 1.3
B3: Middagmaal | C3: Aanwezigheidsdagen | D3: 42930 | E3: 12.09 | F3: 0 | G3: =WoonEnLeefKosten[[#This Row],[Brutokost per eenheid]]-WoonEnLeefKosten[[#This Row],[Subsidies per eenheid]] -> 12.09
B4: Avondmaal | C4: Aanwezigheidsdagen | D4: 42930 | E4: 1.95 | F4: 0 | G4: =WoonEnLeefKosten[[#This Row],[Brutokost per eenheid]]-WoonEnLeefKosten[[#This Row],[Subsidies per eenheid]] -> 1.95
B5: Huur kamer | C5: Aanwezigheidsdagen | D5: 42930 | E5: 7.63 | F5: 0 | G5: =WoonEnLeefKosten[[#This Row],[Brutokost per eenheid]]-WoonEnLeefKosten[[#This Row],[Subsidies per eenheid]] -> 7.63
B6: Onderhoud kamer | C6: Aanwezigheidsdagen | D6: 42930 | E6: 8.01 | F6: 0 | G6: =WoonEnLeefKosten[[#This Row],[Brutokost per eenheid]]-WoonEnLeefKosten[[#This Row],[Subsidies per eenheid]] -> 8.01
B7: Naaisters | C7: Uren | E7: 0 | F7: 0 | G7: =WoonEnLeefKosten[[#This Row],[Brutokost per eenheid]]-WoonEnLeefKosten[[#This Row],[Subsidies per eenheid]] -> 0
B8: W&L 7 | C8: Aanwezigheidsdagen | E8: 0 | F8: 0 | G8: =WoonEnLeefKosten[[#This Row],[Brutokost per eenheid]]-WoonEnLeefKosten[[#This Row],[Subsidies per eenheid]] -> 0
B9: W&L 8 | C9: Aanwezigheidsdagen | E9: 0 | F9: 0 | G9: =WoonEnLeefKosten[[#This Row],[Brutokost per eenheid]]-WoonEnLeefKosten[[#This Row],[Subsidies per eenheid]] -> 0
B10: W&L 9 | C10: Aanwezigheidsdagen | E10: 0 | F10: 0 | G10: =WoonEnLeefKosten[[#This Row],[Brutokost per eenheid]]-WoonEnLeefKosten[[#This Row],[Subsidies per eenheid]] -> 0
B11: W&L 10 | C11: Aanwezigheidsdagen | E11: 0 | F11: 0 | G11: =WoonEnLeefKosten[[#This Row],[Brutokost per eenheid]]-WoonEnLeefKosten[[#This Row],[Subsidies per eenheid]] -> 0
B12: W&L 11 | C12: Aanwezigheidsdagen | E12: 0 | F12: 0 | G12: =WoonEnLeefKosten[[#This Row],[Brutokost per eenheid]]-WoonEnLeefKosten[[#This Row],[Subsidies per eenheid]] -> 0
B13: W&L 12 | C13: Aanwezigheidsdagen | E13: 0 | F13: 0 | G13: =WoonEnLeefKosten[[#This Row],[Brutokost per eenheid]]-WoonEnLeefKosten[[#This Row],[Subsidies per eenheid]] -> 0
B14: W&L 13 | C14: Aanwezigheidsdagen | E14: 0 | F14: 0 | G14: =WoonEnLeefKosten[[#This Row],[Brutokost per eenheid]]-WoonEnLeefKosten[[#This Row],[Subsidies per eenheid]] -> 0
B15: W&L 14 | C15: Aanwezigheidsdagen | E15: 0 | F15: 0 | G15: =WoonEnLeefKosten[[#This Row],[Brutokost per eenheid]]-WoonEnLeefKosten[[#This Row],[Subsidies per eenheid]] -> 0
B16: W&L 15 | C16: Aanwezigheidsdagen | E16: 0 | F16: 0 | G16: =WoonEnLeefKosten[[#This Row],[Brutokost per eenheid]]-WoonEnLeefKosten[[#This Row],[Subsidies per eenheid]] -> 0
B17: W&L 16 | C17: Aanwezigheidsdagen | E17: 0 | F17: 0 | G17: =WoonEnLeefKosten[[#This Row],[Brutokost per eenheid]]-WoonEnLeefKosten[[#This Row],[Subsidies per eenheid]] -> 0
B18: W&L 17 | C18: Aanwezigheidsdagen | E18: 0 | F18: 0 | G18: =WoonEnLeefKosten[[#This Row],[Brutokost per eenheid]]-WoonEnLeefKosten[[#This Row],[Subsidies per eenheid]] -> 0
B19: W&L 18 | C19: Aanwezigheidsdagen | E19: 0 | F19: 0 | G19: =WoonEnLeefKosten[[#This Row],[Brutokost per eenheid]]-WoonEnLeefKosten[[#This Row],[Subsidies per eenheid]] -> 0
B20: W&L 19 | C20: Aanwezigheidsdagen | E20: 0 | F20: 0 | G20: =WoonEnLeefKosten[[#This Row],[Brutokost per eenheid]]-WoonEnLeefKosten[[#This Row],[Subsidies per eenheid]] -> 0
B21: W&L 20 | C21: Aanwezigheidsdagen | E21: 0 | F21: 0 | G21: =WoonEnLeefKosten[[#This Row],[Brutokost per eenheid]]-WoonEnLeefKosten[[#This Row],[Subsidies per eenheid]] -> 0
A22: Totaal

Sheet Personeelsbaremas
A1: Functiegroep | B1: Barema | D1: Puntenwaarde/VTE | E1: Uren per VTE
A2: Logistiek personeel klasse 4 | B2: barema 1 | C2: L4 | D2: 53.5 | E2: 1983.6
A3: Logistiek personeel onderhoud cat II | B3: barema 2 | C3: L4 ond II | D3: 53.5 | E3: 1983.6
A4: Logistiek personeel onderhoud cat III | B4: barema 3 | C4: L4 ond III | D4: 53.5 | E4: 1983.6
A5: Logistiek personeel onderhoud cat IV | B5: barema 4 | C5: L3 ond IV | D5: 56 | E5: 1983.6
A6: Logistiek personeel onderhoud cat V | B6: barema 5 | C6: L2 ond V | D6: 61 | E6: 1983.6
A7: Logistiek personeel klasse 3 (In dienst voor 1/11/93) | B7: barema 6 | C7: L3a | D7: 56 | E7: 1983.6
A8: Logistiek personeel klasse 3 (In dienst na 1/11/93) | B8: barema 7 | C8: L3 | D8: 56 | E8: 1983.6
A9: Logistiek personeel klasse 2 | B9: barema 8 | C9: L2 | D9: 61 | E9: 1983.6
A10: Administratief + logistiek personeel klasse 1 | B10: barema 9 | C10: A1 | D10: 71 | E10: 1983.6
A11: Administratief + logistiek personeel klasse 2 | B11: barema 10 | C11: A2 | D11: 61 | E11: 1983.6
A12: Administratief personeel boekhouder klasse II | B12: barema 11 | C12: A2 boekh Kl II | D12: 61.5 | E12: 1983.6
A13: Administratief personeel klasse 3 | B13: barema 12 | C13: A3 | D13: 56 | E13: 1983.6
A14: Verzorgend personeel | B14: barema 13 | C14: MV2 | D14: 67 | E14: 1983.6
A15: Begeleidend en verzorgend personeel klasse 3 | B15: barema 14 | C15: B3 | D15: 57.5 | E15: 1983.6
A16: Begeleidend en verzorgend personeel klasse 2B | B16: barema 15 | C16: B2B | D16: 61 | E16: 1983.6
A17: Begeleidend en verzorgend personeel klasse 2A | B17: barema 16 | C17: B2A | D17: 63.5 | E17: 1983.6
A18: Opvoedend personeel klasse 1 | B18: barema 17 | C18: B1c | D18: 71 | E18: 1983.6
A19: Hoofdopvoeder | B19: barema 18 | C19: B1b | D19: 79 | E19: 1983.6
A20: Opvoeder-groepchef | B20: barema 19 | C20: B1a | D20: 86 | E20: 1983.6
A21: Sociaal paramedisch en therapeutisch personeel | B21: barema 20 | C21: MV1 | D21: 71 | E21: 1983.6
A22: Licentiaten en tandarts | B22: barema 21 | C22: L1 | D22: 90 | E22: 1983.6
A23: Onderdirecteur | B23: barema 22 | C23: K5 | D23: 90 | E23: 1983.6
A24: Directeur 30-59 bedden | B24: barema 23 | C24: K3 | D24: 93.5 | E24: 1983.6
A25: Directeur 60-89 bedden | B25: barema 24 | C25: K2 | D25: 96.5 | E25: 1983.6
A26: Directeur + 90 bedden | B26: barema 25 | C26: K1 | D26: 100 | E26: 1983.6
A27: Geneesheer omnipracticus | B27: barema 26 | C27: G1 | D27: 108 | E27: 1248
A28: Geneesheer specialist | B28: barema 27 | C28: GS | D28: 143.5 | E28: 1248
A29: ADL-assistent | B29: barema 28 | C29: B2B | D29: 61 | E29: 1983.6

Sheet ZG personeel
A5: Naam persoon of groepsnaam | B5: Loonkost | C5: Aantal personen in groep | D5: Dienst | E5: Functiegroep | F5: Barema | G5: Punten | H5: Totaal punten | I5: Uren/jaar | J5: Totaal uren/jaar | K5: Jobtime | L5: Besteedbare uren | M5: Bezetting | N5: Reële bezette uren | O5: Maximale punten | P5: Reële punten | Q5: Euro/punt
A6: Nachtdienst klasse 1 | B6: 57500.85 | C6: 0.75 | D6: Nachtdienst | E6: Opvoedend personeel klasse 1 | F6: =VLOOKUP(ZGPB[[#This Row],[Functiegroep]],Personeelsbaremas!$A$2:$D$29,2,) -> barema 17 | G6: =VLOOKUP(ZGPB[[#This Row],[Functiegroep]],Personeelsbaremas!$A$2:$D$29,4,) -> 71 | H6: =ZGPB[[#This Row],[Punten]]*ZGPB[[#This Row],[Aantal personen in groep]] -> 53.25 | I6: =VLOOKUP(ZGPB[[#This Row],[Barema]],Personeelsbaremas!$B$2:$E$29,4,) -> 1983.6 | J6: =ZGPB[[#This Row],[Uren/jaar]]*ZGPB[[#This Row],[Aantal personen in groep]] -> 1487.7 | K6: 1 | L6: =ZGPB[[#This Row],[Totaal uren/jaar]]*ZGPB[[#This Row],[Jobtime]] -> 1487.7 | M6: 0.85 | N6: =M6*L6 -> 1264.545 | O6: =ZGPB[[#This Row],[Totaal punten]]*ZGPB[[#This Row],[Jobtime]] -> 53.25 | P6: =(ZGPB[[#This Row],[Totaal punten]]*ZGPB[[#This Row],[Jobtime]]*ZGPB[[#This Row],[Bezetting]]) -> 45.2625 | Q6: =IFERROR(ZGPB[[#This Row],[Loonkost]]/ZGPB[[#This Row],[Maximale punten]],0) -> 1079.828169
A7: Nachtdienst klasse 2 | B7: =473656.66-57500.85-56041.04 -> 360114.77 | C7: 6.05 | D7: Nachtdienst | E7: Begeleidend en verzorgend personeel klasse 2A | F7: =VLOOKUP(ZGPB[[#This Row],[Functiegroep]],Personeelsbaremas!$A$2:$D$29,2,) -> barema 16 | G7: =VLOOKUP(ZGPB[[#This Row],[Functiegroep]],Personeelsbaremas!$A$2:$D$29,4,) -> 63.5 | H7: =ZGPB[[#This Row],[Punten]]*ZGPB[[#This Row],[Aantal personen in groep]] -> 384.175 | I7: =VLOOKUP(ZGPB[[#This Row],[Barema]],Personeelsbaremas!$B$2:$E$29,4,) -> 1983.6 | J7: =ZGPB[[#This Row],[Uren/jaar]]*ZGPB[[#This Row],[Aantal personen in groep]] -> 12000.78 | K7: 1 | L7: =ZGPB[[#This Row],[Totaal uren/jaar]]*ZGPB[[#This Row],[Jobtime]] -> 12000.78 | M7: 0.9 | N7: 10800.702 | O7: =ZGPB[[#This Row],[Totaal punten]]*ZGPB[[#This Row],[Jobtime]] -> 384.175 | P7: =(ZGPB[[#This Row],[Totaal punten]]*ZGPB[[#This Row],[Jobtime]]*ZGPB[[#This Row],[Bezetting]]) -> 345.7575 | Q7: =IFERROR(ZGPB[[#This Row],[Loonkost]]/ZGPB[[#This Row],[Maximale punten]],0) -> 937.3716926
A8: Nachtdienst Verantw. | B8: 56041.04 | C8: 0.75 | D8: Nachtdienst | E8: Hoofdopvoeder | F8: =VLOOKUP(ZGPB[[#This Row],[Functiegroep]],Personeelsbaremas!$A$2:$D$29,2,) -> barema 18 | G8: =VLOOKUP(ZGPB[[#This Row],[Functiegroep]],Personeelsbaremas!$A$2:$D$29,4,) -> 79 | H8: =ZGPB[[#This Row],[Punten]]*ZGPB[[#This Row],[Aantal personen in groep]] -> 59.25 | I8: =VLOOKUP(ZGPB[[#This Row],[Barema]],Personeelsbaremas!$B$2:$E$29,4,) -> 1983.6 | J8: =ZGPB[[#This Row],[Uren/jaar]]*ZGPB[[#This Row],[Aantal personen in groep]] -> 1487.7 | K8: 1 | L8: =ZGPB[[#This Row],[Totaal uren/jaar]]*ZGPB[[#This Row],[Jobtime]] -> 1487.7 | M8: 0.9 | N8: 1338.93 | O8: =ZGPB[[#This Row],[Totaal punten]]*ZGPB[[#This Row],[Jobtime]] -> 59.25 | P8: =(ZGPB[[#This Row],[Totaal punten]]*ZGPB[[#This Row],[Jobtime]]*ZGPB[[#This Row],[Bezetting]]) -> 53.325 | Q8: =IFERROR(ZGPB[[#This Row],[Loonkost]]/ZGPB[[#This Row],[Maximale punten]],0) -> 945.8403376
A9: Kine verantwoordelijke | B9: 60583.45 | C9: 0.82 | D9: Kinesist | E9: Licentiaten en tandarts | F9: =VLOOKUP(ZGPB[[#This Row],[Functiegroep]],Personeelsbaremas!$A$2:$D$29,2,) -> barema 21 | G9: =VLOOKUP(ZGPB[[#This Row],[Functiegroep]],Personeelsbaremas!$A$2:$D$29,4,) -> 90 | H9: =ZGPB[[#This Row],[Punten]]*ZGPB[[#This Row],[Aantal personen in groep]] -> 73.8 | I9: =VLOOKUP(ZGPB[[#This Row],[Barema]],Personeelsbaremas!$B$2:$E$29,4,) -> 1983.6 | J9: =ZGPB[[#This Row],[Uren/jaar]]*ZGPB[[#This Row],[Aantal personen in groep]] -> 1626.552 | K9: 1 | L9: =ZGPB[[#This Row],[Totaal uren/jaar]]*ZGPB[[#This Row],[Jobtime]] -> 1626.552 | M9: 0.85 | N9: 1382.5692 | O9: =ZGPB[[#This Row],[Totaal punten]]*ZGPB[[#This Row],[Jobtime]] -> 73.8 | P9: =(ZGPB[[#This Row],[Totaal punten]]*ZGPB[[#This Row],[Jobtime]]*ZGPB[[#This Row],[Bezetting]]) -> 62.73 | Q9: =IFERROR(ZGPB[[#This Row],[Loonkost]]/ZGPB[[#This Row],[Maximale punten]],0) -> 820.9139566
A10: Kinesist | B10: =328981.39-60583.45 -> 268397.94 | C10: 3.88 | D10: Kinesist | E10: Sociaal paramedisch en therapeutisch personeel | F10: =VLOOKUP(ZGPB[[#This Row],[Functiegroep]],Personeelsbaremas!$A$2:$D$29,2,) -> barema 20 | G10: =VLOOKUP(ZGPB[[#This Row],[Functiegroep]],Personeelsbaremas!$A$2:$D$29,4,) -> 71 | H10: =ZGPB[[#This Row],[Punten]]*ZGPB[[#This Row],[Aantal personen in groep]] -> 275.48 | I10: =VLOOKUP(ZGPB[[#This Row],[Barema]],Personeelsbaremas!$B$2:$E$29,4,) -> 1983.6 | J10: =ZGPB[[#This Row],[Uren/jaar]]*ZGPB[[#This Row],[Aantal personen in groep]] -> 7696.368 | K10: 1 | L10: =ZGPB[[#This Row],[Totaal uren/jaar]]*ZGPB[[#This Row],[Jobtime]] -> 7696.368 | M10: 0.85 | N10: 6541.9128 | O10: =ZGPB[[#This Row],[Totaal punten]]*ZGPB[[#This Row],[Jobtime]] -> 275.48 | P10: =(ZGPB[[#This Row],[Totaal punten]]*ZGPB[[#This Row],[Jobtime]]*ZGPB[[#This Row],[Bezetting]]) -> 234.158 | Q10: =IFERROR(ZGPB[[#This Row],[Loonkost]]/ZGPB[[#This Row],[Maximale punten]],0) -> 974.2919268
A11: Logopedist | B11: =38992.25+8870.83 -> 47863.08 | C11: 1 | D11: Logopedist | E11: Sociaal paramedisch en therapeutisch personeel | F11: =VLOOKUP(ZGPB[[#This Row],[Functiegroep]],Personeelsbaremas!$A$2:$D$29,2,) -> barema 20 | G11: =VLOOKUP(ZGPB[[#This Row],[Functiegroep]],Personeelsbaremas!$A$2:$D$29,4,) -> 71 | H11: =ZGPB[[#This Row],[Punten]]*ZGPB[[#This Row],[Aantal personen in groep]] -> 71 | I11: =VLOOKUP(ZGPB[[#This Row],[Barema]],Personeelsbaremas!$B$2:$E$29,4,) -> 1983.6 | J11: =ZGPB[[#This Row],[Uren/jaar]]*ZGPB[[#This Row],[Aantal personen in groep]] -> 1983.6 | K11: 1 | L11: =ZGPB[[#This Row],[Totaal uren/jaar]]*ZGPB[[#This Row],[Jobtime]] -> 1983.6 | M11: 0.9 | N11: 1785.24 | O11: =ZGPB[[#This Row],[Totaal punten]]*ZGPB[[#This Row],[Jobtime]] -> 71 | P11: =(ZGPB[[#This Row],[Totaal punten]]*ZGPB[[#This Row],[Jobtime]]*ZGPB[[#This Row],[Bezetting]]) -> 63.9 | Q11: =IFERROR(ZGPB[[#This Row],[Loonkost]]/ZGPB[[#This Row],[Maximale punten]],0) -> 674.1278873
A12: Diëtist | B12: 43133.88 | C12: 0.8 | D12: Diëtist | E12: Sociaal paramedisch en therapeutisch personeel | F12: =VLOOKUP(ZGPB[[#This Row],[Functiegroep]],Personeelsbaremas!$A$2:$D$29,2,) -> barema 20 | G12: =VLOOKUP(ZGPB[[#This Row],[Functiegroep]],Personeelsbaremas!$A$2:$D$29,4,) -> 71 | H12: =ZGPB[[#This Row],[Punten]]*ZGPB[[#This Row],[Aantal personen in groep]] -> 56.8 | I12: =VLOOKUP(ZGPB[[#This Row],[Barema]],Personeelsbaremas!$B$2:$E$29,4,) -> 1983.6 | J12: =ZGPB[[#This Row],[Uren/jaar]]*ZGPB[[#This Row],[Aantal personen in groep]] -> 1586.88 | K12: 1 | L12: =ZGPB[[#This Row],[Totaal uren/jaar]]*ZGPB[[#This Row],[Jobtime]] -> 1586.88 | M12: 0.95 | N12: 1507.536 | O12: =ZGPB[[#This Row],[Totaal punten]]*ZGPB[[#This Row],[Jobtime]] -> 56.8 | P12: =(ZGPB[[#This Row],[Totaal punten]]*ZGPB[[#This Row],[Jobtime]]*ZGPB[[#This Row],[Bezetting]]) -> 53.96 | Q12: =IFERROR(ZGPB[[#This Row],[Loonkost]]/ZGPB[[#This Row],[Maximale punten]],0) -> 759.3992958
A13: Specialist | B13: 19270.82 | C13: 0.17 | D13: Dokters | E13: Geneesheer specialist | F13: =VLOOKUP(ZGPB[[#This Row],[Functiegroep]],Personeelsbaremas!$A$2:$D$29,2,) -> barema 27 | G13: =VLOOKUP(ZGPB[[#This Row],[Functiegroep]],Personeelsbaremas!$A$2:$D$29,4,) -> 143.5 | H13: =ZGPB[[#This Row],[Punten]]*ZGPB[[#This Row],[Aantal personen in groep]] -> 24.395 | I13: =VLOOKUP(ZGPB[[#This Row],[Barema]],Personeelsbaremas!$B$2:$E$29,4,) -> 1248 | J13: =ZGPB[[#This Row],[Uren/jaar]]*ZGPB[[#This Row],[Aantal personen in groep]] -> 212.16 | K13: 1 | L13: =ZGPB[[#This Row],[Totaal uren/jaar]]*ZGPB[[#This Row],[Jobtime]] -> 212.16 | M13: 0.9 | N13: 190.944 | O13: =ZGPB[[#This Row],[Totaal punten]]*ZGPB[[#This Row],[Jobtime]] -> 24.395 | P13: =(ZGPB[[#This Row],[Totaal punten]]*ZGPB[[#This Row],[Jobtime]]*ZGPB[[#This Row],[Bezetting]]) -> 21.9555 | Q13: =IFERROR(ZGPB[[#This Row],[Loonkost]]/ZGPB[[#This Row],[Maximale punten]],0) -> 789.9495798
A14: Orthoagoog | B14: 164620.39 | C14: 2.63 | D14: Orthoagoog | E14: Licentiaten en tandarts | F14: =VLOOKUP(ZGPB[[#This Row],[Functiegroep]],Personeelsbaremas!$A$2:$D$29,2,) -> barema 21 | G14: =VLOOKUP(ZGPB[[#This Row],[Functiegroep]],Personeelsbaremas!$A$2:$D$29,4,) -> 90 | H14: =ZGPB[[#This Row],[Punten]]*ZGPB[[#This Row],[Aantal personen in groep]] -> 236.7 | I14: =VLOOKUP(ZGPB[[#This Row],[Barema]],Personeelsbaremas!$B$2:$E$29,4,) -> 1983.6 | J14: =ZGPB[[#This Row],[Uren/jaar]]*ZGPB[[#This Row],[Aantal personen in groep]] -> 5216.868 | K14: 1 | L14: =ZGPB[[#This Row],[Totaal uren/jaar]]*ZGPB[[#This Row],[Jobtime]] -> 5216.868 | M14: 0.85 | N14: 4434.3378 | O14: =ZGPB[[#This Row],[Totaal punten]]*ZGPB[[#This Row],[Jobtime]] -> 236.7 | P14: =(ZGPB[[#This Row],[Totaal punten]]*ZGPB[[#This Row],[Jobtime]]*ZGPB[[#This Row],[Bezetting]]) -> 201.195 | Q14: =IFERROR(ZGPB[[#This Row],[Loonkost]]/ZGPB[[#This Row],[Maximale punten]],0) -> 695.4811576
A15: Verpleegster 2 | B15: =36634.74+15518.01+55998.08+36943.15+44860.53+61909.94+37823.79+50405+54462.78 -> 394556.02 | C15: 8.85 | D15: Verpleegkundigen | E15: Verzorgend personeel | F15: =VLOOKUP(ZGPB[[#This Row],[Functiegroep]],Personeelsbaremas!$A$2:$D$29,2,) -> barema 13 | G15: =VLOOKUP(ZGPB[[#This Row],[Functiegroep]],Personeelsbaremas!$A$2:$D$29,4,) -> 67 | H15: =ZGPB[[#This Row],[Punten]]*ZGPB[[#This Row],[Aantal personen in groep]] -> 592.95 | I15: =VLOOKUP(ZGPB[[#This Row],[Barema]],Personeelsbaremas!$B$2:$E$29,4,) -> 1983.6 | J15: =ZGPB[[#This Row],[Uren/jaar]]*ZGPB[[#This Row],[Aantal personen in groep]] -> 17554.86 | K15: 1 | L15: =ZGPB[[#This Row],[Totaal uren/jaar]]*ZGPB[[#This Row],[Jobtime]] -> 17554.86 | M15: 0.85 | N15: 14921.631 | O15: =ZGPB[[#This Row],[Totaal punten]]*ZGPB[[#This Row],[Jobtime]] -> 592.95 | P15: =(ZGPB[[#This Row],[Totaal punten]]*ZGPB[[#This Row],[Jobtime]]*ZGPB[[#This Row],[Bezetting]]) -> 504.0075 | Q15: =IFERROR(ZGPB[[#This Row],[Loonkost]]/ZGPB[[#This Row],[Maximale punten]],0) -> 665.4119572
A16: Dagbesteding verantw. | B16: 73542.36 | C16: 1 | D16: Dagbestedingsbegeleider | E16: Hoofdopvoeder | F16: =VLOOKUP(ZGPB[[#This Row],[Functiegroep]],Personeelsbaremas!$A$2:$D$29,2,) -> barema 18 | G16: =VLOOKUP(ZGPB[[#This Row],[Functiegroep]],Personeelsbaremas!$A$2:$D$29,4,) -> 79 | H16: =ZGPB[[#This Row],[Punten]]*ZGPB[[#This Row],[Aantal personen in groep]] -> 79 | I16: =VLOOKUP(ZGPB[[#This Row],[Barema]],Personeelsbaremas!$B$2:$E$29,4,) -> 1983.6 | J16: =ZGPB[[#This Row],[Uren/jaar]]*ZGPB[[#This Row],[Aantal personen in groep]] -> 1983.6 | K16: 1 | L16: =ZGPB[[#This Row],[Totaal uren/jaar]]*ZGPB[[#This Row],[Jobtime]] -> 1983.6 | M16: 0.9 | N16: 1785.24 | O16: =ZGPB[[#This Row],[Totaal punten]]*ZGPB[[#This Row],[Jobtime]] -> 79 | P16: =(ZGPB[[#This Row],[Totaal punten]]*ZGPB[[#This Row],[Jobtime]]*ZGPB[[#This Row],[Bezetting]]) -> 71.1 | Q16: =IFERROR(ZGPB[[#This Row],[Loonkost]]/ZGPB[[#This Row],[Maximale punten]],0) -> 930.9159494
A17: Dagbesteding ergo | B17: =41342.2+34365.78+54958.77 -> 130666.75 | C17: 2.22 | D17: Dagbestedingsbegeleider | E17: Sociaal paramedisch en therapeutisch personeel | F17: =VLOOKUP(ZGPB[[#This Row],[Functiegroep]],Personeelsbaremas!$A$2:$D$29,2,) -> barema 20 | G17: =VLOOKUP(ZGPB[[#This Row],[Functiegroep]],Personeelsbaremas!$A$2:$D$29,4,) -> 71 | H17: =ZGPB[[#This Row],[Punten]]*ZGPB[[#This Row],[Aantal personen in groep]] -> 157.62 | I17: =VLOOKUP(ZGPB[[#This Row],[Barema]],Personeelsbaremas!$B$2:$E$29,4,) -> 1983.6 | J17: =ZGPB[[#This Row],[Uren/jaar]]*ZGPB[[#This Row],[Aantal personen in groep]] -> 4403.592 | K17: 1 | L17: =ZGPB[[#This Row],[Totaal uren/jaar]]*ZGPB[[#This Row],[Jobtime]] -> 4403.592 | M17: 0.95 | N17: 4183.4124 | O17: =ZGPB[[#This Row],[Totaal punten]]*ZGPB[[#This Row],[Jobtime]] -> 157.62 | P17: =(ZGPB[[#This Row],[Totaal punten]]*ZGPB[[#This Row],[Jobtime]]*ZGPB[[#This Row],[Bezetting]]) -> 149.739 | Q17: =IFERROR(ZGPB[[#This Row],[Loonkost]]/ZGPB[[#This Row],[Maximale punten]],0) -> 828.9985408
A18: Dagbesteding A1 | B18: =42033.9+45875.2+15319.94+44492.94 -> 147721.98 | C18: 2.5 | D18: Dagbestedingsbegeleider | E18: Opvoedend personeel klasse 1 | F18: =VLOOKUP(ZGPB[[#This Row],[Functiegroep]],Personeelsbaremas!$A$2:$D$29,2,) -> barema 17 | G18: =VLOOKUP(ZGPB[[#This Row],[Functiegroep]],Personeelsbaremas!$A$2:$D$29,4,) -> 71 | H18: =ZGPB[[#This Row],[Punten]]*ZGPB[[#This Row],[Aantal personen in groep]] -> 177.5 | I18: =VLOOKUP(ZGPB[[#This Row],[Barema]],Personeelsbaremas!$B$2:$E$29,4,) -> 1983.6 | J18: =ZGPB[[#This Row],[Uren/jaar]]*ZGPB[[#This Row],[Aantal personen in groep]] -> 4959 | K18: 1 | L18: =ZGPB[[#This Row],[Totaal uren/jaar]]*ZGPB[[#This Row],[Jobtime]] -> 4959 | M18: 0.85 | N18: 4215.15 | O18: =ZGPB[[#This Row],[Totaal punten]]*ZGPB[[#This Row],[Jobtime]] -> 177.5 | P18: =(ZGPB[[#This Row],[Totaal punten]]*ZGPB[[#This Row],[Jobtime]]*ZGPB[[#This Row],[Bezetting]]) -> 150.875 | Q18: =IFERROR(ZGPB[[#This Row],[Loonkost]]/ZGPB[[#This Row],[Maximale punten]],0) -> 832.236507
A19: Dagbesteding A2 | B19: =60226.32+30260.74+1686.53+42319.67+48797.1 -> 183290.36 | C19: 3.14 | D19: Dagbestedingsbegeleider | E19: Begeleidend en verzorgend personeel klasse 2A | F19: =VLOOKUP(ZGPB[[#This Row],[Functiegroep]],Personeelsbaremas!$A$2:$D$29,2,) -> barema 16 | G19: =VLOOKUP(ZGPB[[#This Row],[Functiegroep]],Personeelsbaremas!$A$2:$D$29,4,) -> 63.5 | H19: =ZGPB[[#This Row],[Punten]]*ZGPB[[#This Row],[Aantal personen in groep]] -> 199.39 | I19: =VLOOKUP(ZGPB[[#This Row],[Barema]],Personeelsbaremas!$B$2:$E$29,4,) -> 1983.6 | J19: =ZGPB[[#This Row],[Uren/jaar]]*ZGPB[[#This Row],[Aantal personen in groep]] -> 6228.504 | K19: 1 | L19: =ZGPB[[#This Row],[Totaal uren/jaar]]*ZGPB[[#This Row],[Jobtime]] -> 6228.504 | M19: 0.9 | N19: 5605.6536 | O19: =ZGPB[[#This Row],[Totaal punten]]*ZGPB[[#This Row],[Jobtime]] -> 199.39 | P19: =(ZGPB[[#This Row],[Totaal punten]]*ZGPB[[#This Row],[Jobtime]]*ZGPB[[#This Row],[Bezetting]]) -> 179.451 | Q19: =IFERROR(ZGPB[[#This Row],[Loonkost]]/ZGPB[[#This Row],[Maximale punten]],0) -> 919.2555294
A20: Dagbesteding B2 | B20: 28765.27 | C20: 0.5 | D20: Dagbestedingsbegeleider | E20: Begeleidend en verzorgend personeel klasse 2B | F20: =VLOOKUP(ZGPB[[#This Row],[Functiegroep]],Personeelsbaremas!$A$2:$D$29,2,) -> barema 15 | G20: =VLOOKUP(ZGPB[[#This Row],[Functiegroep]],Personeelsbaremas!$A$2:$D$29,4,) -> 61 | H20: =ZGPB[[#This Row],[Punten]]*ZGPB[[#This Row],[Aantal personen in groep]] -> 30.5 | I20: =VLOOKUP(ZGPB[[#This Row],[Barema]],Personeelsbaremas!$B$2:$E$29,4,) -> 1983.6 | J20: =ZGPB[[#This Row],[Uren/jaar]]*ZGPB[[#This Row],[Aantal personen in groep]] -> 991.8 | K20: 1 | L20: =ZGPB[[#This Row],[Totaal uren/jaar]]*ZGPB[[#This Row],[Jobtime]] -> 991.8 | M20: 0.85 | N20: 843.03 | O20: =ZGPB[[#This Row],[Totaal punten]]*ZGPB[[#This Row],[Jobtime]] -> 30.5 | P20: =(ZGPB[[#This Row],[Totaal punten]]*ZGPB[[#This Row],[Jobtime]]*ZGPB[[#This Row],[Bezetting]]) -> 25.925 | Q20: =IFERROR(ZGPB[[#This Row],[Loonkost]]/ZGPB[[#This Row],[Maximale punten]],0) -> 943.1236066
A21: Leefgroepverantw. | B21: =56179.59+23173.14+53011.3+37986.69+65659.71+68660.62+51700.49+68367.45+64225.62+46158.73+63847.32+10663.33-3471.87+14610.4-8246.11 -> 612526.41 | C21: 12.1 | D21: Leefgroepbegeleider | E21: Hoofdopvoeder | F21: =VLOOKUP(ZGPB[[#This Row],[Functiegroep]],Personeelsbaremas!$A$2:$D$29,2,) -> barema 18 | G21: =VLOOKUP(ZGPB[[#This Row],[Functiegroep]],Personeelsbaremas!$A$2:$D$29,4,) -> 79 | H21: =ZGPB[[#This Row],[Punten]]*ZGPB[[#This Row],[Aantal personen in groep]] -> 955.9 | I21: =VLOOKUP(ZGPB[[#This Row],[Barema]],Personeelsbaremas!$B$2:$E$29,4,) -> 1983.6 | J21: =ZGPB[[#This Row],[Uren/jaar]]*ZGPB[[#This Row],[Aantal personen in groep]] -> 24001.56 | K21: 1 | L21: =ZGPB[[#This Row],[Totaal uren/jaar]]*ZGPB[[#This Row],[Jobtime]] -> 24001.56 | M21: 0.95 | N21: 22801.482 | O21: =ZGPB[[#This Row],[Totaal punten]]*ZGPB[[#This Row],[Jobtime]] -> 955.9 | P21: =(ZGPB[[#This Row],[Totaal punten]]*ZGPB[[#This Row],[Jobtime]]*ZGPB[[#This Row],[Bezetting]]) -> 908.105 | Q21: =IFERROR(ZGPB[[#This Row],[Loonkost]]/ZGPB[[#This Row],[Maximale punten]],0) -> 640.7850298
A22: Leefgroep A1 | B22: =59487.42+69565.14+36596.1+53196.94+10532.03+3240.31+2110.5+16142.53+48874.31+32800.23+76756.78+41296.94+47263.43 -> 497862.66 | C22: 8.71 | D22: Leefgroepbegeleider | E22: Opvoedend personeel klasse 1 | F22: =VLOOKUP(ZGPB[[#This Row],[Functiegroep]],Personeelsbaremas!$A$2:$D$29,2,) -> barema 17 | G22: =VLOOKUP(ZGPB[[#This Row],[Functiegroep]],Personeelsbaremas!$A$2:$D$29,4,) -> 71 | H22: =ZGPB[[#This Row],[Punten]]*ZGPB[[#This Row],[Aantal personen in groep]] -> 618.41 | I22: =VLOOKUP(ZGPB[[#This Row],[Barema]],Personeelsbaremas!$B$2:$E$29,4,) -> 1983.6 | J22: =ZGPB[[#This Row],[Uren/jaar]]*ZGPB[[#This Row],[Aantal personen in groep]] -> 17277.156 | K22: 1 | L22: =ZGPB[[#This Row],[Totaal uren/jaar]]*ZGPB[[#This Row],[Jobtime]] -> 17277.156 | M22: 0.9 | N22: 15549.4404 | O22: =ZGPB[[#This Row],[Totaal punten]]*ZGPB[[#This Row],[Jobtime]] -> 618.41 | P22: =(ZGPB[[#This Row],[Totaal punten]]*ZGPB[[#This Row],[Jobtime]]*ZGPB[[#This Row],[Bezetting]]) -> 556.569 | Q22: =IFERROR(ZGPB[[#This Row],[Loonkost]]/ZGPB[[#This Row],[Maximale punten]],0) -> 805.0689025
A23: Leefgroep A2 | B23: 3543553.16 | C23: 56.25 | D23: Leefgroepbegeleider | E23: Begeleidend en verzorgend personeel klasse 2A | F23: =VLOOKUP(ZGPB[[#This Row],[Functiegroep]],Personeelsbaremas!$A$2:$D$29,2,) -> barema 16 | G23: =VLOOKUP(ZGPB[[#This Row],[Functiegroep]],Personeelsbaremas!$A$2:$D$29,4,) -> 63.5 | H23: =ZGPB[[#This Row],[Punten]]*ZGPB[[#This Row],[Aantal personen in groep]] -> 3571.875 | I23: =VLOOKUP(ZGPB[[#This Row],[Barema]],Personeelsbaremas!$B$2:$E$29,4,) -> 1983.6 | J23: =ZGPB[[#This Row],[Uren/jaar]]*ZGPB[[#This Row],[Aantal personen in groep]] -> 111577.5 | K23: 1 | L23: =ZGPB[[#This Row],[Totaal uren/jaar]]*ZGPB[[#This Row],[Jobtime]] -> 111577.5 | M23: 0.85 | N23: 94840.875 | O23: =ZGPB[[#This Row],[Totaal punten]]*ZGPB[[#This Row],[Jobtime]] -> 3571.875 | P23: =(ZGPB[[#This Row],[Totaal punten]]*ZGPB[[#This Row],[Jobtime]]*ZGPB[[#This Row],[Bezetting]]) -> 3036.09375 | Q23: =IFERROR(ZGPB[[#This Row],[Loonkost]]/ZGPB[[#This Row],[Maximale punten]],0) -> 992.0708759
A24: Leefgroep B2 | B24: =24788.55+2325.03+2277.71+1774.19+1552.29+1690.99+3673.98+3718.38+2078.81+1586.03+1535.16 -> 47001.12 | C24: 1.64 | D24: Leefgroepbegeleider | E24: Begeleidend en verzorgend personeel klasse 2B | F24: =VLOOKUP(ZGPB[[#This Row],[Functiegroep]],Personeelsbaremas!$A$2:$D$29,2,) -> barema 15 | G24: =VLOOKUP(ZGPB[[#This Row],[Functiegroep]],Personeelsbaremas!$A$2:$D$29,4,) -> 61 | H24: =ZGPB[[#This Row],[Punten]]*ZGPB[[#This Row],[Aantal personen in groep]] -> 100.04 | I24: =VLOOKUP(ZGPB[[#This Row],[Barema]],Personeelsbaremas!$B$2:$E$29,4,) -> 1983.6 | J24: =ZGPB[[#This Row],[Uren/jaar]]*ZGPB[[#This Row],[Aantal personen in groep]] -> 3253.104 | K24: 1 | L24: =ZGPB[[#This Row],[Totaal uren/jaar]]*ZGPB[[#This Row],[Jobtime]] -> 3253.104 | M24: 0.85 | N24: 2765.1384 | O24: =ZGPB[[#This Row],[Totaal punten]]*ZGPB[[#This Row],[Jobtime]] -> 100.04 | P24: =(ZGPB[[#This Row],[Totaal punten]]*ZGPB[[#This Row],[Jobtime]]*ZGPB[[#This Row],[Bezetting]]) -> 85.034 | Q24: =IFERROR(ZGPB[[#This Row],[Loonkost]]/ZGPB[[#This Row],[Maximale punten]],0) -> 469.8232707
A25: Leefgroep 3 | B25: =3809.91+1839.25+1470.22 -> 7119.38 | C25: 0.19 | D25: Leefgroepbegeleider | E25: Begeleidend en verzorgend personeel klasse 3 | F25: =VLOOKUP(ZGPB[[#This Row],[Functiegroep]],Personeelsbaremas!$A$2:$D$29,2,) -> barema 14 | G25: =VLOOKUP(ZGPB[[#This Row],[Functiegroep]],Personeelsbaremas!$A$2:$D$29,4,) -> 57.5 | H25: =ZGPB[[#This Row],[Punten]]*ZGPB[[#This Row],[Aantal personen in groep]] -> 10.925 | I25: =VLOOKUP(ZGPB[[#This Row],[Barema]],Personeelsbaremas!$B$2:$E$29,4,) -> 1983.6 | J25: =ZGPB[[#This Row],[Uren/jaar]]*ZGPB[[#This Row],[Aantal personen in groep]] -> 376.884 | K25: 1 | L25: =ZGPB[[#This Row],[Totaal uren/jaar]]*ZGPB[[#This Row],[Jobtime]] -> 376.884 | M25: 0.9 | N25: 339.1956 | O25: =ZGPB[[#This Row],[Totaal punten]]*ZGPB[[#This Row],[Jobtime]] -> 10.925 | P25: =(ZGPB[[#This Row],[Totaal punten]]*ZGPB[[#This Row],[Jobtime]]*ZGPB[[#This Row],[Bezetting]]) -> 9.8325 | Q25: =IFERROR(ZGPB[[#This Row],[Loonkost]]/ZGPB[[#This Row],[Maximale punten]],0) -> 651.6594966
A26: Totaal | B26: =SUBTOTAL(109,ZGPB[Loonkost]) -> 6744131.69 | C26: =SUBTOTAL(109,ZGPB[Aantal personen in groep]) -> 113.95

Sheet OG personeel
A1: Aantal uren VTE | B1: 1983.6
A5: Naam persoon of groepsnaam | B5: Totale loonkost | C5: Loon toewijsbaar aan woon- & leefkosten | D5: W&L | E5: Woon - & leef activiteit | F5: Aantal personen in groep | G5: Dienst | H5: Functiegroep | I5: Barema | J5: Punten per VTE | K5: Punten in groep | L5: Uren per jaar VTE | M5: Jobtime | N5: Totaal punten | O5: Euro/punt
A6: Huiscoördinator | B6: 211532.47 | C6: 0 | D6: =IF(OGPB[[#This Row],[Loon toewijsbaar aan woon- & leefkosten]]>0,"LijstWenL","") ->  | F6: 3.25 | G6: Huiscoördinatoren | H6: Opvoeder-groepchef | I6: =VLOOKUP(OGPB[[#This Row],[Functiegroep]],Personeelsbaremas!$A$2:$D$29,2,) -> barema 19 | J6: =VLOOKUP(OGPB[[#This Row],[Functiegroep]],Personeelsbaremas!$A$2:$D$29,4,) -> 86 | K6: =OGPB[[#This Row],[Punten per VTE]]*OGPB[[#This Row],[Aantal personen in groep]] -> 279.5 | L6: =$B$1*OGPB[[#This Row],[Aantal personen in groep]] -> 6446.7 | M6: 1 | N6: =OGPB[Punten in groep]*OGPB[Jobtime] -> 279.5 | O6: =IFERROR(OGPB[[#This Row],[Totale loonkost]]/OGPB[[#This Row],[Totaal punten]],0) -> 756.8245796
A7: Medewerker zinzorg en pastoraat | B7: 38404.82 | C7: 0 | D7: =IF(OGPB[[#This Row],[Loon toewijsbaar aan woon- & leefkosten]]>0,"LijstWenL","") ->  | F7: 0.5 | G7: Zinzorg en pastoraat | H7: Opvoeder-groepchef | I7: =VLOOKUP(OGPB[[#This Row],[Functiegroep]],Personeelsbaremas!$A$2:$D$29,2,) -> barema 19 | J7: =VLOOKUP(OGPB[[#This Row],[Functiegroep]],Personeelsbaremas!$A$2:$D$29,4,) -> 86 | K7: =OGPB[[#This Row],[Punten per VTE]]*OGPB[[#This Row],[Aantal personen in groep]] -> 43 | L7: =$B$1*OGPB[[#This Row],[Aantal personen in groep]] -> 991.8 | M7: 1 | N7: =OGPB[Punten in groep]*OGPB[Jobtime] -> 43 | O7: =IFERROR(OGPB[[#This Row],[Totale loonkost]]/OGPB[[#This Row],[Totaal punten]],0) -> 893.1353488
A8: Sociale Dienst | B8: 92261.06 | C8: 0 | D8: =IF(OGPB[[#This Row],[Loon toewijsbaar aan woon- & leefkosten]]>0,"LijstWenL","") ->  | F8: 1.35 | G8: Sociale dienst | H8: Sociaal paramedisch en therapeutisch personeel | I8: =VLOOKUP(OGPB[[#This Row],[Functiegroep]],Personeelsbaremas!$A$2:$D$29,2,) -> barema 20 | J8: =VLOOKUP(OGPB[[#This Row],[Functiegroep]],Personeelsbaremas!$A$2:$D$29,4,) -> 71 | K8: =OGPB[[#This Row],[Punten per VTE]]*OGPB[[#This Row],[Aantal personen in groep]] -> 95.85 | L8: =$B$1*OGPB[[#This Row],[Aantal personen in groep]] -> 2677.86 | M8: 1 | N8: =OGPB[Punten in groep]*OGPB[Jobtime] -> 95.85 | O8: =IFERROR(OGPB[[#This Row],[Totale loonkost]]/OGPB[[#This Row],[Totaal punten]],0) -> 962.5567032
A9: Preventieadviseur | B9: 68703.34 | C9: 0 | D9: =IF(OGPB[[#This Row],[Loon toewijsbaar aan woon- & leefkosten]]>0,"LijstWenL","") ->  | F9: 1 | G9: Preventieadviseur | H9: Administratief + logistiek personeel klasse 1 | I9: =VLOOKUP(OGPB[[#This Row],[Functiegroep]],Personeelsbaremas!$A$2:$D$29,2,) -> barema 9 | J9: =VLOOKUP(OGPB[[#This Row],[Functiegroep]],Personeelsbaremas!$A$2:$D$29,4,) -> 71 | K9: =OGPB[[#This Row],[Punten per VTE]]*OGPB[[#This Row],[Aantal personen in groep]] -> 71 | L9: =$B$1*OGPB[[#This Row],[Aantal personen in groep]] -> 1983.6 | M9: 1 | N9: =OGPB[Punten in groep]*OGPB[Jobtime] -> 71 | O9: =IFERROR(OGPB[[#This Row],[Totale loonkost]]/OGPB[[#This Row],[Totaal punten]],0) -> 967.6526761
A10: Logistiek Coördinator | B10: 34744.94 | C10: 0 | D10: =IF(OGPB[[#This Row],[Loon toewijsbaar aan woon- & leefkosten]]>0,"LijstWenL","") ->  | F10: 0.8 | G10: Logistiek Coördinator | H10: Opvoeder-groepchef | I10: =VLOOKUP(OGPB[[#This Row],[Functiegroep]],Personeelsbaremas!$A$2:$D$29,2,) -> barema 19 | J10: =VLOOKUP(OGPB[[#This Row],[Functiegroep]],Personeelsbaremas!$A$2:$D$29,4,) -> 86 | K10: =OGPB[[#This Row],[Punten per VTE]]*OGPB[[#This Row],[Aantal personen in groep]] -> 68.8 | L10: =$B$1*OGPB[[#This Row],[Aantal personen in groep]] -> 1586.88 | M10: 1 | N10: =OGPB[Punten in groep]*OGPB[Jobtime] -> 68.8 | O10: =IFERROR(OGPB[[#This Row],[Totale loonkost]]/OGPB[[#This Row],[Totaal punten]],0) -> 505.0136628
A11: Algemeen Directeur | B11: 119171.5 | C11: 0 | D11: =IF(OGPB[[#This Row],[Loon toewijsbaar aan woon- & leefkosten]]>0,"LijstWenL","") ->  | F11: 1 | G11: Directie | H11: Directeur + 90 bedden | I11: =VLOOKUP(OGPB[[#This Row],[Functiegroep]],Personeelsbaremas!$A$2:$D$29,2,) -> barema 25 | J11: =VLOOKUP(OGPB[[#This Row],[Functiegroep]],Personeelsbaremas!$A$2:$D$29,4,) -> 100 | K11: =OGPB[[#This Row],[Punten per VTE]]*OGPB[[#This Row],[Aantal personen in groep]] -> 100 | L11: =$B$1*OGPB[[#This Row],[Aantal personen in groep]] -> 1983.6 | M11: 1 | N11: =OGPB[Punten in groep]*OGPB[Jobtime] -> 100 | O11: =IFERROR(OGPB[[#This Row],[Totale loonkost]]/OGPB[[#This Row],[Totaal punten]],0) -> 1191.715
A12: Departementaal Directeur | B12: 171801.47 | C12: 0 | D12: =IF(OGPB[[#This Row],[Loon toewijsbaar aan woon- & leefkosten]]>0,"LijstWenL","") ->  | F12: 1.97 | G12: Directie | H12: Onderdirecteur | I12: =VLOOKUP(OGPB[[#This Row],[Functiegroep]],Personeelsbaremas!$A$2:$D$29,2,) -> barema 22 | J12: =VLOOKUP(OGPB[[#This Row],[Functiegroep]],Personeelsbaremas!$A$2:$D$29,4,) -> 90 | K12: =OGPB[[#This Row],[Punten per VTE]]*OGPB[[#This Row],[Aantal personen in groep]] -> 177.3 | L12: =$B$1*OGPB[[#This Row],[Aantal personen in groep]] -> 3907.692 | M12: 1 | N12: =OGPB[Punten in groep]*OGPB[Jobtime] -> 177.3 | O12: =IFERROR(OGPB[[#This Row],[Totale loonkost]]/OGPB[[#This Row],[Totaal punten]],0) -> 968.9874224
A13: Administratie klasse 1 | B13: =37359.3+65577.36+68548.18 -> 171484.84 | C13: 0 | D13: =IF(OGPB[[#This Row],[Loon toewijsbaar aan woon- & leefkosten]]>0,"LijstWenL","") ->  | F13: 3 | G13: Administratie | H13: Administratief + logistiek personeel klasse 1 | I13: =VLOOKUP(OGPB[[#This Row],[Functiegroep]],Personeelsbaremas!$A$2:$D$29,2,) -> barema 9 | J13: =VLOOKUP(OGPB[[#This Row],[Functiegroep]],Personeelsbaremas!$A$2:$D$29,4,) -> 71 | K13: =OGPB[[#This Row],[Punten per VTE]]*OGPB[[#This Row],[Aantal personen in groep]] -> 213 | L13: =$B$1*OGPB[[#This Row],[Aantal personen in groep]] -> 5950.8 | M13: 1 | N13: =OGPB[Punten in groep]*OGPB[Jobtime] -> 213 | O13: =IFERROR(OGPB[[#This Row],[Totale loonkost]]/OGPB[[#This Row],[Totaal punten]],0) -> 805.0931455
A14: Administratie klasse 2 | B14: =35026.21+29892.26+29894.02 -> 94812.49 | C14: 0 | D14: =IF(OGPB[[#This Row],[Loon toewijsbaar aan woon- & leefkosten]]>0,"LijstWenL","") ->  | F14: 1.8 | G14: Administratie | H14: Administratief + logistiek personeel klasse 2 | I14: =VLOOKUP(OGPB[[#This Row],[Functiegroep]],Personeelsbaremas!$A$2:$D$29,2,) -> barema 10 | J14: =VLOOKUP(OGPB[[#This Row],[Functiegroep]],Personeelsbaremas!$A$2:$D$29,4,) -> 61 | K14: =OGPB[[#This Row],[Punten per VTE]]*OGPB[[#This Row],[Aantal personen in groep]] -> 109.8 | L14: =$B$1*OGPB[[#This Row],[Aantal personen in groep]] -> 3570.48 | M14: 1 | N14: =OGPB[Punten in groep]*OGPB[Jobtime] -> 109.8 | O14: =IFERROR(OGPB[[#This Row],[Totale loonkost]]/OGPB[[#This Row],[Totaal punten]],0) -> 863.5017304
A15: Technische dienst klasse 2 | B15: =2084.89+59611.68 -> 61696.57 | C15: 0 | D15: =IF(OGPB[[#This Row],[Loon toewijsbaar aan woon- & leefkosten]]>0,"LijstWenL","") ->  | F15: 1.08 | G15: Technische Dienst | H15: Administratief + logistiek personeel klasse 1 | I15: =VLOOKUP(OGPB[[#This Row],[Functiegroep]],Personeelsbaremas!$A$2:$D$29,2,) -> barema 9 | J15: =VLOOKUP(OGPB[[#This Row],[Functiegroep]],Personeelsbaremas!$A$2:$D$29,4,) -> 71 | K15: =OGPB[[#This Row],[Punten per VTE]]*OGPB[[#This Row],[Aantal personen in groep]] -> 76.68 | L15: =$B$1*OGPB[[#This Row],[Aantal personen in groep]] -> 2142.288 | M15: 1 | N15: =OGPB[Punten in groep]*OGPB[Jobtime] -> 76.68 | O15: =IFERROR(OGPB[[#This Row],[Totale loonkost]]/OGPB[[#This Row],[Totaal punten]],0) -> 804.5979395
A16: Technische dienst klasse 3 | B16: =229315.1-61696.57 -> 167618.53 | C16: 0 | D16: =IF(OGPB[[#This Row],[Loon toewijsbaar aan woon- & leefkosten]]>0,"LijstWenL","") ->  | F16: 3.08 | G16: Technische Dienst | H16: Logistiek personeel klasse 2 | I16: =VLOOKUP(OGPB[[#This Row],[Functiegroep]],Personeelsbaremas!$A$2:$D$29,2,) -> barema 8 | J16: =VLOOKUP(OGPB[[#This Row],[Functiegroep]],Personeelsbaremas!$A$2:$D$29,4,) -> 61 | K16: =OGPB[[#This Row],[Punten per VTE]]*OGPB[[#This Row],[Aantal personen in groep]] -> 187.88 | L16: =$B$1*OGPB[[#This Row],[Aantal personen in groep]] -> 6109.488 | M16: 1 | N16: =OGPB[Punten in groep]*OGPB[Jobtime] -> 187.88 | O16: =IFERROR(OGPB[[#This Row],[Totale loonkost]]/OGPB[[#This Row],[Totaal punten]],0) -> 892.1573877
A17: Onderhoud CG klasse 2 | B17: =1646.48+1425.45+26585.22 -> 29657.15 | C17: 29349.22 | D17: =IF(OGPB[[#This Row],[Loon toewijsbaar aan woon- & leefkosten]]>0,"LijstWenL","") -> LijstWenL | E17: Onderhoud kamer | F17: 0.62 | G17: Onderhoud Centraal Gebouw | H17: Logistiek personeel klasse 3 (In dienst na 1/11/93) | I17: =VLOOKUP(OGPB[[#This Row],[Functiegroep]],Personeelsbaremas!$A$2:$D$29,2,) -> barema 7 | J17: =VLOOKUP(OGPB[[#This Row],[Functiegroep]],Personeelsbaremas!$A$2:$D$29,4,) -> 56 | K17: =OGPB[[#This Row],[Punten per VTE]]*OGPB[[#This Row],[Aantal personen in groep]] -> 34.72 | L17: =$B$1*OGPB[[#This Row],[Aantal personen in groep]] -> 1229.832 | M17: 1 | N17: =OGPB[Punten in groep]*OGPB[Jobtime] -> 34.72 | O17: =IFERROR(OGPB[[#This Row],[Totale loonkost]]/OGPB[[#This Row],[Totaal punten]],0) -> 854.1805876
A18: Onderhoud CG klasse 3 | B18: =41275.46-27516.87+36206.48+24854.62+27516.85+35634.13+36641.01+27057.56+21622.32+33877.9+27516.85+35592.1+27516.85+21486.2 -> 369281.46 | C18: =292840.8+21486.2 -> 314327 | D18: =IF(OGPB[[#This Row],[Loon toewijsbaar aan woon- & leefkosten]]>0,"LijstWenL","") -> LijstWenL | E18: Naaisters | F18: 7.42 | G18: Onderhoud Centraal Gebouw | H18: Logistiek personeel klasse 2 | I18: =VLOOKUP(OGPB[[#This Row],[Functiegroep]],Personeelsbaremas!$A$2:$D$29,2,) -> barema 8 | J18: =VLOOKUP(OGPB[[#This Row],[Functiegroep]],Personeelsbaremas!$A$2:$D$29,4,) -> 61 | K18: =OGPB[[#This Row],[Punten per VTE]]*OGPB[[#This Row],[Aantal personen in groep]] -> 452.62 | L18: =$B$1*OGPB[[#This Row],[Aantal personen in groep]] -> 14718.312 | M18: 1 | N18: =OGPB[Punten in groep]*OGPB[Jobtime] -> 452.62 | O18: =IFERROR(OGPB[[#This Row],[Totale loonkost]]/OGPB[[#This Row],[Totaal punten]],0) -> 815.8752596
A19: Naaisters klasse 2 | B19: 52106.16 | C19: 52106.16 | D19: =IF(OGPB[[#This Row],[Loon toewijsbaar aan woon- & leefkosten]]>0,"LijstWenL","") -> LijstWenL | E19: Middagmaal | F19: 1.14 | G19: Naaisters | H19: Logistiek personeel klasse 2 | I19: =VLOOKUP(OGPB[[#This Row],[Functiegroep]],Personeelsbaremas!$A$2:$D$29,2,) -> barema 8 | J19: =VLOOKUP(OGPB[[#This Row],[Functiegroep]],Personeelsbaremas!$A$2:$D$29,4,) -> 61 | K19: =OGPB[[#This Row],[Punten per VTE]]*OGPB[[#This Row],[Aantal personen in groep]] -> 69.54 | L19: =$B$1*OGPB[[#This Row],[Aantal personen in groep]] -> 2261.304 | M19: 1 | N19: =OGPB[Punten in groep]*OGPB[Jobtime] -> 69.54 | O19: =IFERROR(OGPB[[#This Row],[Totale loonkost]]/OGPB[[#This Row],[Totaal punten]],0) -> 749.2976704
A20: Totaal | B20: =SUBTOTAL(109,OGPB[Totale loonkost]) -> 1683276.8 | C20: =SUBTOTAL(109,OGPB[Loon toewijsbaar aan woon- & leefkosten]) -> 395782.38 | F20: =SUBTOTAL(109,OGPB[Aantal personen in groep]) -> 28.01

Sheet Ander personeel
A5: Naam persoon of groepsnaam | B5: Loonkost | C5: Inkomsten | D5: Netto kost | E5: Categorie | F5: Dienst | G5: Reële bezette uren (enkel voor zorggebonden) | H5: Loonkost/uur | I5: Inkomsten/uur
A6: AC | B6: 24986.44 | D6: =NVAPH[[#This Row],[Loonkost]]-NVAPH[[#This Row],[Inkomsten]] -> 24986.44 | E6: Woon- en leefkost | H6: =IFERROR(NVAPH[[#This Row],[Loonkost]]/NVAPH[[#This Row],[Reële bezette uren (enkel voor zorggebonden)]],0) -> 0 | I6: =IFERROR(NVAPH[[#This Row],[Inkomsten]]/NVAPH[[#This Row],[Reële bezette uren (enkel voor zorggebonden)]],0) -> 0
A7: AB | B7: 1865.14 | D7: =NVAPH[[#This Row],[Loonkost]]-NVAPH[[#This Row],[Inkomsten]] -> 1865.14 | E7: Woon- en leefkost | H7: =IFERROR(NVAPH[[#This Row],[Loonkost]]/NVAPH[[#This Row],[Reële bezette uren (enkel voor zorggebonden)]],0) -> 0 | I7: =IFERROR(NVAPH[[#This Row],[Inkomsten]]/NVAPH[[#This Row],[Reële bezette uren (enkel voor zorggebonden)]],0) -> 0
A8: BJ | B8: 19522.84 | D8: =NVAPH[[#This Row],[Loonkost]]-NVAPH[[#This Row],[Inkomsten]] -> 19522.84 | E8: Zorggebonden | F8: Leefgroepbegeleider | G8: 1200 | H8: =IFERROR(NVAPH[[#This Row],[Loonkost]]/NVAPH[[#This Row],[Reële bezette uren (enkel voor zorggebonden)]],0) -> 16.26903333 | I8: =IFERROR(NVAPH[[#This Row],[Inkomsten]]/NVAPH[[#This Row],[Reële bezette uren (enkel voor zorggebonden)]],0) -> 0
A9: DT | B9: 13231.71 | D9: =NVAPH[[#This Row],[Loonkost]]-NVAPH[[#This Row],[Inkomsten]] -> 13231.71 | E9: Woon- en leefkost | H9: =IFERROR(NVAPH[[#This Row],[Loonkost]]/NVAPH[[#This Row],[Reële bezette uren (enkel voor zorggebonden)]],0) -> 0 | I9: =IFERROR(NVAPH[[#This Row],[Inkomsten]]/NVAPH[[#This Row],[Reële bezette uren (enkel voor zorggebonden)]],0) -> 0
A10: DJ | B10: 5278.18 | D10: =NVAPH[[#This Row],[Loonkost]]-NVAPH[[#This Row],[Inkomsten]] -> 5278.18 | E10: Zorggebonden | F10: Leefgroepbegeleider | G10: 1200 | H10: =IFERROR(NVAPH[[#This Row],[Loonkost]]/NVAPH[[#This Row],[Reële bezette uren (enkel voor zorggebonden)]],0) -> 4.398483333 | I10: =IFERROR(NVAPH[[#This Row],[Inkomsten]]/NVAPH[[#This Row],[Reële bezette uren (enkel voor zorggebonden)]],0) -> 0
A11: DC | B11: 27516.87 | C11: 27516.87 | D11: =NVAPH[[#This Row],[Loonkost]]-NVAPH[[#This Row],[Inkomsten]] -> 0 | E11: Organisatiegebonden | F11: Onderhoud Centraal Gebouw | H11: =IFERROR(NVAPH[[#This Row],[Loonkost]]/NVAPH[[#This Row],[Reële bezette uren (enkel voor zorggebonden)]],0) -> 0 | I11: =IFERROR(NVAPH[[#This Row],[Inkomsten]]/NVAPH[[#This Row],[Reële bezette uren (enkel voor zorggebonden)]],0) -> 0
A12: DRK | B12: 3147.64 | D12: =NVAPH[[#This Row],[Loonkost]]-NVAPH[[#This Row],[Inkomsten]] -> 3147.64 | E12: Zorggebonden | F12: Leefgroepbegeleider | G12: 1200 | H12: =IFERROR(NVAPH[[#This Row],[Loonkost]]/NVAPH[[#This Row],[Reële bezette uren (enkel voor zorggebonden)]],0) -> 2.623033333 | I12: =IFERROR(NVAPH[[#This Row],[Inkomsten]]/NVAPH[[#This Row],[Reële bezette uren (enkel voor zorggebonden)]],0) -> 0
A13: DA | B13: 15315.13 | D13: =NVAPH[[#This Row],[Loonkost]]-NVAPH[[#This Row],[Inkomsten]] -> 15315.13 | E13: Zorggebonden | F13: Leefgroepbegeleider | G13: 1200 | H13: =IFERROR(NVAPH[[#This Row],[Loonkost]]/NVAPH[[#This Row],[Reële bezette uren (enkel voor zorggebonden)]],0) -> 12.76260833 | I13: =IFERROR(NVAPH[[#This Row],[Inkomsten]]/NVAPH[[#This Row],[Reële bezette uren (enkel voor zorggebonden)]],0) -> 0
A14: EM | B14: 20295.93 | D14: =NVAPH[[#This Row],[Loonkost]]-NVAPH[[#This Row],[Inkomsten]] -> 20295.93 | E14: Zorggebonden | F14: Leefgroepbegeleider | G14: 1200 | H14: =IFERROR(NVAPH[[#This Row],[Loonkost]]/NVAPH[[#This Row],[Reële bezette uren (enkel voor zorggebonden)]],0) -> 16.913275 | I14: =IFERROR(NVAPH[[#This Row],[Inkomsten]]/NVAPH[[#This Row],[Reële bezette uren (enkel voor zorggebonden)]],0) -> 0
A15: EVJ | B15: 4989.39 | D15: =NVAPH[[#This Row],[Loonkost]]-NVAPH[[#This Row],[Inkomsten]] -> 4989.39 | E15: Woon- en leefkost | H15: =IFERROR(NVAPH[[#This Row],[Loonkost]]/NVAPH[[#This Row],[Reële bezette uren (enkel voor zorggebonden)]],0) -> 0 | I15: =IFERROR(NVAPH[[#This Row],[Inkomsten]]/NVAPH[[#This Row],[Reële bezette uren (enkel voor zorggebonden)]],0) -> 0
A16: HM | B16: 4400.46 | D16: =NVAPH[[#This Row],[Loonkost]]-NVAPH[[#This Row],[Inkomsten]] -> 4400.46 | E16: Zorggebonden | F16: Leefgroepbegeleider | G16: 1200 | H16: =IFERROR(NVAPH[[#This Row],[Loonkost]]/NVAPH[[#This Row],[Reële bezette uren (enkel voor zorggebonden)]],0) -> 3.66705 | I16: =IFERROR(NVAPH[[#This Row],[Inkomsten]]/NVAPH[[#This Row],[Reële bezette uren (enkel voor zorggebonden)]],0) -> 0
A17: KK | B17: 33309.87 | D17: =NVAPH[[#This Row],[Loonkost]]-NVAPH[[#This Row],[Inkomsten]] -> 33309.87 | E17: Woon- en leefkost | H17: =IFERROR(NVAPH[[#This Row],[Loonkost]]/NVAPH[[#This Row],[Reële bezette uren (enkel voor zorggebonden)]],0) -> 0 | I17: =IFERROR(NVAPH[[#This Row],[Inkomsten]]/NVAPH[[#This Row],[Reële bezette uren (enkel voor zorggebonden)]],0) -> 0
A18: LC | B18: 18227.86 | D18: =NVAPH[[#This Row],[Loonkost]]-NVAPH[[#This Row],[Inkomsten]] -> 18227.86 | E18: Woon- en leefkost | H18: =IFERROR(NVAPH[[#This Row],[Loonkost]]/NVAPH[[#This Row],[Reële bezette uren (enkel voor zorggebonden)]],0) -> 0 | I18: =IFERROR(NVAPH[[#This Row],[Inkomsten]]/NVAPH[[#This Row],[Reële bezette uren (enkel voor zorggebonden)]],0) -> 0
A19: ME | B19: 12138.58 | D19: =NVAPH[[#This Row],[Loonkost]]-NVAPH[[#This Row],[Inkomsten]] -> 12138.58 | E19: Zorggebonden | F19: Leefgroepbegeleider | G19: 1200 | H19: =IFERROR(NVAPH[[#This Row],[Loonkost]]/NVAPH[[#This Row],[Reële bezette uren (enkel voor zorggebonden)]],0) -> 10.11548333 | I19: =IFERROR(NVAPH[[#This Row],[Inkomsten]]/NVAPH[[#This Row],[Reële bezette uren (enkel voor zorggebonden)]],0) -> 0
A20: RS | B20: 17785.49 | D20: =NVAPH[[#This Row],[Loonkost]]-NVAPH[[#This Row],[Inkomsten]] -> 17785.49 | E20: Zorggebonden | F20: Leefgroepbegeleider | G20: 1200 | H20: =IFERROR(NVAPH[[#This Row],[Loonkost]]/NVAPH[[#This Row],[Reële bezette uren (enkel voor zorggebonden)]],0) -> 14.82124167 | I20: =IFERROR(NVAPH[[#This Row],[Inkomsten]]/NVAPH[[#This Row],[Reële bezette uren (enkel voor zorggebonden)]],0) -> 0
A21: TJ | B21: 20697.75 | D21: =NVAPH[[#This Row],[Loonkost]]-NVAPH[[#This Row],[Inkomsten]] -> 20697.75 | E21: Zorggebonden | F21: Leefgroepbegeleider | G21: 1200 | H21: =IFERROR(NVAPH[[#This Row],[Loonkost]]/NVAPH[[#This Row],[Reële bezette uren (enkel voor zorggebonden)]],0) -> 17.248125 | I21: =IFERROR(NVAPH[[#This Row],[Inkomsten]]/NVAPH[[#This Row],[Reële bezette uren (enkel voor zorggebonden)]],0) -> 0
A22: VHT | B22: 1894.49 | D22: =NVAPH[[#This Row],[Loonkost]]-NVAPH[[#This Row],[Inkomsten]] -> 1894.49 | E22: Zorggebonden | F22: Leefgroepbegeleider | G22: 1200 | H22: =IFERROR(NVAPH[[#This Row],[Loonkost]]/NVAPH[[#This Row],[Reële bezette uren (enkel voor zorggebonden)]],0) -> 1.578741667 | I22: =IFERROR(NVAPH[[#This Row],[Inkomsten]]/NVAPH[[#This Row],[Reële bezette uren (enkel voor zorggebonden)]],0) -> 0
A23: VSJ | B23: 3471.87 | D23: =NVAPH[[#This Row],[Loonkost]]-NVAPH[[#This Row],[Inkomsten]] -> 3471.87 | E23: Zorggebonden | F23: Leefgroepbegeleider | G23: 1200 | H23: =IFERROR(NVAPH[[#This Row],[Loonkost]]/NVAPH[[#This Row],[Reële bezette uren (enkel voor zorggebonden)]],0) -> 2.893225 | I23: =IFERROR(NVAPH[[#This Row],[Inkomsten]]/NVAPH[[#This Row],[Reële bezette uren (enkel voor zorggebonden)]],0) -> 0
A24: Totaal | B24: =SUBTOTAL(109,NVAPH[Loonkost]) -> 248075.64 | C24: =SUBTOTAL(109,NVAPH[Inkomsten]) -> 27516.87

Sheet Vastgoed
A5: Gebouw | B5: ZG % | C5: OG % | D5: W&L % | E5: Oorspronkelijke waarde gebouw | F5: Jaren afschrijving | G5: Afschrijving per jaar | H5: Vervangingskost | I5: Te verrekenen bedrag | J5: ZG bedrag | K5: OG bedrag
A6: Huis 1 | B6: 0 | C6: 0 | D6: 1 | E6: 2104575.95 | F6: 33 | G6: =IFERROR(VastgoedGegevens[Oorspronkelijke waarde gebouw]/VastgoedGegevens[Jaren afschrijving],0) -> 63775.02879 | I6: =IF(VastgoedGegevens[[#This Row],[Vervangingskost]]="",VastgoedGegevens[[#This Row],[Afschrijving per jaar]],VastgoedGegevens[[#This Row],[Vervangingskost]]) -> 63775.02879 | J6: =VastgoedGegevens[[#This Row],[ZG %]]*VastgoedGegevens[[#This Row],[Te verrekenen bedrag]] -> 0 | K6: =VastgoedGegevens[[#This Row],[OG %]]*VastgoedGegevens[[#This Row],[Te verrekenen bedrag]] -> 0
A7: Huis 2 | B7: 0 | C7: 0 | D7: 1 | E7: 2250030.71 | F7: 33 | G7: =IFERROR(VastgoedGegevens[Oorspronkelijke waarde gebouw]/VastgoedGegevens[Jaren afschrijving],0) -> 68182.74879 | I7: =IF(VastgoedGegevens[[#This Row],[Vervangingskost]]="",VastgoedGegevens[[#This Row],[Afschrijving per jaar]],VastgoedGegevens[[#This Row],[Vervangingskost]]) -> 68182.74879 | J7: =VastgoedGegevens[[#This Row],[ZG %]]*VastgoedGegevens[[#This Row],[Te verrekenen bedrag]] -> 0 | K7: =VastgoedGegevens[[#This Row],[OG %]]*VastgoedGegevens[[#This Row],[Te verrekenen bedrag]] -> 0
A8: Huis 3 | B8: 0 | C8: 0 | D8: 1 | E8: 2667968.3 | F8: 33 | G8: =IFERROR(VastgoedGegevens[Oorspronkelijke waarde gebouw]/VastgoedGegevens[Jaren afschrijving],0) -> 80847.52424 | I8: =IF(VastgoedGegevens[[#This Row],[Vervangingskost]]="",VastgoedGegevens[[#This Row],[Afschrijving per jaar]],VastgoedGegevens[[#This Row],[Vervangingskost]]) -> 80847.52424 | J8: =VastgoedGegevens[[#This Row],[ZG %]]*VastgoedGegevens[[#This Row],[Te verrekenen bedrag]] -> 0 | K8: =VastgoedGegevens[[#This Row],[OG %]]*VastgoedGegevens[[#This Row],[Te verrekenen bedrag]] -> 0
A9: Huis 4 + med.dienst | B9: 0 | C9: 0 | D9: 1 | E9: =1583.31*2000 -> 3166620 | F9: 33 | G9: =IFERROR(VastgoedGegevens[Oorspronkelijke waarde gebouw]/VastgoedGegevens[Jaren afschrijving],0) -> 95958.18182 | I9: =IF(VastgoedGegevens[[#This Row],[Vervangingskost]]="",VastgoedGegevens[[#This Row],[Afschrijving per jaar]],VastgoedGegevens[[#This Row],[Vervangingskost]]) -> 95958.18182 | J9: =VastgoedGegevens[[#This Row],[ZG %]]*VastgoedGegevens[[#This Row],[Te verrekenen bedrag]] -> 0 | K9: =VastgoedGegevens[[#This Row],[OG %]]*VastgoedGegevens[[#This Row],[Te verrekenen bedrag]] -> 0
A10: Hoofdgebouw (excl.keuken en wasserij) | B10: 0 | C10: 1 | D10: 0 | E10: =4898.49*2000 -> 9796980 | F10: 33 | G10: =IFERROR(VastgoedGegevens[Oorspronkelijke waarde gebouw]/VastgoedGegevens[Jaren afschrijving],0) -> 296878.1818 | I10: =IF(VastgoedGegevens[[#This Row],[Vervangingskost]]="",VastgoedGegevens[[#This Row],[Afschrijving per jaar]],VastgoedGegevens[[#This Row],[Vervangingskost]]) -> 296878.1818 | J10: =VastgoedGegevens[[#This Row],[ZG %]]*VastgoedGegevens[[#This Row],[Te verrekenen bedrag]] -> 0 | K10: =VastgoedGegevens[[#This Row],[OG %]]*VastgoedGegevens[[#This Row],[Te verrekenen bedrag]] -> 296878.1818
A11: Renovatie hoofdgebouw | B11: 0 | C11: 1 | D11: 0 | E11: 270043.49 | F11: 33 | G11: =IFERROR(VastgoedGegevens[Oorspronkelijke waarde gebouw]/VastgoedGegevens[Jaren afschrijving],0) -> 8183.136061 | I11: =IF(VastgoedGegevens[[#This Row],[Vervangingskost]]="",VastgoedGegevens[[#This Row],[Afschrijving per jaar]],VastgoedGegevens[[#This Row],[Vervangingskost]]) -> 8183.136061 | J11: =VastgoedGegevens[[#This Row],[ZG %]]*VastgoedGegevens[[#This Row],[Te verrekenen bedrag]] -> 0 | K11: =VastgoedGegevens[[#This Row],[OG %]]*VastgoedGegevens[[#This Row],[Te verrekenen bedrag]] -> 8183.136061
A12: Totaal | I12: =SUBTOTAL(109,VastgoedGegevens[Te verrekenen bedrag]) -> 613824.8015 | J12: =SUBTOTAL(109,VastgoedGegevens[ZG bedrag]) -> 0 | K12: =SUBTOTAL(109,VastgoedGegevens[OG bedrag]) -> 305061.3179
A14: Totaal zorggebonden | B14: =VastgoedGegevens[[#Totals],[ZG bedrag]] -> 0
A15: Zorggebonden | B15: Percentage | C15: Kost per jaar
A16: ='ZG werking'!A2 -> Beddengoed | C16: =$B$14*VastgoedVerdelingZG[[#This Row],[Percentage]] -> 0
A17: ='ZG werking'!A3 -> Linnen
A18: ='ZG werking'!A4 -> Kleding
A19: ='ZG werking'!A5 -> Diverse kosten textiel
A20: ='ZG werking'!A6 -> Recup textiel
A21: ='ZG werking'!A7 -> Toiletartikels
A22: ='ZG werking'!A8 -> Farmaceutische producten
A23: ='ZG werking'!A9 -> Rec farm.prod.
A24: ='ZG werking'!A10 -> Medische gassen
A25: ='ZG werking'!A11 -> Farmaceutisch materiaal
A26: ='ZG werking'!A12 -> Fixatiemateriaal
A27: ='ZG werking'!A13 -> Paramedische kosten
A28: ='ZG werking'!A14 -> Recup paramedische kosten
A29: ='ZG werking'!A15 -> Educatieve activiteiten+verplaatsingen
A30: ='ZG werking'!A16 -> Recup educatieve act
A31: ='ZG werking'!A17 -> Recup energie (uitstappen)
A32: ='ZG werking'!A18 -> Incontinentiemateriaal
A33: ='ZG werking'!A19 -> Recup incontinentiemateriaal
A34: ='ZG werking'!A20 -> Wegwerpmateriaal
A35: ='ZG werking'!A21 -> TV-kabel
A36: ='ZG werking'!A22 -> Kampen
A37: ='ZG werking'!A23 -> Recup kampen
A38: ='ZG werking'!A24 -> Dokter+tandarts
A39: ='ZG werking'!A25 -> Recup dokters+tandarts
A40: ='ZG werking'!A26 -> Hospitalisatie
A41: ='ZG werking'!A27 -> Recup hospitalisatie
A42: ='ZG werking'!A28 -> Medisch vervoer
A43: ='ZG werking'!A29 -> Recup medisch vervoer
A44: ='ZG werking'!A30 -> Diverse medische kosten
A45: ='ZG werking'!A31 -> Recup diverse medische kosten
A46: ='ZG werking'!A32 -> Kinesist
A47: ='ZG werking'!A33 -> Recup verzekering (kinesist)
A48: ='ZG werking'!A34 -> Recup ziekenfonds (kinesist)
A49: ='ZG werking'!A35 -> Elektriciteit
A50: ='ZG werking'!A36 -> Water
A51: ='ZG werking'!A37 -> Gas
A52: Totaal | B52: =SUBTOTAL(109,VastgoedVerdelingZG[Percentage]) -> 0 | C52: =SUBTOTAL(109,VastgoedVerdelingZG[Kost per jaar]) -> 0
A54: Totaal organisatiegebonden | B54: =VastgoedGegevens[[#Totals],[OG bedrag]] -> 305061.3179
A55: Organisatiegebonden | B55: Percentage | C55: Kost per jaar
A56: ='OG werking'!B2 -> Verzekeringen | B56: 1 | C56: =$B$54*VastgoedVerdelingOG[[#This Row],[Percentage]] -> 305061.3179
A57: ='OG werking'!B3 -> Opleidingen | C57: =$B$54*VastgoedVerdelingOG[[#This Row],[Percentage]] -> 0
A58: ='OG werking'!B4 -> Recup opleidingen | C58: =$B$54*VastgoedVerdelingOG[[#This Row],[Percentage]] -> 0
A59: ='OG werking'!B5 -> Recup opleidingen | C59: =$B$54*VastgoedVerdelingOG[[#This Row],[Percentage]] -> 0
A60: ='OG werking'!B6 -> Dienstverplaatsingen | C60: =$B$54*VastgoedVerdelingOG[[#This Row],[Percentage]] -> 0
A61: ='OG werking'!B7 -> Recup verplaatsingen | C61: =$B$54*VastgoedVerdelingOG[[#This Row],[Percentage]] -> 0
A62: ='OG werking'!B8 -> Pastorale werking | C62: =$B$54*VastgoedVerdelingOG[[#This Row],[Percentage]] -> 0
A63: ='OG werking'!B9 -> Klein materieel en meubilair | C63: =$B$54*VastgoedVerdelingOG[[#This Row],[Percentage]] -> 0
A64: ='OG werking'!B10 -> Huur | C64: =$B$54*VastgoedVerdelingOG[[#This Row],[Percentage]] -> 0
A65: ='OG werking'!B11 -> Onderhoudsproducten | C65: =$B$54*VastgoedVerdelingOG[[#This Row],[Percentage]] -> 0
A66: ='OG werking'!B12 -> Benodigdheden technische dienst | C66: =$B$54*VastgoedVerdelingOG[[#This Row],[Percentage]] -> 0
A67: ='OG werking'!B13 -> Kleine schilderwerken | C67: =$B$54*VastgoedVerdelingOG[[#This Row],[Percentage]] -> 0
A68: ='OG werking'!B14 -> Herstel gebouwen | C68: =$B$54*VastgoedVerdelingOG[[#This Row],[Percentage]] -> 0
A69: ='OG werking'!B15 -> Recup schade (brand,storm) | C69: =$B$54*VastgoedVerdelingOG[[#This Row],[Percentage]] -> 0
A70: ='OG werking'!B16 -> Recup verhuur | C70: =$B$54*VastgoedVerdelingOG[[#This Row],[Percentage]] -> 0
A71: ='OG werking'!B17 -> Herstel binnenschrijnwerk | C71: =$B$54*VastgoedVerdelingOG[[#This Row],[Percentage]] -> 0
A72: ='OG werking'!B18 -> Herstel technische installaties | C72: =$B$54*VastgoedVerdelingOG[[#This Row],[Percentage]] -> 0
A73: ='OG werking'!B19 -> Herstel medische installaties | C73: =$B$54*VastgoedVerdelingOG[[#This Row],[Percentage]] -> 0
A74: ='OG werking'!B20 -> Herstel computerinstallaties | C74: =$B$54*VastgoedVerdelingOG[[#This Row],[Percentage]] -> 0
A75: ='OG werking'!B21 -> Herstel verwarming/sanitair | C75: =$B$54*VastgoedVerdelingOG[[#This Row],[Percentage]] -> 0
A76: ='OG werking'!B22 -> Herstel diverse installaties | C76: =$B$54*VastgoedVerdelingOG[[#This Row],[Percentage]] -> 0
A77: ='OG werking'!B23 -> Herstel elektrische installaties | C77: =$B$54*VastgoedVerdelingOG[[#This Row],[Percentage]] -> 0
A78: ='OG werking'!B24 -> Herstel telefooninstallatie | C78: =$B$54*VastgoedVerdelingOG[[#This Row],[Percentage]] -> 0
A79: ='OG werking'!B25 -> Herstel meubilair | C79: =$B$54*VastgoedVerdelingOG[[#This Row],[Percentage]] -> 0
A80: ='OG werking'!B26 -> Herstel rollend materieel | C80: =$B$54*VastgoedVerdelingOG[[#This Row],[Percentage]] -> 0
A81: ='OG werking'!B27 -> Onderhoud tuinen,terreinen | C81: =$B$54*VastgoedVerdelingOG[[#This Row],[Percentage]] -> 0
A82: ='OG werking'!B28 -> Huisvuil | C82: =$B$54*VastgoedVerdelingOG[[#This Row],[Percentage]] -> 0
A83: ='OG werking'!B29 -> Ongediertebestrijding | C83: =$B$54*VastgoedVerdelingOG[[#This Row],[Percentage]] -> 0
A84: ='OG werking'!B30 -> Brandbeveiliging | C84: =$B$54*VastgoedVerdelingOG[[#This Row],[Percentage]] -> 0
A85: ='OG werking'!B31 -> Onderhoudscontracten | C85: =$B$54*VastgoedVerdelingOG[[#This Row],[Percentage]] -> 0
A86: ='OG werking'!B32 -> Brandstof rollend materieel | C86: =$B$54*VastgoedVerdelingOG[[#This Row],[Percentage]] -> 0
A87: ='OG werking'!B33 -> Kantoorkosten | C87: =$B$54*VastgoedVerdelingOG[[#This Row],[Percentage]] -> 0
A88: ='OG werking'!B34 -> Recup kantoor gebruikers | C88: =$B$54*VastgoedVerdelingOG[[#This Row],[Percentage]] -> 0
A89: ='OG werking'!B35 -> Recup kantoor personeel | C89: =$B$54*VastgoedVerdelingOG[[#This Row],[Percentage]] -> 0
A90: ='OG werking'!B36 -> Recup kantoor derden | C90: =$B$54*VastgoedVerdelingOG[[#This Row],[Percentage]] -> 0
A91: ='OG werking'!B37 -> Verzendingkosten | C91: =$B$54*VastgoedVerdelingOG[[#This Row],[Percentage]] -> 0
A92: ='OG werking'!B38 -> Telefoon/internet | C92: =$B$54*VastgoedVerdelingOG[[#This Row],[Percentage]] -> 0
A93: ='OG werking'!B39 -> Drukwerk | C93: =$B$54*VastgoedVerdelingOG[[#This Row],[Percentage]] -> 0
A94: ='OG werking'!B40 -> Fotokopiekosten | C94: =$B$54*VastgoedVerdelingOG[[#This Row],[Percentage]] -> 0
A95: ='OG werking'!B41 -> Papier | C95: =$B$54*VastgoedVerdelingOG[[#This Row],[Percentage]] -> 0
A96: ='OG werking'!B42 -> Wettelijke formaliteiten | C96: =$B$54*VastgoedVerdelingOG[[#This Row],[Percentage]] -> 0
A97: ='OG werking'!B43 -> Computerkosten | C97: =$B$54*VastgoedVerdelingOG[[#This Row],[Percentage]] -> 0
A98: ='OG werking'!B44 -> Sociaal secretariaat | C98: =$B$54*VastgoedVerdelingOG[[#This Row],[Percentage]] -> 0
A99: ='OG werking'!B45 -> Centrale administratie | C99: =$B$54*VastgoedVerdelingOG[[#This Row],[Percentage]] -> 0
A100: ='OG werking'!B46 -> Controle en keuring | C100: =$B$54*VastgoedVerdelingOG[[#This Row],[Percentage]] -> 0
A101: ='OG werking'!B47 -> Informatica-computerprestaties | C101: =$B$54*VastgoedVerdelingOG[[#This Row],[Percentage]] -> 0
A102: ='OG werking'!B48 -> Boekhouding | C102: =$B$54*VastgoedVerdelingOG[[#This Row],[Percentage]] -> 0
A103: ='OG werking'!B49 -> Orbis | C103: =$B$54*VastgoedVerdelingOG[[#This Row],[Percentage]] -> 0
A104: ='OG werking'!B50 -> Ereloon bedrijfsrevisor | C104: =$B$54*VastgoedVerdelingOG[[#This Row],[Percentage]] -> 0
A105: ='OG werking'!B51 -> Lidgeld Vlaams Welzijn | C105: =$B$54*VastgoedVerdelingOG[[#This Row],[Percentage]] -> 0
A106: ='OG werking'!B52 -> Giften en geschenken | C106: =$B$54*VastgoedVerdelingOG[[#This Row],[Percentage]] -> 0
A107: ='OG werking'!B53 -> Lidgelden | C107: =$B$54*VastgoedVerdelingOG[[#This Row],[Percentage]] -> 0
A108: ='OG werking'!B54 -> Public relations | C108: =$B$54*VastgoedVerdelingOG[[#This Row],[Percentage]] -> 0
A109: ='OG werking'!B55 -> Andere erelonen | C109: =$B$54*VastgoedVerdelingOG[[#This Row],[Percentage]] -> 0
A110: ='OG werking'!B56 -> Diverse notoriteitsuitgaven | C110: =$B$54*VastgoedVerdelingOG[[#This Row],[Percentage]] -> 0
A111: ='OG werking'!B57 -> Buitenwettelijke verzekeringen | C111: =$B$54*VastgoedVerdelingOG[[#This Row],[Percentage]] -> 0
A112: ='OG werking'!B58 -> Verzekering arbeidsongevallen | C112: =$B$54*VastgoedVerdelingOG[[#This Row],[Percentage]] -> 0
A113: ='OG werking'!B59 -> BA personeel | C113: =$B$54*VastgoedVerdelingOG[[#This Row],[Percentage]] -> 0
A114: ='OG werking'!B60 -> Bedrijfsgeneeskunde | C114: =$B$54*VastgoedVerdelingOG[[#This Row],[Percentage]] -> 0
A115: ='OG werking'!B61 -> Woon-werkverkeer | C115: =$B$54*VastgoedVerdelingOG[[#This Row],[Percentage]] -> 0
A116: ='OG werking'!B62 -> Syndicale premie | C116: =$B$54*VastgoedVerdelingOG[[#This Row],[Percentage]] -> 0
A117: ='OG werking'!B63 -> Kamppremie | C117: =$B$54*VastgoedVerdelingOG[[#This Row],[Percentage]] -> 0
A118: ='OG werking'!B64 -> Werkkledij | C118: =$B$54*VastgoedVerdelingOG[[#This Row],[Percentage]] -> 0
A119: ='OG werking'!B65 -> Diverse andere personeelskosten | C119: =$B$54*VastgoedVerdelingOG[[#This Row],[Percentage]] -> 0
A120: ='OG werking'!B66 -> Bedrijfsbelastingen | C120: =$B$54*VastgoedVerdelingOG[[#This Row],[Percentage]] -> 0
A121: ='OG werking'!B67 -> Bibliotheek | C121: =$B$54*VastgoedVerdelingOG[[#This Row],[Percentage]] -> 0
A122: ='OG werking'!B68 -> Georganiseerde activiteiten | C122: =$B$54*VastgoedVerdelingOG[[#This Row],[Percentage]] -> 0
A123: ='OG werking'!B69 -> Recup georganiseerde act | C123: =$B$54*VastgoedVerdelingOG[[#This Row],[Percentage]] -> 0
A124: ='OG werking'!B70 -> Arbeidsgerichte activiteiten | C124: =$B$54*VastgoedVerdelingOG[[#This Row],[Percentage]] -> 0
A125: ='OG werking'!B71 -> Recup arbeidsgerichte act | C125: =$B$54*VastgoedVerdelingOG[[#This Row],[Percentage]] -> 0
A126: ='OG werking'!B72 -> Financiële kosten | C126: =$B$54*VastgoedVerdelingOG[[#This Row],[Percentage]] -> 0
A127: ='OG werking'!B73 -> Financiële opbrengsten | C127: =$B$54*VastgoedVerdelingOG[[#This Row],[Percentage]] -> 0
A128: ='OG werking'!B74 -> Elektriciteit | C128: =$B$54*VastgoedVerdelingOG[[#This Row],[Percentage]] -> 0
A129: ='OG werking'!B75 -> Water | C129: =$B$54*VastgoedVerdelingOG[[#This Row],[Percentage]] -> 0
A130: ='OG werking'!B76 -> Gas | C130: =$B$54*VastgoedVerdelingOG[[#This Row],[Percentage]] -> 0
A131: Totaal | B131: =SUBTOTAL(109,VastgoedVerdelingOG[Percentage]) -> 1 | C131: =SUBTOTAL(109,VastgoedVerdelingOG[Kost per jaar]) -> 305061.3179

Sheet Hippo
B1: Werkingskosten | C1: Totaalkost | D1: Afschrijvings-percentage | E1: Kostprijs per jaar
B2: Geactiveerde kosten loods hippo | C2: 20000 | D2: 0.2 | E2: =Hippo[[#This Row],[Totaalkost]]*Hippo[[#This Row],[Afschrijvings-percentage]] -> 4000
B3: Loods hippo | C3: 5000 | D3: 0.1 | E3: =Hippo[[#This Row],[Totaalkost]]*Hippo[[#This Row],[Afschrijvings-percentage]] -> 500
B4: Extra (na vgl. met AW) | C4: 10000 | D4: 0.05 | E4: =Hippo[[#This Row],[Totaalkost]]*Hippo[[#This Row],[Afschrijvings-percentage]] -> 500
E5: =Hippo[[#This Row],[Totaalkost]]*Hippo[[#This Row],[Afschrijvings-percentage]] -> 0
E6: =Hippo[[#This Row],[Totaalkost]]*Hippo[[#This Row],[Afschrijvings-percentage]] -> 0
B7: Totaal | E7: =SUBTOTAL(109,Hippo[Kostprijs per jaar]) -> 5000

Sheet Energie
A1: Grootboekrekening
B2: 612 | C2: Elektriciteit
C3: Totale kost | D3: 37413.59
C5: Verdeling | D5: % | E5: Kostprijs
C6: Hotel was | D6: 0 | E6: =ElektriciteitVerdeling[[#This Row],[%]]*$D$3 -> 0
C7: Persoonlijke was | D7: 0.03 | E7: =ElektriciteitVerdeling[[#This Row],[%]]*$D$3 -> 1122.4077
C8: Voeding | D8: 0 | E8: =ElektriciteitVerdeling[[#This Row],[%]]*$D$3 -> 0
C9: Overige zorggebonden | D9: 0 | E9: =ElektriciteitVerdeling[[#This Row],[%]]*$D$3 -> 0
C10: Overige organisatiegebonden | D10: 0.97 | E10: =ElektriciteitVerdeling[[#This Row],[%]]*$D$3 -> 36291.1823
E11: =ElektriciteitVerdeling[[#This Row],[%]]*$D$3 -> 0
B12: 612 | C12: Gas
C13: Totale kost | D13: 85426.23
C15: Verdeling | D15: % | E15: Kostprijs
C16: Hotel was | D16: 0 | E16: =GasVerdeling[[#This Row],[%]]*$D$13 -> 0
C17: Persoonlijke was | D17: 0.2 | E17: =GasVerdeling[[#This Row],[%]]*$D$13 -> 17085.246
C18: Voeding | D18: 0.02 | E18: =GasVerdeling[[#This Row],[%]]*$D$13 -> 1708.5246
C19: Overige zorggebonden | D19: 0.42 | E19: =GasVerdeling[[#This Row],[%]]*$D$13 -> 35879.0166
C20: Overige organisatiegebonden | D20: 0.36 | E20: =GasVerdeling[[#This Row],[%]]*$D$13 -> 30753.4428
E21: =GasVerdeling[[#This Row],[%]]*$D$13 -> 0
C22: Zonnepanelen
C23: Totale kost | D23: 0
C25: Verdeling | D25: % | E25: Kostprijs
C26: Hotel was | D26: 0.05 | E26: =ZonnepanelenVerdeling[[#This Row],[%]]*$D$23 -> 0
C27: Persoonlijke was | D27: 0.1 | E27: =ZonnepanelenVerdeling[[#This Row],[%]]*$D$23 -> 0
C28: Voeding | D28: 0.15 | E28: =ZonnepanelenVerdeling[[#This Row],[%]]*$D$23 -> 0
C29: Overige zorggebonden | D29: 0.4 | E29: =ZonnepanelenVerdeling[[#This Row],[%]]*$D$23 -> 0
C30: Overige organisatiegebonden | D30: 0.3 | E30: =ZonnepanelenVerdeling[[#This Row],[%]]*$D$23 -> 0
B32: 612 | C32: Water
C33: Totale kost | D33: 43153.58
C35: Verdeling | D35: % | E35: Kostprijs
C36: Hotel was | D36: 0 | E36: =WarmtenetVerdeling[[#This Row],[%]]*$D$33 -> 0
C37: Persoonlijke was | D37: 0.33 | E37: =WarmtenetVerdeling[[#This Row],[%]]*$D$33 -> 14240.6814
C38: Voeding | D38: 0 | E38: =WarmtenetVerdeling[[#This Row],[%]]*$D$33 -> 0
C39: Overige zorggebonden | D39: 0.54 | E39: =WarmtenetVerdeling[[#This Row],[%]]*$D$33 -> 23302.9332
C40: Overige organisatiegebonden | D40: 0.13 | E40: =WarmtenetVerdeling[[#This Row],[%]]*$D$33 -> 5609.9654
E41: =WarmtenetVerdeling[[#This Row],[%]]*$D$33 -> 0
B43: 612 | C43: Warmtenet
C44: Totale kost | D44: 0
C46: Verdeling | D46: % | E46: Kostprijs
C47: Hotel was | D47: 0.05 | E47: =MazoutVerdeling[[#This Row],[%]]*$D$44 -> 0
C48: Persoonlijke was | D48: 0.1 | E48: =MazoutVerdeling[[#This Row],[%]]*$D$44 -> 0
C49: Voeding | D49: 0.15 | E49: =MazoutVerdeling[[#This Row],[%]]*$D$44 -> 0
C50: Overige zorggebonden | D50: 0.4 | E50: =MazoutVerdeling[[#This Row],[%]]*$D$44 -> 0
C51: Overige organisatiegebonden | D51: 0.3 | E51: =MazoutVerdeling[[#This Row],[%]]*$D$44 -> 0
E52: =MazoutVerdeling[[#This Row],[%]]*$D$44 -> 0
B54: 612 | C54: Mazout
C55: Totale kost | D55: 0
C57: Verdeling | D57: % | E57: Kostprijs
C58: Hotel was | D58: 0.05 | E58: =WaterVerdeling[[#This Row],[%]]*$D$55 -> 0
C59: Persoonlijke was | D59: 0.1 | E59: =WaterVerdeling[[#This Row],[%]]*$D$55 -> 0
C60: Voeding | D60: 0.15 | E60: =WaterVerdeling[[#This Row],[%]]*$D$55 -> 0
C61: Overige zorggebonden | D61: 0.4 | E61: =WaterVerdeling[[#This Row],[%]]*$D$55 -> 0
C62: Overige organisatiegebonden | D62: 0.3 | E62: =WaterVerdeling[[#This Row],[%]]*$D$55 -> 0
E63: =WaterVerdeling[[#This Row],[%]]*$D$55 -> 0

Sheet Hotel was
A2: Grootboekrekening | B2: Algemene kosten | C2: Kostprijs
B3: Wasproduct
B4: Wasserijbenodigdheden
A5: Totaal | C5: =SUBTOTAL(109,Tabel20[Kostprijs]) -> 0
A7: Grootboekrekening | B7: Personeel | C7: Totale loonkost | D7: Totale inkomsten | E7: Netto kost
B8: VAPH personeel | D8: =Tabel2024[[#This Row],[Totale loonkost]] -> 0 | E8: =Tabel2024[[#This Row],[Totale loonkost]]-Tabel2024[[#This Row],[Totale inkomsten]] -> 0
B9: Niet VAPH personeel | E9: =Tabel2024[[#This Row],[Totale loonkost]]-Tabel2024[[#This Row],[Totale inkomsten]] -> 0
A10: Totaal | C10: =SUBTOTAL(109,Tabel2024[Totale loonkost]) -> 0 | D10: =SUBTOTAL(109,Tabel2024[Totale inkomsten]) -> 0 | E10: =SUBTOTAL(109,Tabel2024[Netto kost]) -> 0
A12: Grootboekrekening | B12: Energie | C12: Kostprijs
B13: Elektriciteit | C13: =Energie!E6 -> 0
B14: Gas | C14: =Energie!E16 -> 0
B15: Water | C15: =Energie!E58 -> 0
B16: Zonnepanelen | C16: =Energie!E26 -> 0
B17: Warmtenet | C17: =Energie!E36 -> 0
B18: Mazout | C18: =Energie!E47 -> 0
A19: Totaal | C19: =SUBTOTAL(109,Tabel2025[Kostprijs]) -> 0
A21: Grootboekrekening | B21: Afschrijvingen | C21: Totale kostprijs | D21: Aantal jaren | E21: Kostprijs per jaar
B22: Ruwbouw | D22: 20 | E22: =Tabel2026[[#This Row],[Totale kostprijs]]/Tabel2026[[#This Row],[Aantal jaren]] -> 0
B23: Installatie | D23: 8 | E23: =Tabel2026[[#This Row],[Totale kostprijs]]/Tabel2026[[#This Row],[Aantal jaren]] -> 0
A24: Totaal | E24: =SUBTOTAL(109,Tabel2026[Kostprijs per jaar]) -> 0
A26: Grootboekrekening | B26: Exploitatie | C26: Kostprijs
B27: Onderhoud washuis
B28: Intern vervoer
A29: Totaal | C29: =SUBTOTAL(109,Tabel2035[Kostprijs]) -> 0
A31: Bruto kostprijs | B31: =Tabel20[[#Totals],[Kostprijs]]+Tabel2024[[#Totals],[Totale loonkost]]+Tabel2025[[#Totals],[Kostprijs]]+Tabel2026[[#Totals],[Kostprijs per jaar]]+Tabel2035[[#Totals],[Kostprijs]] -> 0
A32: Subsidies | B32: =Tabel2024[[#Totals],[Totale inkomsten]] -> 0
A34: Kilo was
A36: Bruto kostprijs per eenheid | B36: =B31/B34 -> 
A37: Subsidies per eenheid | B37: =B32/B34 -> 
A38: Netto kostprijs per eenheid | B38: =B36-B37 -> 

Sheet Persoonlijke was
A2: Grootboekrekening | B2: Algemene kosten | C2: Kostprijs
B3: Wasproduct | C3: 27323.76
B4: Wasserijbenodigdheden | C4: 528.03
A5: Totaal | C5: =SUBTOTAL(109,Tabel2036[Kostprijs]) -> 27851.79
A7: Grootboekrekening | B7: Personeel | C7: Totale loonkost | D7: Totale inkomsten | E7: Netto kost
B8: VAPH personeel | C8: =198501.49-58296.31+(36641.01/25.3*2)+(29018.11/19*3)+(26611.71/28.5*6) -> 153285.9746 | D8: =Tabel202439[[#This Row],[Totale loonkost]] -> 153285.9746 | E8: =Tabel202439[[#This Row],[Totale loonkost]]-Tabel202439[[#This Row],[Totale inkomsten]] -> 0
B9: Niet VAPH personeel | C9: =24986.44+33309.87 -> 58296.31 | E9: =Tabel202439[[#This Row],[Totale loonkost]]-Tabel202439[[#This Row],[Totale inkomsten]] -> 58296.31
A10: Totaal | C10: =SUBTOTAL(109,Tabel202439[Totale loonkost]) -> 211582.2846 | D10: =SUBTOTAL(109,Tabel202439[Totale inkomsten]) -> 153285.9746 | E10: =SUBTOTAL(109,Tabel202439[Netto kost]) -> 58296.31
A12: Grootboekrekening | B12: Energie | C12: Kostprijs
B13: Elektriciteit | C13: 1193.964939
B14: Gas | C14: 17472.15096
B15: Water | C15: 14271.82431
B16: Zonnepanelen | C16: =Energie!E27 -> 0
B17: Warmtenet
B18: Mazout | C18: =Energie!E48 -> 0
A19: Totaal | C19: =SUBTOTAL(109,Tabel202540[Kostprijs]) -> 32937.9402
A21: Grootboekrekening | B21: Afschrijvingen | C21: Totale kostprijs | D21: Aantal jaren | E21: Kostprijs per jaar
B22: Ruwbouw | C22: 516000 | D22: 33 | E22: =Tabel202647[[#This Row],[Totale kostprijs]]/Tabel202647[[#This Row],[Aantal jaren]] -> 15636.36364
B23: Installatie | C23: 137594.1 | D23: 10 | E23: =Tabel202647[[#This Row],[Totale kostprijs]]/Tabel202647[[#This Row],[Aantal jaren]] -> 13759.41
A24: Totaal | E24: =SUBTOTAL(109,Tabel202647[Kostprijs per jaar]) -> 29395.77364
A26: Grootboekrekening | B26: Exploitatie | C26: Kostprijs
B27: Onderhoud washuis | C27: =(12892.27+14731.46+3919.31)/3 -> 10514.34667
B28: Ekoboil | C28: =560.84+12.1+528.13*3 -> 2157.33
B29: VMM | C29: =3000/7*10/3 -> 1428.571429
A30: Totaal | C30: =SUBTOTAL(109,Tabel203548[Kostprijs]) -> 14100.2481
A31: Bruto kostprijs | B31: =Tabel2036[[#Totals],[Kostprijs]]+Tabel202439[[#Totals],[Totale loonkost]]+Tabel202540[[#Totals],[Kostprijs]]+Tabel202647[[#Totals],[Kostprijs per jaar]]+Tabel203548[[#Totals],[Kostprijs]] -> 315868.0366
A32: Subsidies | B32: =Tabel202439[[#Totals],[Totale inkomsten]] -> 153285.9746
A34: Kilo was | B34: 179140
A36: Bruto kostprijs per eenheid | B36: =B31/B34 -> 1.763246827
A37: Subsidies per eenheid | B37: =B32/B34 -> 0.8556769824

Sheet Voeding
A2: grootboekrekeningen | B2: kostenposten voeding | C2: Kostprijs
A3: 6000 | B3: Algemene voeding | C3: 100000
A4: 6000 | B4: Zuivelproducten | C4: 20000
A5: 6000 | B5: Dranken | C5: 50000
A6: 6000 | B6: Vis | C6: 30000
A7: 6000 | B7: Vlees | C7: 50000
A8: 6000 | B8: Brood & gebak | C8: 80000
A9: 6000 | B9: Aardappelen | C9: 30000
A10: 6000 | B10: Fruit | C10: 25000
A11: 6000 | B11: Groenten | C11: 15000
A12: 6000 | B12: Dieetproducten | C12: 50000
B15: interne distributie / logistiek
A16: 6000 | B16: inkoop igv kant & klaar
B17: Totaal | C17: =SUBTOTAL(109,Tabel328[Kostprijs]) -> 450000
B19: Personeelslid | C19: Totale brutoloonkost
A20: 620 -621 - 622 -623 - 624 -628 | B20: Niet-VAPH | C20: 500000
B21: VAPH personeel
A22: (igv eigen personeel) | B22: Totaal | C22: =SUBTOTAL(109,Tabel2[Totale brutoloonkost]) -> 500000
B25: Energie | C25: Kostprijs
A26: 612 | B26: Elektriciteit | C26: =Energie!E8 -> 0
A27: 612 | B27: Water | C27: =Energie!E60 -> 0
A28: 612 | B28: Gas | C28: =Energie!E18 -> 1708.5246
A29: 612 | B29: mazout | C29: =Energie!E49 -> 0
A30: 612 | B30: zonnepanelen | C30: =Energie!E28 -> 0
A31: 612 | B31: warmtenet | C31: =Energie!E38 -> 0
B32: …
B33: Totaal | C33: =SUBTOTAL(109,Tabel429[Kostprijs]) -> 1708.5246
B35: Afschrijvingen | C35: Totale kostprijs | D35: Aantal jaren | E35: Kostprijs per jaar
B36: Ruwbouw | C36: 100000 | D36: 20 | E36: =Tabel530[[#This Row],[Totale kostprijs]]/Tabel530[[#This Row],[Aantal jaren]] -> 5000
B37: Technieken | C37: 5000 | D37: 5 | E37: =Tabel530[[#This Row],[Totale kostprijs]]/Tabel530[[#This Row],[Aantal jaren]] -> 1000
B38: Installatie keuken | C38: 25000 | D38: 10 | E38: =Tabel530[[#This Row],[Totale kostprijs]]/Tabel530[[#This Row],[Aantal jaren]] -> 2500
B39: Inrichting | C39: 8000 | D39: 2 | E39: =Tabel530[[#This Row],[Totale kostprijs]]/Tabel530[[#This Row],[Aantal jaren]] -> 4000
B42: Totaal | E42: =SUBTOTAL(109,Tabel530[Kostprijs per jaar]) -> 12500
B44: Exploitatie | C44: Kostprijs
A45: 601 | B45: Vaatwerk | C45: 2000
B46: Keukenmaterieel | C46: 5000
A47: 611 | B47: Herstelling keukenmaterieel | C47: 1500
B51: Totaal | C51: =SUBTOTAL(109,Tabel631[Kostprijs]) -> 8500
B53: Totale kostprijs | C53: =Tabel328[[#Totals],[Kostprijs]]+Tabel2[[#Totals],[Totale brutoloonkost]]+Tabel429[[#Totals],[Kostprijs]]+Tabel530[[#Totals],[Kostprijs per jaar]]+Tabel631[[#Totals],[Kostprijs]] -> 972708.5246
B55: Maaltijd | C55: totaal aantal per jaar | D55: aantal voor Werknemer | E55: theoretisch aantal voor klant | F55: aantal of % " onvoorziene" afwezigheid | G55: realistisch aantal voor klant
B56: Ontbijt standaard | C56: 122000 | D56: 5000 | E56: =+Tabel732[[#This Row],[totaal aantal per jaar]]-Tabel732[[#This Row],[aantal voor Werknemer]] -> 117000 | F56: 0.1 | G56: =+E56*0.9 -> 105300
B57: Lunch soep | C57: 244000
B58: lunch standaard voorgerecht
B59: lunch standaard hoofdgerecht
B60: lunch standaard dessert
B61: vieruurtje standaard
B62: Avondmaal standaard | C62: 122000
B63: dieet ontbijt
B64: dieet middag
B65: dieet vieruurtje
B66: dieet avond
B67: dieet ontbijt lactosevrij
B68: dieet middag lactosevrij | H68: lactosevrij, glutenvrij suikervrij,
B69: dieet vieruurtje lactosevrij
B70: dieet avond lactosevrij
B71: dieet ontbijt glutenvrij
B72: dieet middag glutenvrij
B73: dieet vieruurtje glutenvrij
B74: dieet avond glutenvrij
B75: dieet ontbijt suikervrij
B76: dieet middag suikervrij
B77: dieet vieruurtje suikervrij
B78: dieet avond suikervrij
B81: Totaal | C81: =SUBTOTAL(109,Tabel732[totaal aantal per jaar]) -> 488000
B83: Kostenverdeling | C83: Percentage
B84: Ontbijt | C84: 0.1
B85: Lunch | C85: 0.8
B86: vieruurtje
B87: Avondmaal | C87: 0.1
B89: Maaltijd | C89: Kostprijs | D89: mark-up "onvoorziene" afwezigheid | E89: herziene Kostprijs | F89: mark-up voor klant | G89: aan te rekenen kostprijs | H89: mark-up voor Werknemer
B90: Ontbijt | C90: =C84*$C$53/(G56+D56) -> 0.8818753623 | F90: 0.25 | G90: =+VoedingTotaal[[#This Row],[Kostprijs]]*1.25 -> 1.102344203
B91: Lunch | C91: =C85*$C$53/C57 -> 3.189208277 | F91: 0.25 | G91: =+VoedingTotaal[[#This Row],[Kostprijs]]*1.25 -> 3.986510347
B92: Avondmaal | C92: =C87*$C$53/C62 -> 0.7973020693 | G92: =+VoedingTotaal[[#This Row],[Kostprijs]]*1.25 -> 0.9966275867
B93: Kostprijs per dag | C93: =SUBTOTAL(109,VoedingTotaal[Kostprijs]) -> 4.868385709

Sheet Grootboekrekeningen
B2: 6000 | C2: Aankopen voeding
B3: 6001 | C3: Aankopen textiel en wasproducten
B4: 6002 | C4: Aankopen voor toilet en opschik
B5: 6003 | C5: Aankopen farmaceutische verbruiksgoederen
B6: 6004 | C6: Paramedische kosten
B7: 6005 | C7: Educatieve activiteiten, psycho-sociale noden en ontspanning
B8: 6006 | C8: Aankopen disposables
B9: 6009 | C9: Aankopen andere verbruiksgoederen
B10: 601 | C10: Aankopen van hulpstoffen
B11: 602 | C11: Aankopen van diensten, werk en studies
B12: 603 | C12: Algemene onderaannemingen
B13: 604 | C13: Aankopen van handelsgoederen
B14: 605 | C14: Aankopen van onroerende goederen voor verkoop
B15: 608 | C15: Ontvangen kortingen, ristorno’s en rabatten (-)
B16: 609 | C16: Wijzigingen in de voorraad
B17: 610 | C17: Huurlasten
B18: 611 | C18: Onderhoud en herstellingen
B19: 612 | C19: Leveringen energie, brandstof en water
B20: 613 | C20: Kantoorkosten
B21: 614 | C21: Verzekeringen
B22: 615 | C22: Verplaatsingen
B23: 616 | C23: Externe diensten
B24: 617 | C24: Uitzendpersoneel en personen die ter beschikking worden gesteld van de vereniging
B25: 618 | C25: Bezoldigingen, premies voor buitenwettelijke verzekeringen, ouderdoms- en overlevingspensioenen van bestuurders, zaakvoerders en werkende vennoten, die niet worden toegekend krachtens een arbeidscontract
B26: 619 | C26: Doorstorting subsidie
B27: 620 | C27: Bezoldigingen en rechtstreekse sociale voordelen
B28: 621 | C28: Werkgeversbijdragen voor sociale zekerheid
B29: 622 | C29: Werkgeverspremies voor buitenwettelijke verzekeringen
B30: 623 | C30: Andere personeelskosten
B31: 624 | C31: Ouderdoms- en overlevingspensioenen
B32: 628 | C32: Voorzieningen vakantiegeld
B33: 630 | C33: Afschrijvingen en waardeverminderingen op VA
B34: 631 | C34: Waardeverminderingen op voorraden
B35: 632 | C35: Waardeverminderingen op bestellingen in uitvoering
B36: 633 | C36: Waardeverminderingen op handelsvorderingen op meer dan één jaar
B37: 634 | C37: Waardeverminderingen op handelsvorderingen op ten hoogste één jaar
B38: 635 | C38: Voorzieningen voor pensioenen en soortgelijke verplichtingen
B39: 636 | C39: Voorzieningen voor grote herstellingswerken en grote onderhoudswerken
B40: 637 | C40: Voorzieningen voor andere risico’s en kosten
B41: 638 | C41: Voorzieningen voor terug te betalen subsidies en legaten en voor schenkingen met terugnemingsrecht
B42: 640 | C42: Bedrijfsbelastingen
B43: 641 | C43: Minderwaarden op courante realisatie van MVA
B44: 642 | C44: Minderwaarden op de realisatie van handelsvorderingen
B45: 643 | C45: Schenkingen
B46: 649 | C46: Als herstructureringskosten geactiveerde bedrijfskosten (-)
B47: 650 | C47: Kosten van schulden
B48: 651 | C48: Waardeverminderingen op vlottende activa
B49: 652 | C49: Minderwaarden op de verwezenlijking van vlottende activa
B50: 653 | C50: Discontokosten op vorderingen
B51: 654 | C51: Wisselresultaten
B52: 655 | C52: Resultaten uit de omrekening van vreemde valuta
B53: 656 | C53: Voorzieningen van financiële aard
B54: 660 | C54: Uitzonderlijke afschrijvingen en waardeverminderingen (toevoeging)
B55: 661 | C55: Waardeverminderingen op vaste financiële activa (toevoeging)
B56: 662 | C56: Voorzieningen voor uitzonderlijke risico’s en kosten
B57: 663 | C57: Minderwaarden op de realisatie van VA
B58: 669 | C58: Uitzonderlijke kosten als herstructureringskosten opgenomen onder de activa (-)
B59: 670 | C59: Inkomstenbelastingen
B60: 671 | C60: Jaarlijkse taks tot vergoeding van de successierechten
B61: 690 | C61: Overgedragen negatief resultaat van het vorig boekjaar
B62: 691 | C62: Overboeking naar de bestemde fondsen
B63: 693 | C63: Over te dragen positief resultaat
B64: 701 | C64: Opbrengsten van gebruikers, werkenden, ouders en voogden
B65: 702 | C65: Opbrengsten van kinderbijslagen
B66: 703 | C66: Opbrengsten van personen met PAB (OPH)
B67: 704 | C67: Opbrengsten van zorgconsulentschap (OPH)
B68: 708 | C68: Toegekende kortingen, ristorno’s en rabatten (-)
B69: 712 | C69: Wijzigingen in de voorraad goederen in bewerking
B70: 713 | C70: Wijzigingen in de voorraad gereed product
B71: 715 | C71: Wijzigingen in de voorraad onroerende goederen bestemd voor verkoop
B72: 717 | C72: Wijzigingen in de bestellingen in uitvoering
B73: 730 | C73: Lidgeld (stortingen) werkelijke leden
B74: 731 | C74: Lidgeld (stortingen) toegetreden leden
B75: 732 | C75: Schenkingen zonder terugnemingsrecht (+/-)
B76: 733 | C76: Schenkingen met terugnemingsrecht (+/-)
B77: 734 | C77: Legaten zonder terugnemingsrecht (+/-)
B78: 735 | C78: Legaten met terugnemingsrecht (+/-)
B79: 736 | C79: Kapitaal- en intrestsubsidies
B80: 737 | C80: Werkingssubsidies Vlaamse Overheid (exploitatiesubsidies)
B81: 738 | C81: Overige werkingssubsidies en werkingstoelagen (compenserende bedragen ter vermindering van de loonkost)
B82: 740 | C82: Recuperaties van kosten, schadevergoedingen, verzekeringen
B83: 741 | C83: Meerwaarden op de courante realisatie van MVA
B84: 742 | C84: Meerwaarden op de realisatie van handelsvorderingen
B85: 750 | C85: Opbrengsten uit financieel vaste activa
B86: 751 | C86: Opbrengsten uit Vlottende activa
B87: 752 | C87: Meerwaarden op de realisatie van vlottende activa
B88: 753 | C88: Intrestsubsidies
B89: 754 | C89: Wisselresultaten
B90: 755 | C90: Resultaten uit de omrekening van vreemde valuta
B91: 760 | C91: Terugneming van afschrijvingen en waardeverminderingen
B92: 761 | C92: Terugneming van waardeverminderingen op financiële vaste activa
B93: 762 | C93: Terugneming van voorzieningen voor uitzonderlijke risico’s en kosten
B94: 763 | C94: Meerwaarden op de realisatie van VA
B95: 790 | C95: Overgedragen positief resultaat van het vorige boekjaar
B96: 791 | C96: Onttrekking aan de bestemde fondsen
B97: 792 | C97: Onttrekking aan de fondsen van de vereniging
B98: 793 | C98: Over te dragen negatief resultaat
